Workbook

Sheet 目次
B1: ValidationｰSupport処理プログラム Ver6.3 ＜マクロ機能を有効にして下さい。＞ (2023.05.20)
B2: アンダーラインのあるセルはクリックによって目的とするシートへ移動します．
B3: 特異性，選択性 （共存物質の影響試験） [特異性・選択性シート]
B4: 真度，正確さ 評価法 （1から3濃度以上に対応） [正確さの評価シート]
B5: 比較対照法との比較実験による方法 [相関分析シート]
B6: 併行精度 （同時再現性） [併行精度シート]
B7: 室内再現精度 (日間変動と日内変動)と不確かさ [室内精度シート]
B8: 検出限界 定量限界 測定 [検出限界と定量限界シート]
B9: 直線性 [直線性シート]
B10: 許容限界の指針 [許容限界シート]
B11: 報告書 検討結果のまとめ [報告書シート]
B12: バージョンアップ情報
B15: バージョンアップ履歴
B16: ･Ver1188の変更点 20120818
B17: 書式辺境を許可し、書式の変更を可能にした。したがって、桁数変更の機能が不要になった。また、グラフの桁数表示も連動する様に変更を行った。
B18: また、並べ替えについても許可とした。
B19: ・Ver1181からの変更点 2012.01
B20: 各種用語の解説をポップアップ形式からシート上に表記するように変更した。また、線形関係式の信頼区間計算を近年有用性が評価されているブートストラップ法を使用してできるようにした。
B21: 日内日間精密度シート名称を室内精度に改め、3濃度に対応するためシートを３つにした。
B22: ・Ver118からの変更点 2011.11
B23: ランダマイズ２回測定シートに偏差図を追加。日内日差精密度シートのUCL・LCL計算バグの修正。正確さの評価で１濃度に対応。定量限界値の許容誤差限界に任意値を入力可能に。
B24: ・Ver8.82からの変更点 2011.09
B25: 日本臨床化学会クオリティマネジメント専門委員会 定量測定法に関するバリデーション指針に従い、「相関図」「検出限界と定量限界」を大幅に改造し、STSSV/EXCELに改名する。 新シートへの書き出しを削除。セルの選択制限強化。
B26: 回帰分析シートを大幅強化した。従来マクロ機能を使用してグラフ作成を行っていたが、データ入力時に即座に作画するようにした。ただし、従来可能であった信頼区間算出のためのブートストラップ計算ができなくなった。
B27: ・Ver8.8からの変更点 2010.02
B28: 回帰分析において「標準主軸回帰式」を追加
B29: ・Ver７.8 からの変更点
B30: 同時再現性シートで標本集団のヒストグラムを表示。
B31: ・Ver7.5からの変更点 200712
B32: 同時再現シートにて母標準偏差の推定
B33: ・Ver7.3からの変更点 200707
B34: 不確かさ算出のために日内日間精密度計算のできる日数を９０日まで拡大
B35: ・Ver7.1からの変更点 2006.6
B36: 日内日間精密度において３０日までの計算を６０日まで拡大
B37: ·Ver 5.8 からの変更点 2005.11
B38: 同時再現性に解説文を追加。ブートストラップにおけるバグの改善。
B39: ·Ver 5.6 からの変更点 2005.01
B40: 正確さの評価においてばらつきが全くない場合（Ｓｙｘ＝０）の不具合を修正
B41: ·Ver 5.5 からの変更点 2003.09
B42: 日内日間精密度の分散分析表の計算式についてコメント表示を行った。
B43: ·Ver 5.0 からの変更点 2003.07
B44: 相関図作成において、日常検査の性能試験法マニュアル（2002.9.12)に則り、標準化残差式を変更。なお従来通りのＳｙｘによるグラフ表示機能も残す。
B45: ·Ver 4.5 からの変更点 2003.05
B46: 正規分布型検定と反復切断法においてべき乗変換と階級数最適値の検索＆許容範囲の検索および信頼区間の算出プログラムの追加を行った。べき乗変換して正規化を行ったデータに対して、信頼区間が容易に求められる。また、日内日間精密度において管理限界値の計算の不具合を改善した。
B47: Ver 4.2 からの変更点 2002.11
B48: ・ 同時再現性シートの追加 ・ 解説の変更 ・検出限界シートの2SD法への対応
B49: Ver 4.1 からの変更点 2002.10
B50: ブートストラップ法による回帰式の区間推定を古典的回帰式から線形回帰式へ変更した。
B51: データ容量低減のため、変更を行った。
B52: Ver 4.0 からの変更点 2002.10
B53: ブートストラップ法のおける信頼区間を線形回帰式より算出するように変更
B54: Ｖｅｒ 3.6 からの変更点 2002.0７
B55: 日内日間の精密度において管理図に使用する予備データの計算を行えるようにした．また、日差と日内の精密度比較グラフを追加した。
B56: 相関図において９５％等確率楕円の表示が行えるようになった。
B57: 各種検定におけるサンプル数の計算を行えるようにした。
B58: 分布型シートで分布型検定後のデータセルロック状態を修正した。
B59: Ｖｅｒ 2.0 からの変更点 2000.08
B60: ・「精密さの評価」において，患者試料による評価を追加
B61: (多数の患者試料の二重測定値 ; ランダマイズ２回測定）
B62: ・「正確さの評価」において「１種類の濃度の血清標準物質による評価」の95％信頼区間を表示するように変更。
B63: ・比較対照法との比較実験による方法において，ブートストラップ法での傾き・切片の信頼区間を求めることが可能となった。
B64: Ｖｅｒ 1.5 からの変更点
B65: ･「分布型検定」 および 「反復切断法」 を加えデータの分布について調査出来るようにした。
B66: ・「正確さの評価」における「比較対照法との比較実験による方法」において，外れ値検出のための「相対的な差の平均値」をグラフ上部に表示するようにした。
B67: Ｖｅｒ 1.0 からの変更点
B68: ＥＸＣＥＬ―Ｂｏｏｋの最初にシートへ［はじめに］を加え，ＳＴＳＳ／ＥＸＣＥＬの使用方法などの解説を表示するようにした。

Sheet 選択性
B1: タイトル | C1: 溶血の影響 | E1: 解説 | N1: 0
B2: 系列 | C2: 測定値 | D2: 変化率(%)
B3: 0 | C3: 3.1 | D3: =IF(COUNTA(C3)<>0,(C3-$C$14)/$C$14*100,"") -> 0
B4: 50 | C4: 3.1 | D4: =IF(COUNTA(C4)<>0,(C4-$C$14)/$C$14*100,"") -> 0
B5: 100 | C5: 3.2 | D5: 3.225806452
B6: 150 | C6: 3.35 | D6: 8.064516129
B7: 200 | C7: 3.45 | D7: 11.29032258
B8: 250 | C8: 3.5 | D8: 12.90322581
B9: 300 | C9: 3.6 | D9: 16.12903226
B10: 350 | C10: 3.65 | D10: 17.74193548
B11: 400 | C11: 3.7 | D11: 19.35483871
B12: 450 | C12: 3.75 | D12: 20.96774194
B13: 500 | C13: 3.77 | D13: 21.61290323
B14: 目標値 | C14: 3.1
B16: タイトル | C16: Bi C の影響
B17: 系列 | C17: 測定値 | D17: 変化率(%)
B18: 0 | C18: 3.2 | D18: =IF(COUNTA(C18)<>0,(C18-$C$29)/$C$29*100,"") -> 0
B19: 4.18 | C19: 3.23 | D19: =IF(COUNTA(C19)<>0,(C19-$C$29)/$C$29*100,"") -> 0.9375
B20: 8.36 | C20: 3.25 | D20: 1.5625
B21: 12.54 | C21: 3.4 | D21: 6.25
B22: 16.72 | C22: 3.6 | D22: 12.5
B23: 20.9 | C23: 3.65 | D23: 14.0625
B29: 目標値 | C29: 3.2
B31: タイトル | C31: RF の影響
B32: 系列 | C32: 測定値 | D32: 変化率(%)
B33: 0 | C33: 4 | D33: =IF(COUNTA(C33)<>0,(C33-$C$44)/$C$44*100,"") -> 0
B34: 94 | C34: 4.1 | D34: =IF(COUNTA(C34)<>0,(C34-$C$44)/$C$44*100,"") -> 2.5
B35: 188 | C35: 4.1 | D35: 2.5
B36: 282 | C36: 4.25 | D36: 6.25
B37: 376 | C37: 4.3 | D37: 7.5
B38: 470 | C38: 4.6 | D38: 15
B44: 目標値 | C44: 4
B46: タイトル | C46: 乳び の影響
B47: 系列 | C47: 測定値 | D47: 変化率(%)
B48: 0 | C48: 4 | D48: =IF(COUNTA(C48)<>0,(C48-$C$59)/$C$59*100,"") -> 0
B49: 468 | C49: 4.1 | D49: =IF(COUNTA(C49)<>0,(C49-$C$59)/$C$59*100,"") -> 2.5
B50: 936 | C50: 4.11 | D50: 2.75
B51: 1404 | C51: 4.25 | D51: 6.25
B52: 1872 | C52: 4.3 | D52: 7.5
B53: 2340 | C53: 4.5 | D53: 12.5
B59: 目標値 | C59: 4
B61: タイトル | C61: アスコルビン酸の影響
B62: 系列 | C62: 測定値 | D62: 変化率(%)
B63: 0 | C63: 4 | D63: =IF(COUNTA(C63)<>0,(C63-$C$74)/$C$74*100,"") -> 0
B64: 10 | C64: 4 | D64: =IF(COUNTA(C64)<>0,(C64-$C$74)/$C$74*100,"") -> 0
B65: 20 | C65: 3.97 | D65: -0.75
B66: 30 | C66: 3.95 | D66: -1.25
B67: 40 | C67: 3.92 | D67: -2
B68: 50 | C68: 3.9 | D68: -2.5
B74: 目標値 | C74: 4

Sheet 正確さの評価
A1: タイトル | B1: Ｎａ | E1: 解説１ | F1: 解説２ | G1: 判定上の注意点 | N1: 偏差 | V1: 標準化残差 | AE1: 行平均
A2: 認証値→ | B2: 127.7 | C2: 141.3 | D2: 156.5 | N2: =IF(B2<>"",B2,0) -> 127.7 | O2: =IF(C2<>"",C2,0) -> 141.3 | P2: 156.5 | Q2: 0 | R2: 0 | S2: 0 | T2: 0 | U2: 0 | V2: =IF(B2<>"",B2,0) -> 127.7 | W2: =IF(C2<>"",C2,0) -> 141.3 | X2: 156.5 | Y2: 0 | Z2: 0 | AA2: 0 | AB2: 0 | AC2: 0 | AE2: =IF(COUNTA(B2:I2)>0,AVERAGE(B2:I2),"") -> 141.8333333 | AF2: =IF(COUNTA(B2:I2)>0,$AE$28*((AE2-$AE$29)^2),"") -> 0.4987777778
A3: 拡張不確かさ (包含係数k=2) | B3: 0.38 | C3: 0.42 | D3: 0.47 | AH3: 1 | AI3: 2 | AJ3: 3 | AK3: 4 | AL3: 5 | AM3: 6 | AN3: 7 | AO3: 8
A4: 1 | B4: 128 | C4: 140.8 | D4: 155.3 | N4: =IF(B4<>"",B4-B$2,NA()) -> 0.3 | O4: =IF(C4<>"",C4-C$2,NA()) -> -0.5 | P4: -1.2 | V4: =IF(B4<>"",(B4-B$2)/$K$40,NA()) -> 1.569078098 | W4: =IF(C4<>"",(C4-C$2)/$K$40,NA()) -> -2.615130164 | X4: -6.276312394 | AE4: 141.3666667 | AF4: =IF(COUNTA(B4:I4)>0,$AE$28*((AE4-$AE$29)^2),"") -> 0.5921111111 | AH4: =IF(B4<>"",(B$2-$AE$30)*(B4-$AE$29),"") -> 192.3546667 | AI4: =IF(C4<>"",(C$2-$AE$30)*(C4-$AE$29),"") -> 0.432 | AJ4: 200.7866667
A5: 2 | B5: 128.1 | C5: 141 | D5: 155.2 | N5: =IF(B5<>"",B5-B$2,NA()) -> 0.4 | O5: -0.3 | P5: -1.3 | V5: =IF(B5<>"",(B5-B$2)/$K$40,NA()) -> 2.092104131 | W5: -1.569078098 | X5: -6.799338427 | AE5: 141.4333333 | AF5: 0.3121111111 | AH5: =IF(B5<>"",(B$2-$AE$30)*(B5-$AE$29),"") -> 190.9413333 | AI5: =IF(C5<>"",(C$2-$AE$30)*(C5-$AE$29),"") -> 0.3253333333 | AJ5: =IF(D5<>"",(D$2-$AE$30)*(D5-$AE$29),"") -> 199.32 | AK5: =IF(E5<>"",(E$2-$AE$30)*(E5-$AE$29),"") ->  | AL5: =IF(F5<>"",(F$2-$AE$30)*(F5-$AE$29),"") ->  | AM5: =IF(G5<>"",(G$2-$AE$30)*(G5-$AE$29),"") ->  | AN5: =IF(H5<>"",(H$2-$AE$30)*(H5-$AE$29),"") ->  | AO5: =IF(I5<>"",(I$2-$AE$30)*(I5-$AE$29),"") -> 
A6: 3 | B6: 128.4 | C6: 140.9 | D6: 155.7 | N6: 0.7 | O6: -0.4 | P6: -0.8 | V6: 3.66118223 | W6: -2.092104131 | X6: -4.184208263 | AE6: 141.6666667 | AF6: 0.03211111111 | AH6: 186.7013333 | AI6: 0.3786666667 | AJ6: 206.6533333
A7: 4 | B7: 128.2 | C7: 141.3 | D7: 155.6 | N7: 0.5 | O7: 0 | P7: -0.9 | V7: 2.615130164 | W7: 0 | X7: -4.707234295 | AE7: 141.7 | AF7: 0.081 | AH7: 189.528 | AI7: 0.1653333333 | AJ7: 205.1866667
A8: 5 | B8: 128.1 | C8: 141.1 | D8: 155.8 | N8: 0.4 | O8: -0.2 | P8: -0.7 | V8: 2.092104131 | W8: -1.046052066 | X8: -3.66118223 | AE8: 141.6666667 | AF8: 0.03211111111 | AH8: 190.9413333 | AI8: 0.272 | AJ8: 208.12
A9: 6 | B9: 128.3 | C9: 140.7 | D9: 155.7 | N9: 0.6 | O9: -0.6 | P9: -0.8 | V9: 3.138156197 | W9: -3.138156197 | X9: -4.184208263 | AE9: 141.5666667 | AF9: 0.01877777778 | AH9: 188.1146667 | AI9: 0.4853333333 | AJ9: 206.6533333
A10: 7 | B10: 128.2 | C10: 140.9 | D10: 155.6 | N10: 0.5 | O10: -0.4 | P10: -0.9 | V10: 2.615130164 | W10: -2.092104131 | X10: -4.707234295 | AE10: 141.5666667 | AF10: 0.01877777778 | AH10: 189.528 | AI10: 0.3786666667 | AJ10: 205.1866667
A11: 8 | B11: 128.3 | C11: 141.1 | D11: 156 | N11: 0.6 | O11: -0.2 | P11: -0.5 | V11: 3.138156197 | W11: -1.046052066 | X11: -2.615130164 | AE11: 141.8 | AF11: 0.361 | AH11: 188.1146667 | AI11: 0.272 | AJ11: 211.0533333
A12: 9 | B12: 128.3 | C12: 141.2 | D12: 155.8 | N12: 0.6 | O12: -0.1 | P12: -0.7 | V12: 3.138156197 | W12: -0.5230260328 | X12: -3.66118223 | AE12: 141.7666667 | AF12: 0.2454444444 | AH12: 188.1146667 | AI12: 0.2186666667 | AJ12: 208.12
A13: 10 | B13: 128.2 | C13: 141.1 | D13: 155.4 | N13: 0.5 | O13: -0.2 | P13: -1.1 | V13: 2.615130164 | W13: -1.046052066 | X13: -5.753286361 | AE13: 141.5666667 | AF13: 0.01877777778 | AH13: 189.528 | AI13: 0.272 | AJ13: 202.2533333
A14: 11
A15: 12
A16: 13
A17: 14
A18: 15
A19: 16
A20: 17 | O20: =IF(C20<>"",C20-C$2,NA()) ->  | W20: =IF(C20<>"",(C20-C$2)/$K$40,NA()) ->  | AD20: =6/160 -> 0.0375
A21: 18
A22: 19
A23: 20 | AE23: =IF(COUNTA(B23:I23)>0,AVERAGE(B23:I23),"") ->  | AH23: =IF(B23<>"",(B$2-$AE$30)*(B23-$AE$29),"") -> 
A24: 平 均 | B24: =IF(B4<>"",AVERAGE(B4:B23),"") -> 128.21 | C24: =IF(C4<>"",AVERAGE(C4:C23),"") -> 141.01 | D24: 155.61 | N24: =AVERAGE(N4:N23) ->  | O24: =AVERAGE(O4:O23) ->  | V24: =AVERAGE(V4:V23) ->  | W24: =AVERAGE(W4:W23) -> 
A25: S D | B25: =IF($B$27<>0,STDEV($B$4:$B$23),"") -> 0.1197219 | C25: =IF(C27<>0,STDEV(C4:C23),"") -> 0.1852925615 | D25: 0.2469817807 | N25: =STDEV(N4:N23) ->  | AD25: 計 | AE25: =SUM(AE4:AE23) -> 1416.1 | AF25: =SUM(AF4:AF23) -> 1.712222222 | AH25: =IF(B24<>"",$AE$28*B24-$AE$29^2,"") -> -18771.2921 | AI25: =IF(C24<>"",$AE$28*C24-$AE$29^2,"") -> -18643.2921 | AJ25: -18497.2921 | AP25: =SUM(AH25:AO25) -> -55911.8763
A26: C V | B26: =IF(B27<>0,B25/B24*100,"") -> 0.09337953356 | C26: =IF(C27<>0,C25/C24*100,"") -> 0.1314038447 | D26: 0.1587184504 | AD26: 全個数 | AE26: =COUNT(B4:I23) -> 30
A27: データ数 | B27: =IF(B24<>"",COUNT(B4:B23),"") -> 10 | C27: =COUNT(C4:C23) -> 10 | D27: 10 | E27: 0 | F27: 0 | G27: =COUNT(G4:G23) -> 0 | H27: 0 | I27: 0 | AD27: 列数( n) | AE27: =COUNT(B24:I24) -> 3 | AH27: 20150627 新たに計算式を組み立てる
A28: 許容誤差限界外数 | B28: =COUNTIF(B4:B23,"<"&B31)+COUNTIF(B4:B23,">"&B32) -> 0 | C28: =COUNTIF(C4:C23,"<"&C31)+COUNTIF(C4:C23,">"&C32) -> 0 | D28: 0 | E28: 0 | F28: 0 | G28: 0 | H28: 0 | I28: 0 | N28: 信頼区間の判定 | AD28: 行数( q ) | AE28: =COUNT(AE4:AE23) -> 10
A29: 平均値の信頼区間下限 | B29: =IF(B27>0,B24-B33*B25/B27^0.5,"") -> 128.1243561 | C29: =IF(C27>0,C24-C33*C25/C27^0.5,"") -> 140.8774497 | D29: 155.4333199 | N29: =IF(B3<>"",IF(B29<B31,B29,0),0) -> 0 | O29: =IF(C3<>"",IF(C29<C31,C29,0),0) -> 0 | P29: 0 | Q29: 0 | R29: 0 | S29: 0 | T29: 0 | U29: 0 | AD29: 全平均 Ｙ | AE29: =AVERAGE(B4:I23) -> 141.61 | AH29: =IF(B24<>"",(B24-$AE$29)^2,"") -> 179.56 | AI29: =IF(C24<>"",(C24-$AE$29)^2,"") -> 0.36 | AJ29: 196 | AP29: =SUM(AH29:AO29) -> 375.92
A30: 平均値の信頼区間上限 | B30: =IF(B27>0,B24+B33*B25/B27^0.5,"") -> 128.2956439 | C30: =IF(C27>0,C24+C33*C25/C27^0.5,"") -> 141.1425503 | D30: 155.7866801 | N30: =IF(B3<>"",IF(B30>B32,B30,0),0) -> 0 | O30: =IF(C3<>"",IF(C30>C32,C30,0),0) -> 0 | P30: 0 | Q30: 0 | R30: 0 | S30: 0 | T30: 0 | U30: 0 | AD30: Ｘの平均 | AE30: =AVERAGE(B2:I2) -> 141.8333333 | AH30: =IF(B2<>"",B2^2,"") -> 16307.29 | AI30: =IF(C2<>"",C2^2,"") -> 19965.69 | AJ30: 24492.25 | AP30: =SUM(AH30:AO30) -> 60765.23
A31: 平均値の 95%信頼区間 | B31: =IF(B$34<>"",B$24-2*((B$3/2)^2+B$25^2)^0.5,"") -> 127.7608527 | C31: =IF(C$34<>"",C$24-2*((C$3/2)^2+C$25^2)^0.5,"") -> 140.449881 | D31: =IF(D$34<>"",D$24-2*((D$3/2)^2+D$25^2)^0.5,"") -> 154.9281642 | AD31: ＳＸＹ | AE31: =SUM(AH4:AO23) -> 3950.4 | AF31: =SUM(AH4:AO23) -> 3950.4 | AH31: SB | AI31: =AE31^2/AE32 -> 3759.071531
B32: =IF(B$34<>"",B$24+2*((B$3/2)^2+B$25^2)^0.5,"") -> 128.6591473 | C32: =IF(C$34<>"",C$24+2*((C$3/2)^2+C$25^2)^0.5,"") -> 141.570119 | D32: 156.2918358 | AD32: ＳＸＸ | AE32: =DEVSQ($B$2:$I$2)*$AE$28 -> 4151.466667 | AH32: SL | AI32: =AE28*AP29-AI31 -> 0.1284686536
A33: t0.05(n-1) | B33: =IF(B27<>0,TINV(0.05,B27-1),"") -> 2.262157163 | C33: =IF(C27<>0,TINV(0.05,C27-1),"") -> 2.262157163 | D33: 2.262157163 | P33: =COUNT(B4:I23) -> 30 | AD33: SYY | AE33: =DEVSQ($B$4:$I$23) -> 3760.187 | AH33: SE | AI33: =AE33-AP29*AE28 -> 0.987
A34: バラツキの標準誤差 | B34: =IF(B27<>0,2*((B25/B27^0.5)^2+(B3/2)^2)^0.5,"") -> 0.387470429 | C34: =IF(C27<>0,2*((C25/C27^0.5)^2+(C3/2)^2)^0.5,"") -> 0.4360428114 | D34: =IF(D27<>0,2*((D25/D27^0.5)^2+(D3/2)^2)^0.5,"") -> 0.4952776999 | P34: =SUM(B28:I28) -> 0 | AD34: ＳＲ | AE34: 32775.19785 | AF34: =AP25-AE31^2/AE32 -> -59670.94783 | AH34: Syx | AI34: =(AI33/(AE26-AE27))^0.5 -> 0.191195072
A35: Δm | B35: =IF(B27<>0,ABS(B24-B2),"") -> 0.51 | C35: =IF(C27<>0,ABS(C24-C2),"") -> 0.29 | D35: 0.89 | J35: 回帰の評価 | AD35: Sb | AE35: =((AE33-K38*AE31)/(AE26-2))^0.5/AE32^0.5 -> 0.00309776802 | AF35: =(L40/AE32^0.5) -> 0.00309776802 | AH35: F0 | AI35: =(AI32/(AE27-2))/(AI33/(AE26-AE27)) -> 3.514340069 | AJ35: ⇐直線性の評価
J36: 直線性検定 F = | K36: =IF(AE27>2,AI35,"") -> 3.514340069 | AD36: Tb | AE36: 0.2486223679 | AH36: FP | AI36: =FDIST(AI35,AE27-2,AE26-AE27) -> 0.07169694883 | AJ36: ⇐Fの確率
J37: F の片側確率 ＝ | K37: =IF(AE27>2,AI36,"") -> 0.07169694883 | AD37: T確率 | AE37: =TDIST(AE36,$AE$27*$AE$28-$AE$27,2) -> 0.8055343163 | AH37: tb | AI37: =(ABS(K38-1)*AE32^0.5)/AI34 -> 16.32159534
J38: 傾き b ＝ | K38: =IF(ISERR(SLOPE(B24:I24,B2:I2)),"",SLOPE(B24:I24,B2:I2)) -> 0.9515673176 | AD38: Ｔａ | AE38: 0.22196023 | AH38: tbP | AI38: =_xlfn.T.DIST(AI37,AE26-AE27,FALSE) -> 1.23496716e-15
J39: 切片 a ＝ | K39: =IF(ISERR(INTERCEPT(B24:I24,B2:I2)),"",INTERCEPT(B24:I24,B2:I2)) -> 6.646035457 | AD39: T確率 | AE39: =TDIST(AE38,$AE$27*$AE$28-$AE$27,2) -> 0.8260151684 | AH39: ta | AI39: =(ABS(K39)/AI34)*((AE27*AE32)/(AP30))^0.5 -> 15.73692198
J40: Syx ＝ | K40: =AI34 -> 0.191195072 | L40: =(($AE$33-2*$K$38*$AE$31+$K$38^2*$AE$32)/(AE26-2))^0.5 -> 0.1995950055 | AH40: taP | AI40: =_xlfn.T.DIST(AI39,AE26-AE27,FALSE) -> 3.11209036e-15
J41: Tb ＝ | K41: =AI37 -> 16.32159534
J42: Ｔｂ 確率＝ | K42: =AI38 -> 1.23496716e-15
J43: Ta ＝ | K43: =AI39 -> 15.73692198
J44: Ｔａ 確率＝ | K44: =AI40 -> 3.11209036e-15
J45: =IF(AE27>2,IF(K37>0.05,"F 確率より有意水準 0.05 以上から直線性あり！","F 確率より有意水準 0.05 以下から直線性はない！"),"") -> F 確率より有意水準 0.05 以上から直線性あり！
J46: =IF(K42>0.05,"Ｔb 確率より有意水準 0.05 以上から比例系統誤差は認められない！","Ｔb 確率より有意水準 0.05 以下から比例系統誤差が認められる！") -> Ｔb 確率より有意水準 0.05 以下から比例系統誤差が認められる！
J47: =IF(K44>0.05,"Ｔa 確率より有意水準 0.05 以上から一定系統誤差は認められない！","Ｔa 確率より有意水準 0.05 以下から一定系統誤差が認められる！") -> Ｔa 確率より有意水準 0.05 以下から一定系統誤差が認められる！
B50: 測定値 | C50: 認証値
A51: 上限 | B51: =B32 -> 128.6591473
A52: 下限 | B52: =B31 -> 127.7608527
A53: 平均 | B53: =B24 -> 128.21 | C53: =B2 -> 127.7
B54: 測定値 | C54: 認証値
A55: 上限 | B55: =C32 -> 141.570119
A56: 下限 | B56: =C31 -> 140.449881
A57: 平均 | B57: =C24 -> 141.01 | C57: =C2 -> 141.3
B58: 測定値 | C58: 認証値
A59: 上限 | B59: =D32 -> 156.2918358
A60: 下限 | B60: =D31 -> 154.9281642
A61: 平均 | B61: =D24 -> 155.61 | C61: =D2 -> 156.5
B62: 測定値 | C62: 認証値
A63: 上限 | B63: =E32 -> 
A64: 下限 | B64: =E31 -> 
A65: 平均 | B65: =E24 ->  | C65: =E2 -> 0
B66: 測定値 | C66: 認証値
A67: 上限 | B67: =F32 -> 
A68: 下限 | B68: =F31 -> 
A69: 平均 | B69: =F24 ->  | C69: =F2 -> 0
B70: 測定値 | C70: 認証値
A71: 上限 | B71: =G32 -> 
A72: 下限 | B72: =G31 -> 
A73: 平均 | B73: =G24 ->  | C73: =G2 -> 0
B74: 測定値 | C74: 認証値
A75: 上限 | B75: =H32 -> 
A76: 下限 | B76: =H31 -> 
A77: 平均 | B77: =H24 ->  | C77: =H2 -> 0
B78: 測定値 | C78: 認証値
A79: 上限 | B79: =I32 -> 
A80: 下限 | B80: =I31 -> 
A81: 平均 | B81: =I24 ->  | C81: =I2 -> 0
B91: 10 | C91: 60 | D91: 110 | E91: 160 | F91: 436
B92: 1 | C92: 2 | D92: 3 | E92: 5 | F92: 5
B93: 12 | C93: 60 | D93: 112 | E93: 160 | F93: 436
B94: 11 | C94: 62 | D94: 111 | E94: 158 | F94: 436
B95: 10 | C95: 68 | D95: 110 | E95: 160 | F95: 436
B96: 10 | C96: 61 | D96: 111 | E96: 160 | F96: 434
B97: 12 | C97: 61 | D97: 110 | E97: 161 | F97: 435
B98: 13 | C98: 60 | D98: 110 | E98: 162 | F98: 434
B99: 11 | C99: 58 | D99: 109 | E99: 157 | F99: 437
B100: 9 | C100: 59 | D100: 108 | E100: 159 | F100: 437
B101: 11 | C101: 60 | D101: 112 | E101: 160 | F101: 437
B102: 10 | C102: 63 | D102: 109 | E102: 162 | F102: 435
B104: Dimension
B105: 127.7 | C105: 141.3 | D105: 156.5
B106: 0.4 | C106: 0.5 | D106: 0.5
B107: 127.21 | C107: 141.06 | D107: 154.82
B108: 128.06 | C108: 139.94 | D108: 155.36
B109: 127.13 | C109: 140.26 | D109: 154.12
B110: 128 | C110: 140.16 | D110: 154.67
B111: 127.18 | C111: 141.19 | D111: 155.67
B112: 127.09 | C112: 141.83 | D112: 155.16
B113: 128.57 | C113: 139.97 | D113: 154.08
B114: 126.67 | C114: 143.02 | D114: 157.31
B115: 127.24 | C115: 143.86 | D115: 155.85
B116: 128.54 | C116: 142.47 | D116: 154.28
B119: 3.49 | C119: 4.48 | D119: 5.59
B120: 0.02 | C120: 0.02 | D120: 0.03
B121: 3.39 | C121: 4.41 | D121: 5.5
B122: 3.41 | C122: 4.37 | D122: 5.52
B123: 3.39 | C123: 4.4 | D123: 5.48
B124: 3.41 | C124: 4.38 | D124: 5.5
B125: 3.39 | C125: 4.42 | D125: 5.54
B126: 3.38 | C126: 4.44 | D126: 5.51
B127: 3.42 | C127: 4.38 | D127: 5.48
B128: 3.38 | C128: 4.48 | D128: 5.59
B129: 3.4 | C129: 4.49 | D129: 5.53
B130: 3.43 | C130: 4.45 | D130: 5.49
B134: 88 | C134: 102 | D134: 118.7
B135: 0.3 | C135: 0.4 | D135: 0.5
B136: 89.3 | C136: 104 | D136: 118.5
B137: 89.4 | C137: 102.9 | D137: 119.1
B138: 88.7 | C138: 103.5 | D138: 118.7
B139: 88.9 | C139: 103.3 | D139: 118.9
B140: 88.4 | C140: 104.3 | D140: 119.4
B141: 88.8 | C141: 105.4 | D141: 119
B142: 89.4 | C142: 103.7 | D142: 118.8
B143: 88.9 | C143: 106.1 | D143: 120.4
B144: 88.9 | C144: 106 | D144: 119.4
B145: 88.9 | C145: 105.1 | D145: 118.8
B147: Na (EA07)
B148: 127.7 | C148: 141.3 | D148: 156.5
B149: 0.4 | C149: 0.5 | D149: 0.5
B150: 127.7 | C150: 140.7 | D150: 155.3
B151: 127.9 | C151: 140.5 | D151: 154.8
B152: 127.7 | C152: 140.8 | D152: 155.7
B153: 128 | C153: 140.8 | D153: 156.1
B154: 128.1 | C154: 140.6 | D154: 155.8
B155: 128.3 | C155: 141.6 | D155: 155.7
B156: 128.9 | C156: 141.2 | D156: 155.6
B157: 128.3 | C157: 141.3 | D157: 156
B158: 128.3 | C158: 141.2 | D158: 155.6
B159: 128.2 | C159: 141.4 | D159: 156.2
B161: K (EA07)
B162: 3.49 | C162: 4.48 | D162: 5.59
B163: 0.02 | C163: 0.02 | D163: 0.03
B164: 3.49 | C164: 4.46 | D164: 5.59
B165: 3.5 | C165: 4.46 | D165: 5.57
B166: 3.5 | C166: 4.48 | D166: 5.59
B167: 3.5 | C167: 4.48 | D167: 5.63
B168: 3.5 | C168: 4.47 | D168: 5.6
B169: 3.51 | C169: 4.5 | D169: 5.62
B170: 3.5 | C170: 4.5 | D170: 5.59
B171: 3.51 | C171: 4.5 | D171: 5.61
B172: 3.5 | C172: 4.49 | D172: 5.61
B173: 3.5 | C173: 4.5 | D173: 5.62
B177: Cl (EA07)
B178: 88 | C178: 102 | D178: 118.7
B179: 0.3 | C179: 0.4 | D179: 0.5
B180: 88.3 | C180: 103.2 | D180: 119.5
B181: 88.4 | C181: 103.2 | D181: 119.3
B182: 88.4 | C182: 103.5 | D182: 119.8
B183: 88.4 | C183: 103.3 | D183: 120
B184: 88.6 | C184: 103.4 | D184: 119.5
B185: 88.7 | C185: 104.1 | D185: 120
B186: 88.7 | C186: 104.2 | D186: 119.4
B187: 88.5 | C187: 104.1 | D187: 119.8
B188: 88.3 | C188: 103.7 | D188: 119.7
B189: 88.5 | C189: 103.9 | D189: 120.2

Sheet 相関分析
C1: 解 説 | AM1: Spearmanの相関係数用 | AO1: Sｘｙ：= | AP1: =COVAR(AN5:AN1304,AO5:AO1304)*$M$5 -> 9321.08 | AQ1: =COVAR(AP5:AP504,AQ5:AQ504)*O5 ->  | AX1: =COUNT(BB1:BKL1) -> 501 | AY1: =SMALL(BB1:BIB1,11) -> 0.9218372303 | AZ1: =LARGE(BB1:BIB1,12) -> 1.426960621 | BA1: Deming b= | BB1: =(BC9-$M$34*BB9+((BC9-$M$34*BB9)^2+4*$M$34*BB8^2)^0.5)/(2*BB8) -> 1.009914083 | BE1: =(BF9-$M$34*BE9+((BF9-$M$34*BE9)^2+4*$M$34*BE8^2)^0.5)/(2*BE8) -> 1.310196863 | BH1: =(BI9-$M$34*BH9+((BI9-$M$34*BH9)^2+4*$M$34*BH8^2)^0.5)/(2*BH8) -> 1.150583898 | BK1: =(BL9-$M$34*BK9+((BL9-$M$34*BK9)^2+4*$M$34*BK8^2)^0.5)/(2*BK8) -> 1.108528474 | BN1: =(BO9-$M$34*BN9+((BO9-$M$34*BN9)^2+4*$M$34*BN8^2)^0.5)/(2*BN8) -> 1.195146175 | BQ1: =(BR9-$M$34*BQ9+((BR9-$M$34*BQ9)^2+4*$M$34*BQ8^2)^0.5)/(2*BQ8) -> 1.053183058 | BT1: =(BU9-$M$34*BT9+((BU9-$M$34*BT9)^2+4*$M$34*BT8^2)^0.5)/(2*BT8) -> 1.129165143 | BW1: =(BX9-$M$34*BW9+((BX9-$M$34*BW9)^2+4*$M$34*BW8^2)^0.5)/(2*BW8) -> 1.16656571 | BZ1: =(CA9-$M$34*BZ9+((CA9-$M$34*BZ9)^2+4*$M$34*BZ8^2)^0.5)/(2*BZ8) -> 1.213590439 | CC1: =(CD9-$M$34*CC9+((CD9-$M$34*CC9)^2+4*$M$34*CC8^2)^0.5)/(2*CC8) -> 1.065231118 | CF1: =(CG9-$M$34*CF9+((CG9-$M$34*CF9)^2+4*$M$34*CF8^2)^0.5)/(2*CF8) -> 1.445348403 | CI1: =(CJ9-$M$34*CI9+((CJ9-$M$34*CI9)^2+4*$M$34*CI8^2)^0.5)/(2*CI8) -> 1.456695664 | CL1: =(CM9-$M$34*CL9+((CM9-$M$34*CL9)^2+4*$M$34*CL8^2)^0.5)/(2*CL8) -> 1.109804832 | CO1: =(CP9-$M$34*CO9+((CP9-$M$34*CO9)^2+4*$M$34*CO8^2)^0.5)/(2*CO8) -> 1.349222189 | CR1: =(CS9-$M$34*CR9+((CS9-$M$34*CR9)^2+4*$M$34*CR8^2)^0.5)/(2*CR8) -> 1.183613215 | CU1: =(CV9-$M$34*CU9+((CV9-$M$34*CU9)^2+4*$M$34*CU8^2)^0.5)/(2*CU8) -> 1.148120802 | CX1: =(CY9-$M$34*CX9+((CY9-$M$34*CX9)^2+4*$M$34*CX8^2)^0.5)/(2*CX8) -> 1.172384635 | DA1: =(DB9-$M$34*DA9+((DB9-$M$34*DA9)^2+4*$M$34*DA8^2)^0.5)/(2*DA8) -> 0.9905096299 | DD1: =(DE9-$M$34*DD9+((DE9-$M$34*DD9)^2+4*$M$34*DD8^2)^0.5)/(2*DD8) -> 1.152774029 | DG1: =(DH9-$M$34*DG9+((DH9-$M$34*DG9)^2+4*$M$34*DG8^2)^0.5)/(2*DG8) -> 1.257484447 | DJ1: =(DK9-$M$34*DJ9+((DK9-$M$34*DJ9)^2+4*$M$34*DJ8^2)^0.5)/(2*DJ8) -> 1.164437782 | DM1: =(DN9-$M$34*DM9+((DN9-$M$34*DM9)^2+4*$M$34*DM8^2)^0.5)/(2*DM8) -> 1.468187879 | DP1: =(DQ9-$M$34*DP9+((DQ9-$M$34*DP9)^2+4*$M$34*DP8^2)^0.5)/(2*DP8) -> 1.126711715 | DS1: =(DT9-$M$34*DS9+((DT9-$M$34*DS9)^2+4*$M$34*DS8^2)^0.5)/(2*DS8) -> 1.116290046 | DV1: =(DW9-$M$34*DV9+((DW9-$M$34*DV9)^2+4*$M$34*DV8^2)^0.5)/(2*DV8) -> 1.144710365 | DY1: =(DZ9-$M$34*DY9+((DZ9-$M$34*DY9)^2+4*$M$34*DY8^2)^0.5)/(2*DY8) -> 0.976571159 | EB1: =(EC9-$M$34*EB9+((EC9-$M$34*EB9)^2+4*$M$34*EB8^2)^0.5)/(2*EB8) -> 0.9980721501 | EE1: =(EF9-$M$34*EE9+((EF9-$M$34*EE9)^2+4*$M$34*EE8^2)^0.5)/(2*EE8) -> 1.1648269 | EH1: =(EI9-$M$34*EH9+((EI9-$M$34*EH9)^2+4*$M$34*EH8^2)^0.5)/(2*EH8) -> 1.206216539 | EK1: =(EL9-$M$34*EK9+((EL9-$M$34*EK9)^2+4*$M$34*EK8^2)^0.5)/(2*EK8) -> 0.9814348534 | EN1: =(EO9-$M$34*EN9+((EO9-$M$34*EN9)^2+4*$M$34*EN8^2)^0.5)/(2*EN8) -> 1.034381704 | EQ1: =(ER9-$M$34*EQ9+((ER9-$M$34*EQ9)^2+4*$M$34*EQ8^2)^0.5)/(2*EQ8) -> 1.325028529 | ET1: =(EU9-$M$34*ET9+((EU9-$M$34*ET9)^2+4*$M$34*ET8^2)^0.5)/(2*ET8) -> 1.007324634 | EW1: =(EX9-$M$34*EW9+((EX9-$M$34*EW9)^2+4*$M$34*EW8^2)^0.5)/(2*EW8) -> 1.051582576 | EZ1: =(FA9-$M$34*EZ9+((FA9-$M$34*EZ9)^2+4*$M$34*EZ8^2)^0.5)/(2*EZ8) -> 1.172093023 | FC1: =(FD9-$M$34*FC9+((FD9-$M$34*FC9)^2+4*$M$34*FC8^2)^0.5)/(2*FC8) -> 1.151344479 | FF1: =(FG9-$M$34*FF9+((FG9-$M$34*FF9)^2+4*$M$34*FF8^2)^0.5)/(2*FF8) -> 1.261336772 | FI1: =(FJ9-$M$34*FI9+((FJ9-$M$34*FI9)^2+4*$M$34*FI8^2)^0.5)/(2*FI8) -> 1.20243199 | FL1: =(FM9-$M$34*FL9+((FM9-$M$34*FL9)^2+4*$M$34*FL8^2)^0.5)/(2*FL8) -> 1.145965046 | FO1: =(FP9-$M$34*FO9+((FP9-$M$34*FO9)^2+4*$M$34*FO8^2)^0.5)/(2*FO8) -> 0.9181549826 | FR1: =(FS9-$M$34*FR9+((FS9-$M$34*FR9)^2+4*$M$34*FR8^2)^0.5)/(2*FR8) -> 1.049618536 | FU1: =(FV9-$M$34*FU9+((FV9-$M$34*FU9)^2+4*$M$34*FU8^2)^0.5)/(2*FU8) -> 1.092610312 | FX1: =(FY9-$M$34*FX9+((FY9-$M$34*FX9)^2+4*$M$34*FX8^2)^0.5)/(2*FX8) -> 0.9366025314 | GA1: =(GB9-$M$34*GA9+((GB9-$M$34*GA9)^2+4*$M$34*GA8^2)^0.5)/(2*GA8) -> 1.044119171 | GD1: =(GE9-$M$34*GD9+((GE9-$M$34*GD9)^2+4*$M$34*GD8^2)^0.5)/(2*GD8) -> 1.067407802 | GG1: =(GH9-$M$34*GG9+((GH9-$M$34*GG9)^2+4*$M$34*GG8^2)^0.5)/(2*GG8) -> 1.12033992 | GJ1: =(GK9-$M$34*GJ9+((GK9-$M$34*GJ9)^2+4*$M$34*GJ8^2)^0.5)/(2*GJ8) -> 1.115601066 | GM1: =(GN9-$M$34*GM9+((GN9-$M$34*GM9)^2+4*$M$34*GM8^2)^0.5)/(2*GM8) -> 1.426960621 | GP1: =(GQ9-$M$34*GP9+((GQ9-$M$34*GP9)^2+4*$M$34*GP8^2)^0.5)/(2*GP8) -> 1.158684557 | GS1: =(GT9-$M$34*GS9+((GT9-$M$34*GS9)^2+4*$M$34*GS8^2)^0.5)/(2*GS8) -> 1.075151809 | GV1: =(GW9-$M$34*GV9+((GW9-$M$34*GV9)^2+4*$M$34*GV8^2)^0.5)/(2*GV8) -> 1.113065287 | GY1: =(GZ9-$M$34*GY9+((GZ9-$M$34*GY9)^2+4*$M$34*GY8^2)^0.5)/(2*GY8) -> 1.238971913 | HB1: =(HC9-$M$34*HB9+((HC9-$M$34*HB9)^2+4*$M$34*HB8^2)^0.5)/(2*HB8) -> 1.045152055 | HE1: =(HF9-$M$34*HE9+((HF9-$M$34*HE9)^2+4*$M$34*HE8^2)^0.5)/(2*HE8) -> 1.247339339 | HH1: =(HI9-$M$34*HH9+((HI9-$M$34*HH9)^2+4*$M$34*HH8^2)^0.5)/(2*HH8) -> 1.073210059 | HK1: =(HL9-$M$34*HK9+((HL9-$M$34*HK9)^2+4*$M$34*HK8^2)^0.5)/(2*HK8) -> 1.310198882 | HN1: =(HO9-$M$34*HN9+((HO9-$M$34*HN9)^2+4*$M$34*HN8^2)^0.5)/(2*HN8) -> 1.161681499 | HQ1: =(HR9-$M$34*HQ9+((HR9-$M$34*HQ9)^2+4*$M$34*HQ8^2)^0.5)/(2*HQ8) -> 1.063982692 | HT1: =(HU9-$M$34*HT9+((HU9-$M$34*HT9)^2+4*$M$34*HT8^2)^0.5)/(2*HT8) -> 0.9661967666 | HW1: =(HX9-$M$34*HW9+((HX9-$M$34*HW9)^2+4*$M$34*HW8^2)^0.5)/(2*HW8) -> 1.153125169 | HZ1: =(IA9-$M$34*HZ9+((IA9-$M$34*HZ9)^2+4*$M$34*HZ8^2)^0.5)/(2*HZ8) -> 0.9823587487 | IC1: =(ID9-$M$34*IC9+((ID9-$M$34*IC9)^2+4*$M$34*IC8^2)^0.5)/(2*IC8) -> 1.23118766 | IF1: =(IG9-$M$34*IF9+((IG9-$M$34*IF9)^2+4*$M$34*IF8^2)^0.5)/(2*IF8) -> 1.055006366 | II1: =(IJ9-$M$34*II9+((IJ9-$M$34*II9)^2+4*$M$34*II8^2)^0.5)/(2*II8) -> 1.151395208 | IL1: =(IM9-$M$34*IL9+((IM9-$M$34*IL9)^2+4*$M$34*IL8^2)^0.5)/(2*IL8) -> 1.146321784 | IO1: =(IP9-$M$34*IO9+((IP9-$M$34*IO9)^2+4*$M$34*IO8^2)^0.5)/(2*IO8) -> 1.150838035 | IR1: =(IS9-$M$34*IR9+((IS9-$M$34*IR9)^2+4*$M$34*IR8^2)^0.5)/(2*IR8) -> 1.364251124 | IU1: =(IV9-$M$34*IU9+((IV9-$M$34*IU9)^2+4*$M$34*IU8^2)^0.5)/(2*IU8) -> 1.161092734 | IX1: =(IY9-$M$34*IX9+((IY9-$M$34*IX9)^2+4*$M$34*IX8^2)^0.5)/(2*IX8) -> 1.267008066 | JA1: =(JB9-$M$34*JA9+((JB9-$M$34*JA9)^2+4*$M$34*JA8^2)^0.5)/(2*JA8) -> 1.058891223 | JD1: =(JE9-$M$34*JD9+((JE9-$M$34*JD9)^2+4*$M$34*JD8^2)^0.5)/(2*JD8) -> 0.9218372303 | JG1: =(JH9-$M$34*JG9+((JH9-$M$34*JG9)^2+4*$M$34*JG8^2)^0.5)/(2*JG8) -> 0.885885672 | JJ1: =(JK9-$M$34*JJ9+((JK9-$M$34*JJ9)^2+4*$M$34*JJ8^2)^0.5)/(2*JJ8) -> 1.087486255 | JM1: =(JN9-$M$34*JM9+((JN9-$M$34*JM9)^2+4*$M$34*JM8^2)^0.5)/(2*JM8) -> 0.9784349419 | JP1: =(JQ9-$M$34*JP9+((JQ9-$M$34*JP9)^2+4*$M$34*JP8^2)^0.5)/(2*JP8) -> 1.005990503 | JS1: =(JT9-$M$34*JS9+((JT9-$M$34*JS9)^2+4*$M$34*JS8^2)^0.5)/(2*JS8) -> 1.091786742 | JV1: =(JW9-$M$34*JV9+((JW9-$M$34*JV9)^2+4*$M$34*JV8^2)^0.5)/(2*JV8) -> 1.095251508 | JY1: =(JZ9-$M$34*JY9+((JZ9-$M$34*JY9)^2+4*$M$34*JY8^2)^0.5)/(2*JY8) -> 1.484853891 | KB1: =(KC9-$M$34*KB9+((KC9-$M$34*KB9)^2+4*$M$34*KB8^2)^0.5)/(2*KB8) -> 1.156137412 | KE1: =(KF9-$M$34*KE9+((KF9-$M$34*KE9)^2+4*$M$34*KE8^2)^0.5)/(2*KE8) -> 1.126430797 | KH1: =(KI9-$M$34*KH9+((KI9-$M$34*KH9)^2+4*$M$34*KH8^2)^0.5)/(2*KH8) -> 1.331893535 | KK1: =(KL9-$M$34*KK9+((KL9-$M$34*KK9)^2+4*$M$34*KK8^2)^0.5)/(2*KK8) -> 1.376498452 | KN1: =(KO9-$M$34*KN9+((KO9-$M$34*KN9)^2+4*$M$34*KN8^2)^0.5)/(2*KN8) -> 1.086146732 | KQ1: =(KR9-$M$34*KQ9+((KR9-$M$34*KQ9)^2+4*$M$34*KQ8^2)^0.5)/(2*KQ8) -> 1.13152208 | KT1: =(KU9-$M$34*KT9+((KU9-$M$34*KT9)^2+4*$M$34*KT8^2)^0.5)/(2*KT8) -> 1.118367769 | KW1: =(KX9-$M$34*KW9+((KX9-$M$34*KW9)^2+4*$M$34*KW8^2)^0.5)/(2*KW8) -> 1.007978895 | KZ1: =(LA9-$M$34*KZ9+((LA9-$M$34*KZ9)^2+4*$M$34*KZ8^2)^0.5)/(2*KZ8) -> 1.344747665 | LC1: =(LD9-$M$34*LC9+((LD9-$M$34*LC9)^2+4*$M$34*LC8^2)^0.5)/(2*LC8) -> 1.167483026 | LF1: =(LG9-$M$34*LF9+((LG9-$M$34*LF9)^2+4*$M$34*LF8^2)^0.5)/(2*LF8) -> 1.070975122 | LI1: =(LJ9-$M$34*LI9+((LJ9-$M$34*LI9)^2+4*$M$34*LI8^2)^0.5)/(2*LI8) -> 1.20534605 | LL1: =(LM9-$M$34*LL9+((LM9-$M$34*LL9)^2+4*$M$34*LL8^2)^0.5)/(2*LL8) -> 1.397753 | LO1: =(LP9-$M$34*LO9+((LP9-$M$34*LO9)^2+4*$M$34*LO8^2)^0.5)/(2*LO8) -> 1.315373149 | LR1: =(LS9-$M$34*LR9+((LS9-$M$34*LR9)^2+4*$M$34*LR8^2)^0.5)/(2*LR8) -> 1.053128258 | LU1: =(LV9-$M$34*LU9+((LV9-$M$34*LU9)^2+4*$M$34*LU8^2)^0.5)/(2*LU8) -> 1.16238356 | LX1: =(LY9-$M$34*LX9+((LY9-$M$34*LX9)^2+4*$M$34*LX8^2)^0.5)/(2*LX8) -> 1.23282006 | MA1: =(MB9-$M$34*MA9+((MB9-$M$34*MA9)^2+4*$M$34*MA8^2)^0.5)/(2*MA8) -> 1.474225573 | MD1: =(ME9-$M$34*MD9+((ME9-$M$34*MD9)^2+4*$M$34*MD8^2)^0.5)/(2*MD8) -> 1.414110151 | MG1: =(MH9-$M$34*MG9+((MH9-$M$34*MG9)^2+4*$M$34*MG8^2)^0.5)/(2*MG8) -> 1.011692353 | MJ1: =(MK9-$M$34*MJ9+((MK9-$M$34*MJ9)^2+4*$M$34*MJ8^2)^0.5)/(2*MJ8) -> 1.025333562 | MM1: =(MN9-$M$34*MM9+((MN9-$M$34*MM9)^2+4*$M$34*MM8^2)^0.5)/(2*MM8) -> 1.307119005 | MP1: =(MQ9-$M$34*MP9+((MQ9-$M$34*MP9)^2+4*$M$34*MP8^2)^0.5)/(2*MP8) -> 1.085934234 | MS1: =(MT9-$M$34*MS9+((MT9-$M$34*MS9)^2+4*$M$34*MS8^2)^0.5)/(2*MS8) -> 1.199981566 | MV1: =(MW9-$M$34*MV9+((MW9-$M$34*MV9)^2+4*$M$34*MV8^2)^0.5)/(2*MV8) -> 1.369861817 | MY1: =(MZ9-$M$34*MY9+((MZ9-$M$34*MY9)^2+4*$M$34*MY8^2)^0.5)/(2*MY8) -> 1.07787627 | NB1: =(NC9-$M$34*NB9+((NC9-$M$34*NB9)^2+4*$M$34*NB8^2)^0.5)/(2*NB8) -> 1.206688911 | NE1: =(NF9-$M$34*NE9+((NF9-$M$34*NE9)^2+4*$M$34*NE8^2)^0.5)/(2*NE8) -> 1.041140296 | NH1: =(NI9-$M$34*NH9+((NI9-$M$34*NH9)^2+4*$M$34*NH8^2)^0.5)/(2*NH8) -> 1.005304949 | NK1: =(NL9-$M$34*NK9+((NL9-$M$34*NK9)^2+4*$M$34*NK8^2)^0.5)/(2*NK8) -> 1.229166988 | NN1: =(NO9-$M$34*NN9+((NO9-$M$34*NN9)^2+4*$M$34*NN8^2)^0.5)/(2*NN8) -> 0.9796256965 | NQ1: =(NR9-$M$34*NQ9+((NR9-$M$34*NQ9)^2+4*$M$34*NQ8^2)^0.5)/(2*NQ8) -> 1.136825272 | NT1: =(NU9-$M$34*NT9+((NU9-$M$34*NT9)^2+4*$M$34*NT8^2)^0.5)/(2*NT8) -> 1.053682463 | NW1: =(NX9-$M$34*NW9+((NX9-$M$34*NW9)^2+4*$M$34*NW8^2)^0.5)/(2*NW8) -> 1.109642309 | NZ1: =(OA9-$M$34*NZ9+((OA9-$M$34*NZ9)^2+4*$M$34*NZ8^2)^0.5)/(2*NZ8) -> 1.170073157 | OC1: =(OD9-$M$34*OC9+((OD9-$M$34*OC9)^2+4*$M$34*OC8^2)^0.5)/(2*OC8) -> 1.18983482 | OF1: =(OG9-$M$34*OF9+((OG9-$M$34*OF9)^2+4*$M$34*OF8^2)^0.5)/(2*OF8) -> 1.07180084 | OI1: =(OJ9-$M$34*OI9+((OJ9-$M$34*OI9)^2+4*$M$34*OI8^2)^0.5)/(2*OI8) -> 1.122938631 | OL1: =(OM9-$M$34*OL9+((OM9-$M$34*OL9)^2+4*$M$34*OL8^2)^0.5)/(2*OL8) -> 0.9884465084 | OO1: =(OP9-$M$34*OO9+((OP9-$M$34*OO9)^2+4*$M$34*OO8^2)^0.5)/(2*OO8) -> 1.122739676 | OR1: =(OS9-$M$34*OR9+((OS9-$M$34*OR9)^2+4*$M$34*OR8^2)^0.5)/(2*OR8) -> 1.201153936 | OU1: =(OV9-$M$34*OU9+((OV9-$M$34*OU9)^2+4*$M$34*OU8^2)^0.5)/(2*OU8) -> 0.9801481957 | OX1: =(OY9-$M$34*OX9+((OY9-$M$34*OX9)^2+4*$M$34*OX8^2)^0.5)/(2*OX8) -> 1.064991519 | PA1: =(PB9-$M$34*PA9+((PB9-$M$34*PA9)^2+4*$M$34*PA8^2)^0.5)/(2*PA8) -> 1.051924466 | PD1: =(PE9-$M$34*PD9+((PE9-$M$34*PD9)^2+4*$M$34*PD8^2)^0.5)/(2*PD8) -> 0.9733625996 | PG1: =(PH9-$M$34*PG9+((PH9-$M$34*PG9)^2+4*$M$34*PG8^2)^0.5)/(2*PG8) -> 1.185400177 | PJ1: =(PK9-$M$34*PJ9+((PK9-$M$34*PJ9)^2+4*$M$34*PJ8^2)^0.5)/(2*PJ8) -> 0.8904905612 | PM1: =(PN9-$M$34*PM9+((PN9-$M$34*PM9)^2+4*$M$34*PM8^2)^0.5)/(2*PM8) -> 1.107488296 | PP1: =(PQ9-$M$34*PP9+((PQ9-$M$34*PP9)^2+4*$M$34*PP8^2)^0.5)/(2*PP8) -> 1.137808605 | PS1: =(PT9-$M$34*PS9+((PT9-$M$34*PS9)^2+4*$M$34*PS8^2)^0.5)/(2*PS8) -> 1.321537617 | PV1: =(PW9-$M$34*PV9+((PW9-$M$34*PV9)^2+4*$M$34*PV8^2)^0.5)/(2*PV8) -> 1.086828487 | PY1: =(PZ9-$M$34*PY9+((PZ9-$M$34*PY9)^2+4*$M$34*PY8^2)^0.5)/(2*PY8) -> 1.152985862 | QB1: =(QC9-$M$34*QB9+((QC9-$M$34*QB9)^2+4*$M$34*QB8^2)^0.5)/(2*QB8) -> 1.112548682 | QE1: =(QF9-$M$34*QE9+((QF9-$M$34*QE9)^2+4*$M$34*QE8^2)^0.5)/(2*QE8) -> 1.241825521 | QH1: =(QI9-$M$34*QH9+((QI9-$M$34*QH9)^2+4*$M$34*QH8^2)^0.5)/(2*QH8) -> 1.098379234 | QK1: =(QL9-$M$34*QK9+((QL9-$M$34*QK9)^2+4*$M$34*QK8^2)^0.5)/(2*QK8) -> 1.288265184 | QN1: =(QO9-$M$34*QN9+((QO9-$M$34*QN9)^2+4*$M$34*QN8^2)^0.5)/(2*QN8) -> 1.202045912 | QQ1: =(QR9-$M$34*QQ9+((QR9-$M$34*QQ9)^2+4*$M$34*QQ8^2)^0.5)/(2*QQ8) -> 0.9818993217 | QT1: =(QU9-$M$34*QT9+((QU9-$M$34*QT9)^2+4*$M$34*QT8^2)^0.5)/(2*QT8) -> 1.115032881 | QW1: =(QX9-$M$34*QW9+((QX9-$M$34*QW9)^2+4*$M$34*QW8^2)^0.5)/(2*QW8) -> 0.9262836697 | QZ1: =(RA9-$M$34*QZ9+((RA9-$M$34*QZ9)^2+4*$M$34*QZ8^2)^0.5)/(2*QZ8) -> 1.14313761 | RC1: =(RD9-$M$34*RC9+((RD9-$M$34*RC9)^2+4*$M$34*RC8^2)^0.5)/(2*RC8) -> 1.124260974 | RF1: =(RG9-$M$34*RF9+((RG9-$M$34*RF9)^2+4*$M$34*RF8^2)^0.5)/(2*RF8) -> 1.040543651 | RI1: =(RJ9-$M$34*RI9+((RJ9-$M$34*RI9)^2+4*$M$34*RI8^2)^0.5)/(2*RI8) -> 1.291508951 | RL1: =(RM9-$M$34*RL9+((RM9-$M$34*RL9)^2+4*$M$34*RL8^2)^0.5)/(2*RL8) -> 1.194766274 | RO1: =(RP9-$M$34*RO9+((RP9-$M$34*RO9)^2+4*$M$34*RO8^2)^0.5)/(2*RO8) -> 1.287183 | RR1: =(RS9-$M$34*RR9+((RS9-$M$34*RR9)^2+4*$M$34*RR8^2)^0.5)/(2*RR8) -> 0.9158492982 | RU1: =(RV9-$M$34*RU9+((RV9-$M$34*RU9)^2+4*$M$34*RU8^2)^0.5)/(2*RU8) -> 0.9442606067 | RX1: =(RY9-$M$34*RX9+((RY9-$M$34*RX9)^2+4*$M$34*RX8^2)^0.5)/(2*RX8) -> 1.19387321 | SA1: =(SB9-$M$34*SA9+((SB9-$M$34*SA9)^2+4*$M$34*SA8^2)^0.5)/(2*SA8) -> 1.211724013 | SD1: =(SE9-$M$34*SD9+((SE9-$M$34*SD9)^2+4*$M$34*SD8^2)^0.5)/(2*SD8) -> 1.219436962 | SG1: =(SH9-$M$34*SG9+((SH9-$M$34*SG9)^2+4*$M$34*SG8^2)^0.5)/(2*SG8) -> 0.9307359082 | SJ1: =(SK9-$M$34*SJ9+((SK9-$M$34*SJ9)^2+4*$M$34*SJ8^2)^0.5)/(2*SJ8) -> 1.400100629 | SM1: =(SN9-$M$34*SM9+((SN9-$M$34*SM9)^2+4*$M$34*SM8^2)^0.5)/(2*SM8) -> 0.965253709 | SP1: =(SQ9-$M$34*SP9+((SQ9-$M$34*SP9)^2+4*$M$34*SP8^2)^0.5)/(2*SP8) -> 1.115546434 | SS1: =(ST9-$M$34*SS9+((ST9-$M$34*SS9)^2+4*$M$34*SS8^2)^0.5)/(2*SS8) -> 0.96621492 | SV1: =(SW9-$M$34*SV9+((SW9-$M$34*SV9)^2+4*$M$34*SV8^2)^0.5)/(2*SV8) -> 1.126544182 | SY1: =(SZ9-$M$34*SY9+((SZ9-$M$34*SY9)^2+4*$M$34*SY8^2)^0.5)/(2*SY8) -> 1.185822188 | TB1: =(TC9-$M$34*TB9+((TC9-$M$34*TB9)^2+4*$M$34*TB8^2)^0.5)/(2*TB8) -> 1.121580977 | TE1: =(TF9-$M$34*TE9+((TF9-$M$34*TE9)^2+4*$M$34*TE8^2)^0.5)/(2*TE8) -> 1.139709027 | TH1: =(TI9-$M$34*TH9+((TI9-$M$34*TH9)^2+4*$M$34*TH8^2)^0.5)/(2*TH8) -> 1.069200446 | TK1: =(TL9-$M$34*TK9+((TL9-$M$34*TK9)^2+4*$M$34*TK8^2)^0.5)/(2*TK8) -> 1.10612956 | TN1: =(TO9-$M$34*TN9+((TO9-$M$34*TN9)^2+4*$M$34*TN8^2)^0.5)/(2*TN8) -> 0.9878648801 | TQ1: =(TR9-$M$34*TQ9+((TR9-$M$34*TQ9)^2+4*$M$34*TQ8^2)^0.5)/(2*TQ8) -> 1.142889106 | TT1: =(TU9-$M$34*TT9+((TU9-$M$34*TT9)^2+4*$M$34*TT8^2)^0.5)/(2*TT8) -> 0.9164017049 | TW1: =(TX9-$M$34*TW9+((TX9-$M$34*TW9)^2+4*$M$34*TW8^2)^0.5)/(2*TW8) -> 1.178262166 | TZ1: =(UA9-$M$34*TZ9+((UA9-$M$34*TZ9)^2+4*$M$34*TZ8^2)^0.5)/(2*TZ8) -> 1.02797446 | UC1: =(UD9-$M$34*UC9+((UD9-$M$34*UC9)^2+4*$M$34*UC8^2)^0.5)/(2*UC8) -> 0.9869349439 | UF1: =(UG9-$M$34*UF9+((UG9-$M$34*UF9)^2+4*$M$34*UF8^2)^0.5)/(2*UF8) -> 1.332046738 | UI1: =(UJ9-$M$34*UI9+((UJ9-$M$34*UI9)^2+4*$M$34*UI8^2)^0.5)/(2*UI8) -> 1.08728878 | UL1: =(UM9-$M$34*UL9+((UM9-$M$34*UL9)^2+4*$M$34*UL8^2)^0.5)/(2*UL8) -> 1.159810212 | UO1: =(UP9-$M$34*UO9+((UP9-$M$34*UO9)^2+4*$M$34*UO8^2)^0.5)/(2*UO8) -> 1.184493094 | UR1: =(US9-$M$34*UR9+((US9-$M$34*UR9)^2+4*$M$34*UR8^2)^0.5)/(2*UR8) -> 1.184757686 | UU1: =(UV9-$M$34*UU9+((UV9-$M$34*UU9)^2+4*$M$34*UU8^2)^0.5)/(2*UU8) -> 1.105391084 | UX1: =(UY9-$M$34*UX9+((UY9-$M$34*UX9)^2+4*$M$34*UX8^2)^0.5)/(2*UX8) -> 1.143879407 | VA1: =(VB9-$M$34*VA9+((VB9-$M$34*VA9)^2+4*$M$34*VA8^2)^0.5)/(2*VA8) -> 1.040788969 | VD1: =(VE9-$M$34*VD9+((VE9-$M$34*VD9)^2+4*$M$34*VD8^2)^0.5)/(2*VD8) -> 1.122408054 | VG1: =(VH9-$M$34*VG9+((VH9-$M$34*VG9)^2+4*$M$34*VG8^2)^0.5)/(2*VG8) -> 1.207894422 | VJ1: =(VK9-$M$34*VJ9+((VK9-$M$34*VJ9)^2+4*$M$34*VJ8^2)^0.5)/(2*VJ8) -> 1.068088704 | VM1: =(VN9-$M$34*VM9+((VN9-$M$34*VM9)^2+4*$M$34*VM8^2)^0.5)/(2*VM8) -> 1.089552734 | VP1: =(VQ9-$M$34*VP9+((VQ9-$M$34*VP9)^2+4*$M$34*VP8^2)^0.5)/(2*VP8) -> 1.220814298 | VS1: =(VT9-$M$34*VS9+((VT9-$M$34*VS9)^2+4*$M$34*VS8^2)^0.5)/(2*VS8) -> 1.171802785 | VV1: =(VW9-$M$34*VV9+((VW9-$M$34*VV9)^2+4*$M$34*VV8^2)^0.5)/(2*VV8) -> 1.273689669 | VY1: =(VZ9-$M$34*VY9+((VZ9-$M$34*VY9)^2+4*$M$34*VY8^2)^0.5)/(2*VY8) -> 1.327907541 | WB1: =(WC9-$M$34*WB9+((WC9-$M$34*WB9)^2+4*$M$34*WB8^2)^0.5)/(2*WB8) -> 1.121395137 | WE1: =(WF9-$M$34*WE9+((WF9-$M$34*WE9)^2+4*$M$34*WE8^2)^0.5)/(2*WE8) -> 1.19337922 | WH1: =(WI9-$M$34*WH9+((WI9-$M$34*WH9)^2+4*$M$34*WH8^2)^0.5)/(2*WH8) -> 1.389283314 | WK1: =(WL9-$M$34*WK9+((WL9-$M$34*WK9)^2+4*$M$34*WK8^2)^0.5)/(2*WK8) -> 1.122506556 | WN1: =(WO9-$M$34*WN9+((WO9-$M$34*WN9)^2+4*$M$34*WN8^2)^0.5)/(2*WN8) -> 1.267126326 | WQ1: =(WR9-$M$34*WQ9+((WR9-$M$34*WQ9)^2+4*$M$34*WQ8^2)^0.5)/(2*WQ8) -> 1.1918392 | WT1: =(WU9-$M$34*WT9+((WU9-$M$34*WT9)^2+4*$M$34*WT8^2)^0.5)/(2*WT8) -> 1.167770696 | WW1: =(WX9-$M$34*WW9+((WX9-$M$34*WW9)^2+4*$M$34*WW8^2)^0.5)/(2*WW8) -> 1.221460396 | WZ1: =(XA9-$M$34*WZ9+((XA9-$M$34*WZ9)^2+4*$M$34*WZ8^2)^0.5)/(2*WZ8) -> 0.9861628394 | XC1: =(XD9-$M$34*XC9+((XD9-$M$34*XC9)^2+4*$M$34*XC8^2)^0.5)/(2*XC8) -> 1.06549894 | XF1: =(XG9-$M$34*XF9+((XG9-$M$34*XF9)^2+4*$M$34*XF8^2)^0.5)/(2*XF8) -> 1.220258384 | XI1: =(XJ9-$M$34*XI9+((XJ9-$M$34*XI9)^2+4*$M$34*XI8^2)^0.5)/(2*XI8) -> 1.130447591 | XL1: =(XM9-$M$34*XL9+((XM9-$M$34*XL9)^2+4*$M$34*XL8^2)^0.5)/(2*XL8) -> 1.208812054 | XO1: =(XP9-$M$34*XO9+((XP9-$M$34*XO9)^2+4*$M$34*XO8^2)^0.5)/(2*XO8) -> 1.220228925 | XR1: =(XS9-$M$34*XR9+((XS9-$M$34*XR9)^2+4*$M$34*XR8^2)^0.5)/(2*XR8) -> 1.073014349 | XU1: =(XV9-$M$34*XU9+((XV9-$M$34*XU9)^2+4*$M$34*XU8^2)^0.5)/(2*XU8) -> 1.230000633 | XX1: =(XY9-$M$34*XX9+((XY9-$M$34*XX9)^2+4*$M$34*XX8^2)^0.5)/(2*XX8) -> 0.9886985673 | YA1: =(YB9-$M$34*YA9+((YB9-$M$34*YA9)^2+4*$M$34*YA8^2)^0.5)/(2*YA8) -> 1.246858626 | YD1: =(YE9-$M$34*YD9+((YE9-$M$34*YD9)^2+4*$M$34*YD8^2)^0.5)/(2*YD8) -> 1.15527067 | YG1: =(YH9-$M$34*YG9+((YH9-$M$34*YG9)^2+4*$M$34*YG8^2)^0.5)/(2*YG8) -> 1.062703753 | YJ1: =(YK9-$M$34*YJ9+((YK9-$M$34*YJ9)^2+4*$M$34*YJ8^2)^0.5)/(2*YJ8) -> 1.247963115 | YM1: =(YN9-$M$34*YM9+((YN9-$M$34*YM9)^2+4*$M$34*YM8^2)^0.5)/(2*YM8) -> 1.218187262 | YP1: =(YQ9-$M$34*YP9+((YQ9-$M$34*YP9)^2+4*$M$34*YP8^2)^0.5)/(2*YP8) -> 1.212785617 | YS1: =(YT9-$M$34*YS9+((YT9-$M$34*YS9)^2+4*$M$34*YS8^2)^0.5)/(2*YS8) -> 1.014073286 | YV1: =(YW9-$M$34*YV9+((YW9-$M$34*YV9)^2+4*$M$34*YV8^2)^0.5)/(2*YV8) -> 1.160615448 | YY1: =(YZ9-$M$34*YY9+((YZ9-$M$34*YY9)^2+4*$M$34*YY8^2)^0.5)/(2*YY8) -> 1.069910523 | ZB1: =(ZC9-$M$34*ZB9+((ZC9-$M$34*ZB9)^2+4*$M$34*ZB8^2)^0.5)/(2*ZB8) -> 1.015820388 | ZE1: =(ZF9-$M$34*ZE9+((ZF9-$M$34*ZE9)^2+4*$M$34*ZE8^2)^0.5)/(2*ZE8) -> 1.054047151 | ZH1: =(ZI9-$M$34*ZH9+((ZI9-$M$34*ZH9)^2+4*$M$34*ZH8^2)^0.5)/(2*ZH8) -> 0.9979936181 | ZK1: =(ZL9-$M$34*ZK9+((ZL9-$M$34*ZK9)^2+4*$M$34*ZK8^2)^0.5)/(2*ZK8) -> 1.015073953 | ZN1: =(ZO9-$M$34*ZN9+((ZO9-$M$34*ZN9)^2+4*$M$34*ZN8^2)^0.5)/(2*ZN8) -> 1.090631734 | ZQ1: =(ZR9-$M$34*ZQ9+((ZR9-$M$34*ZQ9)^2+4*$M$34*ZQ8^2)^0.5)/(2*ZQ8) -> 1.299001354 | ZT1: =(ZU9-$M$34*ZT9+((ZU9-$M$34*ZT9)^2+4*$M$34*ZT8^2)^0.5)/(2*ZT8) -> 0.9756829039 | ZW1: =(ZX9-$M$34*ZW9+((ZX9-$M$34*ZW9)^2+4*$M$34*ZW8^2)^0.5)/(2*ZW8) -> 1.03436942 | ZZ1: =(AAA9-$M$34*ZZ9+((AAA9-$M$34*ZZ9)^2+4*$M$34*ZZ8^2)^0.5)/(2*ZZ8) -> 1.075083913 | AAC1: =(AAD9-$M$34*AAC9+((AAD9-$M$34*AAC9)^2+4*$M$34*AAC8^2)^0.5)/(2*AAC8) -> 1.067665289 | AAF1: =(AAG9-$M$34*AAF9+((AAG9-$M$34*AAF9)^2+4*$M$34*AAF8^2)^0.5)/(2*AAF8) -> 1.210235796 | AAI1: =(AAJ9-$M$34*AAI9+((AAJ9-$M$34*AAI9)^2+4*$M$34*AAI8^2)^0.5)/(2*AAI8) -> 1.183518474 | AAL1: =(AAM9-$M$34*AAL9+((AAM9-$M$34*AAL9)^2+4*$M$34*AAL8^2)^0.5)/(2*AAL8) -> 1.11007078 | AAO1: =(AAP9-$M$34*AAO9+((AAP9-$M$34*AAO9)^2+4*$M$34*AAO8^2)^0.5)/(2*AAO8) -> 1.215196612 | AAR1: =(AAS9-$M$34*AAR9+((AAS9-$M$34*AAR9)^2+4*$M$34*AAR8^2)^0.5)/(2*AAR8) -> 1.147530895 | AAU1: =(AAV9-$M$34*AAU9+((AAV9-$M$34*AAU9)^2+4*$M$34*AAU8^2)^0.5)/(2*AAU8) -> 1.167952181 | AAX1: =(AAY9-$M$34*AAX9+((AAY9-$M$34*AAX9)^2+4*$M$34*AAX8^2)^0.5)/(2*AAX8) -> 1.110014393 | ABA1: =(ABB9-$M$34*ABA9+((ABB9-$M$34*ABA9)^2+4*$M$34*ABA8^2)^0.5)/(2*ABA8) -> 1.10991117 | ABD1: =(ABE9-$M$34*ABD9+((ABE9-$M$34*ABD9)^2+4*$M$34*ABD8^2)^0.5)/(2*ABD8) -> 1.117597745 | ABG1: =(ABH9-$M$34*ABG9+((ABH9-$M$34*ABG9)^2+4*$M$34*ABG8^2)^0.5)/(2*ABG8) -> 1.048238668 | ABJ1: =(ABK9-$M$34*ABJ9+((ABK9-$M$34*ABJ9)^2+4*$M$34*ABJ8^2)^0.5)/(2*ABJ8) -> 1.108146681 | ABM1: =(ABN9-$M$34*ABM9+((ABN9-$M$34*ABM9)^2+4*$M$34*ABM8^2)^0.5)/(2*ABM8) -> 1.110812894 | ABP1: =(ABQ9-$M$34*ABP9+((ABQ9-$M$34*ABP9)^2+4*$M$34*ABP8^2)^0.5)/(2*ABP8) -> 1.093212997 | ABS1: =(ABT9-$M$34*ABS9+((ABT9-$M$34*ABS9)^2+4*$M$34*ABS8^2)^0.5)/(2*ABS8) -> 0.8753303853 | ABV1: =(ABW9-$M$34*ABV9+((ABW9-$M$34*ABV9)^2+4*$M$34*ABV8^2)^0.5)/(2*ABV8) -> 1.070191424 | ABY1: =(ABZ9-$M$34*ABY9+((ABZ9-$M$34*ABY9)^2+4*$M$34*ABY8^2)^0.5)/(2*ABY8) -> 1.300110937 | ACB1: =(ACC9-$M$34*ACB9+((ACC9-$M$34*ACB9)^2+4*$M$34*ACB8^2)^0.5)/(2*ACB8) -> 1.212578002 | ACE1: =(ACF9-$M$34*ACE9+((ACF9-$M$34*ACE9)^2+4*$M$34*ACE8^2)^0.5)/(2*ACE8) -> 1.209697703 | ACH1: =(ACI9-$M$34*ACH9+((ACI9-$M$34*ACH9)^2+4*$M$34*ACH8^2)^0.5)/(2*ACH8) -> 1.150179025 | ACK1: =(ACL9-$M$34*ACK9+((ACL9-$M$34*ACK9)^2+4*$M$34*ACK8^2)^0.5)/(2*ACK8) -> 1.196201224 | ACN1: =(ACO9-$M$34*ACN9+((ACO9-$M$34*ACN9)^2+4*$M$34*ACN8^2)^0.5)/(2*ACN8) -> 1.181452034 | ACQ1: =(ACR9-$M$34*ACQ9+((ACR9-$M$34*ACQ9)^2+4*$M$34*ACQ8^2)^0.5)/(2*ACQ8) -> 1.050208783 | ACT1: =(ACU9-$M$34*ACT9+((ACU9-$M$34*ACT9)^2+4*$M$34*ACT8^2)^0.5)/(2*ACT8) -> 1.270402712 | ACW1: =(ACX9-$M$34*ACW9+((ACX9-$M$34*ACW9)^2+4*$M$34*ACW8^2)^0.5)/(2*ACW8) -> 1.07806003 | ACZ1: =(ADA9-$M$34*ACZ9+((ADA9-$M$34*ACZ9)^2+4*$M$34*ACZ8^2)^0.5)/(2*ACZ8) -> 1.008306002 | ADC1: =(ADD9-$M$34*ADC9+((ADD9-$M$34*ADC9)^2+4*$M$34*ADC8^2)^0.5)/(2*ADC8) -> 1.175283381 | ADF1: =(ADG9-$M$34*ADF9+((ADG9-$M$34*ADF9)^2+4*$M$34*ADF8^2)^0.5)/(2*ADF8) -> 1.004620954 | ADI1: =(ADJ9-$M$34*ADI9+((ADJ9-$M$34*ADI9)^2+4*$M$34*ADI8^2)^0.5)/(2*ADI8) -> 1.124287028 | ADL1: =(ADM9-$M$34*ADL9+((ADM9-$M$34*ADL9)^2+4*$M$34*ADL8^2)^0.5)/(2*ADL8) -> 1.421005871 | ADO1: =(ADP9-$M$34*ADO9+((ADP9-$M$34*ADO9)^2+4*$M$34*ADO8^2)^0.5)/(2*ADO8) -> 1.106336721 | ADR1: =(ADS9-$M$34*ADR9+((ADS9-$M$34*ADR9)^2+4*$M$34*ADR8^2)^0.5)/(2*ADR8) -> 1.102803803 | ADU1: =(ADV9-$M$34*ADU9+((ADV9-$M$34*ADU9)^2+4*$M$34*ADU8^2)^0.5)/(2*ADU8) -> 1.035666454 | ADX1: =(ADY9-$M$34*ADX9+((ADY9-$M$34*ADX9)^2+4*$M$34*ADX8^2)^0.5)/(2*ADX8) -> 1.117986091 | AEA1: =(AEB9-$M$34*AEA9+((AEB9-$M$34*AEA9)^2+4*$M$34*AEA8^2)^0.5)/(2*AEA8) -> 1.339162142 | AED1: =(AEE9-$M$34*AED9+((AEE9-$M$34*AED9)^2+4*$M$34*AED8^2)^0.5)/(2*AED8) -> 1.124422597 | AEG1: =(AEH9-$M$34*AEG9+((AEH9-$M$34*AEG9)^2+4*$M$34*AEG8^2)^0.5)/(2*AEG8) -> 0.976852329 | AEJ1: =(AEK9-$M$34*AEJ9+((AEK9-$M$34*AEJ9)^2+4*$M$34*AEJ8^2)^0.5)/(2*AEJ8) -> 1.082974964 | AEM1: =(AEN9-$M$34*AEM9+((AEN9-$M$34*AEM9)^2+4*$M$34*AEM8^2)^0.5)/(2*AEM8) -> 1.311385569 | AEP1: =(AEQ9-$M$34*AEP9+((AEQ9-$M$34*AEP9)^2+4*$M$34*AEP8^2)^0.5)/(2*AEP8) -> 1.165977538 | AES1: =(AET9-$M$34*AES9+((AET9-$M$34*AES9)^2+4*$M$34*AES8^2)^0.5)/(2*AES8) -> 1.148870048 | AEV1: =(AEW9-$M$34*AEV9+((AEW9-$M$34*AEV9)^2+4*$M$34*AEV8^2)^0.5)/(2*AEV8) -> 1.075567525 | AEY1: =(AEZ9-$M$34*AEY9+((AEZ9-$M$34*AEY9)^2+4*$M$34*AEY8^2)^0.5)/(2*AEY8) -> 1.347468343 | AFB1: =(AFC9-$M$34*AFB9+((AFC9-$M$34*AFB9)^2+4*$M$34*AFB8^2)^0.5)/(2*AFB8) -> 1.163658493 | AFE1: =(AFF9-$M$34*AFE9+((AFF9-$M$34*AFE9)^2+4*$M$34*AFE8^2)^0.5)/(2*AFE8) -> 1.227984865 | AFH1: =(AFI9-$M$34*AFH9+((AFI9-$M$34*AFH9)^2+4*$M$34*AFH8^2)^0.5)/(2*AFH8) -> 1.106401227 | AFK1: =(AFL9-$M$34*AFK9+((AFL9-$M$34*AFK9)^2+4*$M$34*AFK8^2)^0.5)/(2*AFK8) -> 1.01855377 | AFN1: =(AFO9-$M$34*AFN9+((AFO9-$M$34*AFN9)^2+4*$M$34*AFN8^2)^0.5)/(2*AFN8) -> 0.9796872174 | AFQ1: =(AFR9-$M$34*AFQ9+((AFR9-$M$34*AFQ9)^2+4*$M$34*AFQ8^2)^0.5)/(2*AFQ8) -> 1.411039015 | AFT1: =(AFU9-$M$34*AFT9+((AFU9-$M$34*AFT9)^2+4*$M$34*AFT8^2)^0.5)/(2*AFT8) -> 1.014036423 | AFW1: =(AFX9-$M$34*AFW9+((AFX9-$M$34*AFW9)^2+4*$M$34*AFW8^2)^0.5)/(2*AFW8) -> 1.064606533 | AFZ1: =(AGA9-$M$34*AFZ9+((AGA9-$M$34*AFZ9)^2+4*$M$34*AFZ8^2)^0.5)/(2*AFZ8) -> 1.181160936 | AGC1: =(AGD9-$M$34*AGC9+((AGD9-$M$34*AGC9)^2+4*$M$34*AGC8^2)^0.5)/(2*AGC8) -> 1.041891913 | AGF1: =(AGG9-$M$34*AGF9+((AGG9-$M$34*AGF9)^2+4*$M$34*AGF8^2)^0.5)/(2*AGF8) -> 0.9902581382 | AGI1: =(AGJ9-$M$34*AGI9+((AGJ9-$M$34*AGI9)^2+4*$M$34*AGI8^2)^0.5)/(2*AGI8) -> 1.242512473 | AGL1: =(AGM9-$M$34*AGL9+((AGM9-$M$34*AGL9)^2+4*$M$34*AGL8^2)^0.5)/(2*AGL8) -> 0.9181612735 | AGO1: =(AGP9-$M$34*AGO9+((AGP9-$M$34*AGO9)^2+4*$M$34*AGO8^2)^0.5)/(2*AGO8) -> 1.249923116 | AGR1: =(AGS9-$M$34*AGR9+((AGS9-$M$34*AGR9)^2+4*$M$34*AGR8^2)^0.5)/(2*AGR8) -> 0.976403677 | AGU1: =(AGV9-$M$34*AGU9+((AGV9-$M$34*AGU9)^2+4*$M$34*AGU8^2)^0.5)/(2*AGU8) -> 0.9827301099 | AGX1: =(AGY9-$M$34*AGX9+((AGY9-$M$34*AGX9)^2+4*$M$34*AGX8^2)^0.5)/(2*AGX8) -> 1.041303931 | AHA1: =(AHB9-$M$34*AHA9+((AHB9-$M$34*AHA9)^2+4*$M$34*AHA8^2)^0.5)/(2*AHA8) -> 1.379557586 | AHD1: =(AHE9-$M$34*AHD9+((AHE9-$M$34*AHD9)^2+4*$M$34*AHD8^2)^0.5)/(2*AHD8) -> 1.127226409 | AHG1: =(AHH9-$M$34*AHG9+((AHH9-$M$34*AHG9)^2+4*$M$34*AHG8^2)^0.5)/(2*AHG8) -> 1.036675897 | AHJ1: =(AHK9-$M$34*AHJ9+((AHK9-$M$34*AHJ9)^2+4*$M$34*AHJ8^2)^0.5)/(2*AHJ8) -> 1.049120329 | AHM1: =(AHN9-$M$34*AHM9+((AHN9-$M$34*AHM9)^2+4*$M$34*AHM8^2)^0.5)/(2*AHM8) -> 1.135463201 | AHP1: =(AHQ9-$M$34*AHP9+((AHQ9-$M$34*AHP9)^2+4*$M$34*AHP8^2)^0.5)/(2*AHP8) -> 1.087799397 | AHS1: =(AHT9-$M$34*AHS9+((AHT9-$M$34*AHS9)^2+4*$M$34*AHS8^2)^0.5)/(2*AHS8) -> 1.235736835 | AHV1: =(AHW9-$M$34*AHV9+((AHW9-$M$34*AHV9)^2+4*$M$34*AHV8^2)^0.5)/(2*AHV8) -> 1.033352602 | AHY1: =(AHZ9-$M$34*AHY9+((AHZ9-$M$34*AHY9)^2+4*$M$34*AHY8^2)^0.5)/(2*AHY8) -> 1.062865416 | AIB1: =(AIC9-$M$34*AIB9+((AIC9-$M$34*AIB9)^2+4*$M$34*AIB8^2)^0.5)/(2*AIB8) -> 1.423122189 | AIE1: =(AIF9-$M$34*AIE9+((AIF9-$M$34*AIE9)^2+4*$M$34*AIE8^2)^0.5)/(2*AIE8) -> 1.301104072 | AIH1: =(AII9-$M$34*AIH9+((AII9-$M$34*AIH9)^2+4*$M$34*AIH8^2)^0.5)/(2*AIH8) -> 1.041892899 | AIK1: =(AIL9-$M$34*AIK9+((AIL9-$M$34*AIK9)^2+4*$M$34*AIK8^2)^0.5)/(2*AIK8) -> 0.9996905729 | AIN1: =(AIO9-$M$34*AIN9+((AIO9-$M$34*AIN9)^2+4*$M$34*AIN8^2)^0.5)/(2*AIN8) -> 1.229877965 | AIQ1: =(AIR9-$M$34*AIQ9+((AIR9-$M$34*AIQ9)^2+4*$M$34*AIQ8^2)^0.5)/(2*AIQ8) -> 1.17913136 | AIT1: =(AIU9-$M$34*AIT9+((AIU9-$M$34*AIT9)^2+4*$M$34*AIT8^2)^0.5)/(2*AIT8) -> 1.014427745 | AIW1: =(AIX9-$M$34*AIW9+((AIX9-$M$34*AIW9)^2+4*$M$34*AIW8^2)^0.5)/(2*AIW8) -> 1.003495614 | AIZ1: =(AJA9-$M$34*AIZ9+((AJA9-$M$34*AIZ9)^2+4*$M$34*AIZ8^2)^0.5)/(2*AIZ8) -> 1.075598006 | AJC1: =(AJD9-$M$34*AJC9+((AJD9-$M$34*AJC9)^2+4*$M$34*AJC8^2)^0.5)/(2*AJC8) -> 1.08411689 | AJF1: =(AJG9-$M$34*AJF9+((AJG9-$M$34*AJF9)^2+4*$M$34*AJF8^2)^0.5)/(2*AJF8) -> 1.270658435 | AJI1: =(AJJ9-$M$34*AJI9+((AJJ9-$M$34*AJI9)^2+4*$M$34*AJI8^2)^0.5)/(2*AJI8) -> 1.015471791 | AJL1: =(AJM9-$M$34*AJL9+((AJM9-$M$34*AJL9)^2+4*$M$34*AJL8^2)^0.5)/(2*AJL8) -> 1.130270642 | AJO1: =(AJP9-$M$34*AJO9+((AJP9-$M$34*AJO9)^2+4*$M$34*AJO8^2)^0.5)/(2*AJO8) -> 1.205812748 | AJR1: =(AJS9-$M$34*AJR9+((AJS9-$M$34*AJR9)^2+4*$M$34*AJR8^2)^0.5)/(2*AJR8) -> 1.084490679 | AJU1: =(AJV9-$M$34*AJU9+((AJV9-$M$34*AJU9)^2+4*$M$34*AJU8^2)^0.5)/(2*AJU8) -> 1.11768508 | AJX1: =(AJY9-$M$34*AJX9+((AJY9-$M$34*AJX9)^2+4*$M$34*AJX8^2)^0.5)/(2*AJX8) -> 1.114553654 | AKA1: =(AKB9-$M$34*AKA9+((AKB9-$M$34*AKA9)^2+4*$M$34*AKA8^2)^0.5)/(2*AKA8) -> 1.12696568 | AKD1: =(AKE9-$M$34*AKD9+((AKE9-$M$34*AKD9)^2+4*$M$34*AKD8^2)^0.5)/(2*AKD8) -> 1.048128448 | AKG1: =(AKH9-$M$34*AKG9+((AKH9-$M$34*AKG9)^2+4*$M$34*AKG8^2)^0.5)/(2*AKG8) -> 1.098734643 | AKJ1: =(AKK9-$M$34*AKJ9+((AKK9-$M$34*AKJ9)^2+4*$M$34*AKJ8^2)^0.5)/(2*AKJ8) -> 1.067271692 | AKM1: =(AKN9-$M$34*AKM9+((AKN9-$M$34*AKM9)^2+4*$M$34*AKM8^2)^0.5)/(2*AKM8) -> 1.008875642 | AKP1: =(AKQ9-$M$34*AKP9+((AKQ9-$M$34*AKP9)^2+4*$M$34*AKP8^2)^0.5)/(2*AKP8) -> 1.268852968 | AKS1: =(AKT9-$M$34*AKS9+((AKT9-$M$34*AKS9)^2+4*$M$34*AKS8^2)^0.5)/(2*AKS8) -> 1.278814456 | AKV1: =(AKW9-$M$34*AKV9+((AKW9-$M$34*AKV9)^2+4*$M$34*AKV8^2)^0.5)/(2*AKV8) -> 1.135803997 | AKY1: =(AKZ9-$M$34*AKY9+((AKZ9-$M$34*AKY9)^2+4*$M$34*AKY8^2)^0.5)/(2*AKY8) -> 1.109137953 | ALB1: =(ALC9-$M$34*ALB9+((ALC9-$M$34*ALB9)^2+4*$M$34*ALB8^2)^0.5)/(2*ALB8) -> 1.080428714 | ALE1: =(ALF9-$M$34*ALE9+((ALF9-$M$34*ALE9)^2+4*$M$34*ALE8^2)^0.5)/(2*ALE8) -> 0.9389173239 | ALH1: =(ALI9-$M$34*ALH9+((ALI9-$M$34*ALH9)^2+4*$M$34*ALH8^2)^0.5)/(2*ALH8) -> 1.453124458 | ALK1: =(ALL9-$M$34*ALK9+((ALL9-$M$34*ALK9)^2+4*$M$34*ALK8^2)^0.5)/(2*ALK8) -> 1.102300451 | ALN1: =(ALO9-$M$34*ALN9+((ALO9-$M$34*ALN9)^2+4*$M$34*ALN8^2)^0.5)/(2*ALN8) -> 1.023638723 | ALQ1: =(ALR9-$M$34*ALQ9+((ALR9-$M$34*ALQ9)^2+4*$M$34*ALQ8^2)^0.5)/(2*ALQ8) -> 1.147368271 | ALT1: =(ALU9-$M$34*ALT9+((ALU9-$M$34*ALT9)^2+4*$M$34*ALT8^2)^0.5)/(2*ALT8) -> 0.9588649057 | ALW1: =(ALX9-$M$34*ALW9+((ALX9-$M$34*ALW9)^2+4*$M$34*ALW8^2)^0.5)/(2*ALW8) -> 1.457892273 | ALZ1: =(AMA9-$M$34*ALZ9+((AMA9-$M$34*ALZ9)^2+4*$M$34*ALZ8^2)^0.5)/(2*ALZ8) -> 1.128607691 | AMC1: =(AMD9-$M$34*AMC9+((AMD9-$M$34*AMC9)^2+4*$M$34*AMC8^2)^0.5)/(2*AMC8) -> 1.213846663 | AMF1: =(AMG9-$M$34*AMF9+((AMG9-$M$34*AMF9)^2+4*$M$34*AMF8^2)^0.5)/(2*AMF8) -> 1.1571581 | AMI1: =(AMJ9-$M$34*AMI9+((AMJ9-$M$34*AMI9)^2+4*$M$34*AMI8^2)^0.5)/(2*AMI8) -> 1.283770261 | AML1: =(AMM9-$M$34*AML9+((AMM9-$M$34*AML9)^2+4*$M$34*AML8^2)^0.5)/(2*AML8) -> 1.156837801 | AMO1: =(AMP9-$M$34*AMO9+((AMP9-$M$34*AMO9)^2+4*$M$34*AMO8^2)^0.5)/(2*AMO8) -> 1.257157168 | AMR1: =(AMS9-$M$34*AMR9+((AMS9-$M$34*AMR9)^2+4*$M$34*AMR8^2)^0.5)/(2*AMR8) -> 1.240386701 | AMU1: =(AMV9-$M$34*AMU9+((AMV9-$M$34*AMU9)^2+4*$M$34*AMU8^2)^0.5)/(2*AMU8) -> 1.022360911 | AMX1: =(AMY9-$M$34*AMX9+((AMY9-$M$34*AMX9)^2+4*$M$34*AMX8^2)^0.5)/(2*AMX8) -> 1.062705609 | ANA1: =(ANB9-$M$34*ANA9+((ANB9-$M$34*ANA9)^2+4*$M$34*ANA8^2)^0.5)/(2*ANA8) -> 1.060290216 | AND1: =(ANE9-$M$34*AND9+((ANE9-$M$34*AND9)^2+4*$M$34*AND8^2)^0.5)/(2*AND8) -> 1.361169696 | ANG1: =(ANH9-$M$34*ANG9+((ANH9-$M$34*ANG9)^2+4*$M$34*ANG8^2)^0.5)/(2*ANG8) -> 1.155714504 | ANJ1: =(ANK9-$M$34*ANJ9+((ANK9-$M$34*ANJ9)^2+4*$M$34*ANJ8^2)^0.5)/(2*ANJ8) -> 1.114227796 | ANM1: =(ANN9-$M$34*ANM9+((ANN9-$M$34*ANM9)^2+4*$M$34*ANM8^2)^0.5)/(2*ANM8) -> 1.204115813 | ANP1: =(ANQ9-$M$34*ANP9+((ANQ9-$M$34*ANP9)^2+4*$M$34*ANP8^2)^0.5)/(2*ANP8) -> 1.463017242 | ANS1: =(ANT9-$M$34*ANS9+((ANT9-$M$34*ANS9)^2+4*$M$34*ANS8^2)^0.5)/(2*ANS8) -> 1.008405682 | ANV1: =(ANW9-$M$34*ANV9+((ANW9-$M$34*ANV9)^2+4*$M$34*ANV8^2)^0.5)/(2*ANV8) -> 1.292560782 | ANY1: =(ANZ9-$M$34*ANY9+((ANZ9-$M$34*ANY9)^2+4*$M$34*ANY8^2)^0.5)/(2*ANY8) -> 1.221192756 | AOB1: =(AOC9-$M$34*AOB9+((AOC9-$M$34*AOB9)^2+4*$M$34*AOB8^2)^0.5)/(2*AOB8) -> 1.124014479 | AOE1: =(AOF9-$M$34*AOE9+((AOF9-$M$34*AOE9)^2+4*$M$34*AOE8^2)^0.5)/(2*AOE8) -> 0.9970718241 | AOH1: =(AOI9-$M$34*AOH9+((AOI9-$M$34*AOH9)^2+4*$M$34*AOH8^2)^0.5)/(2*AOH8) -> 1.275492945 | AOK1: =(AOL9-$M$34*AOK9+((AOL9-$M$34*AOK9)^2+4*$M$34*AOK8^2)^0.5)/(2*AOK8) -> 1.079207907 | AON1: =(AOO9-$M$34*AON9+((AOO9-$M$34*AON9)^2+4*$M$34*AON8^2)^0.5)/(2*AON8) -> 1.134451094 | AOQ1: =(AOR9-$M$34*AOQ9+((AOR9-$M$34*AOQ9)^2+4*$M$34*AOQ8^2)^0.5)/(2*AOQ8) -> 1.035556979 | AOT1: =(AOU9-$M$34*AOT9+((AOU9-$M$34*AOT9)^2+4*$M$34*AOT8^2)^0.5)/(2*AOT8) -> 1.090415617 | AOW1: =(AOX9-$M$34*AOW9+((AOX9-$M$34*AOW9)^2+4*$M$34*AOW8^2)^0.5)/(2*AOW8) -> 1.00704937 | AOZ1: =(APA9-$M$34*AOZ9+((APA9-$M$34*AOZ9)^2+4*$M$34*AOZ8^2)^0.5)/(2*AOZ8) -> 1.032031706 | APC1: =(APD9-$M$34*APC9+((APD9-$M$34*APC9)^2+4*$M$34*APC8^2)^0.5)/(2*APC8) -> 1.05513857 | APF1: =(APG9-$M$34*APF9+((APG9-$M$34*APF9)^2+4*$M$34*APF8^2)^0.5)/(2*APF8) -> 1.116606902 | API1: =(APJ9-$M$34*API9+((APJ9-$M$34*API9)^2+4*$M$34*API8^2)^0.5)/(2*API8) -> 1.035324837 | APL1: =(APM9-$M$34*APL9+((APM9-$M$34*APL9)^2+4*$M$34*APL8^2)^0.5)/(2*APL8) -> 1.077160082 | APO1: =(APP9-$M$34*APO9+((APP9-$M$34*APO9)^2+4*$M$34*APO8^2)^0.5)/(2*APO8) -> 1.118689232 | APR1: =(APS9-$M$34*APR9+((APS9-$M$34*APR9)^2+4*$M$34*APR8^2)^0.5)/(2*APR8) -> 1.185068889 | APU1: =(APV9-$M$34*APU9+((APV9-$M$34*APU9)^2+4*$M$34*APU8^2)^0.5)/(2*APU8) -> 1.052208379 | APX1: =(APY9-$M$34*APX9+((APY9-$M$34*APX9)^2+4*$M$34*APX8^2)^0.5)/(2*APX8) -> 1.280829045 | AQA1: =(AQB9-$M$34*AQA9+((AQB9-$M$34*AQA9)^2+4*$M$34*AQA8^2)^0.5)/(2*AQA8) -> 1.167746183 | AQD1: =(AQE9-$M$34*AQD9+((AQE9-$M$34*AQD9)^2+4*$M$34*AQD8^2)^0.5)/(2*AQD8) -> 1.1663724 | AQG1: =(AQH9-$M$34*AQG9+((AQH9-$M$34*AQG9)^2+4*$M$34*AQG8^2)^0.5)/(2*AQG8) -> 1.298032974 | AQJ1: =(AQK9-$M$34*AQJ9+((AQK9-$M$34*AQJ9)^2+4*$M$34*AQJ8^2)^0.5)/(2*AQJ8) -> 1.316924961 | AQM1: =(AQN9-$M$34*AQM9+((AQN9-$M$34*AQM9)^2+4*$M$34*AQM8^2)^0.5)/(2*AQM8) -> 1.140160075 | AQP1: =(AQQ9-$M$34*AQP9+((AQQ9-$M$34*AQP9)^2+4*$M$34*AQP8^2)^0.5)/(2*AQP8) -> 1.051739856 | AQS1: =(AQT9-$M$34*AQS9+((AQT9-$M$34*AQS9)^2+4*$M$34*AQS8^2)^0.5)/(2*AQS8) -> 1.264347404 | AQV1: =(AQW9-$M$34*AQV9+((AQW9-$M$34*AQV9)^2+4*$M$34*AQV8^2)^0.5)/(2*AQV8) -> 1.047751181 | AQY1: =(AQZ9-$M$34*AQY9+((AQZ9-$M$34*AQY9)^2+4*$M$34*AQY8^2)^0.5)/(2*AQY8) -> 1.285892608 | ARB1: =(ARC9-$M$34*ARB9+((ARC9-$M$34*ARB9)^2+4*$M$34*ARB8^2)^0.5)/(2*ARB8) -> 1.013008977 | ARE1: =(ARF9-$M$34*ARE9+((ARF9-$M$34*ARE9)^2+4*$M$34*ARE8^2)^0.5)/(2*ARE8) -> 1.137995625 | ARH1: =(ARI9-$M$34*ARH9+((ARI9-$M$34*ARH9)^2+4*$M$34*ARH8^2)^0.5)/(2*ARH8) -> 1.235085991 | ARK1: =(ARL9-$M$34*ARK9+((ARL9-$M$34*ARK9)^2+4*$M$34*ARK8^2)^0.5)/(2*ARK8) -> 1.232011505 | ARN1: =(ARO9-$M$34*ARN9+((ARO9-$M$34*ARN9)^2+4*$M$34*ARN8^2)^0.5)/(2*ARN8) -> 1.049660933 | ARQ1: =(ARR9-$M$34*ARQ9+((ARR9-$M$34*ARQ9)^2+4*$M$34*ARQ8^2)^0.5)/(2*ARQ8) -> 0.9701389671 | ART1: =(ARU9-$M$34*ART9+((ARU9-$M$34*ART9)^2+4*$M$34*ART8^2)^0.5)/(2*ART8) -> 0.9433070679 | ARW1: =(ARX9-$M$34*ARW9+((ARX9-$M$34*ARW9)^2+4*$M$34*ARW8^2)^0.5)/(2*ARW8) -> 1.045232136 | ARZ1: =(ASA9-$M$34*ARZ9+((ASA9-$M$34*ARZ9)^2+4*$M$34*ARZ8^2)^0.5)/(2*ARZ8) -> 1.066587381 | ASC1: =(ASD9-$M$34*ASC9+((ASD9-$M$34*ASC9)^2+4*$M$34*ASC8^2)^0.5)/(2*ASC8) -> 1.030110155 | ASF1: =(ASG9-$M$34*ASF9+((ASG9-$M$34*ASF9)^2+4*$M$34*ASF8^2)^0.5)/(2*ASF8) -> 1.181946043 | ASI1: =(ASJ9-$M$34*ASI9+((ASJ9-$M$34*ASI9)^2+4*$M$34*ASI8^2)^0.5)/(2*ASI8) -> 1.081971552 | ASL1: =(ASM9-$M$34*ASL9+((ASM9-$M$34*ASL9)^2+4*$M$34*ASL8^2)^0.5)/(2*ASL8) -> 1.081935973 | ASO1: =(ASP9-$M$34*ASO9+((ASP9-$M$34*ASO9)^2+4*$M$34*ASO8^2)^0.5)/(2*ASO8) -> 1.053295127 | ASR1: =(ASS9-$M$34*ASR9+((ASS9-$M$34*ASR9)^2+4*$M$34*ASR8^2)^0.5)/(2*ASR8) -> 1.11302359 | ASU1: =(ASV9-$M$34*ASU9+((ASV9-$M$34*ASU9)^2+4*$M$34*ASU8^2)^0.5)/(2*ASU8) -> 0.964276874 | ASX1: =(ASY9-$M$34*ASX9+((ASY9-$M$34*ASX9)^2+4*$M$34*ASX8^2)^0.5)/(2*ASX8) -> 1.340482985 | ATA1: =(ATB9-$M$34*ATA9+((ATB9-$M$34*ATA9)^2+4*$M$34*ATA8^2)^0.5)/(2*ATA8) -> 1.150150615 | ATD1: =(ATE9-$M$34*ATD9+((ATE9-$M$34*ATD9)^2+4*$M$34*ATD8^2)^0.5)/(2*ATD8) -> 1.360893782 | ATG1: =(ATH9-$M$34*ATG9+((ATH9-$M$34*ATG9)^2+4*$M$34*ATG8^2)^0.5)/(2*ATG8) -> 1.308058859 | ATJ1: =(ATK9-$M$34*ATJ9+((ATK9-$M$34*ATJ9)^2+4*$M$34*ATJ8^2)^0.5)/(2*ATJ8) -> 1.140452169 | ATM1: =(ATN9-$M$34*ATM9+((ATN9-$M$34*ATM9)^2+4*$M$34*ATM8^2)^0.5)/(2*ATM8) -> 1.298022406 | ATP1: =(ATQ9-$M$34*ATP9+((ATQ9-$M$34*ATP9)^2+4*$M$34*ATP8^2)^0.5)/(2*ATP8) -> 0.9842391816 | ATS1: =(ATT9-$M$34*ATS9+((ATT9-$M$34*ATS9)^2+4*$M$34*ATS8^2)^0.5)/(2*ATS8) -> 1.301846329 | ATV1: =(ATW9-$M$34*ATV9+((ATW9-$M$34*ATV9)^2+4*$M$34*ATV8^2)^0.5)/(2*ATV8) -> 0.8900517339 | ATY1: =(ATZ9-$M$34*ATY9+((ATZ9-$M$34*ATY9)^2+4*$M$34*ATY8^2)^0.5)/(2*ATY8) -> 0.9208233208 | AUB1: =(AUC9-$M$34*AUB9+((AUC9-$M$34*AUB9)^2+4*$M$34*AUB8^2)^0.5)/(2*AUB8) -> 1.05774227 | AUE1: =(AUF9-$M$34*AUE9+((AUF9-$M$34*AUE9)^2+4*$M$34*AUE8^2)^0.5)/(2*AUE8) -> 1.210550405 | AUH1: =(AUI9-$M$34*AUH9+((AUI9-$M$34*AUH9)^2+4*$M$34*AUH8^2)^0.5)/(2*AUH8) -> 1.25005067 | AUK1: =(AUL9-$M$34*AUK9+((AUL9-$M$34*AUK9)^2+4*$M$34*AUK8^2)^0.5)/(2*AUK8) -> 1.016165547 | AUN1: =(AUO9-$M$34*AUN9+((AUO9-$M$34*AUN9)^2+4*$M$34*AUN8^2)^0.5)/(2*AUN8) -> 1.082181852 | AUQ1: =(AUR9-$M$34*AUQ9+((AUR9-$M$34*AUQ9)^2+4*$M$34*AUQ8^2)^0.5)/(2*AUQ8) -> 1.241952865 | AUT1: =(AUU9-$M$34*AUT9+((AUU9-$M$34*AUT9)^2+4*$M$34*AUT8^2)^0.5)/(2*AUT8) -> 0.9859163419 | AUW1: =(AUX9-$M$34*AUW9+((AUX9-$M$34*AUW9)^2+4*$M$34*AUW8^2)^0.5)/(2*AUW8) -> 1.124019594 | AUZ1: =(AVA9-$M$34*AUZ9+((AVA9-$M$34*AUZ9)^2+4*$M$34*AUZ8^2)^0.5)/(2*AUZ8) -> 1.129668916 | AVC1: =(AVD9-$M$34*AVC9+((AVD9-$M$34*AVC9)^2+4*$M$34*AVC8^2)^0.5)/(2*AVC8) -> 1.140362849 | AVF1: =(AVG9-$M$34*AVF9+((AVG9-$M$34*AVF9)^2+4*$M$34*AVF8^2)^0.5)/(2*AVF8) -> 0.9542087015 | AVI1: =(AVJ9-$M$34*AVI9+((AVJ9-$M$34*AVI9)^2+4*$M$34*AVI8^2)^0.5)/(2*AVI8) -> 1.17906581 | AVL1: =(AVM9-$M$34*AVL9+((AVM9-$M$34*AVL9)^2+4*$M$34*AVL8^2)^0.5)/(2*AVL8) -> 1.121850147 | AVO1: =(AVP9-$M$34*AVO9+((AVP9-$M$34*AVO9)^2+4*$M$34*AVO8^2)^0.5)/(2*AVO8) -> 0.9968206663 | AVR1: =(AVS9-$M$34*AVR9+((AVS9-$M$34*AVR9)^2+4*$M$34*AVR8^2)^0.5)/(2*AVR8) -> 1.136153208 | AVU1: =(AVV9-$M$34*AVU9+((AVV9-$M$34*AVU9)^2+4*$M$34*AVU8^2)^0.5)/(2*AVU8) -> 1.010936266 | AVX1: =(AVY9-$M$34*AVX9+((AVY9-$M$34*AVX9)^2+4*$M$34*AVX8^2)^0.5)/(2*AVX8) -> 1.269609566 | AWA1: =(AWB9-$M$34*AWA9+((AWB9-$M$34*AWA9)^2+4*$M$34*AWA8^2)^0.5)/(2*AWA8) -> 1.067633971 | AWD1: =(AWE9-$M$34*AWD9+((AWE9-$M$34*AWD9)^2+4*$M$34*AWD8^2)^0.5)/(2*AWD8) -> 1.085518986 | AWG1: =(AWH9-$M$34*AWG9+((AWH9-$M$34*AWG9)^2+4*$M$34*AWG8^2)^0.5)/(2*AWG8) -> 1.439121785 | AWJ1: =(AWK9-$M$34*AWJ9+((AWK9-$M$34*AWJ9)^2+4*$M$34*AWJ8^2)^0.5)/(2*AWJ8) -> 1.150892952 | AWM1: =(AWN9-$M$34*AWM9+((AWN9-$M$34*AWM9)^2+4*$M$34*AWM8^2)^0.5)/(2*AWM8) -> 1.195019772 | AWP1: =(AWQ9-$M$34*AWP9+((AWQ9-$M$34*AWP9)^2+4*$M$34*AWP8^2)^0.5)/(2*AWP8) -> 1.167478508 | AWS1: =(AWT9-$M$34*AWS9+((AWT9-$M$34*AWS9)^2+4*$M$34*AWS8^2)^0.5)/(2*AWS8) -> 1.120969257 | AWV1: =(AWW9-$M$34*AWV9+((AWW9-$M$34*AWV9)^2+4*$M$34*AWV8^2)^0.5)/(2*AWV8) -> 1.249020469 | AWY1: =(AWZ9-$M$34*AWY9+((AWZ9-$M$34*AWY9)^2+4*$M$34*AWY8^2)^0.5)/(2*AWY8) -> 1.035895601 | AXB1: =(AXC9-$M$34*AXB9+((AXC9-$M$34*AXB9)^2+4*$M$34*AXB8^2)^0.5)/(2*AXB8) -> 1.125436665 | AXE1: =(AXF9-$M$34*AXE9+((AXF9-$M$34*AXE9)^2+4*$M$34*AXE8^2)^0.5)/(2*AXE8) -> 1.182409725 | AXH1: =(AXI9-$M$34*AXH9+((AXI9-$M$34*AXH9)^2+4*$M$34*AXH8^2)^0.5)/(2*AXH8) -> 1.021501869 | AXK1: =(AXL9-$M$34*AXK9+((AXL9-$M$34*AXK9)^2+4*$M$34*AXK8^2)^0.5)/(2*AXK8) -> 1.182052249 | AXN1: =(AXO9-$M$34*AXN9+((AXO9-$M$34*AXN9)^2+4*$M$34*AXN8^2)^0.5)/(2*AXN8) -> 1.167240094 | AXQ1: =(AXR9-$M$34*AXQ9+((AXR9-$M$34*AXQ9)^2+4*$M$34*AXQ8^2)^0.5)/(2*AXQ8) -> 1.11050172 | AXT1: =(AXU9-$M$34*AXT9+((AXU9-$M$34*AXT9)^2+4*$M$34*AXT8^2)^0.5)/(2*AXT8) -> 1.317387709 | AXW1: =(AXX9-$M$34*AXW9+((AXX9-$M$34*AXW9)^2+4*$M$34*AXW8^2)^0.5)/(2*AXW8) -> 1.047845684 | AXZ1: =(AYA9-$M$34*AXZ9+((AYA9-$M$34*AXZ9)^2+4*$M$34*AXZ8^2)^0.5)/(2*AXZ8) -> 0.9590261335 | AYC1: =(AYD9-$M$34*AYC9+((AYD9-$M$34*AYC9)^2+4*$M$34*AYC8^2)^0.5)/(2*AYC8) -> 1.204540697 | AYF1: =(AYG9-$M$34*AYF9+((AYG9-$M$34*AYF9)^2+4*$M$34*AYF8^2)^0.5)/(2*AYF8) -> 1.162069257 | AYI1: =(AYJ9-$M$34*AYI9+((AYJ9-$M$34*AYI9)^2+4*$M$34*AYI8^2)^0.5)/(2*AYI8) -> 1.052335591 | AYL1: =(AYM9-$M$34*AYL9+((AYM9-$M$34*AYL9)^2+4*$M$34*AYL8^2)^0.5)/(2*AYL8) -> 0.9209489099 | AYO1: =(AYP9-$M$34*AYO9+((AYP9-$M$34*AYO9)^2+4*$M$34*AYO8^2)^0.5)/(2*AYO8) -> 1.195546882 | AYR1: =(AYS9-$M$34*AYR9+((AYS9-$M$34*AYR9)^2+4*$M$34*AYR8^2)^0.5)/(2*AYR8) -> 1.063427806 | AYU1: =(AYV9-$M$34*AYU9+((AYV9-$M$34*AYU9)^2+4*$M$34*AYU8^2)^0.5)/(2*AYU8) -> 1.120648532 | AYX1: =(AYY9-$M$34*AYX9+((AYY9-$M$34*AYX9)^2+4*$M$34*AYX8^2)^0.5)/(2*AYX8) -> 0.9748519358 | AZA1: =(AZB9-$M$34*AZA9+((AZB9-$M$34*AZA9)^2+4*$M$34*AZA8^2)^0.5)/(2*AZA8) -> 1.167086319 | AZD1: =(AZE9-$M$34*AZD9+((AZE9-$M$34*AZD9)^2+4*$M$34*AZD8^2)^0.5)/(2*AZD8) -> 1.078853511 | AZG1: =(AZH9-$M$34*AZG9+((AZH9-$M$34*AZG9)^2+4*$M$34*AZG8^2)^0.5)/(2*AZG8) -> 1.069833863 | AZJ1: =(AZK9-$M$34*AZJ9+((AZK9-$M$34*AZJ9)^2+4*$M$34*AZJ8^2)^0.5)/(2*AZJ8) -> 1.321050945 | AZM1: =(AZN9-$M$34*AZM9+((AZN9-$M$34*AZM9)^2+4*$M$34*AZM8^2)^0.5)/(2*AZM8) -> 1.073209445 | AZP1: =(AZQ9-$M$34*AZP9+((AZQ9-$M$34*AZP9)^2+4*$M$34*AZP8^2)^0.5)/(2*AZP8) -> 1.239939694 | AZS1: =(AZT9-$M$34*AZS9+((AZT9-$M$34*AZS9)^2+4*$M$34*AZS8^2)^0.5)/(2*AZS8) -> 1.061883578 | AZV1: =(AZW9-$M$34*AZV9+((AZW9-$M$34*AZV9)^2+4*$M$34*AZV8^2)^0.5)/(2*AZV8) -> 1.113118573 | AZY1: =(AZZ9-$M$34*AZY9+((AZZ9-$M$34*AZY9)^2+4*$M$34*AZY8^2)^0.5)/(2*AZY8) -> 1.114240422 | BAB1: =(BAC9-$M$34*BAB9+((BAC9-$M$34*BAB9)^2+4*$M$34*BAB8^2)^0.5)/(2*BAB8) -> 1.085375446 | BAE1: =(BAF9-$M$34*BAE9+((BAF9-$M$34*BAE9)^2+4*$M$34*BAE8^2)^0.5)/(2*BAE8) -> 1.052383055 | BAH1: =(BAI9-$M$34*BAH9+((BAI9-$M$34*BAH9)^2+4*$M$34*BAH8^2)^0.5)/(2*BAH8) -> 1.141603287 | BAK1: =(BAL9-$M$34*BAK9+((BAL9-$M$34*BAK9)^2+4*$M$34*BAK8^2)^0.5)/(2*BAK8) -> 1.201520208 | BAN1: =(BAO9-$M$34*BAN9+((BAO9-$M$34*BAN9)^2+4*$M$34*BAN8^2)^0.5)/(2*BAN8) -> 1.304432005 | BAQ1: =(BAR9-$M$34*BAQ9+((BAR9-$M$34*BAQ9)^2+4*$M$34*BAQ8^2)^0.5)/(2*BAQ8) -> 1.139785994 | BAT1: =(BAU9-$M$34*BAT9+((BAU9-$M$34*BAT9)^2+4*$M$34*BAT8^2)^0.5)/(2*BAT8) -> 1.310588606 | BAW1: =(BAX9-$M$34*BAW9+((BAX9-$M$34*BAW9)^2+4*$M$34*BAW8^2)^0.5)/(2*BAW8) -> 1.109415417 | BAZ1: =(BBA9-$M$34*BAZ9+((BBA9-$M$34*BAZ9)^2+4*$M$34*BAZ8^2)^0.5)/(2*BAZ8) -> 1.006231495 | BBC1: =(BBD9-$M$34*BBC9+((BBD9-$M$34*BBC9)^2+4*$M$34*BBC8^2)^0.5)/(2*BBC8) -> 1.038448586 | BBF1: =(BBG9-$M$34*BBF9+((BBG9-$M$34*BBF9)^2+4*$M$34*BBF8^2)^0.5)/(2*BBF8) -> 1.049383411 | BBI1: =(BBJ9-$M$34*BBI9+((BBJ9-$M$34*BBI9)^2+4*$M$34*BBI8^2)^0.5)/(2*BBI8) -> 1.220139667 | BBL1: =(BBM9-$M$34*BBL9+((BBM9-$M$34*BBL9)^2+4*$M$34*BBL8^2)^0.5)/(2*BBL8) -> 1.248595414 | BBO1: =(BBP9-$M$34*BBO9+((BBP9-$M$34*BBO9)^2+4*$M$34*BBO8^2)^0.5)/(2*BBO8) -> 1.359103696 | BBR1: =(BBS9-$M$34*BBR9+((BBS9-$M$34*BBR9)^2+4*$M$34*BBR8^2)^0.5)/(2*BBR8) -> 1.339842917 | BBU1: =(BBV9-$M$34*BBU9+((BBV9-$M$34*BBU9)^2+4*$M$34*BBU8^2)^0.5)/(2*BBU8) -> 1.257447106 | BBX1: =(BBY9-$M$34*BBX9+((BBY9-$M$34*BBX9)^2+4*$M$34*BBX8^2)^0.5)/(2*BBX8) -> 1.113999707 | BCA1: =(BCB9-$M$34*BCA9+((BCB9-$M$34*BCA9)^2+4*$M$34*BCA8^2)^0.5)/(2*BCA8) -> 1.044766308 | BCD1: =(BCE9-$M$34*BCD9+((BCE9-$M$34*BCD9)^2+4*$M$34*BCD8^2)^0.5)/(2*BCD8) -> 1.345120288 | BCG1: =(BCH9-$M$34*BCG9+((BCH9-$M$34*BCG9)^2+4*$M$34*BCG8^2)^0.5)/(2*BCG8) -> 0.964119151 | BCJ1: =(BCK9-$M$34*BCJ9+((BCK9-$M$34*BCJ9)^2+4*$M$34*BCJ8^2)^0.5)/(2*BCJ8) -> 0.9741532042 | BCM1: =(BCN9-$M$34*BCM9+((BCN9-$M$34*BCM9)^2+4*$M$34*BCM8^2)^0.5)/(2*BCM8) -> 1.463581728 | BCP1: =(BCQ9-$M$34*BCP9+((BCQ9-$M$34*BCP9)^2+4*$M$34*BCP8^2)^0.5)/(2*BCP8) -> 0.9889212863 | BCS1: =(BCT9-$M$34*BCS9+((BCT9-$M$34*BCS9)^2+4*$M$34*BCS8^2)^0.5)/(2*BCS8) -> 1.019397576 | BCV1: =(BCW9-$M$34*BCV9+((BCW9-$M$34*BCV9)^2+4*$M$34*BCV8^2)^0.5)/(2*BCV8) -> 1.015814953 | BCY1: =(BCZ9-$M$34*BCY9+((BCZ9-$M$34*BCY9)^2+4*$M$34*BCY8^2)^0.5)/(2*BCY8) -> 1.372429002 | BDB1: =(BDC9-$M$34*BDB9+((BDC9-$M$34*BDB9)^2+4*$M$34*BDB8^2)^0.5)/(2*BDB8) -> 1.224045452 | BDE1: =(BDF9-$M$34*BDE9+((BDF9-$M$34*BDE9)^2+4*$M$34*BDE8^2)^0.5)/(2*BDE8) -> 1.099837995 | BDH1: =(BDI9-$M$34*BDH9+((BDI9-$M$34*BDH9)^2+4*$M$34*BDH8^2)^0.5)/(2*BDH8) -> 1.00000527 | BDK1: =(BDL9-$M$34*BDK9+((BDL9-$M$34*BDK9)^2+4*$M$34*BDK8^2)^0.5)/(2*BDK8) -> 1.299431584 | BDN1: =(BDO9-$M$34*BDN9+((BDO9-$M$34*BDN9)^2+4*$M$34*BDN8^2)^0.5)/(2*BDN8) -> 1.097684157 | BDQ1: =(BDR9-$M$34*BDQ9+((BDR9-$M$34*BDQ9)^2+4*$M$34*BDQ8^2)^0.5)/(2*BDQ8) -> 1.212052547 | BDT1: =(BDU9-$M$34*BDT9+((BDU9-$M$34*BDT9)^2+4*$M$34*BDT8^2)^0.5)/(2*BDT8) -> 1.057711085 | BDW1: =(BDX9-$M$34*BDW9+((BDX9-$M$34*BDW9)^2+4*$M$34*BDW8^2)^0.5)/(2*BDW8) -> 1.044342623 | BDZ1: =(BEA9-$M$34*BDZ9+((BEA9-$M$34*BDZ9)^2+4*$M$34*BDZ8^2)^0.5)/(2*BDZ8) -> 1.036421654 | BEC1: =(BED9-$M$34*BEC9+((BED9-$M$34*BEC9)^2+4*$M$34*BEC8^2)^0.5)/(2*BEC8) -> 1.358919165 | BEF1: =(BEG9-$M$34*BEF9+((BEG9-$M$34*BEF9)^2+4*$M$34*BEF8^2)^0.5)/(2*BEF8) -> 0.9639941846 | BEI1: =(BEJ9-$M$34*BEI9+((BEJ9-$M$34*BEI9)^2+4*$M$34*BEI8^2)^0.5)/(2*BEI8) -> 1.259852879 | BEL1: =(BEM9-$M$34*BEL9+((BEM9-$M$34*BEL9)^2+4*$M$34*BEL8^2)^0.5)/(2*BEL8) -> 0.9633789265 | BEO1: =(BEP9-$M$34*BEO9+((BEP9-$M$34*BEO9)^2+4*$M$34*BEO8^2)^0.5)/(2*BEO8) -> 1.154442005 | BER1: =(BES9-$M$34*BER9+((BES9-$M$34*BER9)^2+4*$M$34*BER8^2)^0.5)/(2*BER8) -> 1.000269326 | BEU1: =(BEV9-$M$34*BEU9+((BEV9-$M$34*BEU9)^2+4*$M$34*BEU8^2)^0.5)/(2*BEU8) -> 1.0599212 | BEX1: =(BEY9-$M$34*BEX9+((BEY9-$M$34*BEX9)^2+4*$M$34*BEX8^2)^0.5)/(2*BEX8) -> 1.037760385 | BFA1: =(BFB9-$M$34*BFA9+((BFB9-$M$34*BFA9)^2+4*$M$34*BFA8^2)^0.5)/(2*BFA8) -> 1.185745716 | BFD1: =(BFE9-$M$34*BFD9+((BFE9-$M$34*BFD9)^2+4*$M$34*BFD8^2)^0.5)/(2*BFD8) -> 1.39907672 | BFG1: =(BFH9-$M$34*BFG9+((BFH9-$M$34*BFG9)^2+4*$M$34*BFG8^2)^0.5)/(2*BFG8) -> 1.289533226 | BFJ1: =(BFK9-$M$34*BFJ9+((BFK9-$M$34*BFJ9)^2+4*$M$34*BFJ8^2)^0.5)/(2*BFJ8) -> 1.187660642 | BFM1: =(BFN9-$M$34*BFM9+((BFN9-$M$34*BFM9)^2+4*$M$34*BFM8^2)^0.5)/(2*BFM8) -> 1.229184345 | BFP1: =(BFQ9-$M$34*BFP9+((BFQ9-$M$34*BFP9)^2+4*$M$34*BFP8^2)^0.5)/(2*BFP8) -> 1.172229368 | BFS1: =(BFT9-$M$34*BFS9+((BFT9-$M$34*BFS9)^2+4*$M$34*BFS8^2)^0.5)/(2*BFS8) -> 1.303687674 | BFV1: =(BFW9-$M$34*BFV9+((BFW9-$M$34*BFV9)^2+4*$M$34*BFV8^2)^0.5)/(2*BFV8) -> 1.101901519 | BFY1: =(BFZ9-$M$34*BFY9+((BFZ9-$M$34*BFY9)^2+4*$M$34*BFY8^2)^0.5)/(2*BFY8) -> 0.9806770511 | BGB1: =(BGC9-$M$34*BGB9+((BGC9-$M$34*BGB9)^2+4*$M$34*BGB8^2)^0.5)/(2*BGB8) -> 1.354764421 | BGE1: =(BGF9-$M$34*BGE9+((BGF9-$M$34*BGE9)^2+4*$M$34*BGE8^2)^0.5)/(2*BGE8) -> 1.23845851 | BGH1: =(BGI9-$M$34*BGH9+((BGI9-$M$34*BGH9)^2+4*$M$34*BGH8^2)^0.5)/(2*BGH8) -> 1.080785289 | BGK1: =(BGL9-$M$34*BGK9+((BGL9-$M$34*BGK9)^2+4*$M$34*BGK8^2)^0.5)/(2*BGK8) -> 1.214004863 | BGN1: =(BGO9-$M$34*BGN9+((BGO9-$M$34*BGN9)^2+4*$M$34*BGN8^2)^0.5)/(2*BGN8) -> 1.069341922 | BGQ1: =(BGR9-$M$34*BGQ9+((BGR9-$M$34*BGQ9)^2+4*$M$34*BGQ8^2)^0.5)/(2*BGQ8) -> 1.44003758 | BGT1: =(BGU9-$M$34*BGT9+((BGU9-$M$34*BGT9)^2+4*$M$34*BGT8^2)^0.5)/(2*BGT8) -> 1.2070222
D2: データ入力の最大は500まで | M2: 群1(1回目） | O2: 群２(2回目） | AD2: 等確率楕円用データ | AI2: 等確率楕円用データ | AO2: Sｘｘ：= | AP2: =DEVSQ(AN5:AN1304) -> 10367.52 | AQ2: =DEVSQ(AP5:AP504) ->  | AY2: -0.164378508 | AZ2: 0.694283123 | BA2: Deming a= | BB2: =BC7-BB1*BB7 -> 0.5729287373 | BE2: =BF7-BE1*BE7 -> -0.03601093602 | BH2: =BI7-BH1*BH7 -> 0.4667492277 | BK2: =BL7-BK1*BK7 -> 0.389979896 | BN2: =BO7-BN1*BN7 -> 0.1114797808 | BQ2: =BR7-BQ1*BQ7 -> 0.415250226 | BT2: =BU7-BT1*BT7 -> 0.3046852023 | BW2: =BX7-BW1*BW7 -> 0.3018439914 | BZ2: =CA7-BZ1*BZ7 -> 0.2548361016 | CC2: =CD7-CC1*CC7 -> 0.3706939524 | CF2: =CG7-CF1*CF7 -> -0.2131611087 | CI2: =CJ7-CI1*CI7 -> 0.1366640473 | CL2: =CM7-CL1*CL7 -> 0.4155642389 | CO2: =CP7-CO1*CO7 -> 0.07083440157 | CR2: =CS7-CR1*CR7 -> 0.3144913018 | CU2: =CV7-CU1*CU7 -> 0.4643215652 | CX2: =CY7-CX1*CX7 -> 0.239639523 | DA2: =DB7-DA1*DA7 -> 0.5704325025 | DD2: =DE7-DD1*DD7 -> 0.24959391 | DG2: =DH7-DG1*DG7 -> 0.1462924206 | DJ2: =DK7-DJ1*DJ7 -> 0.4534407535 | DM2: =DN7-DM1*DM7 -> -0.2761129033 | DP2: =DQ7-DP1*DP7 -> 0.3575626497 | DS2: =DT7-DS1*DS7 -> 0.3628068918 | DV2: =DW7-DV1*DV7 -> 0.2730522682 | DY2: =DZ7-DY1*DY7 -> 0.4648142106 | EB2: =EC7-EB1*EB7 -> 0.5694704669 | EE2: =EF7-EE1*EE7 -> 0.3314022413 | EH2: =EI7-EH1*EH7 -> 0.1714599308 | EK2: =EL7-EK1*EK7 -> 0.4359894535 | EN2: =EO7-EN1*EN7 -> 0.732286727 | EQ2: =ER7-EQ1*EQ7 -> 0.02184590932 | ET2: =EU7-ET1*ET7 -> 0.4392566558 | EW2: =EX7-EW1*EW7 -> 0.3821063997 | EZ2: =FA7-EZ1*EZ7 -> 0.2481637213 | FC2: =FD7-FC1*FC7 -> 0.3397279391 | FF2: =FG7-FF1*FF7 -> 0.1095933368 | FI2: =FJ7-FI1*FI7 -> 0.2680530511 | FL2: =FM7-FL1*FL7 -> 0.2550057197 | FO2: =FP7-FO1*FO7 -> 0.7485985361 | FR2: =FS7-FR1*FR7 -> 0.4824460823 | FU2: =FV7-FU1*FU7 -> 0.4365138593 | FX2: =FY7-FX1*FX7 -> 0.7286458822 | GA2: =GB7-GA1*GA7 -> 0.7227608706 | GD2: =GE7-GD1*GD7 -> 0.5758521892 | GG2: =GH7-GG1*GG7 -> 0.3973636869 | GJ2: =GK7-GJ1*GJ7 -> 0.2699793435 | GM2: =GN7-GM1*GM7 -> -0.03287469273 | GP2: =GQ7-GP1*GP7 -> 0.2640901412 | GS2: =GT7-GS1*GS7 -> 0.5273559012 | GV2: =GW7-GV1*GV7 -> 0.4886734606 | GY2: =GZ7-GY1*GY7 -> 0.1784115575 | HB2: =HC7-HB1*HB7 -> 0.5036999997 | HE2: =HF7-HE1*HE7 -> 0.1285834585 | HH2: =HI7-HH1*HH7 -> 0.4051032331 | HK2: =HL7-HK1*HK7 -> 0.2592577661 | HN2: =HO7-HN1*HN7 -> 0.4053087754 | HQ2: =HR7-HQ1*HQ7 -> 0.3214457121 | HT2: =HU7-HT1*HT7 -> 0.6687352148 | HW2: =HX7-HW1*HW7 -> 0.2118945704 | HZ2: =IA7-HZ1*HZ7 -> 0.7447910625 | IC2: =ID7-IC1*IC7 -> -0.02530641108 | IF2: =IG7-IF1*IF7 -> 0.4656013383 | II2: =IJ7-II1*II7 -> 0.3045932394 | IL2: =IM7-IL1*IL7 -> 0.1897774374 | IO2: =IP7-IO1*IO7 -> 0.5308144205 | IR2: =IS7-IR1*IR7 -> -0.1190488814 | IU2: =IV7-IU1*IU7 -> 0.298076374 | IX2: =IY7-IX1*IX7 -> 0.2154742799 | JA2: =JB7-JA1*JA7 -> 0.5886428412 | JD2: =JE7-JD1*JD7 -> 0.646450114 | JG2: =JH7-JG1*JG7 -> 0.6834839136 | JJ2: =JK7-JJ1*JJ7 -> 0.5068065692 | JM2: =JN7-JM1*JM7 -> 0.4056902248 | JP2: =JQ7-JP1*JP7 -> 0.5210713356 | JS2: =JT7-JS1*JS7 -> 0.2794808682 | JV2: =JW7-JV1*JV7 -> 0.3003640024 | JY2: =JZ7-JY1*JY7 -> -0.1522310215 | KB2: =KC7-KB1*KB7 -> 0.1840729518 | KE2: =KF7-KE1*KE7 -> 0.4130825269 | KH2: =KI7-KH1*KH7 -> -0.1201261784 | KK2: =KL7-KK1*KK7 -> -0.04276174323 | KN2: =KO7-KN1*KN7 -> 0.4585691371 | KQ2: =KR7-KQ1*KQ7 -> 0.2865366327 | KT2: =KU7-KT1*KT7 -> 0.5227899326 | KW2: =KX7-KW1*KW7 -> 0.6326021987 | KZ2: =LA7-KZ1*KZ7 -> -0.08442343505 | LC2: =LD7-LC1*LC7 -> 0.278391568 | LF2: =LG7-LF1*LF7 -> 0.4556375632 | LI2: =LJ7-LI1*LI7 -> 0.2891646299 | LL2: =LM7-LL1*LL7 -> 0.02734019664 | LO2: =LP7-LO1*LO7 -> -0.09139469665 | LR2: =LS7-LR1*LR7 -> 0.2675829207 | LU2: =LV7-LU1*LU7 -> 0.2101201902 | LX2: =LY7-LX1*LX7 -> 0.170735509 | MA2: =MB7-MA1*MA7 -> -0.110304321 | MD2: =ME7-MD1*MD7 -> -0.2885269201 | MG2: =MH7-MG1*MG7 -> 0.4865641827 | MJ2: =MK7-MJ1*MJ7 -> 0.5394473825 | MM2: =MN7-MM1*MM7 -> 0.1529946761 | MP2: =MQ7-MP1*MP7 -> 0.450219974 | MS2: =MT7-MS1*MS7 -> 0.216568674 | MV2: =MW7-MV1*MV7 -> -0.1734518144 | MY2: =MZ7-MY1*MY7 -> 0.6298785377 | NB2: =NC7-NB1*NB7 -> 0.38609927 | NE2: =NF7-NE1*NE7 -> 0.5522904326 | NH2: =NI7-NH1*NH7 -> 0.6692776717 | NK2: =NL7-NK1*NK7 -> 0.1006324917 | NN2: =NO7-NN1*NN7 -> 0.4873706803 | NQ2: =NR7-NQ1*NQ7 -> 0.1729535027 | NT2: =NU7-NT1*NT7 -> 0.4219157451 | NW2: =NX7-NW1*NW7 -> 0.3179506813 | NZ2: =OA7-NZ1*NZ7 -> 0.2349964118 | OC2: =OD7-OC1*OC7 -> 0.1733021999 | OF2: =OG7-OF1*OF7 -> 0.5186017819 | OI2: =OJ7-OI1*OI7 -> 0.3003269149 | OL2: =OM7-OL1*OL7 -> 0.4345932153 | OO2: =OP7-OO1*OO7 -> 0.2716096447 | OR2: =OS7-OR1*OR7 -> 0.2255543928 | OU2: =OV7-OU1*OU7 -> 0.4924677878 | OX2: =OY7-OX1*OX7 -> 0.475077904 | PA2: =PB7-PA1*PA7 -> 0.4254632019 | PD2: =PE7-PD1*PD7 -> 0.6508937149 | PG2: =PH7-PG1*PG7 -> 0.3760879489 | PJ2: =PK7-PJ1*PJ7 -> 0.7741935532 | PM2: =PN7-PM1*PM7 -> 0.3493019115 | PP2: =PQ7-PP1*PP7 -> 0.171259446 | PS2: =PT7-PS1*PS7 -> 0.09607799667 | PV2: =PW7-PV1*PV7 -> 0.5757873572 | PY2: =PZ7-PY1*PY7 -> 0.1387918124 | QB2: =QC7-QB1*QB7 -> 0.4065486857 | QE2: =QF7-QE1*QE7 -> 0.1771731104 | QH2: =QI7-QH1*QH7 -> 0.4680275017 | QK2: =QL7-QK1*QK7 -> 0.06049214309 | QN2: =QO7-QN1*QN7 -> 0.1207645018 | QQ2: =QR7-QQ1*QQ7 -> 0.6093631774 | QT2: =QU7-QT1*QT7 -> 0.4343812485 | QW2: =QX7-QW1*QW7 -> 0.6700108004 | QZ2: =RA7-QZ1*QZ7 -> 0.3808469983 | RC2: =RD7-RC1*RC7 -> 0.42634991 | RF2: =RG7-RF1*RF7 -> 0.694283123 | RI2: =RJ7-RI1*RI7 -> 0.1729342716 | RL2: =RM7-RL1*RL7 -> 0.1243743264 | RO2: =RP7-RO1*RO7 -> 0.1720729307 | RR2: =RS7-RR1*RR7 -> 0.6629323508 | RU2: =RV7-RU1*RU7 -> 0.5691079657 | RX2: =RY7-RX1*RX7 -> 0.2271680876 | SA2: =SB7-SA1*SA7 -> 0.1537503725 | SD2: =SE7-SD1*SD7 -> 0.2229891658 | SG2: =SH7-SG1*SG7 -> 0.77416543 | SJ2: =SK7-SJ1*SJ7 -> 0.1119997482 | SM2: =SN7-SM1*SM7 -> 0.7881673183 | SP2: =SQ7-SP1*SP7 -> 0.4860657984 | SS2: =ST7-SS1*SS7 -> 0.571076214 | SV2: =SW7-SV1*SV7 -> 0.4065023908 | SY2: =SZ7-SY1*SY7 -> 0.2254852257 | TB2: =TC7-TB1*TB7 -> 0.243341673 | TE2: =TF7-TE1*TE7 -> 0.3770403545 | TH2: =TI7-TH1*TH7 -> 0.3581091014 | TK2: =TL7-TK1*TK7 -> 0.3900473236 | TN2: =TO7-TN1*TN7 -> 0.6499694795 | TQ2: =TR7-TQ1*TQ7 -> 0.4318911894 | TT2: =TU7-TT1*TT7 -> 0.6379143111 | TW2: =TX7-TW1*TW7 -> 0.2316653971 | TZ2: =UA7-TZ1*TZ7 -> 0.593493613 | UC2: =UD7-UC1*UC7 -> 0.6454881963 | UF2: =UG7-UF1*UF7 -> -0.06394156835 | UI2: =UJ7-UI1*UI7 -> 0.3909834505 | UL2: =UM7-UL1*UL7 -> 0.2095747871 | UO2: =UP7-UO1*UO7 -> 0.3243526487 | UR2: =US7-UR1*UR7 -> 0.2088314867 | UU2: =UV7-UU1*UU7 -> 0.2866478752 | UX2: =UY7-UX1*UX7 -> 0.3295525478 | VA2: =VB7-VA1*VA7 -> 0.372192879 | VD2: =VE7-VD1*VD7 -> 0.4145458784 | VG2: =VH7-VG1*VG7 -> 0.317390112 | VJ2: =VK7-VJ1*VJ7 -> 0.52779446 | VM2: =VN7-VM1*VM7 -> 0.3365986328 | VP2: =VQ7-VP1*VP7 -> 0.2177602274 | VS2: =VT7-VS1*VS7 -> 0.3030081344 | VV2: =VW7-VV1*VV7 -> 0.0254705242 | VY2: =VZ7-VY1*VY7 -> -0.02874072701 | WB2: =WC7-WB1*WB7 -> 0.3362669519 | WE2: =WF7-WE1*WE7 -> 0.3475240245 | WH2: =WI7-WH1*WH7 -> -0.1460827925 | WK2: =WL7-WK1*WK7 -> 0.5167789824 | WN2: =WO7-WN1*WN7 -> 0.09603004659 | WQ2: =WR7-WQ1*WQ7 -> 0.3485513243 | WT2: =WU7-WT1*WT7 -> 0.2819352219 | WW2: =WX7-WW1*WW7 -> 0.1042288874 | WZ2: =XA7-WZ1*WZ7 -> 0.412415253 | XC2: =XD7-XC1*XC7 -> 0.4512273641 | XF2: =XG7-XF1*XF7 -> 0.1994652546 | XI2: =XJ7-XI1*XI7 -> 0.3378859681 | XL2: =XM7-XL1*XL7 -> 0.1807909027 | XO2: =XP7-XO1*XO7 -> 0.5570154492 | XR2: =XS7-XR1*XR7 -> 0.2496771424 | XU2: =XV7-XU1*XU7 -> 0.4536306069 | XX2: =XY7-XX1*XX7 -> 0.6348184779 | YA2: =YB7-YA1*YA7 -> 0.1496536494 | YD2: =YE7-YD1*YD7 -> 0.3154575063 | YG2: =YH7-YG1*YG7 -> 0.4738022322 | YJ2: =YK7-YJ1*YJ7 -> 0.1456798835 | YM2: =YN7-YM1*YM7 -> 0.07880753803 | YP2: =YQ7-YP1*YP7 -> 0.2106508263 | YS2: =YT7-YS1*YS7 -> 0.5551800893 | YV2: =YW7-YV1*YV7 -> 0.1717194721 | YY2: =YZ7-YY1*YY7 -> 0.4108078077 | ZB2: =ZC7-ZB1*ZB7 -> 0.5420237178 | ZE2: =ZF7-ZE1*ZE7 -> 0.3530450821 | ZH2: =ZI7-ZH1*ZH7 -> 0.504411705 | ZK2: =ZL7-ZK1*ZK7 -> 0.5205114189 | ZN2: =ZO7-ZN1*ZN7 -> 0.2556829755 | ZQ2: =ZR7-ZQ1*ZQ7 -> 0.04573918477 | ZT2: =ZU7-ZT1*ZT7 -> 0.4194672961 | ZW2: =ZX7-ZW1*ZW7 -> 0.5919086614 | ZZ2: =AAA7-ZZ1*ZZ7 -> 0.3830466746 | AAC2: =AAD7-AAC1*AAC7 -> 0.6009616733 | AAF2: =AAG7-AAF1*AAF7 -> 0.1897009279 | AAI2: =AAJ7-AAI1*AAI7 -> 0.2570088249 | AAL2: =AAM7-AAL1*AAL7 -> 0.2661102809 | AAO2: =AAP7-AAO1*AAO7 -> 0.2893833918 | AAR2: =AAS7-AAR1*AAR7 -> 0.393540169 | AAU2: =AAV7-AAU1*AAU7 -> 0.2264013457 | AAX2: =AAY7-AAX1*AAX7 -> 0.5122904402 | ABA2: =ABB7-ABA1*ABA7 -> 0.2998903207 | ABD2: =ABE7-ABD1*ABD7 -> 0.4199469219 | ABG2: =ABH7-ABG1*ABG7 -> 0.6855201813 | ABJ2: =ABK7-ABJ1*ABJ7 -> 0.5456672474 | ABM2: =ABN7-ABM1*ABM7 -> 0.3372047283 | ABP2: =ABQ7-ABP1*ABP7 -> 0.3320050682 | ABS2: =ABT7-ABS1*ABS7 -> 0.7427663769 | ABV2: =ABW7-ABV1*ABV7 -> 0.4739274572 | ABY2: =ABZ7-ABY1*ABY7 -> 0.187976689 | ACB2: =ACC7-ACB1*ACB7 -> 0.2828302519 | ACE2: =ACF7-ACE1*ACE7 -> 0.1206353465 | ACH2: =ACI7-ACH1*ACH7 -> 0.4352923258 | ACK2: =ACL7-ACK1*ACK7 -> 0.323410613 | ACN2: =ACO7-ACN1*ACN7 -> 0.1647884415 | ACQ2: =ACR7-ACQ1*ACQ7 -> 0.5551650973 | ACT2: =ACU7-ACT1*ACT7 -> 0.1735137824 | ACW2: =ACX7-ACW1*ACW7 -> 0.2901339885 | ACZ2: =ADA7-ACZ1*ACZ7 -> 0.6337655745 | ADC2: =ADD7-ADC1*ADC7 -> 0.3141083824 | ADF2: =ADG7-ADF1*ADF7 -> 0.5044790379 | ADI2: =ADJ7-ADI1*ADI7 -> 0.2807885204 | ADL2: =ADM7-ADL1*ADL7 -> -0.08924799787 | ADO2: =ADP7-ADO1*ADO7 -> 0.333356291 | ADR2: =ADS7-ADR1*ADR7 -> 0.4319680564 | ADU2: =ADV7-ADU1*ADU7 -> 0.5692185568 | ADX2: =ADY7-ADX1*ADX7 -> 0.4049735074 | AEA2: =AEB7-AEA1*AEA7 -> -0.06867328333 | AED2: =AEE7-AED1*AED7 -> 0.360707121 | AEG2: =AEH7-AEG1*AEG7 -> 0.6531931006 | AEJ2: =AEK7-AEJ1*AEJ7 -> 0.3342968709 | AEM2: =AEN7-AEM1*AEM7 -> 0.02184554957 | AEP2: =AEQ7-AEP1*AEP7 -> 0.3191405048 | AES2: =AET7-AES1*AES7 -> 0.4444904746 | AEV2: =AEW7-AEV1*AEV7 -> 0.6176013722 | AEY2: =AEZ7-AEY1*AEY7 -> -0.0008257964407 | AFB2: =AFC7-AFB1*AFB7 -> 0.4147827874 | AFE2: =AFF7-AFE1*AFE7 -> 0.0145619817 | AFH2: =AFI7-AFH1*AFH7 -> 0.3408386361 | AFK2: =AFL7-AFK1*AFK7 -> 0.508884657 | AFN2: =AFO7-AFN1*AFN7 -> 0.5087856954 | AFQ2: =AFR7-AFQ1*AFQ7 -> -0.113771823 | AFT2: =AFU7-AFT1*AFT7 -> 0.6402779131 | AFW2: =AFX7-AFW1*AFW7 -> 0.5063112055 | AFZ2: =AGA7-AFZ1*AFZ7 -> 0.2814702697 | AGC2: =AGD7-AGC1*AGC7 -> 0.4651237227 | AGF2: =AGG7-AGF1*AGF7 -> 0.6063397415 | AGI2: =AGJ7-AGI1*AGI7 -> 0.226234374 | AGL2: =AGM7-AGL1*AGL7 -> 0.8111670331 | AGO2: =AGP7-AGO1*AGO7 -> 0.251307679 | AGR2: =AGS7-AGR1*AGR7 -> 0.6161929609 | AGU2: =AGV7-AGU1*AGU7 -> 0.5623796488 | AGX2: =AGY7-AGX1*AGX7 -> 0.4155192414 | AHA2: =AHB7-AHA1*AHA7 -> -0.03705167797 | AHD2: =AHE7-AHD1*AHD7 -> 0.2905563695 | AHG2: =AHH7-AHG1*AHG7 -> 0.4605383791 | AHJ2: =AHK7-AHJ1*AHJ7 -> 0.4656503775 | AHM2: =AHN7-AHM1*AHM7 -> 0.3010359181 | AHP2: =AHQ7-AHP1*AHP7 -> 0.3556173748 | AHS2: =AHT7-AHS1*AHS7 -> 0.05306344779 | AHV2: =AHW7-AHV1*AHV7 -> 0.4605103783 | AHY2: =AHZ7-AHY1*AHY7 -> 0.4114692238 | AIB2: =AIC7-AIB1*AIB7 -> -0.227214043 | AIE2: =AIF7-AIE1*AIE7 -> 0.02807266685 | AIH2: =AII7-AIH1*AIH7 -> 0.5463195681 | AIK2: =AIL7-AIK1*AIK7 -> 0.5590837857 | AIN2: =AIO7-AIN1*AIN7 -> 0.1800484842 | AIQ2: =AIR7-AIQ1*AIQ7 -> 0.4446232111 | AIT2: =AIU7-AIT1*AIT7 -> 0.6695079415 | AIW2: =AIX7-AIW1*AIW7 -> 0.5975686798 | AIZ2: =AJA7-AIZ1*AIZ7 -> 0.28209949 | AJC2: =AJD7-AJC1*AJC7 -> 0.3885097558 | AJF2: =AJG7-AJF1*AJF7 -> 0.1968958958 | AJI2: =AJJ7-AJI1*AJI7 -> 0.4533608375 | AJL2: =AJM7-AJL1*AJL7 -> 0.191378013 | AJO2: =AJP7-AJO1*AJO7 -> 0.2799611926 | AJR2: =AJS7-AJR1*AJR7 -> 0.4565945946 | AJU2: =AJV7-AJU1*AJU7 -> 0.2456238329 | AJX2: =AJY7-AJX1*AJX7 -> 0.5224289934 | AKA2: =AKB7-AKA1*AKA7 -> 0.2919273281 | AKD2: =AKE7-AKD1*AKD7 -> 0.335683116 | AKG2: =AKH7-AKG1*AKG7 -> 0.4320837386 | AKJ2: =AKK7-AKJ1*AKJ7 -> 0.384051855 | AKM2: =AKN7-AKM1*AKM7 -> 0.4628475705 | AKP2: =AKQ7-AKP1*AKP7 -> 0.05980585686 | AKS2: =AKT7-AKS1*AKS7 -> 0.2111329022 | AKV2: =AKW7-AKV1*AKV7 -> 0.3046800086 | AKY2: =AKZ7-AKY1*AKY7 -> 0.5260328781 | ALB2: =ALC7-ALB1*ALB7 -> 0.3902853079 | ALE2: =ALF7-ALE1*ALE7 -> 0.5607134222 | ALH2: =ALI7-ALH1*ALH7 -> -0.1443144055 | ALK2: =ALL7-ALK1*ALK7 -> 0.2796975652 | ALN2: =ALO7-ALN1*ALN7 -> 0.5013985003 | ALQ2: =ALR7-ALQ1*ALQ7 -> 0.3820572251 | ALT2: =ALU7-ALT1*ALT7 -> 0.5101051724 | ALW2: =ALX7-ALW1*ALW7 -> -0.1931840593 | ALZ2: =AMA7-ALZ1*ALZ7 -> 0.2798612359 | AMC2: =AMD7-AMC1*AMC7 -> 0.07665231784 | AMF2: =AMG7-AMF1*AMF7 -> 0.3433186962 | AMI2: =AMJ7-AMI1*AMI7 -> 0.15516034 | AML2: =AMM7-AML1*AML7 -> 0.2450246074 | AMO2: =AMP7-AMO1*AMO7 -> 0.2473807119 | AMR2: =AMS7-AMR1*AMR7 -> 0.05835234278 | AMU2: =AMV7-AMU1*AMU7 -> 0.6330480011 | AMX2: =AMY7-AMX1*AMX7 -> 0.42154197 | ANA2: =ANB7-ANA1*ANA7 -> 0.5266796535 | AND2: =ANE7-AND1*AND7 -> 0.02357577677 | ANG2: =ANH7-ANG1*ANG7 -> 0.2731292087 | ANJ2: =ANK7-ANJ1*ANJ7 -> 0.3677406826 | ANM2: =ANN7-ANM1*ANM7 -> 0.145782066 | ANP2: =ANQ7-ANP1*ANP7 -> -0.2941500186 | ANS2: =ANT7-ANS1*ANS7 -> 0.486824982 | ANV2: =ANW7-ANV1*ANV7 -> 0.1170767293 | ANY2: =ANZ7-ANY1*ANY7 -> 0.1977354254 | AOB2: =AOC7-AOB1*AOB7 -> 0.4436995777 | AOE2: =AOF7-AOE1*AOE7 -> 0.6325479424 | AOH2: =AOI7-AOH1*AOH7 -> 0.005939409584 | AOK2: =AOL7-AOK1*AOK7 -> 0.4749564721 | AON2: =AOO7-AON1*AON7 -> 0.3697581245 | AOQ2: =AOR7-AOQ1*AOQ7 -> 0.6025171776 | AOT2: =AOU7-AOT1*AOT7 -> 0.3568461543 | AOW2: =AOX7-AOW1*AOW7 -> 0.6704575381 | AOZ2: =APA7-AOZ1*AOZ7 -> 0.5466746164 | APC2: =APD7-APC1*APC7 -> 0.5072226856 | APF2: =APG7-APF1*APF7 -> 0.2901372267 | API2: =APJ7-API1*API7 -> 0.4283002236 | APL2: =APM7-APL1*APL7 -> 0.6541170211 | APO2: =APP7-APO1*APO7 -> 0.3293268722 | APR2: =APS7-APR1*APR7 -> 0.4003726747 | APU2: =APV7-APU1*APU7 -> 0.4114725976 | APX2: =APY7-APX1*APX7 -> 0.2238301917 | AQA2: =AQB7-AQA1*AQA7 -> 0.1892664009 | AQD2: =AQE7-AQD1*AQD7 -> 0.3790927407 | AQG2: =AQH7-AQG1*AQG7 -> -0.0537529698 | AQJ2: =AQK7-AQJ1*AQJ7 -> -0.07449168681 | AQM2: =AQN7-AQM1*AQM7 -> 0.3395515459 | AQP2: =AQQ7-AQP1*AQP7 -> 0.6388628192 | AQS2: =AQT7-AQS1*AQS7 -> 0.226867965 | AQV2: =AQW7-AQV1*AQV7 -> 0.5026664699 | AQY2: =AQZ7-AQY1*AQY7 -> 0.06357585072 | ARB2: =ARC7-ARB1*ARB7 -> 0.4496594753 | ARE2: =ARF7-ARE1*ARE7 -> 0.3882213651 | ARH2: =ARI7-ARH1*ARH7 -> 0.4186409534 | ARK2: =ARL7-ARK1*ARK7 -> 0.3667374668 | ARN2: =ARO7-ARN1*ARN7 -> 0.4848793837 | ARQ2: =ARR7-ARQ1*ARQ7 -> 0.4886031506 | ART2: =ARU7-ART1*ART7 -> 0.5102104459 | ARW2: =ARX7-ARW1*ARW7 -> 0.4432238012 | ARZ2: =ASA7-ARZ1*ARZ7 -> 0.3965819606 | ASC2: =ASD7-ASC1*ASC7 -> 0.5698329107 | ASF2: =ASG7-ASF1*ASF7 -> 0.2568455185 | ASI2: =ASJ7-ASI1*ASI7 -> 0.3675707044 | ASL2: =ASM7-ASL1*ASL7 -> 0.3823235581 | ASO2: =ASP7-ASO1*ASO7 -> 0.4629240161 | ASR2: =ASS7-ASR1*ASR7 -> 0.3713500521 | ASU2: =ASV7-ASU1*ASU7 -> 0.5217144646 | ASX2: =ASY7-ASX1*ASX7 -> 0.02326663593 | ATA2: =ATB7-ATA1*ATA7 -> 0.3420077675 | ATD2: =ATE7-ATD1*ATD7 -> 0.1372097702 | ATG2: =ATH7-ATG1*ATG7 -> 0.01529705738 | ATJ2: =ATK7-ATJ1*ATJ7 -> 0.1412015703 | ATM2: =ATN7-ATM1*ATM7 -> 0.156913977 | ATP2: =ATQ7-ATP1*ATP7 -> 0.4624360891 | ATS2: =ATT7-ATS1*ATS7 -> 0.09228499947 | ATV2: =ATW7-ATV1*ATV7 -> 0.6238299327 | ATY2: =ATZ7-ATY1*ATY7 -> 0.5272211757 | AUB2: =AUC7-AUB1*AUB7 -> 0.3495331542 | AUE2: =AUF7-AUE1*AUE7 -> 0.296942057 | AUH2: =AUI7-AUH1*AUH7 -> 0.1556835801 | AUK2: =AUL7-AUK1*AUK7 -> 0.4345532217 | AUN2: =AUO7-AUN1*AUN7 -> 0.3897356304 | AUQ2: =AUR7-AUQ1*AUQ7 -> 0.184685864 | AUT2: =AUU7-AUT1*AUT7 -> 0.6412992203 | AUW2: =AUX7-AUW1*AUW7 -> 0.4120835635 | AUZ2: =AVA7-AUZ1*AUZ7 -> 0.2959235507 | AVC2: =AVD7-AVC1*AVC7 -> 0.4045966822 | AVF2: =AVG7-AVF1*AVF7 -> 0.6042486432 | AVI2: =AVJ7-AVI1*AVI7 -> 0.2177674995 | AVL2: =AVM7-AVL1*AVL7 -> 0.4569302385 | AVO2: =AVP7-AVO1*AVO7 -> 0.602731464 | AVR2: =AVS7-AVR1*AVR7 -> 0.1853631915 | AVU2: =AVV7-AVU1*AVU7 -> 0.607553653 | AVX2: =AVY7-AVX1*AVX7 -> 0.3065373921 | AWA2: =AWB7-AWA1*AWA7 -> 0.4889974017 | AWD2: =AWE7-AWD1*AWD7 -> 0.3824251372 | AWG2: =AWH7-AWG1*AWG7 -> -0.164378508 | AWJ2: =AWK7-AWJ1*AWJ7 -> 0.3543103207 | AWM2: =AWN7-AWM1*AWM7 -> 0.08206984089 | AWP2: =AWQ7-AWP1*AWP7 -> 0.4518144759 | AWS2: =AWT7-AWS1*AWS7 -> 0.4660880969 | AWV2: =AWW7-AWV1*AWV7 -> 0.1958568387 | AWY2: =AWZ7-AWY1*AWY7 -> 0.5020665045 | AXB2: =AXC7-AXB1*AXB7 -> 0.2544402818 | AXE2: =AXF7-AXE1*AXE7 -> 0.4647542355 | AXH2: =AXI7-AXH1*AXH7 -> 0.464535766 | AXK2: =AXL7-AXK1*AXK7 -> 0.1808949728 | AXN2: =AXO7-AXN1*AXN7 -> 0.1959638796 | AXQ2: =AXR7-AXQ1*AXQ7 -> 0.3206553896 | AXT2: =AXU7-AXT1*AXT7 -> 0.1518144305 | AXW2: =AXX7-AXW1*AXW7 -> 0.4280489163 | AXZ2: =AYA7-AXZ1*AXZ7 -> 0.3354799162 | AYC2: =AYD7-AYC1*AYC7 -> 0.150993392 | AYF2: =AYG7-AYF1*AYF7 -> 0.3131401142 | AYI2: =AYJ7-AYI1*AYI7 -> 0.4370355997 | AYL2: =AYM7-AYL1*AYL7 -> 0.6363399288 | AYO2: =AYP7-AYO1*AYO7 -> 0.3806338577 | AYR2: =AYS7-AYR1*AYR7 -> 0.5515160471 | AYU2: =AYV7-AYU1*AYU7 -> 0.4199209732 | AYX2: =AYY7-AYX1*AYX7 -> 0.5031962108 | AZA2: =AZB7-AZA1*AZA7 -> 0.3081945266 | AZD2: =AZE7-AZD1*AZD7 -> 0.4344290005 | AZG2: =AZH7-AZG1*AZG7 -> 0.3978001291 | AZJ2: =AZK7-AZJ1*AZJ7 -> 0.1472104452 | AZM2: =AZN7-AZM1*AZM7 -> 0.2712932051 | AZP2: =AZQ7-AZP1*AZP7 -> -0.02478999798 | AZS2: =AZT7-AZS1*AZS7 -> 0.5641742874 | AZV2: =AZW7-AZV1*AZV7 -> 0.3638843252 | AZY2: =AZZ7-AZY1*AZY7 -> 0.3305013815 | BAB2: =BAC7-BAB1*BAB7 -> 0.3929466826 | BAE2: =BAF7-BAE1*BAE7 -> 0.5472323893 | BAH2: =BAI7-BAH1*BAH7 -> 0.3678409299 | BAK2: =BAL7-BAK1*BAK7 -> 0.3151758978 | BAN2: =BAO7-BAN1*BAN7 -> -0.08145935378 | BAQ2: =BAR7-BAQ1*BAQ7 -> 0.3009779522 | BAT2: =BAU7-BAT1*BAT7 -> 0.1563380156 | BAW2: =BAX7-BAW1*BAW7 -> 0.3508265386 | BAZ2: =BBA7-BAZ1*BAZ7 -> 0.5338641659 | BBC2: =BBD7-BBC1*BBC7 -> 0.4474408948 | BBF2: =BBG7-BBF1*BBF7 -> 0.3988969214 | BBI2: =BBJ7-BBI1*BBI7 -> 0.3180265086 | BBL2: =BBM7-BBL1*BBL7 -> 0.1172005377 | BBO2: =BBP7-BBO1*BBO7 -> 0.08868435218 | BBR2: =BBS7-BBR1*BBR7 -> 0.09059478679 | BBU2: =BBV7-BBU1*BBU7 -> 0.09581835655 | BBX2: =BBY7-BBX1*BBX7 -> 0.5157676504 | BCA2: =BCB7-BCA1*BCA7 -> 0.5668876495 | BCD2: =BCE7-BCD1*BCD7 -> -0.1934516593 | BCG2: =BCH7-BCG1*BCG7 -> 0.7678064555 | BCJ2: =BCK7-BCJ1*BCJ7 -> 0.435239272 | BCM2: =BCN7-BCM1*BCM7 -> -0.3550436222 | BCP2: =BCQ7-BCP1*BCP7 -> 0.4592656469 | BCS2: =BCT7-BCS1*BCS7 -> 0.6894185947 | BCV2: =BCW7-BCV1*BCV7 -> 0.4691745692 | BCY2: =BCZ7-BCY1*BCY7 -> 0.07430345151 | BDB2: =BDC7-BDB1*BDB7 -> 0.1805757336 | BDE2: =BDF7-BDE1*BDE7 -> 0.536201449 | BDH2: =BDI7-BDH1*BDH7 -> 0.5537862158 | BDK2: =BDL7-BDK1*BDK7 -> 0.04416923442 | BDN2: =BDO7-BDN1*BDN7 -> 0.4455727824 | BDQ2: =BDR7-BDQ1*BDQ7 -> 0.07380656337 | BDT2: =BDU7-BDT1*BDT7 -> 0.4067043728 | BDW2: =BDX7-BDW1*BDW7 -> 0.468366973 | BDZ2: =BEA7-BDZ1*BDZ7 -> 0.4302877007 | BEC2: =BED7-BEC1*BEC7 -> -0.2092821315 | BEF2: =BEG7-BEF1*BEF7 -> 0.6820907768 | BEI2: =BEJ7-BEI1*BEI7 -> -0.04366782798 | BEL2: =BEM7-BEL1*BEL7 -> 0.6203668428 | BEO2: =BEP7-BEO1*BEO7 -> 0.1717181288 | BER2: =BES7-BER1*BER7 -> 0.3948340377 | BEU2: =BEV7-BEU1*BEU7 -> 0.482745374 | BEX2: =BEY7-BEX1*BEX7 -> 0.4871003356 | BFA2: =BFB7-BFA1*BFA7 -> 0.3630523922 | BFD2: =BFE7-BFD1*BFD7 -> -0.05005512269 | BFG2: =BFH7-BFG1*BFG7 -> 0.1034481219 | BFJ2: =BFK7-BFJ1*BFJ7 -> 0.3075291155 | BFM2: =BFN7-BFM1*BFM7 -> 0.09579640263 | BFP2: =BFQ7-BFP1*BFP7 -> 0.3757600847 | BFS2: =BFT7-BFS1*BFS7 -> 0.1996051185 | BFV2: =BFW7-BFV1*BFV7 -> 0.523958831 | BFY2: =BFZ7-BFY1*BFY7 -> 0.487695569 | BGB2: =BGC7-BGB1*BGB7 -> 0.3067570613 | BGE2: =BGF7-BGE1*BGE7 -> 0.24576292 | BGH2: =BGI7-BGH1*BGH7 -> 0.4695450031 | BGK2: =BGL7-BGK1*BGK7 -> 0.2059354906 | BGN2: =BGO7-BGN1*BGN7 -> 0.4397775174 | BGQ2: =BGR7-BGQ1*BGQ7 -> 0.02406348772 | BGT2: =BGU7-BGT1*BGT7 -> 0.3366185965
D3: 群1(1回目） | F3: 群２(2回目） | K3: 基本統計項目 | M3: X1 | N3: Y1 | O3: X2 | P3: Y2 | R3: X | S3: Y | U3: 階級数 | AD3: X1 | AE3: Y1上側 | AF3: Y1下側 | AG3: HH | AI3: X2 | AJ3: Y2上側 | AK3: Y2下側 | AL3: HH | AO3: Sｙｙ：= | AP3: =DEVSQ(AO5:AO1304) -> 10542.32 | AQ3: =DEVSQ(AQ5:AQ504) ->  | AS3: 偏差図 | AY3: 0.9307737216 | AZ3: 1.33650916 | BA3: 標準主軸b= | BB3: =(BC9/BB9)^0.5 -> 1.008998344 | BE3: =(BF9/BE9)^0.5 -> 1.273087163 | BH3: =(BI9/BH9)^0.5 -> 1.123914857 | BK3: =(BL9/BK9)^0.5 -> 1.096909326 | BN3: =(BO9/BN9)^0.5 -> 1.161144706 | BQ3: =(BR9/BQ9)^0.5 -> 1.04535671 | BT3: =(BU9/BT9)^0.5 -> 1.112965377 | BW3: =(BX9/BW9)^0.5 -> 1.141176891 | BZ3: =(CA9/BZ9)^0.5 -> 1.164159209 | CC3: =(CD9/CC9)^0.5 -> 1.056470981 | CF3: =(CG9/CF9)^0.5 -> 1.349118382 | CI3: =(CJ9/CI9)^0.5 -> 1.352210244 | CL3: =(CM9/CL9)^0.5 -> 1.099731278 | CO3: =(CP9/CO9)^0.5 -> 1.300606789 | CR3: =(CS9/CR9)^0.5 -> 1.142595444 | CU3: =(CV9/CU9)^0.5 -> 1.1284415 | CX3: =(CY9/CX9)^0.5 -> 1.152757211 | DA3: =(DB9/DA9)^0.5 -> 0.991259445 | DD3: =(DE9/DD9)^0.5 -> 1.13431904 | DG3: =(DH9/DG9)^0.5 -> 1.207778787 | DJ3: =(DK9/DJ9)^0.5 -> 1.141412589 | DM3: =(DN9/DM9)^0.5 -> 1.393387813 | DP3: =(DQ9/DP9)^0.5 -> 1.105936476 | DS3: =(DT9/DS9)^0.5 -> 1.095821311 | DV3: =(DW9/DV9)^0.5 -> 1.126273821 | DY3: =(DZ9/DY9)^0.5 -> 0.9782438291 | EB3: =(EC9/EB9)^0.5 -> 0.9984225706 | EE3: =(EF9/EE9)^0.5 -> 1.125779431 | EH3: =(EI9/EH9)^0.5 -> 1.175771516 | EK3: =(EL9/EK9)^0.5 -> 0.9835038793 | EN3: =(EO9/EN9)^0.5 -> 1.028935528 | EQ3: =(ER9/EQ9)^0.5 -> 1.260220088 | ET3: =(EU9/ET9)^0.5 -> 1.006058838 | EW3: =(EX9/EW9)^0.5 -> 1.041700358 | EZ3: =(FA9/EZ9)^0.5 -> 1.146095042 | FC3: =(FD9/FC9)^0.5 -> 1.131034895 | FF3: =(FG9/FF9)^0.5 -> 1.225233925 | FI3: =(FJ9/FI9)^0.5 -> 1.16053947 | FL3: =(FM9/FL9)^0.5 -> 1.1218626 | FO3: =(FP9/FO9)^0.5 -> 0.9269888905 | FR3: =(FS9/FR9)^0.5 -> 1.044042806 | FU3: =(FV9/FU9)^0.5 -> 1.079281185 | FX3: =(FY9/FX9)^0.5 -> 0.9454325012 | GA3: =(GB9/GA9)^0.5 -> 1.037912572 | GD3: =(GE9/GD9)^0.5 -> 1.056172667 | GG3: =(GH9/GG9)^0.5 -> 1.101753304 | GJ3: =(GK9/GJ9)^0.5 -> 1.100489799 | GM3: =(GN9/GM9)^0.5 -> 1.358431754 | GP3: =(GQ9/GP9)^0.5 -> 1.137354282 | GS3: =(GT9/GS9)^0.5 -> 1.063036731 | GV3: =(GW9/GV9)^0.5 -> 1.096736702 | GY3: =(GZ9/GY9)^0.5 -> 1.201939291 | HB3: =(HC9/HB9)^0.5 -> 1.040925219 | HE3: =(HF9/HE9)^0.5 -> 1.210657044 | HH3: =(HI9/HH9)^0.5 -> 1.05938953 | HK3: =(HL9/HK9)^0.5 -> 1.240445962 | HN3: =(HO9/HN9)^0.5 -> 1.126307384 | HQ3: =(HR9/HQ9)^0.5 -> 1.056323108 | HT3: =(HU9/HT9)^0.5 -> 0.9696704698 | HW3: =(HX9/HW9)^0.5 -> 1.123520766 | HZ3: =(IA9/HZ9)^0.5 -> 0.9851720028 | IC3: =(ID9/IC9)^0.5 -> 1.181313231 | IF3: =(IG9/IF9)^0.5 -> 1.046868977 | II3: =(IJ9/II9)^0.5 -> 1.130691127 | IL3: =(IM9/IL9)^0.5 -> 1.122729447 | IO3: =(IP9/IO9)^0.5 -> 1.120064154 | IR3: =(IS9/IR9)^0.5 -> 1.30968799 | IU3: =(IV9/IU9)^0.5 -> 1.137256139 | IX3: =(IY9/IX9)^0.5 -> 1.222955719 | JA3: =(JB9/JA9)^0.5 -> 1.048440021 | JD3: =(JE9/JD9)^0.5 -> 0.9292433823 | JG3: =(JH9/JG9)^0.5 -> 0.9005873031 | JJ3: =(JK9/JJ9)^0.5 -> 1.071901917 | JM3: =(JN9/JM9)^0.5 -> 0.9808343834 | JP3: =(JQ9/JP9)^0.5 -> 1.005277967 | JS3: =(JT9/JS9)^0.5 -> 1.083326453 | JV3: =(JW9/JV9)^0.5 -> 1.082264065 | JY3: =(JZ9/JY9)^0.5 -> 1.386386868 | KB3: =(KC9/KB9)^0.5 -> 1.134393363 | KE3: =(KF9/KE9)^0.5 -> 1.112158374 | KH3: =(KI9/KH9)^0.5 -> 1.284061151 | KK3: =(KL9/KK9)^0.5 -> 1.32610027 | KN3: =(KO9/KN9)^0.5 -> 1.075730063 | KQ3: =(KR9/KQ9)^0.5 -> 1.112144524 | KT3: =(KU9/KT9)^0.5 -> 1.101637305 | KW3: =(KX9/KW9)^0.5 -> 1.006815819 | KZ3: =(LA9/KZ9)^0.5 -> 1.258828218 | LC3: =(LD9/LC9)^0.5 -> 1.137970573 | LF3: =(LG9/LF9)^0.5 -> 1.060857222 | LI3: =(LJ9/LI9)^0.5 -> 1.170729391 | LL3: =(LM9/LL9)^0.5 -> 1.335050168 | LO3: =(LP9/LO9)^0.5 -> 1.241777922 | LR3: =(LS9/LR9)^0.5 -> 1.046645236 | LU3: =(LV9/LU9)^0.5 -> 1.132189119 | LX3: =(LY9/LX9)^0.5 -> 1.196305293 | MA3: =(MB9/MA9)^0.5 -> 1.405234175 | MD3: =(ME9/MD9)^0.5 -> 1.301184458 | MG3: =(MH9/MG9)^0.5 -> 1.010586882 | MJ3: =(MK9/MJ9)^0.5 -> 1.021518274 | MM3: =(MN9/MM9)^0.5 -> 1.259416862 | MP3: =(MQ9/MP9)^0.5 -> 1.072585621 | MS3: =(MT9/MS9)^0.5 -> 1.16140575 | MV3: =(MW9/MV9)^0.5 -> 1.294928339 | MY3: =(MZ9/MY9)^0.5 -> 1.068565704 | NB3: =(NC9/NB9)^0.5 -> 1.161117587 | NE3: =(NF9/NE9)^0.5 -> 1.037911984 | NH3: =(NI9/NH9)^0.5 -> 1.004495279 | NK3: =(NL9/NK9)^0.5 -> 1.17967018 | NN3: =(NO9/NN9)^0.5 -> 0.981942652 | NQ3: =(NR9/NQ9)^0.5 -> 1.122338703 | NT3: =(NU9/NT9)^0.5 -> 1.045246401 | NW3: =(NX9/NW9)^0.5 -> 1.093709328 | NZ3: =(OA9/NZ9)^0.5 -> 1.1383938 | OC3: =(OD9/OC9)^0.5 -> 1.143712184 | OF3: =(OG9/OF9)^0.5 -> 1.063293844 | OI3: =(OJ9/OI9)^0.5 -> 1.113704286 | OL3: =(OM9/OL9)^0.5 -> 0.9903262174 | OO3: =(OP9/OO9)^0.5 -> 1.09989167 | OR3: =(OS9/OR9)^0.5 -> 1.173203745 | OU3: =(OV9/OU9)^0.5 -> 0.9824174723 | OX3: =(OY9/OX9)^0.5 -> 1.05648116 | PA3: =(PB9/PA9)^0.5 -> 1.046863385 | PD3: =(PE9/PD9)^0.5 -> 0.9758212936 | PG3: =(PH9/PG9)^0.5 -> 1.152837031 | PJ3: =(PK9/PJ9)^0.5 -> 0.8992013116 | PM3: =(PN9/PM9)^0.5 -> 1.091715762 | PP3: =(PQ9/PP9)^0.5 -> 1.111680398 | PS3: =(PT9/PS9)^0.5 -> 1.271909956 | PV3: =(PW9/PV9)^0.5 -> 1.071139451 | PY3: =(PZ9/PY9)^0.5 -> 1.123793397 | QB3: =(QC9/QB9)^0.5 -> 1.094472251 | QE3: =(QF9/QE9)^0.5 -> 1.201026685 | QH3: =(QI9/QH9)^0.5 -> 1.082292778 | QK3: =(QL9/QK9)^0.5 -> 1.245302616 | QN3: =(QO9/QN9)^0.5 -> 1.167296351 | QQ3: =(QR9/QQ9)^0.5 -> 0.984339043 | QT3: =(QU9/QT9)^0.5 -> 1.102296492 | QW3: =(QX9/QW9)^0.5 -> 0.9307737216 | QZ3: =(RA9/QZ9)^0.5 -> 1.12467732 | RC3: =(RD9/RC9)^0.5 -> 1.09813025 | RF3: =(RG9/RF9)^0.5 -> 1.033698433 | RI3: =(RJ9/RI9)^0.5 -> 1.258498736 | RL3: =(RM9/RL9)^0.5 -> 1.162318603 | RO3: =(RP9/RO9)^0.5 -> 1.206389153 | RR3: =(RS9/RR9)^0.5 -> 0.923845096 | RU3: =(RV9/RU9)^0.5 -> 0.9505161452 | RX3: =(RY9/RX9)^0.5 -> 1.15095052 | SA3: =(SB9/SA9)^0.5 -> 1.173673696 | SD3: =(SE9/SD9)^0.5 -> 1.184105086 | SG3: =(SH9/SG9)^0.5 -> 0.9418686475 | SJ3: =(SK9/SJ9)^0.5 -> 1.329698973 | SM3: =(SN9/SM9)^0.5 -> 0.9702936992 | SP3: =(SQ9/SP9)^0.5 -> 1.094715391 | SS3: =(ST9/SS9)^0.5 -> 0.9693573896 | SV3: =(SW9/SV9)^0.5 -> 1.100712485 | SY3: =(SZ9/SY9)^0.5 -> 1.144814236 | TB3: =(TC9/TB9)^0.5 -> 1.102716143 | TE3: =(TF9/TE9)^0.5 -> 1.120487893 | TH3: =(TI9/TH9)^0.5 -> 1.061982166 | TK3: =(TL9/TK9)^0.5 -> 1.086863216 | TN3: =(TO9/TN9)^0.5 -> 0.9895845676 | TQ3: =(TR9/TQ9)^0.5 -> 1.121597527 | TT3: =(TU9/TT9)^0.5 -> 0.9273447758 | TW3: =(TX9/TW9)^0.5 -> 1.143039611 | TZ3: =(UA9/TZ9)^0.5 -> 1.023209577 | UC3: =(UD9/UC9)^0.5 -> 0.9888566136 | UF3: =(UG9/UF9)^0.5 -> 1.26786811 | UI3: =(UJ9/UI9)^0.5 -> 1.076349964 | UL3: =(UM9/UL9)^0.5 -> 1.128914164 | UO3: =(UP9/UO9)^0.5 -> 1.158396815 | UR3: =(US9/UR9)^0.5 -> 1.163924299 | UU3: =(UV9/UU9)^0.5 -> 1.088979342 | UX3: =(UY9/UX9)^0.5 -> 1.113253596 | VA3: =(VB9/VA9)^0.5 -> 1.035097697 | VD3: =(VE9/VD9)^0.5 -> 1.104093185 | VG3: =(VH9/VG9)^0.5 -> 1.161117054 | VJ3: =(VK9/VJ9)^0.5 -> 1.058298714 | VM3: =(VN9/VM9)^0.5 -> 1.075453468 | VP3: =(VQ9/VP9)^0.5 -> 1.191233183 | VS3: =(VT9/VS9)^0.5 -> 1.138018513 | VV3: =(VW9/VV9)^0.5 -> 1.226918413 | VY3: =(VZ9/VY9)^0.5 -> 1.254391532 | WB3: =(WC9/WB9)^0.5 -> 1.107199041 | WE3: =(WF9/WE9)^0.5 -> 1.165717395 | WH3: =(WI9/WH9)^0.5 -> 1.293977117 | WK3: =(WL9/WK9)^0.5 -> 1.093458738 | WN3: =(WO9/WN9)^0.5 -> 1.230218337 | WQ3: =(WR9/WQ9)^0.5 -> 1.158648668 | WT3: =(WU9/WT9)^0.5 -> 1.144554494 | WW3: =(WX9/WW9)^0.5 -> 1.178789013 | WZ3: =(XA9/WZ9)^0.5 -> 0.9872153382 | XC3: =(XD9/XC9)^0.5 -> 1.051285442 | XF3: =(XG9/XF9)^0.5 -> 1.179974441 | XI3: =(XJ9/XI9)^0.5 -> 1.103555363 | XL3: =(XM9/XL9)^0.5 -> 1.173462882 | XO3: =(XP9/XO9)^0.5 -> 1.174905503 | XR3: =(XS9/XR9)^0.5 -> 1.06452464 | XU3: =(XV9/XU9)^0.5 -> 1.197427482 | XX3: =(XY9/XX9)^0.5 -> 0.9907642088 | YA3: =(YB9/YA9)^0.5 -> 1.207373518 | YD3: =(YE9/YD9)^0.5 -> 1.125060457 | YG3: =(YH9/YG9)^0.5 -> 1.054927681 | YJ3: =(YK9/YJ9)^0.5 -> 1.19082041 | YM3: =(YN9/YM9)^0.5 -> 1.176048709 | YP3: =(YQ9/YP9)^0.5 -> 1.181679774 | YS3: =(YT9/YS9)^0.5 -> 1.011935299 | YV3: =(YW9/YV9)^0.5 -> 1.139182924 | YY3: =(YZ9/YY9)^0.5 -> 1.062620624 | ZB3: =(ZC9/ZB9)^0.5 -> 1.014483915 | ZE3: =(ZF9/ZE9)^0.5 -> 1.047111714 | ZH3: =(ZI9/ZH9)^0.5 -> 0.9982790878 | ZK3: =(ZL9/ZK9)^0.5 -> 1.012789675 | ZN3: =(ZO9/ZN9)^0.5 -> 1.079695093 | ZQ3: =(ZR9/ZQ9)^0.5 -> 1.236378511 | ZT3: =(ZU9/ZT9)^0.5 -> 0.9771608715 | ZW3: =(ZX9/ZW9)^0.5 -> 1.027952586 | ZZ3: =(AAA9/ZZ9)^0.5 -> 1.065205073 | AAC3: =(AAD9/AAC9)^0.5 -> 1.059098892 | AAF3: =(AAG9/AAF9)^0.5 -> 1.167633307 | AAI3: =(AAJ9/AAI9)^0.5 -> 1.13470444 | AAL3: =(AAM9/AAL9)^0.5 -> 1.09481816 | AAO3: =(AAP9/AAO9)^0.5 -> 1.180123195 | AAR3: =(AAS9/AAR9)^0.5 -> 1.12610847 | AAU3: =(AAV9/AAU9)^0.5 -> 1.144841874 | AAX3: =(AAY9/AAX9)^0.5 -> 1.092141203 | ABA3: =(ABB9/ABA9)^0.5 -> 1.093831032 | ABD3: =(ABE9/ABD9)^0.5 -> 1.100089332 | ABG3: =(ABH9/ABG9)^0.5 -> 1.037228916 | ABJ3: =(ABK9/ABJ9)^0.5 -> 1.081573325 | ABM3: =(ABN9/ABM9)^0.5 -> 1.096670281 | ABP3: =(ABQ9/ABP9)^0.5 -> 1.079355342 | ABS3: =(ABT9/ABS9)^0.5 -> 0.8873920667 | ABV3: =(ABW9/ABV9)^0.5 -> 1.056876212 | ABY3: =(ABZ9/ABY9)^0.5 -> 1.240099625 | ACB3: =(ACC9/ACB9)^0.5 -> 1.183655312 | ACE3: =(ACF9/ACE9)^0.5 -> 1.172300049 | ACH3: =(ACI9/ACH9)^0.5 -> 1.126615371 | ACK3: =(ACL9/ACK9)^0.5 -> 1.172949747 | ACN3: =(ACO9/ACN9)^0.5 -> 1.151107442 | ACQ3: =(ACR9/ACQ9)^0.5 -> 1.045193201 | ACT3: =(ACU9/ACT9)^0.5 -> 1.201179783 | ACW3: =(ACX9/ACW9)^0.5 -> 1.068780076 | ACZ3: =(ADA9/ACZ9)^0.5 -> 1.007337756 | ADC3: =(ADD9/ADC9)^0.5 -> 1.153461609 | ADF3: =(ADG9/ADF9)^0.5 -> 1.003916266 | ADI3: =(ADJ9/ADI9)^0.5 -> 1.108192785 | ADL3: =(ADM9/ADL9)^0.5 -> 1.330151026 | ADO3: =(ADP9/ADO9)^0.5 -> 1.086919255 | ADR3: =(ADS9/ADR9)^0.5 -> 1.086871066 | ADU3: =(ADV9/ADU9)^0.5 -> 1.028394588 | ADX3: =(ADY9/ADX9)^0.5 -> 1.10487864 | AEA3: =(AEB9/AEA9)^0.5 -> 1.266343359 | AED3: =(AEE9/AED9)^0.5 -> 1.106008449 | AEG3: =(AEH9/AEG9)^0.5 -> 0.9799423227 | AEJ3: =(AEK9/AEJ9)^0.5 -> 1.072855777 | AEM3: =(AEN9/AEM9)^0.5 -> 1.247413011 | AEP3: =(AEQ9/AEP9)^0.5 -> 1.139525544 | AES3: =(AET9/AES9)^0.5 -> 1.125933999 | AEV3: =(AEW9/AEV9)^0.5 -> 1.060442415 | AEY3: =(AEZ9/AEY9)^0.5 -> 1.288431382 | AFB3: =(AFC9/AFB9)^0.5 -> 1.138437198 | AFE3: =(AFF9/AFE9)^0.5 -> 1.2051478 | AFH3: =(AFI9/AFH9)^0.5 -> 1.088260974 | AFK3: =(AFL9/AFK9)^0.5 -> 1.016350052 | AFN3: =(AFO9/AFN9)^0.5 -> 0.9804801183 | AFQ3: =(AFR9/AFQ9)^0.5 -> 1.319655009 | AFT3: =(AFU9/AFT9)^0.5 -> 1.011744564 | AFW3: =(AFX9/AFW9)^0.5 -> 1.054335726 | AFZ3: =(AGA9/AFZ9)^0.5 -> 1.158065176 | AGC3: =(AGD9/AGC9)^0.5 -> 1.03481179 | AGF3: =(AGG9/AGF9)^0.5 -> 0.9914785722 | AGI3: =(AGJ9/AGI9)^0.5 -> 1.193187935 | AGL3: =(AGM9/AGL9)^0.5 -> 0.9270142276 | AGO3: =(AGP9/AGO9)^0.5 -> 1.201117102 | AGR3: =(AGS9/AGR9)^0.5 -> 0.9781468848 | AGU3: =(AGV9/AGU9)^0.5 -> 0.9847401902 | AGX3: =(AGY9/AGX9)^0.5 -> 1.037033978 | AHA3: =(AHB9/AHA9)^0.5 -> 1.30417851 | AHD3: =(AHE9/AHD9)^0.5 -> 1.106071876 | AHG3: =(AHH9/AHG9)^0.5 -> 1.030794766 | AHJ3: =(AHK9/AHJ9)^0.5 -> 1.043892902 | AHM3: =(AHN9/AHM9)^0.5 -> 1.116441987 | AHP3: =(AHQ9/AHP9)^0.5 -> 1.07593781 | AHS3: =(AHT9/AHS9)^0.5 -> 1.204530641 | AHV3: =(AHW9/AHV9)^0.5 -> 1.028965275 | AHY3: =(AHZ9/AHY9)^0.5 -> 1.054919705 | AIB3: =(AIC9/AIB9)^0.5 -> 1.341790874 | AIE3: =(AIF9/AIE9)^0.5 -> 1.248240505 | AIH3: =(AII9/AIH9)^0.5 -> 1.035985546 | AIK3: =(AIL9/AIK9)^0.5 -> 0.9997269527 | AIN3: =(AIO9/AIN9)^0.5 -> 1.196281113 | AIQ3: =(AIR9/AIQ9)^0.5 -> 1.155598242 | AIT3: =(AIU9/AIT9)^0.5 -> 1.013060274 | AIW3: =(AIX9/AIW9)^0.5 -> 1.00308743 | AIZ3: =(AJA9/AIZ9)^0.5 -> 1.06612025 | AJC3: =(AJD9/AJC9)^0.5 -> 1.067166239 | AJF3: =(AJG9/AJF9)^0.5 -> 1.240554482 | AJI3: =(AJJ9/AJI9)^0.5 -> 1.013770889 | AJL3: =(AJM9/AJL9)^0.5 -> 1.103250227 | AJO3: =(AJP9/AJO9)^0.5 -> 1.167517438 | AJR3: =(AJS9/AJR9)^0.5 -> 1.076377295 | AJU3: =(AJV9/AJU9)^0.5 -> 1.106016558 | AJX3: =(AJY9/AJX9)^0.5 -> 1.095013072 | AKA3: =(AKB9/AKA9)^0.5 -> 1.109500885 | AKD3: =(AKE9/AKD9)^0.5 -> 1.041818816 | AKG3: =(AKH9/AKG9)^0.5 -> 1.086539106 | AKJ3: =(AKK9/AKJ9)^0.5 -> 1.058058392 | AKM3: =(AKN9/AKM9)^0.5 -> 1.007625168 | AKP3: =(AKQ9/AKP9)^0.5 -> 1.227440727 | AKS3: =(AKT9/AKS9)^0.5 -> 1.224067533 | AKV3: =(AKW9/AKV9)^0.5 -> 1.114645515 | AKY3: =(AKZ9/AKY9)^0.5 -> 1.090646368 | ALB3: =(ALC9/ALB9)^0.5 -> 1.065416887 | ALE3: =(ALF9/ALE9)^0.5 -> 0.9422948514 | ALH3: =(ALI9/ALH9)^0.5 -> 1.384887468 | ALK3: =(ALL9/ALK9)^0.5 -> 1.082835863 | ALN3: =(ALO9/ALN9)^0.5 -> 1.021394018 | ALQ3: =(ALR9/ALQ9)^0.5 -> 1.118577996 | ALT3: =(ALU9/ALT9)^0.5 -> 0.961303151 | ALW3: =(ALX9/ALW9)^0.5 -> 1.33650916 | ALZ3: =(AMA9/ALZ9)^0.5 -> 1.106216945 | AMC3: =(AMD9/AMC9)^0.5 -> 1.189449452 | AMF3: =(AMG9/AMF9)^0.5 -> 1.137206122 | AMI3: =(AMJ9/AMI9)^0.5 -> 1.251704242 | AML3: =(AMM9/AML9)^0.5 -> 1.134846741 | AMO3: =(AMP9/AMO9)^0.5 -> 1.207066509 | AMR3: =(AMS9/AMR9)^0.5 -> 1.209851551 | AMU3: =(AMV9/AMU9)^0.5 -> 1.018973458 | AMX3: =(AMY9/AMX9)^0.5 -> 1.053486401 | ANA3: =(ANB9/ANA9)^0.5 -> 1.05335053 | AND3: =(ANE9/AND9)^0.5 -> 1.314196207 | ANG3: =(ANH9/ANG9)^0.5 -> 1.130106643 | ANJ3: =(ANK9/ANJ9)^0.5 -> 1.099775139 | ANM3: =(ANN9/ANM9)^0.5 -> 1.170847899 | ANP3: =(ANQ9/ANP9)^0.5 -> 1.391796827 | ANS3: =(ANT9/ANS9)^0.5 -> 1.00667889 | ANV3: =(ANW9/ANV9)^0.5 -> 1.222014219 | ANY3: =(ANZ9/ANY9)^0.5 -> 1.179839715 | AOB3: =(AOC9/AOB9)^0.5 -> 1.103836418 | AOE3: =(AOF9/AOE9)^0.5 -> 0.9974494813 | AOH3: =(AOI9/AOH9)^0.5 -> 1.231716198 | AOK3: =(AOL9/AOK9)^0.5 -> 1.070090018 | AON3: =(AOO9/AON9)^0.5 -> 1.112140677 | AOQ3: =(AOR9/AOQ9)^0.5 -> 1.031387564 | AOT3: =(AOU9/AOT9)^0.5 -> 1.081733451 | AOW3: =(AOX9/AOW9)^0.5 -> 1.005984527 | AOZ3: =(APA9/AOZ9)^0.5 -> 1.027439006 | APC3: =(APD9/APC9)^0.5 -> 1.049214992 | APF3: =(APG9/APF9)^0.5 -> 1.100292205 | API3: =(APJ9/API9)^0.5 -> 1.029762037 | APL3: =(APM9/APL9)^0.5 -> 1.068062249 | APO3: =(APP9/APO9)^0.5 -> 1.099340205 | APR3: =(APS9/APR9)^0.5 -> 1.168050128 | APU3: =(APV9/APU9)^0.5 -> 1.044818981 | APX3: =(APY9/APX9)^0.5 -> 1.233963795 | AQA3: =(AQB9/AQA9)^0.5 -> 1.151819734 | AQD3: =(AQE9/AQD9)^0.5 -> 1.133745204 | AQG3: =(AQH9/AQG9)^0.5 -> 1.242250414 | AQJ3: =(AQK9/AQJ9)^0.5 -> 1.26478504 | AQM3: =(AQN9/AQM9)^0.5 -> 1.124191131 | AQP3: =(AQQ9/AQP9)^0.5 -> 1.042701111 | AQS3: =(AQT9/AQS9)^0.5 -> 1.241947787 | AQV3: =(AQW9/AQV9)^0.5 -> 1.040320304 | AQY3: =(AQZ9/AQY9)^0.5 -> 1.249333199 | ARB3: =(ARC9/ARB9)^0.5 -> 1.011327763 | ARE3: =(ARF9/ARE9)^0.5 -> 1.113234741 | ARH3: =(ARI9/ARH9)^0.5 -> 1.199215915 | ARK3: =(ARL9/ARK9)^0.5 -> 1.190630309 | ARN3: =(ARO9/ARN9)^0.5 -> 1.042552113 | ARQ3: =(ARR9/ARQ9)^0.5 -> 0.9738629714 | ART3: =(ARU9/ART9)^0.5 -> 0.9499630018 | ARW3: =(ARX9/ARW9)^0.5 -> 1.040766427 | ARZ3: =(ASA9/ARZ9)^0.5 -> 1.054340894 | ASC3: =(ASD9/ASC9)^0.5 -> 1.026200945 | ASF3: =(ASG9/ASF9)^0.5 -> 1.146104209 | ASI3: =(ASJ9/ASI9)^0.5 -> 1.070020114 | ASL3: =(ASM9/ASL9)^0.5 -> 1.067637412 | ASO3: =(ASP9/ASO9)^0.5 -> 1.046402502 | ASR3: =(ASS9/ASR9)^0.5 -> 1.09657981 | ASU3: =(ASV9/ASU9)^0.5 -> 0.9668241543 | ASX3: =(ASY9/ASX9)^0.5 -> 1.258356529 | ATA3: =(ATB9/ATA9)^0.5 -> 1.129813719 | ATD3: =(ATE9/ATD9)^0.5 -> 1.296042119 | ATG3: =(ATH9/ATG9)^0.5 -> 1.229963154 | ATJ3: =(ATK9/ATJ9)^0.5 -> 1.117222354 | ATM3: =(ATN9/ATM9)^0.5 -> 1.235211429 | ATP3: =(ATQ9/ATP9)^0.5 -> 0.9854525611 | ATS3: =(ATT9/ATS9)^0.5 -> 1.272081894 | ATV3: =(ATW9/ATV9)^0.5 -> 0.8968482006 | ATY3: =(ATZ9/ATY9)^0.5 -> 0.925934218 | AUB3: =(AUC9/AUB9)^0.5 -> 1.049182319 | AUE3: =(AUF9/AUE9)^0.5 -> 1.165319791 | AUH3: =(AUI9/AUH9)^0.5 -> 1.198700769 | AUK3: =(AUL9/AUK9)^0.5 -> 1.014493544 | AUN3: =(AUO9/AUN9)^0.5 -> 1.073108458 | AUQ3: =(AUR9/AUQ9)^0.5 -> 1.202447848 | AUT3: =(AUU9/AUT9)^0.5 -> 0.9873844554 | AUW3: =(AUX9/AUW9)^0.5 -> 1.106202744 | AUZ3: =(AVA9/AUZ9)^0.5 -> 1.104212267 | AVC3: =(AVD9/AVC9)^0.5 -> 1.119486155 | AVF3: =(AVG9/AVF9)^0.5 -> 0.9619119181 | AVI3: =(AVJ9/AVI9)^0.5 -> 1.143812671 | AVL3: =(AVM9/AVL9)^0.5 -> 1.101836663 | AVO3: =(AVP9/AVO9)^0.5 -> 0.9972918079 | AVR3: =(AVS9/AVR9)^0.5 -> 1.117798719 | AVU3: =(AVV9/AVU9)^0.5 -> 1.009326485 | AVX3: =(AVY9/AVX9)^0.5 -> 1.218430873 | AWA3: =(AWB9/AWA9)^0.5 -> 1.061142027 | AWD3: =(AWE9/AWD9)^0.5 -> 1.073707568 | AWG3: =(AWH9/AWG9)^0.5 -> 1.331692805 | AWJ3: =(AWK9/AWJ9)^0.5 -> 1.133544187 | AWM3: =(AWN9/AWM9)^0.5 -> 1.151815542 | AWP3: =(AWQ9/AWP9)^0.5 -> 1.141572922 | AWS3: =(AWT9/AWS9)^0.5 -> 1.102530485 | AWV3: =(AWW9/AWV9)^0.5 -> 1.204065734 | AWY3: =(AWZ9/AWY9)^0.5 -> 1.031600777 | AXB3: =(AXC9/AXB9)^0.5 -> 1.105559491 | AXE3: =(AXF9/AXE9)^0.5 -> 1.149322256 | AXH3: =(AXI9/AXH9)^0.5 -> 1.018524454 | AXK3: =(AXL9/AXK9)^0.5 -> 1.153476208 | AXN3: =(AXO9/AXN9)^0.5 -> 1.144632603 | AXQ3: =(AXR9/AXQ9)^0.5 -> 1.099220778 | AXT3: =(AXU9/AXT9)^0.5 -> 1.251119121 | AXW3: =(AXX9/AXW9)^0.5 -> 1.041115469 | AXZ3: =(AYA9/AXZ9)^0.5 -> 0.9631290333 | AYC3: =(AYD9/AYC9)^0.5 -> 1.164322749 | AYF3: =(AYG9/AYF9)^0.5 -> 1.126361404 | AYI3: =(AYJ9/AYI9)^0.5 -> 1.043378012 | AYL3: =(AYM9/AYL9)^0.5 -> 0.9318399946 | AYO3: =(AYP9/AYO9)^0.5 -> 1.154394896 | AYR3: =(AYS9/AYR9)^0.5 -> 1.049683315 | AYU3: =(AYV9/AYU9)^0.5 -> 1.102673408 | AYX3: =(AYY9/AYX9)^0.5 -> 0.9772177112 | AZA3: =(AZB9/AZA9)^0.5 -> 1.135378928 | AZD3: =(AZE9/AZD9)^0.5 -> 1.069081089 | AZG3: =(AZH9/AZG9)^0.5 -> 1.060672748 | AZJ3: =(AZK9/AZJ9)^0.5 -> 1.23052456 | AZM3: =(AZN9/AZM9)^0.5 -> 1.064349947 | AZP3: =(AZQ9/AZP9)^0.5 -> 1.204301447 | AZS3: =(AZT9/AZS9)^0.5 -> 1.054624489 | AZV3: =(AZW9/AZV9)^0.5 -> 1.095532007 | AZY3: =(AZZ9/AZY9)^0.5 -> 1.108358043 | BAB3: =(BAC9/BAB9)^0.5 -> 1.074990014 | BAE3: =(BAF9/BAE9)^0.5 -> 1.042258787 | BAH3: =(BAI9/BAH9)^0.5 -> 1.110706962 | BAK3: =(BAL9/BAK9)^0.5 -> 1.15802414 | BAN3: =(BAO9/BAN9)^0.5 -> 1.259817595 | BAQ3: =(BAR9/BAQ9)^0.5 -> 1.122085922 | BAT3: =(BAU9/BAT9)^0.5 -> 1.263339457 | BAW3: =(BAX9/BAW9)^0.5 -> 1.087385678 | BAZ3: =(BBA9/BAZ9)^0.5 -> 1.005683145 | BBC3: =(BBD9/BBC9)^0.5 -> 1.031710105 | BBF3: =(BBG9/BBF9)^0.5 -> 1.041123957 | BBI3: =(BBJ9/BBI9)^0.5 -> 1.188026959 | BBL3: =(BBM9/BBL9)^0.5 -> 1.187267294 | BBO3: =(BBP9/BBO9)^0.5 -> 1.283795432 | BBR3: =(BBS9/BBR9)^0.5 -> 1.279568931 | BBU3: =(BBV9/BBU9)^0.5 -> 1.213319958 | BBX3: =(BBY9/BBX9)^0.5 -> 1.091312735 | BCA3: =(BCB9/BCA9)^0.5 -> 1.03786286 | BCD3: =(BCE9/BCD9)^0.5 -> 1.264740698 | BCG3: =(BCH9/BCG9)^0.5 -> 0.9696827439 | BCJ3: =(BCK9/BCJ9)^0.5 -> 0.9769419055 | BCM3: =(BCN9/BCM9)^0.5 -> 1.363411846 | BCP3: =(BCQ9/BCP9)^0.5 -> 0.9904608833 | BCS3: =(BCT9/BCS9)^0.5 -> 1.016573604 | BCV3: =(BCW9/BCV9)^0.5 -> 1.014308631 | BCY3: =(BCZ9/BCY9)^0.5 -> 1.279991035 | BDB3: =(BDC9/BDB9)^0.5 -> 1.185776289 | BDE3: =(BDF9/BDE9)^0.5 -> 1.083014281 | BDH3: =(BDI9/BDH9)^0.5 -> 1.000004551 | BDK3: =(BDL9/BDK9)^0.5 -> 1.24625522 | BDN3: =(BDO9/BDN9)^0.5 -> 1.074052513 | BDQ3: =(BDR9/BDQ9)^0.5 -> 1.176643495 | BDT3: =(BDU9/BDT9)^0.5 -> 1.04794408 | BDW3: =(BDX9/BDW9)^0.5 -> 1.037824575 | BDZ3: =(BEA9/BDZ9)^0.5 -> 1.030613991 | BEC3: =(BED9/BEC9)^0.5 -> 1.272748161 | BEF3: =(BEG9/BEF9)^0.5 -> 0.9679913531 | BEI3: =(BEJ9/BEI9)^0.5 -> 1.211990458 | BEL3: =(BEM9/BEL9)^0.5 -> 0.9683054263 | BEO3: =(BEP9/BEO9)^0.5 -> 1.12188273 | BER3: =(BES9/BER9)^0.5 -> 1.000227774 | BEU3: =(BEV9/BEU9)^0.5 -> 1.051335559 | BEX3: =(BEY9/BEX9)^0.5 -> 1.032851356 | BFA3: =(BFB9/BFA9)^0.5 -> 1.152941354 | BFD3: =(BFE9/BFD9)^0.5 -> 1.304249159 | BFG3: =(BFH9/BFG9)^0.5 -> 1.244613511 | BFJ3: =(BFK9/BFJ9)^0.5 -> 1.159851625 | BFM3: =(BFN9/BFM9)^0.5 -> 1.188640384 | BFP3: =(BFQ9/BFP9)^0.5 -> 1.139160381 | BFS3: =(BFT9/BFS9)^0.5 -> 1.213002929 | BFV3: =(BFW9/BFV9)^0.5 -> 1.087203443 | BFY3: =(BFZ9/BFY9)^0.5 -> 0.9831937562 | BGB3: =(BGC9/BGB9)^0.5 -> 1.296379863 | BGE3: =(BGF9/BGE9)^0.5 -> 1.19058418 | BGH3: =(BGI9/BGH9)^0.5 -> 1.067943606 | BGK3: =(BGL9/BGK9)^0.5 -> 1.186147774 | BGN3: =(BGO9/BGN9)^0.5 -> 1.061704481 | BGQ3: =(BGR9/BGQ9)^0.5 -> 1.366200224 | BGT3: =(BGU9/BGT9)^0.5 -> 1.178911994
C4: No. | D4: X1 | E4: Y1 | F4: X2 | G4: Y2 | K4: 合 計：=SUM(セル範囲) | M4: =SUM(D5:D1304) -> 124.88 | N4: =SUM(E5:E1304) -> 158.54 | O4: =SUM(F5:F1304) -> 0 | P4: =SUM(G5:G1304) -> 0 | Q4: 偏差平方和 | R4: =SUM(H5:H504) -> 0 | S4: =SUM(I5:I504) -> 0 | U4: 11 | AB4: CHIINV(0.05,2)^0.5 | AC4: 2.448 | AD4: =AC5 -> -1.610313643 | AE4: =(Y1SD/X1SD*(相関係数1*AD4+AG4))+切片1 -> -0.6892746417 | AF4: =(Y1SD/X1SD*(相関係数1*AD4-AG4))+切片1 -> -0.6892746417 | AG4: =IF((1-相関係数1^2)*((X1SD*t1_0.05)^2-(AD4-X1m)^2)>0,SQRT((1-相関係数1^2)*((X1SD*t1_0.05)^2-(AD4-X1m)^2)),0) -> 0 | AH4: 2.448 | AI4: =AH5 ->  | AJ4: =(Y2SD/X2SD*(相関係数2*AI4+AL4))+切片2 ->  | AK4: =(Y2SD/X2SD*(相関係数2*AI4-AL4))+切片2 ->  | AL4: =IF((1-相関係数2^2)*((X2SD*t1_0.05)^2-(AI4-X2m)^2)>0,SQRT((1-相関係数2^2)*((X2SD*t1_0.05)^2-(AI4-X2m)^2)),0) ->  | AO4: rs= | AP4: =AP1/SQRT(AP2*AP3) -> 0.8915807789 | AQ4: =AQ1/SQRT(AQ2*AQ3) ->  | AS4: (X1+Y1)/2 | AT4: Y1-X1 | AY4: 0.01319249235 | AZ4: 0.7068563389 | BA4: 標準主軸a= | BB4: =BC7-BB3*BB7 -> 0.5752814555 | BE4: =BF7-BE3*BE7 -> 0.05464805989 | BH4: =BI7-BH3*BH7 -> 0.5394063637 | BK4: =BL7-BK3*BK7 -> 0.4163832475 | BN4: =BO7-BN3*BN7 -> 0.1980611214 | BQ4: =BR7-BQ3*BQ7 -> 0.4361982289 | BT4: =BU7-BT3*BT7 -> 0.3422751384 | BW4: =BX7-BW3*BW7 -> 0.3632036906 | BZ4: =CA7-BZ3*BZ7 -> 0.3935005871 | CC4: =CD7-CC3*CC7 -> 0.3912014331 | CF4: =CG7-CF3*CF7 -> 0.005069333794 | CI4: =CJ7-CI3*CI7 -> 0.3358759494 | CL4: =CM7-CL3*CL7 -> 0.4380806483 | CO4: =CP7-CO3*CO7 -> 0.1698639702 | CR4: =CS7-CR3*CR7 -> 0.4266584991 | CU4: =CV7-CU3*CU7 -> 0.509158887 | CX4: =CY7-CX3*CX7 -> 0.284814004 | DA4: =DB7-DA3*DA7 -> 0.5684705362 | DD4: =DE7-DD3*DD7 -> 0.3016591255 | DG4: =DH7-DG3*DG7 -> 0.2658842392 | DJ4: =DK7-DJ3*DJ7 -> 0.5082683431 | DM4: =DN7-DM3*DM7 -> -0.06076351376 | DP4: =DQ7-DP3*DP7 -> 0.4147568822 | DS4: =DT7-DS3*DS7 -> 0.4193415394 | DV4: =DW7-DV3*DV7 -> 0.3222741533 | DY4: =DZ7-DY3*DY7 -> 0.4603153974 | EB4: =EC7-EB3*EB7 -> 0.5684761138 | EE4: =EF7-EE3*EE7 -> 0.4354481289 | EH4: =EI7-EH3*EH7 -> 0.2544226194 | EK4: =EL7-EK3*EK7 -> 0.4311984172 | EN4: =EO7-EN3*EN7 -> 0.7466243283 | EQ4: =ER7-EQ3*EQ7 -> 0.1787989899 | ET4: =EU7-ET3*ET7 -> 0.4421846969 | EW4: =EX7-EW3*EW7 -> 0.4071064348 | EZ4: =FA7-EZ3*EZ7 -> 0.3184466632 | FC4: =FD7-FC3*FC7 -> 0.3823577559 | FF4: =FG7-FF3*FF7 -> 0.2075403624 | FI4: =FJ7-FI3*FI7 -> 0.3574014175 | FL4: =FM7-FL3*FL7 -> 0.3119067733 | FO4: =FP7-FO3*FO7 -> 0.7257381492 | FR4: =FS7-FR3*FR7 -> 0.4949591355 | FU4: =FV7-FU3*FU7 -> 0.4706657484 | FX4: =FY7-FX3*FX7 -> 0.7050733949 | GA4: =GB7-GA3*GA7 -> 0.7383816388 | GD4: =GE7-GD3*GD7 -> 0.6084116098 | GG4: =GH7-GG3*GG7 -> 0.4452799816 | GJ4: =GK7-GJ3*GJ7 -> 0.3031062627 | GM4: =GN7-GM3*GM7 -> 0.09643927952 | GP4: =GQ7-GP3*GP7 -> 0.3136787659 | GS4: =GT7-GS3*GS7 -> 0.5564127044 | GV4: =GW7-GV3*GV7 -> 0.5274244598 | GY4: =GZ7-GY3*GY7 -> 0.2664306938 | HB4: =HC7-HB3*HB7 -> 0.514624679 | HE4: =HF7-HE3*HE7 -> 0.2165916201 | HH4: =HI7-HH3*HH7 -> 0.4425375185 | HK4: =HL7-HK3*HK7 -> 0.4318962433 | HN4: =HO7-HN3*HN7 -> 0.5203241719 | HQ4: =HR7-HQ3*HQ7 -> 0.3402591823 | HT4: =HU7-HT3*HT7 -> 0.6593082791 | HW4: =HX7-HW3*HW7 -> 0.2871608052 | HZ4: =IA7-HZ3*HZ7 -> 0.7370422355 | IC4: =ID7-IC3*IC7 -> 0.1065715536 | IF4: =IG7-IF3*IF7 -> 0.4881760849 | II4: =IJ7-II3*II7 -> 0.3567799447 | IL4: =IM7-IL3*IL7 -> 0.2446013106 | IO4: =IP7-IO3*IO7 -> 0.6000556529 | IR4: =IS7-IR3*IR7 -> 0.01116058082 | IU4: =IV7-IU3*IU7 -> 0.3625495952 | IX4: =IY7-IX3*IX7 -> 0.3177197766 | JA4: =JB7-JA3*JA7 -> 0.6147227724 | JD4: =JE7-JD3*JD7 -> 0.6243679315 | JG4: =JH7-JG3*JG7 -> 0.6539189335 | JJ4: =JK7-JJ3*JJ7 -> 0.5539398422 | JM4: =JN7-JM3*JM7 -> 0.3993825729 | JP4: =JQ7-JP3*JP7 -> 0.5229421704 | JS4: =JT7-JS3*JS7 -> 0.2993828531 | JV4: =JW7-JV3*JV7 -> 0.3352197018 | JY4: =JZ7-JY3*JY7 -> 0.08160846555 | KB4: =KC7-KB3*KB7 -> 0.2331666642 | KE4: =KF7-KE3*KE7 -> 0.4454266933 | KH4: =KI7-KH3*KH7 -> -0.01579418247 | KK4: =KL7-KK3*KK7 -> 0.07955464579 | KN4: =KO7-KN3*KN7 -> 0.4854649777 | KQ4: =KR7-KQ3*KQ7 -> 0.3420610816 | KT4: =KU7-KT3*KT7 -> 0.5659009927 | KW4: =KX7-KW3*KW7 -> 0.6357213356 | KZ4: =LA7-KZ3*KZ7 -> 0.1350491991 | LC4: =LD7-LC3*LC7 -> 0.3497939955 | LF4: =LG7-LF3*LF7 -> 0.4819764804 | LI4: =LJ7-LI3*LI7 -> 0.3738300545 | LL4: =LM7-LL3*LL7 -> 0.1841725195 | LO4: =LP7-LO3*LO7 -> 0.1105064487 | LR4: =LS7-LR3*LR7 -> 0.2841561181 | LU4: =LV7-LU3*LU7 -> 0.2762943272 | LX4: =LY7-LX3*LX7 -> 0.2633734722 | MA4: =MB7-MA3*MA7 -> 0.05189445499 | MD4: =ME7-MD3*MD7 -> -0.009961821518 | MG4: =MH7-MG3*MG7 -> 0.4896119662 | MJ4: =MK7-MJ3*MJ7 -> 0.5497715503 | MM4: =MN7-MM3*MM7 -> 0.2651996573 | MP4: =MQ7-MP3*MP7 -> 0.4871555871 | MS4: =MT7-MS3*MS7 -> 0.3184242574 | MV4: =MW7-MV3*MV7 -> 0.01319249235 | MY4: =MZ7-MY3*MY7 -> 0.6527043208 | NB4: =NC7-NB3*NB7 -> 0.5077838205 | NE4: =NF7-NE3*NE7 -> 0.5602559705 | NH4: =NI7-NH3*NH7 -> 0.6712194213 | NK4: =NL7-NK3*NK7 -> 0.230432919 | NN4: =NO7-NN3*NN7 -> 0.4817335277 | NQ4: =NR7-NQ3*NQ7 -> 0.2072200311 | NT4: =NU7-NT3*NT7 -> 0.4440553451 | NW4: =NX7-NW3*NW7 -> 0.3564670698 | NZ4: =OA7-NZ3*NZ7 -> 0.3075674822 | OC4: =OD7-OC3*OC7 -> 0.2984513586 | OF4: =OG7-OF3*OF7 -> 0.53945413 | OI4: =OJ7-OI3*OI7 -> 0.320718196 | OL4: =OM7-OL3*OL7 -> 0.4288999528 | OO4: =OP7-OO3*OO7 -> 0.3225012939 | OR4: =OS7-OR3*OR7 -> 0.2944795642 | OU4: =OV7-OU3*OU7 -> 0.4865844613 | OX4: =OY7-OX3*OX7 -> 0.4950500148 | PA4: =PB7-PA3*PA7 -> 0.4390248732 | PD4: =PE7-PD3*PD7 -> 0.6439808509 | PG4: =PH7-PG3*PG7 -> 0.4592542225 | PJ4: =PK7-PJ3*PJ7 -> 0.7495038024 | PM4: =PN7-PM3*PM7 -> 0.3909603289 | PP4: =PQ7-PP3*PP7 -> 0.2384037135 | PS4: =PT7-PS3*PS7 -> 0.2133680101 | PV4: =PW7-PV3*PV7 -> 0.6157944 | PY4: =PZ7-PY3*PY7 -> 0.2209977942 | QB4: =QC7-QB3*QB7 -> 0.443240225 | QE4: =QF7-QE3*QE7 -> 0.2761102897 | QH4: =QI7-QH3*QH7 -> 0.5038327358 | QK4: =QL7-QK3*QK7 -> 0.1681735225 | QN4: =QO7-QN3*QN7 -> 0.2069712134 | QQ4: =QR7-QQ3*QQ7 -> 0.6028984038 | QT4: =QU7-QT3*QT7 -> 0.4629489688 | QW4: =QX7-QW3*QW7 -> 0.6608492985 | QZ4: =RA7-QZ3*QZ7 -> 0.4247677201 | RC4: =RD7-RC3*RC7 -> 0.4926435559 | RF4: =RG7-RF3*RF7 -> 0.7135838974 | RI4: =RJ7-RI3*RI7 -> 0.2585957798 | RL4: =RM7-RL3*RL7 -> 0.2025797033 | RO4: =RP7-RO3*RO7 -> 0.3582381143 | RR4: =RS7-RR3*RR7 -> 0.6420729137 | RU4: =RV7-RU3*RU7 -> 0.5529574163 | RX4: =RY7-RX3*RX7 -> 0.3353933595 | SA4: =SB7-SA3*SA7 -> 0.2459538991 | SD4: =SE7-SD3*SD7 -> 0.3003730397 | SG4: =SH7-SG3*SG7 -> 0.7435682093 | SJ4: =SK7-SJ3*SJ7 -> 0.2520990432 | SM4: =SN7-SM3*SM7 -> 0.7749433921 | SP4: =SQ7-SP3*SP7 -> 0.5429512098 | SS4: =ST7-SS3*SS7 -> 0.5632187831 | SV4: =SW7-SV3*SV7 -> 0.4742124341 | SY4: =SZ7-SY3*SY7 -> 0.3201397816 | TB4: =TC7-TB3*TB7 -> 0.2952991992 | TE4: =TF7-TE3*TE7 -> 0.4270037712 | TH4: =TI7-TH3*TH7 -> 0.3778539834 | TK4: =TL7-TK3*TK7 -> 0.4454072355 | TN4: =TO7-TN3*TN7 -> 0.6449005284 | TQ4: =TR7-TQ3*TQ7 -> 0.4853415686 | TT4: =TU7-TT3*TT7 -> 0.6091012054 | TW4: =TX7-TW3*TW7 -> 0.321278623 | TZ4: =UA7-TZ3*TZ7 -> 0.6073765758 | UC4: =UD7-UC3*UC7 -> 0.6408861817 | UF4: =UG7-UF3*UF7 -> 0.09859722443 | UI4: =UJ7-UI3*UI7 -> 0.4215880706 | UL4: =UM7-UL3*UL7 -> 0.286215524 | UO4: =UP7-UO3*UO7 -> 0.3812216598 | UR4: =US7-UR3*UR7 -> 0.2533232665 | UU4: =UV7-UU3*UU7 -> 0.3291214627 | UX4: =UY7-UX3*UX7 -> 0.40201934 | VA4: =VB7-VA3*VA7 -> 0.386844489 | VD4: =VE7-VD3*VD7 -> 0.4652157932 | VG4: =VH7-VG3*VG7 -> 0.4122546151 | VJ4: =VK7-VJ3*VJ7 -> 0.554452602 | VM4: =VN7-VM3*VM7 -> 0.3755182472 | VP4: =VQ7-VP3*VP7 -> 0.2841579974 | VS4: =VT7-VS3*VS7 -> 0.3930702485 | VV4: =VW7-VV3*VV7 -> 0.1607704153 | VY4: =VZ7-VY3*VY7 -> 0.1265250834 | WB4: =WC7-WB3*WB7 -> 0.3719729723 | WE4: =WF7-WE3*WE7 -> 0.4142222166 | WH4: =WI7-WH3*WH7 -> 0.08333828406 | WK4: =WL7-WK3*WK7 -> 0.6076928429 | WN4: =WO7-WN3*WN7 -> 0.1803352741 | WQ4: =WR7-WQ3*WQ7 -> 0.4213979038 | WT4: =WU7-WT3*WT7 -> 0.3456822713 | WW4: =WX7-WW3*WW7 -> 0.2091578175 | WZ4: =XA7-WZ3*WZ7 -> 0.4098431565 | XC4: =XD7-XC3*XC7 -> 0.486940199 | XF4: =XG7-XF3*XF7 -> 0.3015447664 | XI4: =XJ7-XI3*XI7 -> 0.4129905812 | XL4: =XM7-XL3*XL7 -> 0.2633029415 | XO4: =XP7-XO3*XO7 -> 0.656908272 | XR4: =XS7-XR3*XR7 -> 0.2726672738 | XU4: =XV7-XU3*XU7 -> 0.5253436561 | XX4: =XY7-XX3*XX7 -> 0.6285641285 | YA4: =YB7-YA3*YA7 -> 0.2609384757 | YD4: =YE7-YD3*YD7 -> 0.4059189675 | YG4: =YH7-YG3*YG7 -> 0.4908909288 | YJ4: =YK7-YJ3*YJ7 -> 0.2867880793 | YM4: =YN7-YM3*YM7 -> 0.1893538174 | YP4: =YQ7-YP3*YP7 -> 0.2783558038 | YS4: =YT7-YS3*YS7 -> 0.5610471519 | YV4: =YW7-YV3*YV7 -> 0.2255065335 | YY4: =YZ7-YY3*YY7 -> 0.4293678921 | ZB4: =ZC7-ZB3*ZB7 -> 0.5453670387 | ZE4: =ZF7-ZE3*ZE7 -> 0.3711840223 | ZH4: =ZI7-ZH3*ZH7 -> 0.5037270917 | ZK4: =ZL7-ZK3*ZK7 -> 0.5267379038 | ZN4: =ZO7-ZN3*ZN7 -> 0.283330805 | ZQ4: =ZR7-ZQ3*ZQ7 -> 0.2037115687 | ZT4: =ZU7-ZT3*ZT7 -> 0.4160960521 | ZW4: =ZX7-ZW3*ZW7 -> 0.6097744115 | ZZ4: =AAA7-ZZ3*ZZ7 -> 0.4087494402 | AAC4: =AAD7-AAC3*AAC7 -> 0.6225644135 | AAF4: =AAG7-AAF3*AAF7 -> 0.2986610538 | AAI4: =AAJ7-AAI3*AAI7 -> 0.3909057207 | AAL4: =AAM7-AAL3*AAL7 -> 0.300959469 | AAO4: =AAP7-AAO3*AAO7 -> 0.3758323479 | AAR4: =AAS7-AAR3*AAR7 -> 0.447507543 | AAU4: =AAV7-AAU3*AAU7 -> 0.277313351 | AAX4: =AAY7-AAX3*AAX7 -> 0.5539635721 | ABA4: =ABB7-ABA3*ABA7 -> 0.3383250666 | ABD4: =ABE7-ABD3*ABD7 -> 0.4637564737 | ABG4: =ABH7-ABG3*ABG7 -> 0.713337421 | ABJ4: =ABK7-ABJ3*ABJ7 -> 0.6259506711 | ABM4: =ABN7-ABM3*ABM7 -> 0.3711526575 | ABP4: =ABQ7-ABP3*ABP7 -> 0.3703602841 | ABS4: =ABT7-ABS3*ABS7 -> 0.7068563389 | ABV4: =ABW7-ABV3*ABV7 -> 0.5080490203 | ABY4: =ABZ7-ABY3*ABY7 -> 0.3412335766 | ACB4: =ACC7-ACB3*ACB7 -> 0.3568954775 | ACE4: =ACF7-ACE3*ACE7 -> 0.2219979483 | ACH4: =ACI7-ACH3*ACH7 -> 0.4981648671 | ACK4: =ACL7-ACK3*ACK7 -> 0.3770936239 | ACN4: =ACO7-ACN3*ACN7 -> 0.2421853572 | ACQ4: =ACR7-ACQ3*ACQ7 -> 0.5680150201 | ACT4: =ACU7-ACT3*ACT7 -> 0.348537037 | ACW4: =ACX7-ACW3*ACW7 -> 0.3123965977 | ACZ4: =ADA7-ACZ3*ACZ7 -> 0.6361476527 | ADC4: =ADD7-ADC3*ADC7 -> 0.3569707066 | ADF4: =ADG7-ADF3*ADF7 -> 0.506235965 | ADI4: =ADJ7-ADI3*ADI7 -> 0.3234189519 | ADL4: =ADM7-ADL3*ADL7 -> 0.1242790578 | ADO4: =ADP7-ADO3*ADO7 -> 0.3828863653 | ADR4: =ADS7-ADR3*ADR7 -> 0.4736321612 | ADU4: =ADV7-ADU3*ADU7 -> 0.5905003993 | ADX4: =ADY7-ADX3*ADX7 -> 0.4369268522 | AEA4: =AEB7-AEA3*AEA7 -> 0.07965857742 | AED4: =AEE7-AED3*AED7 -> 0.4007984049 | AEG4: =AEH7-AEG3*AEG7 -> 0.6444904423 | AEJ4: =AEK7-AEJ3*AEJ7 -> 0.356797895 | AEM4: =AEN7-AEM3*AEM7 -> 0.1780153583 | AEP4: =AEQ7-AEP3*AEP7 -> 0.3885082137 | AES4: =AET7-AES3*AES7 -> 0.5053948592 | AEV4: =AEW7-AEV3*AEV7 -> 0.6596733777 | AEY4: =AEZ7-AEY3*AEY7 -> 0.1412879769 | AFB4: =AFC7-AFB3*AFB7 -> 0.475843543 | AFE4: =AFF7-AFE3*AFE7 -> 0.05980220807 | AFH4: =AFI7-AFH3*AFH7 -> 0.3870346032 | AFK4: =AFL7-AFK3*AFK7 -> 0.5133167758 | AFN4: =AFO7-AFN3*AFN7 -> 0.5068345248 | AFQ4: =AFR7-AFQ3*AFQ7 -> 0.1134819247 | AFT4: =AFU7-AFT3*AFT7 -> 0.645065605 | AFW4: =AFX7-AFW3*AFW7 -> 0.5325243604 | AFZ4: =AGA7-AFZ3*AFZ7 -> 0.3369693829 | AGC4: =AGD7-AGC3*AGC7 -> 0.4858571535 | AGF4: =AGG7-AGF3*AGF7 -> 0.6037665784 | AGI4: =AGJ7-AGI3*AGI7 -> 0.349318828 | AGL4: =AGM7-AGL3*AGL7 -> 0.786982533 | AGO4: =AGP7-AGO3*AGO7 -> 0.3831424837 | AGR4: =AGS7-AGR3*AGR7 -> 0.6125144438 | AGU4: =AGV7-AGU3*AGU7 -> 0.5574935456 | AGX4: =AGY7-AGX3*AGX7 -> 0.4255553393 | AHA4: =AHB7-AHA3*AHA7 -> 0.1258877326 | AHD4: =AHE7-AHD3*AHD7 -> 0.3437050178 | AHG4: =AHH7-AHG3*AHG7 -> 0.4738897213 | AHJ4: =AHK7-AHJ3*AHJ7 -> 0.4771810365 | AHM4: =AHN7-AHM3*AHM7 -> 0.3459640271 | AHP4: =AHQ7-AHP3*AHP7 -> 0.3826617926 | AHS4: =AHT7-AHS3*AHS7 -> 0.1273716386 | AHV4: =AHW7-AHV3*AHV7 -> 0.4718086244 | AHY4: =AHZ7-AHY3*AHY7 -> 0.4327955105 | AIB4: =AIC7-AIB3*AIB7 -> -0.02230792675 | AIE4: =AIF7-AIE3*AIE7 -> 0.1749382281 | AIH4: =AII7-AIH3*AIH7 -> 0.5599525575 | AIK4: =AIL7-AIK3*AIK7 -> 0.5589798778 | AIN4: =AIO7-AIN3*AIN7 -> 0.2572674894 | AIQ4: =AIR7-AIQ3*AIQ7 -> 0.5000860634 | AIT4: =AIU7-AIT3*AIT7 -> 0.672815034 | AIW4: =AIX7-AIW3*AIW7 -> 0.5985999166 | AIZ4: =AJA7-AIZ3*AIZ7 -> 0.3009678064 | AJC4: =AJD7-AJC3*AJC7 -> 0.430482959 | AJF4: =AJG7-AJF3*AJF7 -> 0.2657556783 | AJI4: =AJJ7-AJI3*AJI7 -> 0.457366802 | AJL4: =AJM7-AJL3*AJL7 -> 0.2650572799 | AJO4: =AJP7-AJO3*AJO7 -> 0.362173564 | AJR4: =AJS7-AJR3*AJR7 -> 0.4762614375 | AJU4: =AJV7-AJU3*AJU7 -> 0.2744147442 | AJX4: =AJY7-AJX3*AJX7 -> 0.5703229613 | AKA4: =AKB7-AKA3*AKA7 -> 0.33433185 | AKD4: =AKE7-AKD3*AKD7 -> 0.3539999778 | AKG4: =AKH7-AKG3*AKG7 -> 0.453516176 | AKJ4: =AKK7-AKJ3*AKJ7 -> 0.4086421523 | AKM4: =AKN7-AKM3*AKM7 -> 0.4658277006 | AKP4: =AKQ7-AKP3*AKP7 -> 0.1700618077 | AKS4: =AKT7-AKS3*AKS7 -> 0.3443540647 | AKV4: =AKW7-AKV3*AKV7 -> 0.3592604301 | AKY4: =AKZ7-AKY3*AKY7 -> 0.5702832404 | ALB4: =ALC7-ALB3*ALB7 -> 0.4270762927 | ALE4: =ALF7-ALE3*ALE7 -> 0.5517494644 | ALH4: =ALI7-ALH3*ALH7 -> 0.009095994274 | ALK4: =ALL7-ALK3*ALK7 -> 0.3372543536 | ALN4: =ALO7-ALN3*ALN7 -> 0.5073240715 | ALQ4: =ALR7-ALQ3*ALQ7 -> 0.4555415238 | ALT4: =ALU7-ALT3*ALT7 -> 0.5045864479 | ALW4: =ALX7-ALW3*ALW7 -> 0.1253980581 | ALZ4: =AMA7-ALZ3*ALZ7 -> 0.3337871093 | AMC4: =AMD7-AMC3*AMC7 -> 0.135127554 | AMF4: =AMG7-AMF3*AMF7 -> 0.3861635737 | AMI4: =AMJ7-AMI3*AMI7 -> 0.2341517697 | AML4: =AMM7-AML3*AML7 -> 0.2943769438 | AMO4: =AMP7-AMO3*AMO7 -> 0.3748914942 | AMR4: =AMS7-AMR3*AMR7 -> 0.1366566829 | AMU4: =AMV7-AMU3*AMU7 -> 0.6429481705 | AMX4: =AMY7-AMX3*AMX7 -> 0.4499260674 | ANA4: =ANB7-ANA3*ANA7 -> 0.5422786792 | AND4: =ANE7-AND3*AND7 -> 0.1231783621 | ANG4: =ANH7-ANG3*ANG7 -> 0.3325087153 | ANJ4: =ANK7-ANJ3*ANJ7 -> 0.4028461883 | ANM4: =ANN7-ANM3*ANM7 -> 0.238719309 | ANP4: =ANQ7-ANP3*ANP7 -> -0.1313259066 | ANS4: =ANT7-ANS3*ANS7 -> 0.4919967241 | ANV4: =ANW7-ANV3*ANV7 -> 0.2938099779 | ANY4: =ANZ7-ANY3*ANY7 -> 0.3031525975 | AOB4: =AOC7-AOB3*AOB7 -> 0.4933416438 | AOE4: =AOF7-AOE3*AOE7 -> 0.6314970733 | AOH4: =AOI7-AOH3*AOH7 -> 0.1058992338 | AOK4: =AOL7-AOK3*AOK7 -> 0.4982143815 | AON4: =AOO7-AON3*AON7 -> 0.4267478554 | AOQ4: =AOR7-AOQ3*AOQ7 -> 0.6133851747 | AOT4: =AOU7-AOT3*AOT7 -> 0.3739725944 | AOW4: =AOX7-AOW3*AOW7 -> 0.673228262 | AOZ4: =APA7-AOZ3*AOZ7 -> 0.559969566 | APC4: =APD7-APC3*APC7 -> 0.5225398738 | APF4: =APG7-APF3*APF7 -> 0.3321475715 | API4: =APJ7-API3*API7 -> 0.4438115352 | APL4: =APM7-APL3*APL7 -> 0.6756097426 | APO4: =APP7-APO3*APO7 -> 0.3780825518 | APR4: =APS7-APR3*APR7 -> 0.4397336639 | APU4: =APV7-APU3*APU7 -> 0.429465782 | APX4: =APY7-APX3*APX7 -> 0.3315640286 | AQA4: =AQB7-AQA3*AQA7 -> 0.2305796112 | AQD4: =AQE7-AQD3*AQD7 -> 0.4595970844 | AQG4: =AQH7-AQG3*AQG7 -> 0.07916571324 | AQJ4: =AQK7-AQJ3*AQJ7 -> 0.07859112213 | AQM4: =AQN7-AQM3*AQM7 -> 0.3818947982 | AQP4: =AQQ7-AQP3*AQP7 -> 0.662226169 | AQS4: =AQT7-AQS3*AQS7 -> 0.2711788875 | AQV4: =AQW7-AQV3*AQV7 -> 0.5214234896 | AQY4: =AQZ7-AQY3*AQY7 -> 0.1622496955 | ARB4: =ARC7-ARB3*ARB7 -> 0.4542525505 | ARE4: =ARF7-ARE3*ARE7 -> 0.443482705 | ARH4: =ARI7-ARH3*ARH7 -> 0.4966655426 | ARK4: =ARL7-ARK3*ARK7 -> 0.4708028995 | ARN4: =ARO7-ARN3*ARN7 -> 0.5043646574 | ARQ4: =ARR7-ARQ3*ARQ7 -> 0.4798979179 | ART4: =ARU7-ART3*ART7 -> 0.4916829883 | ARW4: =ARX7-ARW3*ARW7 -> 0.45392364 | ARZ4: =ASA7-ARZ3*ARZ7 -> 0.4246876474 | ASC4: =ASD7-ASC3*ASC7 -> 0.5790985195 | ASF4: =ASG7-ASF3*ASF7 -> 0.3511167095 | ASI4: =ASJ7-ASI3*ASI7 -> 0.3940813839 | ASL4: =ASM7-ASL3*ASL7 -> 0.4178669221 | ASO4: =ASP7-ASO3*ASO7 -> 0.4800053198 | ASR4: =ASS7-ASR3*ASR7 -> 0.4077006713 | ASU4: =ASV7-ASU3*ASU7 -> 0.5154884021 | ASX4: =ASY7-ASX3*ASX7 -> 0.2078212084 | ATA4: =ATB7-ATA3*ATA7 -> 0.3963194826 | ATD4: =ATE7-ATD3*ATD7 -> 0.2810377895 | ATG4: =ATH7-ATG3*ATG7 -> 0.2240624972 | ATJ4: =ATK7-ATJ3*ATJ7 -> 0.1947555843 | ATM4: =ATN7-ATM3*ATM7 -> 0.2926610604 | ATP4: =ATQ7-ATP3*ATP7 -> 0.4599081342 | ATS4: =ATT7-ATS3*ATS7 -> 0.1631362588 | ATV4: =ATW7-ATV3*ATV7 -> 0.6056915222 | ATY4: =ATZ7-ATY3*ATY7 -> 0.5151359481 | AUB4: =AUC7-AUB3*AUB7 -> 0.372847036 | AUE4: =AUF7-AUE3*AUE7 -> 0.4057397756 | AUH4: =AUI7-AUH3*AUH7 -> 0.2736651122 | AUK4: =AUL7-AUK3*AUK7 -> 0.4384677157 | AUN4: =AUO7-AUN3*AUN7 -> 0.4110290707 | AUQ4: =AUR7-AUQ3*AUQ7 -> 0.2828005241 | AUT4: =AUU7-AUT3*AUT7 -> 0.6375153046 | AUW4: =AUX7-AUW3*AUW7 -> 0.4553998877 | AUZ4: =AVA7-AUZ3*AUZ7 -> 0.3598604711 | AVC4: =AVD7-AVC3*AVC7 -> 0.4593311995 | AVF4: =AVG7-AVF3*AVF7 -> 0.5810927743 | AVI4: =AVJ7-AVI3*AVI7 -> 0.2969954042 | AVL4: =AVM7-AVL3*AVL7 -> 0.5049345806 | AVO4: =AVP7-AVO3*AVO7 -> 0.6015264721 | AVR4: =AVS7-AVR3*AVR7 -> 0.2329013168 | AVU4: =AVV7-AVU3*AVU7 -> 0.6115053448 | AVX4: =AVY7-AVX3*AVX7 -> 0.4189258026 | AWA4: =AWB7-AWA3*AWA7 -> 0.5040483249 | AWD4: =AWE7-AWD3*AWD7 -> 0.4102103161 | AWG4: =AWH7-AWG3*AWG7 -> 0.08094631122 | AWJ4: =AWK7-AWJ3*AWJ7 -> 0.3935497577 | AWM4: =AWN7-AWM3*AWM7 -> 0.1982287336 | AWP4: =AWQ7-AWP3*AWP7 -> 0.5204901843 | AWS4: =AWT7-AWS3*AWS7 -> 0.5128082582 | AWV4: =AWW7-AWV3*AWV7 -> 0.299432548 | AWY4: =AWZ7-AWY3*AWY7 -> 0.513688298 | AXB4: =AXC7-AXB3*AXB7 -> 0.3060931078 | AXE4: =AXF7-AXE3*AXE7 -> 0.5496897694 | AXH4: =AXI7-AXH3*AXH7 -> 0.4720775573 | AXK4: =AXL7-AXK3*AXK7 -> 0.2536495752 | AXN4: =AXO7-AXN3*AXN7 -> 0.2460123429 | AXQ4: =AXR7-AXQ3*AXQ7 -> 0.3508883144 | AXT4: =AXU7-AXT3*AXT7 -> 0.289573571 | AXW4: =AXX7-AXW3*AXW7 -> 0.4446967748 | AXZ4: =AYA7-AXZ3*AXZ7 -> 0.3256387008 | AYC4: =AYD7-AYC3*AYC7 -> 0.2488356164 | AYF4: =AYG7-AYF3*AYF7 -> 0.3836131325 | AYI4: =AYJ7-AYI3*AYI7 -> 0.4613679693 | AYL4: =AYM7-AYL3*AYL7 -> 0.6072781583 | AYO4: =AYP7-AYO3*AYO7 -> 0.482229881 | AYR4: =AYS7-AYR3*AYR7 -> 0.581091442 | AYU4: =AYV7-AYU3*AYU7 -> 0.4697839675 | AYX4: =AYY7-AYX3*AYX7 -> 0.497025322 | AZA4: =AZB7-AZA3*AZA7 -> 0.3866830015 | AZD4: =AZE7-AZD3*AZD7 -> 0.4577245006 | AZG4: =AZH7-AZG3*AZG7 -> 0.4215182553 | AZJ4: =AZK7-AZJ3*AZJ7 -> 0.3688914563 | AZM4: =AZN7-AZM3*AZM7 -> 0.2935004219 | AZP4: =AZQ7-AZP3*AZP7 -> 0.07567422207 | AZS4: =AZT7-AZS3*AZS7 -> 0.5821245643 | AZV4: =AZW7-AZV3*AZV7 -> 0.4088953823 | AZY4: =AZZ7-AZY3*AZY7 -> 0.3429261415 | BAB4: =BAC7-BAB3*BAB7 -> 0.4189850375 | BAE4: =BAF7-BAE3*BAE7 -> 0.5747096507 | BAH4: =BAI7-BAH3*BAH7 -> 0.4568532436 | BAK4: =BAL7-BAK3*BAK7 -> 0.4234463095 | BAN4: =BAO7-BAN3*BAN7 -> 0.04678030424 | BAQ4: =BAR7-BAQ3*BAQ7 -> 0.3464635965 | BAT4: =BAU7-BAT3*BAT7 -> 0.2592466629 | BAW4: =BAX7-BAW3*BAW7 -> 0.416417883 | BAZ4: =BBA7-BAZ3*BAZ7 -> 0.5352840638 | BBC4: =BBD7-BBC3*BBC7 -> 0.4647143169 | BBF4: =BBG7-BBF3*BBF7 -> 0.4208241193 | BBI4: =BBJ7-BBI3*BBI7 -> 0.3818280379 | BBL4: =BBM7-BBL3*BBL7 -> 0.2896920094 | BBO4: =BBP7-BBO3*BBO7 -> 0.2665022264 | BBR4: =BBS7-BBR3*BBR7 -> 0.2221246778 | BBU4: =BBV7-BBU3*BBU7 -> 0.2133289511 | BBX4: =BBY7-BBX3*BBX7 -> 0.5816460797 | BCA4: =BCB7-BCA3*BCA7 -> 0.5865514284 | BCD4: =BCE7-BCD3*BCD7 -> 0.03284903849 | BCG4: =BCH7-BCG3*BCG7 -> 0.7520826292 | BCJ4: =BCK7-BCJ3*BCJ7 -> 0.4282435358 | BCM4: =BCN7-BCM3*BCM7 -> -0.1183421929 | BCP4: =BCQ7-BCP3*BCP7 -> 0.4553098065 | BCS4: =BCT7-BCS3*BCS7 -> 0.6975685795 | BCV4: =BCW7-BCV3*BCV7 -> 0.4732916491 | BCY4: =BCZ7-BCY3*BCY7 -> 0.2838603245 | BDB4: =BDC7-BDB3*BDB7 -> 0.2818359392 | BDE4: =BDF7-BDE3*BDE7 -> 0.5778906112 | BDH4: =BDI7-BDH3*BDH7 -> 0.5537880973 | BDK4: =BDL7-BDK3*BDK7 -> 0.1797476917 | BDN4: =BDO7-BDN3*BDN7 -> 0.5116232273 | BDQ4: =BDR7-BDQ3*BDQ7 -> 0.1772009944 | BDT4: =BDU7-BDT3*BDT7 -> 0.4364390431 | BDW4: =BDX7-BDW3*BDW7 -> 0.4855993893 | BDZ4: =BEA7-BDZ3*BDZ7 -> 0.4433491332 | BEC4: =BED7-BEC3*BEC7 -> 0.006765811937 | BEF4: =BEG7-BEF3*BEF7 -> 0.6719339718 | BEI4: =BEJ7-BEI3*BEI7 -> 0.08781981478 | BEL4: =BEM7-BEL3*BEL7 -> 0.6077796359 | BEO4: =BEP7-BEO3*BEO7 -> 0.2535330773 | BER4: =BES7-BER3*BER7 -> 0.3949522104 | BEU4: =BEV7-BEU3*BEU7 -> 0.5059935725 | BEX4: =BEY7-BEX3*BEX7 -> 0.4987357155 | BFA4: =BFB7-BFA3*BFA7 -> 0.4544912705 | BFD4: =BFE7-BFD3*BFD7 -> 0.1866723988 | BFG4: =BFH7-BFG3*BFG7 -> 0.210087526 | BFJ4: =BFK7-BFJ3*BFJ7 -> 0.3782251993 | BFM4: =BFN7-BFM3*BFM7 -> 0.1996051596 | BFP4: =BFQ7-BFP3*BFP7 -> 0.4576388976 | BFS4: =BFT7-BFS3*BFS7 -> 0.4045707796 | BFV4: =BFW7-BFV3*BFV7 -> 0.5575145394 | BFY4: =BFZ7-BFY3*BFY7 -> 0.4806759751 | BGB4: =BGC7-BGB3*BGB7 -> 0.4301936938 | BGE4: =BGF7-BGE3*BGE7 -> 0.3648646779 | BGH4: =BGI7-BGH3*BGH7 -> 0.5079904315 | BGK4: =BGL7-BGK3*BGK7 -> 0.26613466 | BGN4: =BGO7-BGN3*BGN7 -> 0.4602443324 | BGQ4: =BGR7-BGQ3*BGQ7 -> 0.1822526396 | BGT4: =BGU7-BGT3*BGT7 -> 0.4065174349
C5: 1 | D5: 0.22 | E5: 0.51 | H5: =IF(ISERROR(DEVSQ(D5,F5)),"",DEVSQ(D5,F5)) -> 0 | I5: =IF(ISERROR(DEVSQ(E5,G5)),"",DEVSQ(E5,G5)) -> 0 | K5: データ数：=COUNT(セル範囲) | M5: =COUNT(D5:D1304) -> 50 | N5: =COUNT(E5:E1304) -> 50 | O5: =COUNT(F5:F1304) -> 0 | P5: =COUNT(G5:G1304) -> 0 | Q5: 分 散 | R5: =R4/M5 -> 0 | S5: =S4/N5 -> 0 | U5: データ区間 | V5: X累積 | W5: X | X5: データ区間 | Y5: Y累積 | Z5: Y | AB5: X開始点 | AC5: =X1m-(X1SD*t1_0.05) -> -1.610313643 | AD5: =AD4+$AC$7 -> -1.555541461 | AE5: -0.249200383 | AF5: =(Y1SD/X1SD*(相関係数1*AD5-AG5))+切片1 -> -1.026413577 | AG5: =IF((1-相関係数1^2)*((X1SD*t1_0.05)^2-(AD5-X1m)^2)>0,SQRT((1-相関係数1^2)*((X1SD*t1_0.05)^2-(AD5-X1m)^2)),0) -> 0.3517099839 | AH5: =X2m-(X2SD*t1_0.05) ->  | AI5: =AI4+$AH$7 ->  | AN5: =IF(D5<>"",RANK(D5,D$5:D$1304),"") -> 49 | AO5: =IF(E5<>"",RANK(E5,E$5:E$1304),"") -> 50 | AP5: =IF(F5<>"",RANK(F5,F$5:F$504),"") ->  | AQ5: =IF(G5<>"",RANK(G5,G$5:G$504),"") ->  | AS5: =IF(D5<>"",(D5+E5)/2,"") -> 0.365 | AT5: =IF(D5<>"",(E5-D5),"") -> 0.29 | AV5: =IF(D5<>"",(D5+E5)/2,"") -> 0.365 | AW5: =IF(D5<>"",(E5-D5),"") -> 0.29 | AY5: 0.9565217391 | AZ5: 1.365994236 | BA5: Passing b | BB5: 1.108695652 | BE5: 0.9895469114 | BH5: 1.286885246 | BK5: 1.158776301 | BN5: 1.039215686 | BQ5: 1.066666667 | BT5: 1.011688312 | BW5: 1.166666667 | BZ5: 1.205479452 | CC5: 1.157894737 | CF5: 1.019132653 | CI5: 1.337748344 | CL5: 1.369565217 | CO5: 1.081761006 | CR5: 1.216450216 | CU5: 1.101698952 | CX5: 1.154761905 | DA5: 1.137071651 | DD5: 1.004149378 | DG5: 1.093031938 | DJ5: 1.139442231 | DM5: 1.124223602 | DP5: 1.510416667 | DS5: 1.03264095 | DV5: 1.036830495 | DY5: 1.162790698 | EB5: 0.9837441315 | EE5: 1.03264095 | EH5: 1.069767442 | EK5: 1.182481752 | EN5: 0.9879236548 | EQ5: 1.050847458 | ET5: 1.326704545 | EW5: 1.009090909 | EZ5: 1.045977011 | FC5: 1.174603175 | FF5: 1.18961179 | FI5: 1.231481481 | FL5: 1.21761658 | FO5: 1.080246914 | FR5: 0.9895104895 | FU5: 1.024390244 | FX5: 1.069767442 | GA5: 0.9628896347 | GD5: 1.157894737 | GG5: 1.039580811 | GJ5: 1.274143986 | GM5: 1.157894737 | GP5: 1.347209123 | GS5: 1.082474227 | GV5: 1.088983051 | GY5: 1.144927536 | HB5: 1.249042146 | HE5: 1.072203107 | HH5: 1.219219219 | HK5: 1.015272938 | HN5: 1.346153846 | HQ5: 1.084337349 | HT5: 1.086021505 | HW5: 1.006968641 | HZ5: 1.088983051 | IC5: 1.008264463 | IF5: 1.096491228 | II5: 1.096385542 | IL5: 1.096685083 | IO5: 1.060344828 | IR5: 1.282051282 | IU5: 1.297029703 | IX5: 1.066666667 | JA5: 1.182481752 | JD5: 1.138888889 | JG5: 0.9234828496 | JJ5: 0.9322033898 | JM5: 1.032068506 | JP5: 0.9283018868 | JS5: 1.006666667 | JV5: 1.064446607 | JY5: 1.048951049 | KB5: 1.396500372 | KE5: 1.162790698 | KH5: 1.152910919 | KK5: 1.138613861 | KN5: 1.356932153 | KQ5: 1.162790698 | KT5: 1.048951049 | KW5: 1.097014925 | KZ5: 1.064814815 | LC5: 1.197526174 | LF5: 1.116129032 | LI5: 1.03301744 | LL5: 1.120155039 | LO5: 1.225 | LR5: 1.245192308 | LU5: 1.031496063 | LX5: 1.0078125 | MA5: 1.216326531 | MD5: 1.365994236 | MG5: 1.194444444 | MJ5: 1.013192612 | MM5: 1.024390244 | MP5: 1.22754491 | MS5: 1.126970385 | MV5: 1.192307692 | MY5: 1.288888889 | NB5: 1.225 | NE5: 1.139442231 | NH5: 1.062248996 | NK5: 1.036585366 | NN5: 1.070063694 | NQ5: 0.9724768912 | NT5: 1.096385542 | NW5: 1.071942446 | NZ5: 1.090680101 | OC5: 1.120155039 | OF5: 1.146923077 | OI5: 1.117647059 | OL5: 1.094512195 | OO5: 0.9565217391 | OR5: 1.106382979 | OU5: 1.163265306 | OX5: 1.004347826 | PA5: 1.081761006 | PD5: 1.049899253 | PG5: 0.9926470588 | PJ5: 1.22875817 | PM5: 0.9152173913 | PP5: 1.071428571 | PS5: 1.09787234 | PV5: 1.258342501 | PY5: 1.127659574 | QB5: 1.12745098 | QE5: 1.056818182 | QH5: 1.25 | QK5: 1.201908229 | QN5: 1.301886792 | QQ5: 1.21761658 | QT5: 1.070063694 | QW5: 1.22875817 | QZ5: 1.024390244 | RC5: 1.154761905 | RF5: 1.108695652 | RI5: 1.068548387 | RL5: 1.201219512 | RO5: 1.100775194 | RR5: 1.300554086 | RU5: 1.007055749 | RX5: 0.9895104895 | SA5: 1.163265306 | SD5: 1.127358491 | SG5: 1.257425743 | SJ5: 0.9565217391 | SM5: 1.393939394 | SP5: 1.007055749 | SS5: 1.157894737 | SV5: 1.035598706 | SY5: 1.071428571 | TB5: 1.093167702 | TE5: 1.103274559 | TH5: 1.081355932 | TK5: 1.062857143 | TN5: 1.052208835 | TQ5: 0.9841549296 | TT5: 1.052208835 | TW5: 0.9379310345 | TZ5: 1.201219512 | UC5: 1.088983051 | UF5: 1 | UI5: 1.298319328 | UL5: 1.066666667 | UO5: 1.075949367 | UR5: 1.273542601 | UU5: 1.169426049 | UX5: 1.127358491 | VA5: 1.014363354 | VD5: 1.070063694 | VG5: 1.052208835 | VJ5: 1.216450216 | VM5: 1.04620462 | VP5: 1.094512195 | VS5: 1.229885057 | VV5: 1.237516013 | VY5: 1.174603175 | WB5: 1.273542601 | WE5: 1.052208835 | WH5: 1.345794393 | WK5: 1.201219512 | WN5: 1.126582278 | WQ5: 1.192307692 | WT5: 1.075949367 | WW5: 1.219336219 | WZ5: 1.164050822 | XC5: 0.9926470588 | XF5: 1.054513509 | XI5: 1.226027397 | XL5: 1.042534838 | XO5: 1.216326531 | XR5: 1.346153846 | XU5: 1.08908046 | XX5: 1.409090909 | YA5: 0.9733727811 | YD5: 1.222222222 | YG5: 1.209302326 | YJ5: 1.108888889 | YM5: 1.157894737 | YP5: 1.157894737 | YS5: 1.08974359 | YV5: 1 | YY5: 1.084337349 | ZB5: 1.017857143 | ZE5: 1.078855187 | ZH5: 1.014285714 | ZK5: 1.017857143 | ZN5: 1.039426523 | ZQ5: 1.00990099 | ZT5: 1.298387097 | ZW5: 1.056818182 | ZZ5: 1.020408163 | AAC5: 1.083405788 | AAF5: 1.179039301 | AAI5: 1.026065546 | AAL5: 1.096385542 | AAO5: 1.100387597 | AAR5: 1.203716925 | AAU5: 1.146938776 | AAX5: 1.162790698 | ABA5: 1.214285714 | ABD5: 1.045977011 | ABG5: 1.127659574 | ABJ5: 1.034836066 | ABM5: 1.081355932 | ABP5: 1.100775194 | ABS5: 1.064457831 | ABV5: 0.8709677419 | ABY5: 1.081761006 | ACB5: 1.298387097 | ACE5: 1.228070175 | ACH5: 1.201897577 | ACK5: 1.08908046 | ACN5: 1.22815154 | ACQ5: 1.097014925 | ACT5: 1.075949367 | ACW5: 1.209302326 | ACZ5: 1.060344828 | ADC5: 1.068548387 | ADF5: 1.13916556 | ADI5: 0.992191298 | ADL5: 1.14 | ADO5: 1.416666667 | ADR5: 1.096438385 | ADU5: 1.096385542 | ADX5: 1.045977011 | AEA5: 1.128142119 | AED5: 1.13916556 | AEG5: 1.100379418 | AEJ5: 0.96 | AEM5: 1.032608696 | AEP5: 1.245192308 | AES5: 1.307692308 | AEV5: 1.169435216 | AEY5: 1.139442231 | AFB5: 1.226027397 | AFE5: 1.163265306 | AFH5: 1.162790698 | AFK5: 1.098342541 | AFN5: 1.08988028 | AFQ5: 1.056818182 | AFT5: 1.423023578 | AFW5: 1.135869565 | AFZ5: 1.103274559 | AGC5: 1.097484277 | AGF5: 1.08974359 | AGI5: 1.067607527 | AGL5: 1.179039301 | AGO5: 1.013192612 | AGR5: 1.205479452 | AGU5: 1.127358491 | AGX5: 1.033426184 | AHA5: 1.062248996 | AHD5: 1.230683269 | AHG5: 1.09 | AHJ5: 1.028423773 | AHM5: 1.028423773 | AHP5: 1.150061916 | AHS5: 1.079646018 | AHV5: 1.114765547 | AHY5: 1.070063694 | AIB5: 1.048951049 | AIE5: 1.259259259 | AIH5: 1.22754491 | AIK5: 1.093167702 | AIN5: 1.048951049 | AIQ5: 1.25 | AIT5: 1.253202667 | AIW5: 1.008264463 | AIZ5: 1.039735099 | AJC5: 1.036585366 | AJF5: 1.056818182 | AJI5: 1.166666667 | AJL5: 1.039215686 | AJO5: 1.135869565 | AJR5: 1.180327869 | AJU5: 1.137071651 | AJX5: 1.148148148 | AKA5: 1.204344004 | AKD5: 1.137778268 | AKG5: 1.017857143 | AKJ5: 1.248979592 | AKM5: 1.081355932 | AKP5: 1.045810083 | AKS5: 1.351351351 | AKV5: 1.120155039 | AKY5: 1.138613861 | ALB5: 1.202020202 | ALE5: 1.035598706 | ALH5: 0.9793814433 | ALK5: 1.345310989 | ALN5: 1.025104603 | ALQ5: 1.0078125 | ALT5: 1.138888889 | ALW5: 1.032608696 | ALZ5: 1.520958084 | AMC5: 1.17218543 | AMF5: 1.162790698 | AMI5: 1.137071651 | AML5: 1.216450216 | AMO5: 1.108695652 | AMR5: 1.322115385 | AMU5: 1.114765547 | AMX5: 1.061296912 | ANA5: 1.035598706 | AND5: 1.036449175 | ANG5: 1.363636364 | ANJ5: 1.101694915 | ANM5: 1.203208556 | ANP5: 1.14 | ANS5: 1.315209666 | ANV5: 0.9771757605 | ANY5: 1.169435216 | AOB5: 1.163265306 | AOE5: 1.088983051 | AOH5: 1.03264095 | AOK5: 1.093167702 | AON5: 1.017058653 | AOQ5: 1.090680101 | AOT5: 1.006882687 | AOW5: 1.090680101 | AOZ5: 1.050847458 | APC5: 1.031496063 | APF5: 1.096685083 | API5: 1.151975684 | APL5: 1.0078125 | APO5: 1.205479452 | APR5: 1.09 | APU5: 1.216216216 | APX5: 1.004347826 | AQA5: 1.300428116 | AQD5: 1.119341564 | AQG5: 1.15493521 | AQJ5: 1.221238938 | AQM5: 1.354545455 | AQP5: 1.064814815 | AQS5: 1.084337349 | AQV5: 1.113402062 | AQY5: 1.085728639 | ARB5: 1.252705628 | ARE5: 1.004149378 | ARH5: 1.194444444 | ARK5: 1.231481481 | ARN5: 1.163265306 | ARQ5: 1.004347826 | ART5: 0.9619238477 | ARW5: 0.9625 | ARZ5: 1.039426523 | ASC5: 1.036585366 | ASF5: 1.051020408 | ASI5: 1.082474227 | ASL5: 1.077797692 | ASO5: 1.103274559 | ASR5: 1.027472527 | ASU5: 1.144927536 | ASX5: 0.9763779528 | ATA5: 1.231481481 | ATD5: 1.112295597 | ATG5: 1.344827586 | ATJ5: 1.249042146 | ATM5: 1.024390244 | ATP5: 1.288888889 | ATS5: 1.048412235 | ATV5: 1.234042553 | ATY5: 0.9947643979 | AUB5: 0.9615384615 | AUE5: 1.072463768 | AUH5: 1.216216216 | AUK5: 1.245192308 | AUN5: 1.038062284 | AUQ5: 1.116129032 | AUT5: 1.197526174 | AUW5: 1 | AUZ5: 1.119341564 | AVC5: 1.106382979 | AVF5: 1.169435216 | AVI5: 0.9322033898 | AVL5: 1.074206568 | AVO5: 1.084337349 | AVR5: 0.9779735683 | AVU5: 1.119341564 | AVX5: 1.039215686 | AWA5: 1.286885246 | AWD5: 1.108695652 | AWG5: 1.08974359 | AWJ5: 1.287234043 | AWM5: 1.138888889 | AWP5: 1.096491228 | AWS5: 1.095128438 | AWV5: 1.094512195 | AWY5: 1.08974359 | AXB5: 1.069767442 | AXE5: 1.036585366 | AXH5: 1.225 | AXK5: 1.088983051 | AXN5: 1.154761905 | AXQ5: 1.119039784 | AXT5: 1.071428571 | AXW5: 1.257425743 | AXZ5: 0.9771757605 | AYC5: 0.9347826087 | AYF5: 1.12745098 | AYI5: 1.160580021 | AYL5: 1.004149378 | AYO5: 0.9311740891 | AYR5: 1.117924528 | AYU5: 1.096117954 | AYX5: 1.090680101 | AZA5: 1.034836066 | AZD5: 1.151975684 | AZG5: 1.069767442 | AZJ5: 1.033426184 | AZM5: 1.221238938 | AZP5: 1 | AZS5: 1.176164147 | AZV5: 1.087502278 | AZY5: 1.089031755 | BAB5: 1.094512195 | BAE5: 1.097249601 | BAH5: 1.035598706 | BAK5: 1.055194805 | BAN5: 1.2 | BAQ5: 1.21761658 | BAT5: 1.084247866 | BAW5: 1.2 | BAZ5: 1.046631101 | BBC5: 1.032608696 | BBF5: 1.025015635 | BBI5: 1.025641026 | BBL5: 1.298353212 | BBO5: 1.257425743 | BBR5: 1.291296346 | BBU5: 1.284254808 | BBX5: 1.216450216 | BCA5: 1.079646018 | BCD5: 1.082474227 | BCG5: 1.298387097 | BCJ5: 1.026490066 | BCM5: 1.034131125 | BCP5: 1.392156863 | BCS5: 0.9895833333 | BCV5: 1.004149378 | BCY5: 0.9759036145 | BDB5: 1.307692308 | BDE5: 1.192307692 | BDH5: 1.13176457 | BDK5: 1.062857143 | BDN5: 1.285408066 | BDQ5: 1.075537295 | BDT5: 1.163265306 | BDW5: 1.030532361 | BDZ5: 1.037407196 | BEC5: 1.034836066 | BEF5: 1.209302326 | BEI5: 1.0078125 | BEL5: 1.126582278 | BEO5: 1.004761905 | BER5: 1.069915568 | BEU5: 0.9707602339 | BEX5: 1.071942446 | BFA5: 1.048951049 | BFD5: 1.137071651 | BFG5: 1.365994236 | BFJ5: 1.273542601 | BFM5: 1.228070175 | BFP5: 1.249010869 | BFS5: 1.139444444 | BFV5: 1.163265306 | BFY5: 1.157894737 | BGB5: 0.9786775058 | BGE5: 1.28358209 | BGH5: 1.180327869 | BGK5: 1.098580368 | BGN5: 1.14845161 | BGQ5: 1.062248996 | BGT5: 1.457142857 | BGW5: 1.203208556
C6: 2 | D6: 0.22 | E6: 0.56 | H6: 0 | I6: 0 | K6: 平 均：=AVERAGE(セル範囲) | M6: =AVERAGE(D5:D1304) -> 2.4976 | N6: =AVERAGE(E5:E1304) -> 3.1708 | O6: =AVERAGE(F5:F1304) ->  | P6: =AVERAGE(G5:G1304) ->  | Q6: 精密度SD | R6: =R5^0.5 -> 0 | S6: =S5^0.5 -> 0 | U6: =CEILING(((_MAX1-_MIN1)/階級数)+_MIN1,0.01) -> 0.85 | V6: =FREQUENCY($D$5:$D$1304,U6) -> 8 | W6: =V6 -> 8 | X6: =CEILING(((_MAX2-_MIN2)/階級数)+_MIN2,0.1) -> 1.1 | Y6: =FREQUENCY($E$5:$E$1304,X6) -> 7 | Z6: =Y6 -> 7 | AB6: X終了点 | AC6: =X1m+(X1SD*t1_0.05) -> 6.605513643 | AD6: =AD5+$AC$7 -> -1.50076928 | AE6: -0.03861390677 | AF6: -1.134064729 | AG6: 0.4957211151 | AH6: =X2m+(X2SD*t1_0.05) ->  | AI6: =AI5+$AH$7 ->  | AN6: =IF(D6<>"",RANK(D6,$D$5:$D$1304),"") -> 49 | AO6: =IF(E6<>"",RANK(E6,$E$5:$E$1304),"") -> 49 | AS6: =IF(D6<>"",(D6+E6)/2,"") -> 0.39 | AT6: =IF(D6<>"",(E6-D6),"") -> 0.34 | AV6: =IF(D6<>"",(D6+E6)/2,"") -> 0.39 | AW6: =IF(D6<>"",(E6-D6),"") -> 0.34 | AY6: 0.09556451613 | AZ6: 0.592137931 | BA6: Passing a | BB6: 0.3419565217 | BE6: 0.5386764277 | BH6: 0.1080327869 | BK6: 0.3758194906 | BN6: 0.5250980392 | BQ6: 0.3733333333 | BT6: 0.5602597403 | BW6: 0.335 | BZ6: 0.3355479452 | CC6: 0.3768421053 | CF6: 0.5005102041 | CI6: 0.08463576159 | CL6: 0.2004347826 | CO6: 0.4744339623 | CR6: 0.3016233766 | CU6: 0.3677913623 | CX6: 0.3804761905 | DA6: 0.2391588785 | DD6: 0.5784232365 | DG6: 0.3790584801 | DJ6: 0.3187250996 | DM6: 0.3059627329 | DP6: -0.07447916667 | DS6: 0.4195548961 | DV6: 0.452120357 | DY6: 0.2541860465 | EB6: 0.4047928404 | EE6: 0.4439169139 | EH6: 0.4076744186 | EK6: 0.2563138686 | EN6: 0.4338644305 | EQ6: 0.5494915254 | ET6: 0.1652840909 | EW6: 0.4044090909 | EZ6: 0.4029885057 | FC6: 0.2434920635 | FF6: 0.4033986341 | FI6: 0.2890740741 | FL6: 0.2921243523 | FO6: 0.3637654321 | FR6: 0.5136363636 | FU6: 0.4337804878 | FX6: 0.4076744186 | GA6: 0.5579119685 | GD6: 0.4931578947 | GG6: 0.4485449453 | GJ6: 0.1641725198 | GM6: 0.3768421053 | GP6: 0.2216839578 | GS6: 0.4827835052 | GV6: 0.3496610169 | GY6: 0.3115942029 | HB6: 0.235210728 | HE6: 0.4061359608 | HH6: 0.2417717718 | HK6: 0.57014518 | HN6: 0.2696153846 | HQ6: 0.3771084337 | HT6: 0.3117204301 | HW6: 0.5768292683 | HZ6: 0.3271610169 | IC6: 0.6170247934 | IF6: 0.3134210526 | II6: 0.3404819277 | IL6: 0.3130662983 | IO6: 0.374137931 | IR6: 0.3237179487 | IU6: 0.2038613861 | IX6: 0.3753333333 | JA6: 0.3602189781 | JD6: 0.4094444444 | JG6: 0.5994722955 | JJ6: 0.6057627119 | JM6: 0.4583109418 | JP6: 0.5437735849 | JS6: 0.5150333333 | JV6: 0.4093770857 | JY6: 0.3454545455 | KB6: 0.07454951601 | KE6: 0.3941860465 | KH6: 0.3012158055 | KK6: 0.2638613861 | KN6: 0.1259882006 | KQ6: 0.3779069767 | KT6: 0.3723776224 | KW6: 0.463880597 | KZ6: 0.4092592593 | LC6: 0.2150675447 | LF6: 0.3144516129 | LI6: 0.5075511687 | LL6: 0.2753875969 | LO6: 0.358 | LR6: 0.2410817308 | LU6: 0.3834645669 | LX6: 0.5734375 | MA6: 0.3090612245 | MD6: 0.1354466859 | MG6: 0.2472222222 | MJ6: 0.5728496042 | MM6: 0.5170731707 | MP6: 0.2960479042 | MS6: 0.389369477 | MV6: 0.2726923077 | MY6: 0.2264444444 | NB6: 0.299 | NE6: 0.3970517928 | NH6: 0.5090763052 | NK6: 0.6317073171 | NN6: 0.4038216561 | NQ6: 0.4388073948 | NT6: 0.3575903614 | NW6: 0.3985611511 | NZ6: 0.3200503778 | OC6: 0.2806589147 | OF6: 0.2211307692 | OI6: 0.3697058824 | OL6: 0.3599695122 | OO6: 0.4386956522 | OR6: 0.2843617021 | OU6: 0.377755102 | OX6: 0.4546086957 | PA6: 0.3823899371 | PD6: 0.4303425388 | PG6: 0.5183823529 | PJ6: 0.2926143791 | PM6: 0.5651304348 | PP6: 0.4071428571 | PS6: 0.310893617 | PV6: 0.1641547488 | PY6: 0.5491489362 | QB6: 0.2431372549 | QE6: 0.4409090909 | QH6: 0.2225 | QK6: 0.3611112917 | QN6: 0.154245283 | QQ6: 0.1901554404 | QT6: 0.4082484076 | QW6: 0.2926143791 | QZ6: 0.5170731707 | RC6: 0.3804761905 | RF6: 0.3952173913 | RI6: 0.4466330645 | RL6: 0.3705487805 | RO6: 0.3178294574 | RR6: 0.21135726 | RU6: 0.5757665505 | RX6: 0.6007692308 | SA6: 0.2575510204 | SD6: 0.3232075472 | SG6: 0.2693564356 | SJ6: 0.5965217391 | SM6: 0.2533333333 | SP6: 0.5773188153 | SS6: 0.4931578947 | SV6: 0.434789644 | SY6: 0.4071428571 | TB6: 0.4519254658 | TE6: 0.2841435768 | TH6: 0.4347966102 | TK6: 0.4098857143 | TN6: 0.499437751 | TQ6: 0.5205985915 | TT6: 0.4321285141 | TW6: 0.592137931 | TZ6: 0.3275 | UC6: 0.3508474576 | UF6: 0.58 | UI6: 0.1027731092 | UL6: 0.4086666667 | UO6: 0.3737974684 | UR6: 0.1443946188 | UU6: 0.3027262693 | UX6: 0.4122641509 | VA6: 0.3769293478 | VD6: 0.3617834395 | VG6: 0.453815261 | VJ6: 0.3086147186 | VM6: 0.5522772277 | VP6: 0.3353658537 | VS6: 0.2394252874 | VV6: 0.1912291836 | VY6: 0.2373015873 | WB6: 0.2008520179 | WE6: 0.4812449799 | WH6: 0.2235514019 | WK6: 0.1474390244 | WN6: 0.5318987342 | WQ6: 0.3384615385 | WT6: 0.3873417722 | WW6: 0.2417460317 | WZ6: 0.2867339312 | XC6: 0.5034558824 | XF6: 0.3902402793 | XI6: 0.2740410959 | XL6: 0.4809024524 | XO6: 0.3087755102 | XR6: 0.3457692308 | XU6: 0.3495402299 | XX6: 0.25 | YA6: 0.6115680473 | YD6: 0.3022222222 | YG6: 0.3136046512 | YJ6: 0.3249777778 | YM6: 0.3794736842 | YP6: 0.3052631579 | YS6: 0.3487179487 | YV6: 0.57 | YY6: 0.313253012 | ZB6: 0.4919642857 | ZE6: 0.4874882573 | ZH6: 0.4254285714 | ZK6: 0.4358928571 | ZN6: 0.4659498208 | ZQ6: 0.4598019802 | ZT6: 0.1184677419 | ZW6: 0.3275 | ZZ6: 0.493877551 | AAC6: 0.3664637933 | AAF6: 0.3727074236 | AAI6: 0.4661147903 | AAL6: 0.4236746988 | AAO6: 0.3179147287 | AAR6: 0.3648105841 | AAU6: 0.3089795918 | AAX6: 0.3779069767 | ABA6: 0.3114285714 | ABD6: 0.3298850575 | ABG6: 0.3119148936 | ABJ6: 0.5590983607 | ABM6: 0.4656271186 | ABP6: 0.3689922481 | ABS6: 0.4195180723 | ABV6: 0.6432258065 | ABY6: 0.4651572327 | ACB6: 0.207983871 | ACE6: 0.2935087719 | ACH6: 0.2096470047 | ACK6: 0.4566666667 | ACN6: 0.3569915072 | ACQ6: 0.3340298507 | ACT6: 0.3873417722 | ACW6: 0.3344186047 | ACZ6: 0.3267241379 | ADC6: 0.4118346774 | ADF6: 0.3854670208 | ADI6: 0.5101513126 | ADL6: 0.318 | ADO6: 0.1 | ADR6: 0.3135177552 | ADU6: 0.3136144578 | ADX6: 0.4277586207 | AEA6: 0.3889945218 | AED6: 0.2874347056 | AEG6: 0.317916528 | AEJ6: 0.5096 | AEM6: 0.4891304348 | AEP6: 0.2360576923 | AES6: 0.1442307692 | AEV6: 0.3957142857 | AEY6: 0.4601992032 | AFB6: 0.2902739726 | AFE6: 0.377755102 | AFH6: 0.1920930233 | AFK6: 0.3380552486 | AFN6: 0.4012383103 | AFQ6: 0.4068181818 | AFT6: 0.04540915395 | AFW6: 0.4984782609 | AFZ6: 0.3813476071 | AGC6: 0.3391194969 | AGF6: 0.323974359 | AGI6: 0.4121102151 | AGL6: 0.4093668122 | AGO6: 0.6098548813 | AGR6: 0.3355479452 | AGU6: 0.4553066038 | AGX6: 0.4288300836 | AHA6: 0.3794477912 | AHD6: 0.2901117497 | AHG6: 0.3484 | AHJ6: 0.5151937984 | AHM6: 0.5270284238 | AHP6: 0.3049195092 | AHS6: 0.3442477876 | AHV6: 0.3176907216 | AHY6: 0.3617834395 | AIB6: 0.434965035 | AIE6: 0.1540740741 | AIH6: 0.2363772455 | AIK6: 0.3418012422 | AIN6: 0.3454545455 | AIQ6: 0.2275 | AIT6: 0.4280783997 | AIW6: 0.5669421488 | AIZ6: 0.4328145695 | AJC6: 0.4097560976 | AJF6: 0.4528409091 | AJI6: 0.37 | AJL6: 0.4144117647 | AJO6: 0.2195652174 | AJR6: 0.3639344262 | AJU6: 0.4064018692 | AJX6: 0.3074074074 | AKA6: 0.3243527947 | AKD6: 0.2891549473 | AKG6: 0.5071428571 | AKJ6: 0.3513469388 | AKM6: 0.3412542373 | AKP6: 0.406167549 | AKS6: 0.07027027027 | AKV6: 0.2701162791 | AKY6: 0.461980198 | ALB6: 0.3256565657 | ALE6: 0.4186084142 | ALH6: 0.5277319588 | ALK6: 0.2127699001 | ALN6: 0.4179916318 | ALQ6: 0.4275 | ALT6: 0.3094444444 | ALW6: 0.4195652174 | ALZ6: -0.04431137725 | AMC6: 0.3749006623 | AMF6: 0.2541860465 | AMI6: 0.3668068536 | AML6: 0.3089177489 | AMO6: 0.3625 | AMR6: 0.2369711538 | AMU6: 0.2855633522 | AMX6: 0.5103140147 | ANA6: 0.5187055016 | AND6: 0.4526160729 | ANG6: 0.1381818182 | ANJ6: 0.3038983051 | ANM6: 0.2702941176 | ANP6: 0.2609 | ANS6: 0.09022743426 | ANV6: 0.4373037566 | ANY6: 0.2662292359 | AOB6: 0.2959183673 | AOE6: 0.3271610169 | AOH6: 0.4890207715 | AOK6: 0.3195031056 | AON6: 0.4388472706 | AOQ6: 0.3475566751 | AOT6: 0.5765988647 | AOW6: 0.3358060453 | AOZ6: 0.3969491525 | APC6: 0.4590551181 | APF6: 0.3158977901 | API6: 0.271550152 | APL6: 0.43890625 | APO6: 0.3584931507 | APR6: 0.383 | APU6: 0.2951351351 | APX6: 0.5773913043 | AQA6: 0.2115033851 | AQD6: 0.2676748971 | AQG6: 0.3804207327 | AQJ6: 0.2913274336 | AQM6: 0.03909090909 | AQP6: 0.4621296296 | AQS6: 0.4803614458 | AQV6: 0.3937113402 | AQY6: 0.4785527695 | ARB6: 0.171482684 | ARE6: 0.4548547718 | ARH6: 0.3372222222 | ARK6: 0.2890740741 | ARN6: 0.4089795918 | ARQ6: 0.5549565217 | ART6: 0.4246492986 | ARW6: 0.5536875 | ARZ6: 0.4111111111 | ASC6: 0.5175609756 | ASF6: 0.4454081633 | ASI6: 0.3927835052 | ASL6: 0.4697546768 | ASO6: 0.3246095718 | ASR6: 0.4259340659 | ASU6: 0.2692028986 | ASX6: 0.5874015748 | ATA6: 0.2543518519 | ATD6: 0.3152949686 | ATG6: 0.1417241379 | ATJ6: 0.235210728 | ATM6: 0.422195122 | ATP6: 0.2264444444 | ATS6: 0.4014056108 | ATV6: 0.2885106383 | ATY6: 0.5068062827 | AUB6: 0.4423076923 | AUE6: 0.3637681159 | AUH6: 0.3091891892 | AUK6: 0.2461057692 | AUN6: 0.4178200692 | AUQ6: 0.3490322581 | AUT6: 0.2965442418 | AUW6: 0.49 | AUZ6: 0.3918106996 | AVC6: 0.344893617 | AVF6: 0.3634551495 | AVI6: 0.6103389831 | AVL6: 0.3476976702 | AVO6: 0.4262650602 | AVR6: 0.5855506608 | AVU6: 0.2736213992 | AVX6: 0.4578431373 | AWA6: 0.3013114754 | AWD6: 0.3586956522 | AWG6: 0.3487179487 | AWJ6: 0.1286170213 | AWM6: 0.4094444444 | AWP6: 0.2957017544 | AWS6: 0.3995588998 | AWV6: 0.3192073171 | AWY6: 0.3142948718 | AXB6: 0.4076744186 | AXE6: 0.4146341463 | AXH6: 0.383 | AXK6: 0.3204237288 | AXN6: 0.2680952381 | AXQ6: 0.2666886061 | AXT6: 0.4007142857 | AXW6: 0.4255445545 | AXZ6: 0.5296715113 | AYC6: 0.4493478261 | AYF6: 0.3231372549 | AYI6: 0.3786143931 | AYL6: 0.5846058091 | AYO6: 0.5978137652 | AYR6: 0.4366981132 | AYU6: 0.3308697275 | AYX6: 0.4634634761 | AZA6: 0.4178278689 | AZD6: 0.3813677812 | AZG6: 0.4076744186 | AZJ6: 0.426183844 | AZM6: 0.2913274336 | AZP6: 0.5 | AZS6: 0.1589644926 | AZV6: 0.3862470385 | AZY6: 0.3496006234 | BAB6: 0.3192073171 | BAE6: 0.3186050878 | BAH6: 0.5003236246 | BAK6: 0.4570941558 | BAN6: 0.296 | BAQ6: 0.2671243523 | BAT6: 0.355532646 | BAW6: 0.33 | BAZ6: 0.4393795693 | BBC6: 0.430326087 | BBF6: 0.4442213884 | BBI6: 0.4430769231 | BBL6: 0.2743622933 | BBO6: 0.1606930693 | BBR6: 0.2259148038 | BBU6: 0.22046875 | BBX6: 0.2673809524 | BCA6: 0.4004867257 | BCD6: 0.4036082474 | BCG6: 0.09556451613 | BCJ6: 0.5099337748 | BCM6: 0.4176774054 | BCP6: 0.08019607843 | BCS6: 0.4909895833 | BCV6: 0.5784232365 | BCY6: 0.5106024096 | BDB6: 0.09846153846 | BDE6: 0.3369230769 | BDH6: 0.407153099 | BDK6: 0.4366285714 | BDN6: 0.2189695141 | BDQ6: 0.3663337547 | BDT6: 0.2163265306 | BDW6: 0.4341257792 | BDZ6: 0.5166076528 | BEC6: 0.418852459 | BEF6: 0.1253488372 | BEI6: 0.520390625 | BEL6: 0.3321518987 | BEO6: 0.4611428571 | BER6: 0.3622870686 | BEU6: 0.3994152047 | BEX6: 0.3985611511 | BFA6: 0.5384965035 | BFD6: 0.2652647975 | BFG6: 0.259481268 | BFJ6: 0.2798206278 | BFM6: 0.2547368421 | BFP6: 0.2352176089 | BFS6: 0.4601944444 | BFV6: 0.3409183673 | BFY6: 0.3847368421 | BGB6: 0.5277192425 | BGE6: 0.363358209 | BGH6: 0.372295082 | BGK6: 0.3239749696 | BGN6: 0.2573406458 | BGQ6: 0.3013052209 | BGT6: 0.02971428571 | BGW6: 0.3231016043
C7: 3 | D7: 0.46 | E7: 0.7 | H7: 0 | I7: 0 | K7: 分 散：=VER（セル範囲) | M7: =VAR(D5:D1304) -> 2.815916571 | N7: =VAR(E5:E1304) -> 3.437721796 | O7: =VAR(F5:F1304) ->  | P7: =VAR(G5:G1304) ->  | Q7: CV | R7: =R6/X1m -> 0 | S7: =S6/X1m -> 0 | U7: =U6+CEILING((_MAX1-_MIN1)/階級数,0.01) -> 1.48 | V7: 17 | W7: =V7-V6 -> 9 | X7: =X6+CEILING((_MAX2-_MIN2)/階級数,0.01) -> 1.68 | Y7: 12 | Z7: =Y7-Y6 -> 5 | AB7: serp | AC7: =(AC6-AC5)/150 -> 0.05477218191 | AD7: -1.445997098 | AE7: 0.1336820941 | AF7: -1.203425406 | AG7: 0.6050772957 | AH7: =(AH6-AH5)/150 ->  | AN7: 44 | AO7: 48 | AS7: =IF(D7<>"",(D7+E7)/2,"") -> 0.58 | AT7: 0.24 | AV7: 0.58 | AW7: 0.24 | AY7: ↑ rank ブートストラップ用に使用 | BA7: 平均X・Y= | BB7: =AVERAGE(BB11:BB511) -> 2.5692 | BC7: =AVERAGE(BC11:BC511) -> 3.1676 | BE7: =AVERAGE(BE11:BE511) -> 2.443 | BF7: =AVERAGE(BF11:BF511) -> 3.1648 | BH7: =AVERAGE(BH11:BH511) -> 2.7244 | BI7: =AVERAGE(BI11:BI511) -> 3.6014 | BK7: =AVERAGE(BK11:BK511) -> 2.2724 | BL7: =AVERAGE(BL11:BL511) -> 2.909 | BN7: =AVERAGE(BN11:BN511) -> 2.5464 | BO7: =AVERAGE(BO11:BO511) -> 3.1548 | BQ7: =AVERAGE(BQ11:BQ511) -> 2.6766 | BR7: =AVERAGE(BR11:BR511) -> 3.2342 | BT7: =AVERAGE(BT11:BT511) -> 2.3204 | BU7: =AVERAGE(BU11:BU511) -> 2.9248 | BW7: =AVERAGE(BW11:BW511) -> 2.4168 | BX7: =AVERAGE(BX11:BX511) -> 3.1212 | BZ7: =AVERAGE(BZ11:BZ511) -> 2.8052 | CA7: =AVERAGE(CA11:CA511) -> 3.6592 | CC7: =AVERAGE(CC11:CC511) -> 2.341 | CD7: =AVERAGE(CD11:CD511) -> 2.8644 | CF7: =AVERAGE(CF11:CF511) -> 2.2678 | CG7: =AVERAGE(CG11:CG511) -> 3.0646 | CI7: =AVERAGE(CI11:CI511) -> 1.9066 | CJ7: =AVERAGE(CJ11:CJ511) -> 2.914 | CL7: =AVERAGE(CL11:CL511) -> 2.2352 | CM7: =AVERAGE(CM11:CM511) -> 2.8962 | CO7: =AVERAGE(CO11:CO511) -> 2.037 | CP7: =AVERAGE(CP11:CP511) -> 2.8192 | CR7: =AVERAGE(CR11:CR511) -> 2.7346 | CS7: =AVERAGE(CS11:CS511) -> 3.5512 | CU7: =AVERAGE(CU11:CU511) -> 2.2784 | CV7: =AVERAGE(CV11:CV511) -> 3.0802 | CX7: =AVERAGE(CX11:CX511) -> 2.3016 | CY7: =AVERAGE(CY11:CY511) -> 2.938 | DA7: =AVERAGE(DA11:DA511) -> 2.6166 | DB7: =AVERAGE(DB11:DB511) -> 3.1622 | DD7: =AVERAGE(DD11:DD511) -> 2.8212 | DE7: =AVERAGE(DE11:DE511) -> 3.5018 | DG7: =AVERAGE(DG11:DG511) -> 2.406 | DH7: =AVERAGE(DH11:DH511) -> 3.1718 | DJ7: =AVERAGE(DJ11:DJ511) -> 2.3812 | DK7: =AVERAGE(DK11:DK511) -> 3.2262 | DM7: =AVERAGE(DM11:DM511) -> 2.879 | DN7: =AVERAGE(DN11:DN511) -> 3.9508 | DP7: =AVERAGE(DP11:DP511) -> 2.753 | DQ7: =AVERAGE(DQ11:DQ511) -> 3.4594 | DS7: =AVERAGE(DS11:DS511) -> 2.762 | DT7: =AVERAGE(DT11:DT511) -> 3.446 | DV7: =AVERAGE(DV11:DV511) -> 2.6698 | DW7: =AVERAGE(DW11:DW511) -> 3.3292 | DY7: =AVERAGE(DY11:DY511) -> 2.6896 | DZ7: =AVERAGE(DZ11:DZ511) -> 3.0914 | EB7: =AVERAGE(EB11:EB511) -> 2.8376 | EC7: =AVERAGE(EC11:EC511) -> 3.4016 | EE7: =AVERAGE(EE11:EE511) -> 2.6646 | EF7: =AVERAGE(EF11:EF511) -> 3.4352 | EH7: =AVERAGE(EH11:EH511) -> 2.725 | EI7: =AVERAGE(EI11:EI511) -> 3.4584 | EK7: =AVERAGE(EK11:EK511) -> 2.3156 | EL7: =AVERAGE(EL11:EL511) -> 2.7086 | EN7: =AVERAGE(EN11:EN511) -> 2.6326 | EO7: =AVERAGE(EO11:EO511) -> 3.4554 | EQ7: =AVERAGE(EQ11:EQ511) -> 2.4218 | ER7: =AVERAGE(ER11:ER511) -> 3.2308 | ET7: =AVERAGE(ET11:ET511) -> 2.3132 | EU7: =AVERAGE(EU11:EU511) -> 2.7694 | EW7: =AVERAGE(EW11:EW511) -> 2.5298 | EX7: =AVERAGE(EX11:EX511) -> 3.0424 | EZ7: =AVERAGE(EZ11:EZ511) -> 2.7034 | FA7: =AVERAGE(FA11:FA511) -> 3.4168 | FC7: =AVERAGE(FC11:FC511) -> 2.099 | FD7: =AVERAGE(FD11:FD511) -> 2.7564 | FF7: =AVERAGE(FF11:FF511) -> 2.713 | FG7: =AVERAGE(FG11:FG511) -> 3.5316 | FI7: =AVERAGE(FI11:FI511) -> 2.1328 | FJ7: =AVERAGE(FJ11:FJ511) -> 2.8326 | FL7: =AVERAGE(FL11:FL511) -> 2.3608 | FM7: =AVERAGE(FM11:FM511) -> 2.9604 | FO7: =AVERAGE(FO11:FO511) -> 2.5878 | FP7: =AVERAGE(FP11:FP511) -> 3.1246 | FR7: =AVERAGE(FR11:FR511) -> 2.2442 | FS7: =AVERAGE(FS11:FS511) -> 2.838 | FU7: =AVERAGE(FU11:FU511) -> 2.5622 | FV7: =AVERAGE(FV11:FV511) -> 3.236 | FX7: =AVERAGE(FX11:FX511) -> 2.6696 | FY7: =AVERAGE(FY11:FY511) -> 3.229 | GA7: =AVERAGE(GA11:GA511) -> 2.5168 | GB7: =AVERAGE(GB11:GB511) -> 3.3506 | GD7: =AVERAGE(GD11:GD511) -> 2.898 | GE7: =AVERAGE(GE11:GE511) -> 3.6692 | GG7: =AVERAGE(GG11:GG511) -> 2.578 | GH7: =AVERAGE(GH11:GH511) -> 3.2856 | GJ7: =AVERAGE(GJ11:GJ511) -> 2.1922 | GK7: =AVERAGE(GK11:GK511) -> 2.7156 | GM7: =AVERAGE(GM11:GM511) -> 1.887 | GN7: =AVERAGE(GN11:GN511) -> 2.6598 | GP7: =AVERAGE(GP11:GP511) -> 2.3248 | GQ7: =AVERAGE(GQ11:GQ511) -> 2.9578 | GS7: =AVERAGE(GS11:GS511) -> 2.3984 | GT7: =AVERAGE(GT11:GT511) -> 3.106 | GV7: =AVERAGE(GV11:GV511) -> 2.3732 | GW7: =AVERAGE(GW11:GW511) -> 3.1302 | GY7: =AVERAGE(GY11:GY511) -> 2.3768 | GZ7: =AVERAGE(GZ11:GZ511) -> 3.1232 | HB7: =AVERAGE(HB11:HB511) -> 2.5846 | HC7: =AVERAGE(HC11:HC511) -> 3.205 | HE7: =AVERAGE(HE11:HE511) -> 2.3992 | HF7: =AVERAGE(HF11:HF511) -> 3.1212 | HH7: =AVERAGE(HH11:HH511) -> 2.7086 | HI7: =AVERAGE(HI11:HI511) -> 3.312 | HK7: =AVERAGE(HK11:HK511) -> 2.475 | HL7: =AVERAGE(HL11:HL511) -> 3.502 | HN7: =AVERAGE(HN11:HN511) -> 3.2514 | HO7: =AVERAGE(HO11:HO511) -> 4.1824 | HQ7: =AVERAGE(HQ11:HQ511) -> 2.4562 | HR7: =AVERAGE(HR11:HR511) -> 2.9348 | HT7: =AVERAGE(HT11:HT511) -> 2.7138 | HU7: =AVERAGE(HU11:HU511) -> 3.2908 | HW7: =AVERAGE(HW11:HW511) -> 2.5424 | HX7: =AVERAGE(HX11:HX511) -> 3.1436 | HZ7: =AVERAGE(HZ11:HZ511) -> 2.7544 | IA7: =AVERAGE(IA11:IA511) -> 3.4506 | IC7: =AVERAGE(IC11:IC511) -> 2.6442 | ID7: =AVERAGE(ID11:ID511) -> 3.2302 | IF7: =AVERAGE(IF11:IF511) -> 2.7742 | IG7: =AVERAGE(IG11:IG511) -> 3.3924 | II7: =AVERAGE(II11:II511) -> 2.5206 | IJ7: =AVERAGE(IJ11:IJ511) -> 3.2068 | IL7: =AVERAGE(IL11:IL511) -> 2.3238 | IM7: =AVERAGE(IM11:IM511) -> 2.8536 | IO7: =AVERAGE(IO11:IO511) -> 2.25 | IP7: =AVERAGE(IP11:IP511) -> 3.1202 | IR7: =AVERAGE(IR11:IR511) -> 2.3864 | IS7: =AVERAGE(IS11:IS511) -> 3.1366 | IU7: =AVERAGE(IU11:IU511) -> 2.7048 | IV7: =AVERAGE(IV11:IV511) -> 3.4386 | IX7: =AVERAGE(IX11:IX511) -> 2.321 | IY7: =AVERAGE(IY11:IY511) -> 3.1562 | JA7: =AVERAGE(JA11:JA511) -> 2.4954 | JB7: =AVERAGE(JB11:JB511) -> 3.231 | JD7: =AVERAGE(JD11:JD511) -> 2.9816 | JE7: =AVERAGE(JE11:JE511) -> 3.395 | JG7: =AVERAGE(JG11:JG511) -> 2.011 | JH7: =AVERAGE(JH11:JH511) -> 2.465 | JJ7: =AVERAGE(JJ11:JJ511) -> 3.0244 | JK7: =AVERAGE(JK11:JK511) -> 3.7958 | JM7: =AVERAGE(JM11:JM511) -> 2.6288 | JN7: =AVERAGE(JN11:JN511) -> 2.9778 | JP7: =AVERAGE(JP11:JP511) -> 2.6256 | JQ7: =AVERAGE(JQ11:JQ511) -> 3.1624 | JS7: =AVERAGE(JS11:JS511) -> 2.3524 | JT7: =AVERAGE(JT11:JT511) -> 2.8478 | JV7: =AVERAGE(JV11:JV511) -> 2.6838 | JW7: =AVERAGE(JW11:JW511) -> 3.2398 | JY7: =AVERAGE(JY11:JY511) -> 2.3748 | JZ7: =AVERAGE(JZ11:JZ511) -> 3.374 | KB7: =AVERAGE(KB11:KB511) -> 2.2578 | KC7: =AVERAGE(KC11:KC511) -> 2.7944 | KE7: =AVERAGE(KE11:KE511) -> 2.2662 | KF7: =AVERAGE(KF11:KF511) -> 2.9658 | KH7: =AVERAGE(KH11:KH511) -> 2.1812 | KI7: =AVERAGE(KI11:KI511) -> 2.785 | KK7: =AVERAGE(KK11:KK511) -> 2.427 | KL7: =AVERAGE(KL11:KL511) -> 3.298 | KN7: =AVERAGE(KN11:KN511) -> 2.582 | KO7: =AVERAGE(KO11:KO511) -> 3.263 | KQ7: =AVERAGE(KQ11:KQ511) -> 2.8654 | KR7: =AVERAGE(KR11:KR511) -> 3.5288 | KT7: =AVERAGE(KT11:KT511) -> 2.5768 | KU7: =AVERAGE(KU11:KU511) -> 3.4046 | KW7: =AVERAGE(KW11:KW511) -> 2.6818 | KX7: =AVERAGE(KX11:KX511) -> 3.3358 | KZ7: =AVERAGE(KZ11:KZ511) -> 2.5544 | LA7: =AVERAGE(LA11:LA511) -> 3.3506 | LC7: =AVERAGE(LC11:LC511) -> 2.4194 | LD7: =AVERAGE(LD11:LD511) -> 3.103 | LF7: =AVERAGE(LF11:LF511) -> 2.6032 | LG7: =AVERAGE(LG11:LG511) -> 3.2436 | LI7: =AVERAGE(LI11:LI511) -> 2.4458 | LJ7: =AVERAGE(LJ11:LJ511) -> 3.2372 | LL7: =AVERAGE(LL11:LL511) -> 2.5012 | LM7: =AVERAGE(LM11:LM511) -> 3.5234 | LO7: =AVERAGE(LO11:LO511) -> 2.7434 | LP7: =AVERAGE(LP11:LP511) -> 3.5172 | LR7: =AVERAGE(LR11:LR511) -> 2.5564 | LS7: =AVERAGE(LS11:LS511) -> 2.9598 | LU7: =AVERAGE(LU11:LU511) -> 2.1916 | LV7: =AVERAGE(LV11:LV511) -> 2.7576 | LX7: =AVERAGE(LX11:LX511) -> 2.537 | LY7: =AVERAGE(LY11:LY511) -> 3.2984 | MA7: =AVERAGE(MA11:MA511) -> 2.351 | MB7: =AVERAGE(MB11:MB511) -> 3.3556 | MD7: =AVERAGE(MD11:MD511) -> 2.4668 | ME7: =AVERAGE(ME11:ME511) -> 3.1998 | MG7: =AVERAGE(MG11:MG511) -> 2.757 | MH7: =AVERAGE(MH11:MH511) -> 3.2758 | MJ7: =AVERAGE(MJ11:MJ511) -> 2.706 | MK7: =AVERAGE(MK11:MK511) -> 3.314 | MM7: =AVERAGE(MM11:MM511) -> 2.3522 | MN7: =AVERAGE(MN11:MN511) -> 3.2276 | MP7: =AVERAGE(MP11:MP511) -> 2.767 | MQ7: =AVERAGE(MQ11:MQ511) -> 3.455 | MS7: =AVERAGE(MS11:MS511) -> 2.6404 | MT7: =AVERAGE(MT11:MT511) -> 3.385 | MV7: =AVERAGE(MV11:MV511) -> 2.4908 | MW7: =AVERAGE(MW11:MW511) -> 3.2386 | MY7: =AVERAGE(MY11:MY511) -> 2.4516 | MZ7: =AVERAGE(MZ11:MZ511) -> 3.2724 | NB7: =AVERAGE(NB11:NB511) -> 2.6702 | NC7: =AVERAGE(NC11:NC511) -> 3.6082 | NE7: =AVERAGE(NE11:NE511) -> 2.4674 | NF7: =AVERAGE(NF11:NF511) -> 3.1212 | NH7: =AVERAGE(NH11:NH511) -> 2.3982 | NI7: =AVERAGE(NI11:NI511) -> 3.0802 | NK7: =AVERAGE(NK11:NK511) -> 2.6224 | NL7: =AVERAGE(NL11:NL511) -> 3.324 | NN7: =AVERAGE(NN11:NN511) -> 2.433 | NO7: =AVERAGE(NO11:NO511) -> 2.8708 | NQ7: =AVERAGE(NQ11:NQ511) -> 2.3654 | NR7: =AVERAGE(NR11:NR511) -> 2.862 | NT7: =AVERAGE(NT11:NT511) -> 2.6244 | NU7: =AVERAGE(NU11:NU511) -> 3.1872 | NW7: =AVERAGE(NW11:NW511) -> 2.4174 | NX7: =AVERAGE(NX11:NX511) -> 3.0004 | NZ7: =AVERAGE(NZ11:NZ511) -> 2.2908 | OA7: =AVERAGE(OA11:OA511) -> 2.9154 | OC7: =AVERAGE(OC11:OC511) -> 2.7134 | OD7: =AVERAGE(OD11:OD511) -> 3.4018 | OF7: =AVERAGE(OF11:OF511) -> 2.4512 | OG7: =AVERAGE(OG11:OG511) -> 3.1458 | OI7: =AVERAGE(OI11:OI511) -> 2.2082 | OJ7: =AVERAGE(OJ11:OJ511) -> 2.78 | OL7: =AVERAGE(OL11:OL511) -> 3.0288 | OM7: =AVERAGE(OM11:OM511) -> 3.4284 | OO7: =AVERAGE(OO11:OO511) -> 2.2274 | OP7: =AVERAGE(OP11:OP511) -> 2.7724 | OR7: =AVERAGE(OR11:OR511) -> 2.466 | OS7: =AVERAGE(OS11:OS511) -> 3.1876 | OU7: =AVERAGE(OU11:OU511) -> 2.5926 | OV7: =AVERAGE(OV11:OV511) -> 3.0336 | OX7: =AVERAGE(OX11:OX511) -> 2.3468 | OY7: =AVERAGE(OY11:OY511) -> 2.9744 | PA7: =AVERAGE(PA11:PA511) -> 2.6796 | PB7: =AVERAGE(PB11:PB511) -> 3.2442 | PD7: =AVERAGE(PD11:PD511) -> 2.8116 | PE7: =AVERAGE(PE11:PE511) -> 3.3876 | PG7: =AVERAGE(PG11:PG511) -> 2.554 | PH7: =AVERAGE(PH11:PH511) -> 3.4036 | PJ7: =AVERAGE(PJ11:PJ511) -> 2.8344 | PK7: =AVERAGE(PK11:PK511) -> 3.2982 | PM7: =AVERAGE(PM11:PM511) -> 2.6412 | PN7: =AVERAGE(PN11:PN511) -> 3.2744 | PP7: =AVERAGE(PP11:PP511) -> 2.5698 | PQ7: =AVERAGE(PQ11:PQ511) -> 3.0952 | PS7: =AVERAGE(PS11:PS511) -> 2.3634 | PT7: =AVERAGE(PT11:PT511) -> 3.2194 | PV7: =AVERAGE(PV11:PV511) -> 2.55 | PW7: =AVERAGE(PW11:PW511) -> 3.3472 | PY7: =AVERAGE(PY11:PY511) -> 2.816 | PZ7: =AVERAGE(PZ11:PZ511) -> 3.3856 | QB7: =AVERAGE(QB11:QB511) -> 2.0298 | QC7: =AVERAGE(QC11:QC511) -> 2.6648 | QE7: =AVERAGE(QE11:QE511) -> 2.425 | QF7: =AVERAGE(QF11:QF511) -> 3.1886 | QH7: =AVERAGE(QH11:QH511) -> 2.2258 | QI7: =AVERAGE(QI11:QI511) -> 2.9128 | QK7: =AVERAGE(QK11:QK511) -> 2.5064 | QL7: =AVERAGE(QL11:QL511) -> 3.2894 | QN7: =AVERAGE(QN11:QN511) -> 2.4808 | QO7: =AVERAGE(QO11:QO511) -> 3.1028 | QQ7: =AVERAGE(QQ11:QQ511) -> 2.6498 | QR7: =AVERAGE(QR11:QR511) -> 3.2112 | QT7: =AVERAGE(QT11:QT511) -> 2.243 | QU7: =AVERAGE(QU11:QU511) -> 2.9354 | QW7: =AVERAGE(QW11:QW511) -> 2.0404 | QX7: =AVERAGE(QX11:QX511) -> 2.56 | QZ7: =AVERAGE(QZ11:QZ511) -> 2.3792 | RA7: =AVERAGE(RA11:RA511) -> 3.1006 | RC7: =AVERAGE(RC11:RC511) -> 2.537 | RD7: =AVERAGE(RD11:RD511) -> 3.2786 | RF7: =AVERAGE(RF11:RF511) -> 2.8196 | RG7: =AVERAGE(RG11:RG511) -> 3.6282 | RI7: =AVERAGE(RI11:RI511) -> 2.595 | RJ7: =AVERAGE(RJ11:RJ511) -> 3.5244 | RL7: =AVERAGE(RL11:RL511) -> 2.4102 | RM7: =AVERAGE(RM11:RM511) -> 3.004 | RO7: =AVERAGE(RO11:RO511) -> 2.3042 | RP7: =AVERAGE(RP11:RP511) -> 3.138 | RR7: =AVERAGE(RR11:RR511) -> 2.6088 | RS7: =AVERAGE(RS11:RS511) -> 3.0522 | RU7: =AVERAGE(RU11:RU511) -> 2.5818 | RV7: =AVERAGE(RV11:RV511) -> 3.007 | RX7: =AVERAGE(RX11:RX511) -> 2.5214 | RY7: =AVERAGE(RY11:RY511) -> 3.2374 | SA7: =AVERAGE(SA11:SA511) -> 2.4232 | SB7: =AVERAGE(SB11:SB511) -> 3.09 | SD7: =AVERAGE(SD11:SD511) -> 2.1902 | SE7: =AVERAGE(SE11:SE511) -> 2.8938 | SG7: =AVERAGE(SG11:SG511) -> 2.7484 | SH7: =AVERAGE(SH11:SH511) -> 3.3322 | SJ7: =AVERAGE(SJ11:SJ511) -> 1.99 | SK7: =AVERAGE(SK11:SK511) -> 2.8982 | SM7: =AVERAGE(SM11:SM511) -> 2.6238 | SN7: =AVERAGE(SN11:SN511) -> 3.3208 | SP7: =AVERAGE(SP11:SP511) -> 2.7308 | SQ7: =AVERAGE(SQ11:SQ511) -> 3.5324 | SS7: =AVERAGE(SS11:SS511) -> 2.5004 | ST7: =AVERAGE(ST11:ST511) -> 2.987 | SV7: =AVERAGE(SV11:SV511) -> 2.6212 | SW7: =AVERAGE(SW11:SW511) -> 3.3594 | SY7: =AVERAGE(SY11:SY511) -> 2.3082 | SZ7: =AVERAGE(SZ11:SZ511) -> 2.9626 | TB7: =AVERAGE(TB11:TB511) -> 2.7542 | TC7: =AVERAGE(TC11:TC511) -> 3.3324 | TE7: =AVERAGE(TE11:TE511) -> 2.5994 | TF7: =AVERAGE(TF11:TF511) -> 3.3396 | TH7: =AVERAGE(TH11:TH511) -> 2.7354 | TI7: =AVERAGE(TI11:TI511) -> 3.2828 | TK7: =AVERAGE(TK11:TK511) -> 2.8734 | TL7: =AVERAGE(TL11:TL511) -> 3.5684 | TN7: =AVERAGE(TN11:TN511) -> 2.9476 | TO7: =AVERAGE(TO11:TO511) -> 3.5618 | TQ7: =AVERAGE(TQ11:TQ511) -> 2.5104 | TR7: =AVERAGE(TR11:TR511) -> 3.301 | TT7: =AVERAGE(TT11:TT511) -> 2.633 | TU7: =AVERAGE(TU11:TU511) -> 3.0508 | TW7: =AVERAGE(TW11:TW511) -> 2.5442 | TX7: =AVERAGE(TX11:TX511) -> 3.2294 | TZ7: =AVERAGE(TZ11:TZ511) -> 2.9136 | UA7: =AVERAGE(UA11:UA511) -> 3.5886 | UC7: =AVERAGE(UC11:UC511) -> 2.3948 | UD7: =AVERAGE(UD11:UD511) -> 3.009 | UF7: =AVERAGE(UF11:UF511) -> 2.5326 | UG7: =AVERAGE(UG11:UG511) -> 3.3096 | UI7: =AVERAGE(UI11:UI511) -> 2.7978 | UJ7: =AVERAGE(UJ11:UJ511) -> 3.433 | UL7: =AVERAGE(UL11:UL511) -> 2.4806 | UM7: =AVERAGE(UM11:UM511) -> 3.0866 | UO7: =AVERAGE(UO11:UO511) -> 2.1792 | UP7: =AVERAGE(UP11:UP511) -> 2.9056 | UR7: =AVERAGE(UR11:UR511) -> 2.1356 | US7: =AVERAGE(US11:US511) -> 2.739 | UU7: =AVERAGE(UU11:UU511) -> 2.588 | UV7: =AVERAGE(UV11:UV511) -> 3.1474 | UX7: =AVERAGE(UX11:UX511) -> 2.3662 | UY7: =AVERAGE(UY11:UY511) -> 3.0362 | VA7: =AVERAGE(VA11:VA511) -> 2.5744 | VB7: =AVERAGE(VB11:VB511) -> 3.0516 | VD7: =AVERAGE(VD11:VD511) -> 2.7666 | VE7: =AVERAGE(VE11:VE511) -> 3.5198 | VG7: =AVERAGE(VG11:VG511) -> 2.028 | VH7: =AVERAGE(VH11:VH511) -> 2.767 | VJ7: =AVERAGE(VJ11:VJ511) -> 2.723 | VK7: =AVERAGE(VK11:VK511) -> 3.4362 | VM7: =AVERAGE(VM11:VM511) -> 2.7604 | VN7: =AVERAGE(VN11:VN511) -> 3.3442 | VP7: =AVERAGE(VP11:VP511) -> 2.2446 | VQ7: =AVERAGE(VQ11:VQ511) -> 2.958 | VS7: =AVERAGE(VS11:VS511) -> 2.6658 | VT7: =AVERAGE(VT11:VT511) -> 3.4268 | VV7: =AVERAGE(VV11:VV511) -> 2.8928 | VW7: =AVERAGE(VW11:VW511) -> 3.71 | VY7: =AVERAGE(VY11:VY511) -> 2.112 | VZ7: =AVERAGE(VZ11:VZ511) -> 2.7758 | WB7: =AVERAGE(WB11:WB511) -> 2.5152 | WC7: =AVERAGE(WC11:WC511) -> 3.1568 | WE7: =AVERAGE(WE11:WE511) -> 2.4112 | WF7: =AVERAGE(WF11:WF511) -> 3.225 | WH7: =AVERAGE(WH11:WH511) -> 2.4072 | WI7: =AVERAGE(WI11:WI511) -> 3.1982 | WK7: =AVERAGE(WK11:WK511) -> 3.1298 | WL7: =AVERAGE(WL11:WL511) -> 4.03 | WN7: =AVERAGE(WN11:WN511) -> 2.2842 | WO7: =AVERAGE(WO11:WO511) -> 2.9904 | WQ7: =AVERAGE(WQ11:WQ511) -> 2.1948 | WR7: =AVERAGE(WR11:WR511) -> 2.9644 | WT7: =AVERAGE(WT11:WT511) -> 2.7458 | WU7: =AVERAGE(WU11:WU511) -> 3.4884 | WW7: =AVERAGE(WW11:WW511) -> 2.459 | WX7: =AVERAGE(WX11:WX511) -> 3.1078 | WZ7: =AVERAGE(WZ11:WZ511) -> 2.4438 | XA7: =AVERAGE(XA11:XA511) -> 2.8224 | XC7: =AVERAGE(XC11:XC511) -> 2.5126 | XD7: =AVERAGE(XD11:XD511) -> 3.1284 | XF7: =AVERAGE(XF11:XF511) -> 2.534 | XG7: =AVERAGE(XG11:XG511) -> 3.2916 | XI7: =AVERAGE(XI11:XI511) -> 2.7928 | XJ7: =AVERAGE(XJ11:XJ511) -> 3.495 | XL7: =AVERAGE(XL11:XL511) -> 2.3342 | XM7: =AVERAGE(XM11:XM511) -> 3.0024 | XO7: =AVERAGE(XO11:XO511) -> 2.204 | XP7: =AVERAGE(XP11:XP511) -> 3.2464 | XR7: =AVERAGE(XR11:XR511) -> 2.708 | XS7: =AVERAGE(XS11:XS511) -> 3.1554 | XU7: =AVERAGE(XU11:XU511) -> 2.2016 | XV7: =AVERAGE(XV11:XV511) -> 3.1616 | XX7: =AVERAGE(XX11:XX511) -> 3.0278 | XY7: =AVERAGE(XY11:XY511) -> 3.6284 | YA7: =AVERAGE(YA11:YA511) -> 2.8184 | YB7: =AVERAGE(YB11:YB511) -> 3.6638 | YD7: =AVERAGE(YD11:YD511) -> 2.9944 | YE7: =AVERAGE(YE11:YE511) -> 3.7748 | YG7: =AVERAGE(YG11:YG511) -> 2.1976 | YH7: =AVERAGE(YH11:YH511) -> 2.8092 | YJ7: =AVERAGE(YJ11:YJ511) -> 2.4694 | YK7: =AVERAGE(YK11:YK511) -> 3.2274 | YM7: =AVERAGE(YM11:YM511) -> 2.6234 | YN7: =AVERAGE(YN11:YN511) -> 3.2746 | YP7: =AVERAGE(YP11:YP511) -> 2.1766 | YQ7: =AVERAGE(YQ11:YQ511) -> 2.8504 | YS7: =AVERAGE(YS11:YS511) -> 2.7442 | YT7: =AVERAGE(YT11:YT511) -> 3.338 | YV7: =AVERAGE(YV11:YV511) -> 2.5096 | YW7: =AVERAGE(YW11:YW511) -> 3.0844 | YY7: =AVERAGE(YY11:YY511) -> 2.546 | YZ7: =AVERAGE(YZ11:YZ511) -> 3.1348 | ZB7: =AVERAGE(ZB11:ZB511) -> 2.5016 | ZC7: =AVERAGE(ZC11:ZC511) -> 3.0832 | ZE7: =AVERAGE(ZE11:ZE511) -> 2.6154 | ZF7: =AVERAGE(ZF11:ZF511) -> 3.1098 | ZH7: =AVERAGE(ZH11:ZH511) -> 2.3982 | ZI7: =AVERAGE(ZI11:ZI511) -> 2.8978 | ZK7: =AVERAGE(ZK11:ZK511) -> 2.7258 | ZL7: =AVERAGE(ZL11:ZL511) -> 3.2874 | ZN7: =AVERAGE(ZN11:ZN511) -> 2.528 | ZO7: =AVERAGE(ZO11:ZO511) -> 3.0128 | ZQ7: =AVERAGE(ZQ11:ZQ511) -> 2.5226 | ZR7: =AVERAGE(ZR11:ZR511) -> 3.3226 | ZT7: =AVERAGE(ZT11:ZT511) -> 2.281 | ZU7: =AVERAGE(ZU11:ZU511) -> 2.645 | ZW7: =AVERAGE(ZW11:ZW511) -> 2.7842 | ZX7: =AVERAGE(ZX11:ZX511) -> 3.4718 | ZZ7: =AVERAGE(ZZ11:ZZ511) -> 2.6018 | AAA7: =AVERAGE(AAA11:AAA511) -> 3.1802 | AAC7: =AVERAGE(AAC11:AAC511) -> 2.5218 | AAD7: =AVERAGE(AAD11:AAD511) -> 3.2934 | AAF7: =AVERAGE(AAF11:AAF511) -> 2.5576 | AAG7: =AVERAGE(AAG11:AAG511) -> 3.285 | AAI7: =AVERAGE(AAI11:AAI511) -> 2.743 | AAJ7: =AVERAGE(AAJ11:AAJ511) -> 3.5034 | AAL7: =AVERAGE(AAL11:AAL511) -> 2.2848 | AAM7: =AVERAGE(AAM11:AAM511) -> 2.8024 | AAO7: =AVERAGE(AAO11:AAO511) -> 2.4648 | AAP7: =AVERAGE(AAP11:AAP511) -> 3.2846 | AAR7: =AVERAGE(AAR11:AAR511) -> 2.5192 | AAS7: =AVERAGE(AAS11:AAS511) -> 3.2844 | AAU7: =AVERAGE(AAU11:AAU511) -> 2.203 | AAV7: =AVERAGE(AAV11:AAV511) -> 2.7994 | AAX7: =AVERAGE(AAX11:AAX511) -> 2.3316 | AAY7: =AVERAGE(AAY11:AAY511) -> 3.1004 | ABA7: =AVERAGE(ABA11:ABA511) -> 2.3902 | ABB7: =AVERAGE(ABB11:ABB511) -> 2.9528 | ABD7: =AVERAGE(ABD11:ABD511) -> 2.5022 | ABE7: =AVERAGE(ABE11:ABE511) -> 3.2164 | ABG7: =AVERAGE(ABG11:ABG511) -> 2.5266 | ABH7: =AVERAGE(ABH11:ABH511) -> 3.334 | ABJ7: =AVERAGE(ABJ11:ABJ511) -> 3.0212 | ABK7: =AVERAGE(ABK11:ABK511) -> 3.8936 | ABM7: =AVERAGE(ABM11:ABM511) -> 2.4004 | ABN7: =AVERAGE(ABN11:ABN511) -> 3.0036 | ABP7: =AVERAGE(ABP11:ABP511) -> 2.7678 | ABQ7: =AVERAGE(ABQ11:ABQ511) -> 3.3578 | ABS7: =AVERAGE(ABS11:ABS511) -> 2.9772 | ABT7: =AVERAGE(ABT11:ABT511) -> 3.3488 | ABV7: =AVERAGE(ABV11:ABV511) -> 2.5626 | ABW7: =AVERAGE(ABW11:ABW511) -> 3.2164 | ABY7: =AVERAGE(ABY11:ABY511) -> 2.5538 | ABZ7: =AVERAGE(ABZ11:ABZ511) -> 3.5082 | ACB7: =AVERAGE(ACB11:ACB511) -> 2.5608 | ACC7: =AVERAGE(ACC11:ACC511) -> 3.388 | ACE7: =AVERAGE(ACE11:ACE511) -> 2.7104 | ACF7: =AVERAGE(ACF11:ACF511) -> 3.3994 | ACH7: =AVERAGE(ACH11:ACH511) -> 2.6682 | ACI7: =AVERAGE(ACI11:ACI511) -> 3.5042 | ACK7: =AVERAGE(ACK11:ACK511) -> 2.3088 | ACL7: =AVERAGE(ACL11:ACL511) -> 3.0852 | ACN7: =AVERAGE(ACN11:ACN511) -> 2.5506 | ACO7: =AVERAGE(ACO11:ACO511) -> 3.1782 | ACQ7: =AVERAGE(ACQ11:ACQ511) -> 2.562 | ACR7: =AVERAGE(ACR11:ACR511) -> 3.2458 | ACT7: =AVERAGE(ACT11:ACT511) -> 2.5284 | ACU7: =AVERAGE(ACU11:ACU511) -> 3.3856 | ACW7: =AVERAGE(ACW11:ACW511) -> 2.399 | ACX7: =AVERAGE(ACX11:ACX511) -> 2.8764 | ACZ7: =AVERAGE(ACZ11:ACZ511) -> 2.4602 | ADA7: =AVERAGE(ADA11:ADA511) -> 3.1144 | ADC7: =AVERAGE(ADC11:ADC511) -> 1.9642 | ADD7: =AVERAGE(ADD11:ADD511) -> 2.6226 | ADF7: =AVERAGE(ADF11:ADF511) -> 2.4932 | ADG7: =AVERAGE(ADG11:ADG511) -> 3.0092 | ADI7: =AVERAGE(ADI11:ADI511) -> 2.6488 | ADJ7: =AVERAGE(ADJ11:ADJ511) -> 3.2588 | ADL7: =AVERAGE(ADL11:ADL511) -> 2.3502 | ADM7: =AVERAGE(ADM11:ADM511) -> 3.2504 | ADO7: =AVERAGE(ADO11:ADO511) -> 2.5508 | ADP7: =AVERAGE(ADP11:ADP511) -> 3.1554 | ADR7: =AVERAGE(ADR11:ADR511) -> 2.615 | ADS7: =AVERAGE(ADS11:ADS511) -> 3.3158 | ADU7: =AVERAGE(ADU11:ADU511) -> 2.9266 | ADV7: =AVERAGE(ADV11:ADV511) -> 3.6002 | ADX7: =AVERAGE(ADX11:ADX511) -> 2.4378 | ADY7: =AVERAGE(ADY11:ADY511) -> 3.1304 | AEA7: =AVERAGE(AEA11:AEA511) -> 2.037 | AEB7: =AVERAGE(AEB11:AEB511) -> 2.6592 | AED7: =AVERAGE(AED11:AED511) -> 2.1772 | AEE7: =AVERAGE(AEE11:AEE511) -> 2.8088 | AEG7: =AVERAGE(AEG11:AEG511) -> 2.8164 | AEH7: =AVERAGE(AEH11:AEH511) -> 3.4044 | AEJ7: =AVERAGE(AEJ11:AEJ511) -> 2.2236 | AEK7: =AVERAGE(AEK11:AEK511) -> 2.7424 | AEM7: =AVERAGE(AEM11:AEM511) -> 2.4412 | AEN7: =AVERAGE(AEN11:AEN511) -> 3.2232 | AEP7: =AVERAGE(AEP11:AEP511) -> 2.6224 | AEQ7: =AVERAGE(AEQ11:AEQ511) -> 3.3768 | AES7: =AVERAGE(AES11:AES511) -> 2.6554 | AET7: =AVERAGE(AET11:AET511) -> 3.4952 | AEV7: =AVERAGE(AEV11:AEV511) -> 2.7816 | AEW7: =AVERAGE(AEW11:AEW511) -> 3.6094 | AEY7: =AVERAGE(AEY11:AEY511) -> 2.4072 | AEZ7: =AVERAGE(AEZ11:AEZ511) -> 3.2428 | AFB7: =AVERAGE(AFB11:AFB511) -> 2.421 | AFC7: =AVERAGE(AFC11:AFC511) -> 3.232 | AFE7: =AVERAGE(AFE11:AFE511) -> 1.981 | AFF7: =AVERAGE(AFF11:AFF511) -> 2.4472 | AFH7: =AVERAGE(AFH11:AFH511) -> 2.5466 | AFI7: =AVERAGE(AFI11:AFI511) -> 3.1584 | AFK7: =AVERAGE(AFK11:AFK511) -> 2.0112 | AFL7: =AVERAGE(AFL11:AFL511) -> 2.5574 | AFN7: =AVERAGE(AFN11:AFN511) -> 2.4608 | AFO7: =AVERAGE(AFO11:AFO511) -> 2.9196 | AFQ7: =AVERAGE(AFQ11:AFQ511) -> 2.4868 | AFR7: =AVERAGE(AFR11:AFR511) -> 3.3952 | AFT7: =AVERAGE(AFT11:AFT511) -> 2.089 | AFU7: =AVERAGE(AFU11:AFU511) -> 2.7586 | AFW7: =AVERAGE(AFW11:AFW511) -> 2.5522 | AFX7: =AVERAGE(AFX11:AFX511) -> 3.2234 | AFZ7: =AVERAGE(AFZ11:AFZ511) -> 2.403 | AGA7: =AVERAGE(AGA11:AGA511) -> 3.1198 | AGC7: =AVERAGE(AGC11:AGC511) -> 2.9284 | AGD7: =AVERAGE(AGD11:AGD511) -> 3.5162 | AGF7: =AVERAGE(AGF11:AGF511) -> 2.1084 | AGG7: =AVERAGE(AGG11:AGG511) -> 2.6942 | AGI7: =AVERAGE(AGI11:AGI511) -> 2.4954 | AGJ7: =AVERAGE(AGJ11:AGJ511) -> 3.3268 | AGL7: =AVERAGE(AGL11:AGL511) -> 2.7318 | AGM7: =AVERAGE(AGM11:AGM511) -> 3.3194 | AGO7: =AVERAGE(AGO11:AGO511) -> 2.7012 | AGP7: =AVERAGE(AGP11:AGP511) -> 3.6276 | AGR7: =AVERAGE(AGR11:AGR511) -> 2.1102 | AGS7: =AVERAGE(AGS11:AGS511) -> 2.6766 | AGU7: =AVERAGE(AGU11:AGU511) -> 2.4308 | AGV7: =AVERAGE(AGV11:AGV511) -> 2.9512 | AGX7: =AVERAGE(AGX11:AGX511) -> 2.3504 | AGY7: =AVERAGE(AGY11:AGY511) -> 2.863 | AHA7: =AVERAGE(AHA11:AHA511) -> 2.1616 | AHB7: =AVERAGE(AHB11:AHB511) -> 2.945 | AHD7: =AVERAGE(AHD11:AHD511) -> 2.5124 | AHE7: =AVERAGE(AHE11:AHE511) -> 3.1226 | AHG7: =AVERAGE(AHG11:AHG511) -> 2.2702 | AHH7: =AVERAGE(AHH11:AHH511) -> 2.814 | AHJ7: =AVERAGE(AHJ11:AHJ511) -> 2.2058 | AHK7: =AVERAGE(AHK11:AHK511) -> 2.7798 | AHM7: =AVERAGE(AHM11:AHM511) -> 2.362 | AHN7: =AVERAGE(AHN11:AHN511) -> 2.983 | AHP7: =AVERAGE(AHP11:AHP511) -> 2.28 | AHQ7: =AVERAGE(AHQ11:AHQ511) -> 2.8358 | AHS7: =AVERAGE(AHS11:AHS511) -> 2.3812 | AHT7: =AVERAGE(AHT11:AHT511) -> 2.9956 | AHV7: =AVERAGE(AHV11:AHV511) -> 2.5752 | AHW7: =AVERAGE(AHW11:AHW511) -> 3.1216 | AHY7: =AVERAGE(AHY11:AHY511) -> 2.684 | AHZ7: =AVERAGE(AHZ11:AHZ511) -> 3.2642 | AIB7: =AVERAGE(AIB11:AIB511) -> 2.5194 | AIC7: =AVERAGE(AIC11:AIC511) -> 3.3582 | AIE7: =AVERAGE(AIE11:AIE511) -> 2.7782 | AIF7: =AVERAGE(AIF11:AIF511) -> 3.6428 | AIH7: =AVERAGE(AIH11:AIH511) -> 2.3078 | AII7: =AVERAGE(AII11:AII511) -> 2.9508 | AIK7: =AVERAGE(AIK11:AIK511) -> 2.8562 | AIL7: =AVERAGE(AIL11:AIL511) -> 3.4144 | AIN7: =AVERAGE(AIN11:AIN511) -> 2.2984 | AIO7: =AVERAGE(AIO11:AIO511) -> 3.0068 | AIQ7: =AVERAGE(AIQ11:AIQ511) -> 2.3568 | AIR7: =AVERAGE(AIR11:AIR511) -> 3.2236 | AIT7: =AVERAGE(AIT11:AIT511) -> 2.4184 | AIU7: =AVERAGE(AIU11:AIU511) -> 3.1228 | AIW7: =AVERAGE(AIW11:AIW511) -> 2.5264 | AIX7: =AVERAGE(AIX11:AIX511) -> 3.1328 | AIZ7: =AVERAGE(AIZ11:AIZ511) -> 1.9908 | AJA7: =AVERAGE(AJA11:AJA511) -> 2.4234 | AJC7: =AVERAGE(AJC11:AJC511) -> 2.4762 | AJD7: =AVERAGE(AJD11:AJD511) -> 3.073 | AJF7: =AVERAGE(AJF11:AJF511) -> 2.2874 | AJG7: =AVERAGE(AJG11:AJG511) -> 3.1034 | AJI7: =AVERAGE(AJI11:AJI511) -> 2.3552 | AJJ7: =AVERAGE(AJJ11:AJJ511) -> 2.845 | AJL7: =AVERAGE(AJL11:AJL511) -> 2.7268 | AJM7: =AVERAGE(AJM11:AJM511) -> 3.2734 | AJO7: =AVERAGE(AJO11:AJO511) -> 2.1468 | AJP7: =AVERAGE(AJP11:AJP511) -> 2.8686 | AJR7: =AVERAGE(AJR11:AJR511) -> 2.424 | AJS7: =AVERAGE(AJS11:AJS511) -> 3.0854 | AJU7: =AVERAGE(AJU11:AJU511) -> 2.4674 | AJV7: =AVERAGE(AJV11:AJV511) -> 3.0034 | AJX7: =AVERAGE(AJX11:AJX511) -> 2.451 | AJY7: =AVERAGE(AJY11:AJY511) -> 3.2542 | AKA7: =AVERAGE(AKA11:AKA511) -> 2.428 | AKB7: =AVERAGE(AKB11:AKB511) -> 3.0282 | AKD7: =AVERAGE(AKD11:AKD511) -> 2.903 | AKE7: =AVERAGE(AKE11:AKE511) -> 3.3784 | AKG7: =AVERAGE(AKG11:AKG511) -> 1.7574 | AKH7: =AVERAGE(AKH11:AKH511) -> 2.363 | AKJ7: =AVERAGE(AKJ11:AKJ511) -> 2.669 | AKK7: =AVERAGE(AKK11:AKK511) -> 3.2326 | AKM7: =AVERAGE(AKM11:AKM511) -> 2.3832 | AKN7: =AVERAGE(AKN11:AKN511) -> 2.8672 | AKP7: =AVERAGE(AKP11:AKP511) -> 2.6624 | AKQ7: =AVERAGE(AKQ11:AKQ511) -> 3.438 | AKS7: =AVERAGE(AKS11:AKS511) -> 2.4334 | AKT7: =AVERAGE(AKT11:AKT511) -> 3.323 | AKV7: =AVERAGE(AKV11:AKV511) -> 2.5796 | AKW7: =AVERAGE(AKW11:AKW511) -> 3.2346 | AKY7: =AVERAGE(AKY11:AKY511) -> 2.393 | AKZ7: =AVERAGE(AKZ11:AKZ511) -> 3.1802 | ALB7: =AVERAGE(ALB11:ALB511) -> 2.4508 | ALC7: =AVERAGE(ALC11:ALC511) -> 3.0382 | ALE7: =AVERAGE(ALE11:ALE511) -> 2.654 | ALF7: =AVERAGE(ALF11:ALF511) -> 3.0526 | ALH7: =AVERAGE(ALH11:ALH511) -> 2.2482 | ALI7: =AVERAGE(ALI11:ALI511) -> 3.1226 | ALK7: =AVERAGE(ALK11:ALK511) -> 2.957 | ALL7: =AVERAGE(ALL11:ALL511) -> 3.5392 | ALN7: =AVERAGE(ALN11:ALN511) -> 2.6398 | ALO7: =AVERAGE(ALO11:ALO511) -> 3.2036 | ALQ7: =AVERAGE(ALQ11:ALQ511) -> 2.5524 | ALR7: =AVERAGE(ALR11:ALR511) -> 3.3106 | ALT7: =AVERAGE(ALT11:ALT511) -> 2.2634 | ALU7: =AVERAGE(ALU11:ALU511) -> 2.6804 | ALW7: =AVERAGE(ALW11:ALW511) -> 2.6246 | ALX7: =AVERAGE(ALX11:ALX511) -> 3.6332 | ALZ7: =AVERAGE(ALZ11:ALZ511) -> 2.4084 | AMA7: =AVERAGE(AMA11:AMA511) -> 2.998 | AMC7: =AVERAGE(AMC11:AMC511) -> 2.3968 | AMD7: =AVERAGE(AMD11:AMD511) -> 2.986 | AMF7: =AVERAGE(AMF11:AMF511) -> 2.1474 | AMG7: =AVERAGE(AMG11:AMG511) -> 2.8282 | AMI7: =AVERAGE(AMI11:AMI511) -> 2.4634 | AMJ7: =AVERAGE(AMJ11:AMJ511) -> 3.3176 | AML7: =AVERAGE(AML11:AML511) -> 2.2442 | AMM7: =AVERAGE(AMM11:AMM511) -> 2.8412 | AMO7: =AVERAGE(AMO11:AMO511) -> 2.5456 | AMP7: =AVERAGE(AMP11:AMP511) -> 3.4476 | AMR7: =AVERAGE(AMR11:AMR511) -> 2.5644 | AMS7: =AVERAGE(AMS11:AMS511) -> 3.2392 | AMU7: =AVERAGE(AMU11:AMU511) -> 2.9226 | AMV7: =AVERAGE(AMV11:AMV511) -> 3.621 | AMX7: =AVERAGE(AMX11:AMX511) -> 3.0788 | AMY7: =AVERAGE(AMY11:AMY511) -> 3.6934 | ANA7: =AVERAGE(ANA11:ANA511) -> 2.2478 | ANB7: =AVERAGE(ANB11:ANB511) -> 2.91 | AND7: =AVERAGE(AND11:AND511) -> 2.1204 | ANE7: =AVERAGE(ANE11:ANE511) -> 2.9098 | ANG7: =AVERAGE(ANG11:ANG511) -> 2.3188 | ANH7: =AVERAGE(ANH11:ANH511) -> 2.953 | ANJ7: =AVERAGE(ANJ11:ANJ511) -> 2.429 | ANK7: =AVERAGE(ANK11:ANK511) -> 3.0742 | ANM7: =AVERAGE(ANM11:ANM511) -> 2.7936 | ANN7: =AVERAGE(ANN11:ANN511) -> 3.5096 | ANP7: =AVERAGE(ANP11:ANP511) -> 2.2862 | ANQ7: =AVERAGE(ANQ11:ANQ511) -> 3.0506 | ANS7: =AVERAGE(ANS11:ANS511) -> 2.995 | ANT7: =AVERAGE(ANT11:ANT511) -> 3.507 | ANV7: =AVERAGE(ANV11:ANV511) -> 2.5052 | ANW7: =AVERAGE(ANW11:ANW511) -> 3.3552 | ANY7: =AVERAGE(ANY11:ANY511) -> 2.5492 | ANZ7: =AVERAGE(ANZ11:ANZ511) -> 3.3108 | AOB7: =AVERAGE(AOB11:AOB511) -> 2.4602 | AOC7: =AVERAGE(AOC11:AOC511) -> 3.209 | AOE7: =AVERAGE(AOE11:AOE511) -> 2.7826 | AOF7: =AVERAGE(AOF11:AOF511) -> 3.407 | AOH7: =AVERAGE(AOH11:AOH511) -> 2.2834 | AOI7: =AVERAGE(AOI11:AOI511) -> 2.9184 | AOK7: =AVERAGE(AOK11:AOK511) -> 2.5508 | AOL7: =AVERAGE(AOL11:AOL511) -> 3.2278 | AON7: =AVERAGE(AON11:AON511) -> 2.5544 | AOO7: =AVERAGE(AOO11:AOO511) -> 3.2676 | AOQ7: =AVERAGE(AOQ11:AOQ511) -> 2.6066 | AOR7: =AVERAGE(AOR11:AOR511) -> 3.3018 | AOT7: =AVERAGE(AOT11:AOT511) -> 1.9726 | AOU7: =AVERAGE(AOU11:AOU511) -> 2.5078 | AOW7: =AVERAGE(AOW11:AOW511) -> 2.602 | AOX7: =AVERAGE(AOX11:AOX511) -> 3.2908 | AOZ7: =AVERAGE(AOZ11:AOZ511) -> 2.8948 | APA7: =AVERAGE(APA11:APA511) -> 3.5342 | APC7: =AVERAGE(APC11:APC511) -> 2.5858 | APD7: =AVERAGE(APD11:APD511) -> 3.2356 | APF7: =AVERAGE(APF11:APF511) -> 2.575 | APG7: =AVERAGE(APG11:APG511) -> 3.1654 | API7: =AVERAGE(API11:API511) -> 2.7884 | APJ7: =AVERAGE(APJ11:APJ511) -> 3.3152 | APL7: =AVERAGE(APL11:APL511) -> 2.3624 | APM7: =AVERAGE(APM11:APM511) -> 3.1988 | APO7: =AVERAGE(APO11:APO511) -> 2.5198 | APP7: =AVERAGE(APP11:APP511) -> 3.1482 | APR7: =AVERAGE(APR11:APR511) -> 2.3128 | APS7: =AVERAGE(APS11:APS511) -> 3.1412 | APU7: =AVERAGE(APU11:APU511) -> 2.435 | APV7: =AVERAGE(APV11:APV511) -> 2.9736 | APX7: =AVERAGE(APX11:APX511) -> 2.2988 | APY7: =AVERAGE(APY11:APY511) -> 3.1682 | AQA7: =AVERAGE(AQA11:AQA511) -> 2.594 | AQB7: =AVERAGE(AQB11:AQB511) -> 3.2184 | AQD7: =AVERAGE(AQD11:AQD511) -> 2.4674 | AQE7: =AVERAGE(AQE11:AQE511) -> 3.257 | AQG7: =AVERAGE(AQG11:AQG511) -> 2.3828 | AQH7: =AVERAGE(AQH11:AQH511) -> 3.0392 | AQJ7: =AVERAGE(AQJ11:AQJ511) -> 2.936 | AQK7: =AVERAGE(AQK11:AQK511) -> 3.792 | AQM7: =AVERAGE(AQM11:AQM511) -> 2.6516 | AQN7: =AVERAGE(AQN11:AQN511) -> 3.3628 | AQP7: =AVERAGE(AQP11:AQP511) -> 2.5848 | AQQ7: =AVERAGE(AQQ11:AQQ511) -> 3.3574 | AQS7: =AVERAGE(AQS11:AQS511) -> 1.9782 | AQT7: =AVERAGE(AQT11:AQT511) -> 2.728 | AQV7: =AVERAGE(AQV11:AQV511) -> 2.5242 | AQW7: =AVERAGE(AQW11:AQW511) -> 3.1474 | AQY7: =AVERAGE(AQY11:AQY511) -> 2.699 | AQZ7: =AVERAGE(AQZ11:AQZ511) -> 3.5342 | ARB7: =AVERAGE(ARB11:ARB511) -> 2.732 | ARC7: =AVERAGE(ARC11:ARC511) -> 3.2172 | ARE7: =AVERAGE(ARE11:ARE511) -> 2.2318 | ARF7: =AVERAGE(ARF11:ARF511) -> 2.928 | ARH7: =AVERAGE(ARH11:ARH511) -> 2.1752 | ARI7: =AVERAGE(ARI11:ARI511) -> 3.1052 | ARK7: =AVERAGE(ARK11:ARK511) -> 2.5148 | ARL7: =AVERAGE(ARL11:ARL511) -> 3.465 | ARN7: =AVERAGE(ARN11:ARN511) -> 2.741 | ARO7: =AVERAGE(ARO11:ARO511) -> 3.362 | ARQ7: =AVERAGE(ARQ11:ARQ511) -> 2.3376 | ARR7: =AVERAGE(ARR11:ARR511) -> 2.7564 | ART7: =AVERAGE(ART11:ART511) -> 2.7836 | ARU7: =AVERAGE(ARU11:ARU511) -> 3.136 | ARW7: =AVERAGE(ARW11:ARW511) -> 2.396 | ARX7: =AVERAGE(ARX11:ARX511) -> 2.9476 | ARZ7: =AVERAGE(ARZ11:ARZ511) -> 2.295 | ASA7: =AVERAGE(ASA11:ASA511) -> 2.8444 | ASC7: =AVERAGE(ASC11:ASC511) -> 2.3702 | ASD7: =AVERAGE(ASD11:ASD511) -> 3.0114 | ASF7: =AVERAGE(ASF11:ASF511) -> 2.6302 | ASG7: =AVERAGE(ASG11:ASG511) -> 3.3656 | ASI7: =AVERAGE(ASI11:ASI511) -> 2.2182 | ASJ7: =AVERAGE(ASJ11:ASJ511) -> 2.7676 | ASL7: =AVERAGE(ASL11:ASL511) -> 2.4858 | ASM7: =AVERAGE(ASM11:ASM511) -> 3.0718 | ASO7: =AVERAGE(ASO11:ASO511) -> 2.4782 | ASP7: =AVERAGE(ASP11:ASP511) -> 3.0732 | ASR7: =AVERAGE(ASR11:ASR511) -> 2.2106 | ASS7: =AVERAGE(ASS11:ASS511) -> 2.8318 | ASU7: =AVERAGE(ASU11:ASU511) -> 2.4442 | ASV7: =AVERAGE(ASV11:ASV511) -> 2.8786 | ASX7: =AVERAGE(ASX11:ASX511) -> 2.2472 | ASY7: =AVERAGE(ASY11:ASY511) -> 3.0356 | ATA7: =AVERAGE(ATA11:ATA511) -> 2.6706 | ATB7: =AVERAGE(ATB11:ATB511) -> 3.4136 | ATD7: =AVERAGE(ATD11:ATD511) -> 2.2178 | ATE7: =AVERAGE(ATE11:ATE511) -> 3.1554 | ATG7: =AVERAGE(ATG11:ATG511) -> 2.6732 | ATH7: =AVERAGE(ATH11:ATH511) -> 3.512 | ATJ7: =AVERAGE(ATJ11:ATJ511) -> 2.3054 | ATK7: =AVERAGE(ATK11:ATK511) -> 2.7704 | ATM7: =AVERAGE(ATM11:ATM511) -> 2.1612 | ATN7: =AVERAGE(ATN11:ATN511) -> 2.9622 | ATP7: =AVERAGE(ATP11:ATP511) -> 2.0834 | ATQ7: =AVERAGE(ATQ11:ATQ511) -> 2.513 | ATS7: =AVERAGE(ATS11:ATS511) -> 2.3804 | ATT7: =AVERAGE(ATT11:ATT511) -> 3.1912 | ATV7: =AVERAGE(ATV11:ATV511) -> 2.6688 | ATW7: =AVERAGE(ATW11:ATW511) -> 2.9992 | ATY7: =AVERAGE(ATY11:ATY511) -> 2.3646 | ATZ7: =AVERAGE(ATZ11:ATZ511) -> 2.7046 | AUB7: =AVERAGE(AUB11:AUB511) -> 2.7236 | AUC7: =AVERAGE(AUC11:AUC511) -> 3.2304 | AUE7: =AVERAGE(AUE11:AUE511) -> 2.4054 | AUF7: =AVERAGE(AUF11:AUF511) -> 3.2088 | AUH7: =AVERAGE(AUH11:AUH511) -> 2.2976 | AUI7: =AVERAGE(AUI11:AUI511) -> 3.0278 | AUK7: =AVERAGE(AUK11:AUK511) -> 2.3412 | AUL7: =AVERAGE(AUL11:AUL511) -> 2.8136 | AUN7: =AVERAGE(AUN11:AUN511) -> 2.3468 | AUO7: =AVERAGE(AUO11:AUO511) -> 2.9294 | AUQ7: =AVERAGE(AUQ11:AUQ511) -> 2.4836 | AUR7: =AVERAGE(AUR11:AUR511) -> 3.2692 | AUT7: =AVERAGE(AUT11:AUT511) -> 2.5774 | AUU7: =AVERAGE(AUU11:AUU511) -> 3.1824 | AUW7: =AVERAGE(AUW11:AUW511) -> 2.4312 | AUX7: =AVERAGE(AUX11:AUX511) -> 3.1448 | AUZ7: =AVERAGE(AUZ11:AUZ511) -> 2.5116 | AVA7: =AVERAGE(AVA11:AVA511) -> 3.1332 | AVC7: =AVERAGE(AVC11:AVC511) -> 2.6218 | AVD7: =AVERAGE(AVD11:AVD511) -> 3.3944 | AVF7: =AVERAGE(AVF11:AVF511) -> 3.006 | AVG7: =AVERAGE(AVG11:AVG511) -> 3.4726 | AVI7: =AVERAGE(AVI11:AVI511) -> 2.2474 | AVJ7: =AVERAGE(AVJ11:AVJ511) -> 2.8676 | AVL7: =AVERAGE(AVL11:AVL511) -> 2.3986 | AVM7: =AVERAGE(AVM11:AVM511) -> 3.1478 | AVO7: =AVERAGE(AVO11:AVO511) -> 2.5576 | AVP7: =AVERAGE(AVP11:AVP511) -> 3.1522 | AVR7: =AVERAGE(AVR11:AVR511) -> 2.59 | AVS7: =AVERAGE(AVS11:AVS511) -> 3.128 | AVU7: =AVERAGE(AVU11:AVU511) -> 2.4548 | AVV7: =AVERAGE(AVV11:AVV511) -> 3.0892 | AVX7: =AVERAGE(AVX11:AVX511) -> 2.196 | AVY7: =AVERAGE(AVY11:AVY511) -> 3.0946 | AWA7: =AVERAGE(AWA11:AWA511) -> 2.3184 | AWB7: =AVERAGE(AWB11:AWB511) -> 2.9642 | AWD7: =AVERAGE(AWD11:AWD511) -> 2.3524 | AWE7: =AVERAGE(AWE11:AWE511) -> 2.936 | AWG7: =AVERAGE(AWG11:AWG511) -> 2.2836 | AWH7: =AVERAGE(AWH11:AWH511) -> 3.122 | AWJ7: =AVERAGE(AWJ11:AWJ511) -> 2.2618 | AWK7: =AVERAGE(AWK11:AWK511) -> 2.9574 | AWM7: =AVERAGE(AWM11:AWM511) -> 2.6886 | AWN7: =AVERAGE(AWN11:AWN511) -> 3.295 | AWP7: =AVERAGE(AWP11:AWP511) -> 2.651 | AWQ7: =AVERAGE(AWQ11:AWQ511) -> 3.5468 | AWS7: =AVERAGE(AWS11:AWS511) -> 2.5338 | AWT7: =AVERAGE(AWT11:AWT511) -> 3.3064 | AWV7: =AVERAGE(AWV11:AWV511) -> 2.304 | AWW7: =AVERAGE(AWW11:AWW511) -> 3.0736 | AWY7: =AVERAGE(AWY11:AWY511) -> 2.706 | AWZ7: =AVERAGE(AWZ11:AWZ511) -> 3.3052 | AXB7: =AVERAGE(AXB11:AXB511) -> 2.5986 | AXC7: =AVERAGE(AXC11:AXC511) -> 3.179 | AXE7: =AVERAGE(AXE11:AXE511) -> 2.567 | AXF7: =AVERAGE(AXF11:AXF511) -> 3.5 | AXH7: =AVERAGE(AXH11:AXH511) -> 2.533 | AXI7: =AVERAGE(AXI11:AXI511) -> 3.052 | AXK7: =AVERAGE(AXK11:AXK511) -> 2.546 | AXL7: =AVERAGE(AXL11:AXL511) -> 3.1904 | AXN7: =AVERAGE(AXN11:AXN511) -> 2.2138 | AXO7: =AVERAGE(AXO11:AXO511) -> 2.78 | AXQ7: =AVERAGE(AXQ11:AXQ511) -> 2.68 | AXR7: =AVERAGE(AXR11:AXR511) -> 3.2968 | AXT7: =AVERAGE(AXT11:AXT511) -> 2.0788 | AXU7: =AVERAGE(AXU11:AXU511) -> 2.8904 | AXW7: =AVERAGE(AXW11:AXW511) -> 2.4736 | AXX7: =AVERAGE(AXX11:AXX511) -> 3.02 | AXZ7: =AVERAGE(AXZ11:AXZ511) -> 2.3986 | AYA7: =AVERAGE(AYA11:AYA511) -> 2.6358 | AYC7: =AVERAGE(AYC11:AYC511) -> 2.4328 | AYD7: =AVERAGE(AYD11:AYD511) -> 3.0814 | AYF7: =AVERAGE(AYF11:AYF511) -> 1.9736 | AYG7: =AVERAGE(AYG11:AYG511) -> 2.6066 | AYI7: =AVERAGE(AYI11:AYI511) -> 2.7164 | AYJ7: =AVERAGE(AYJ11:AYJ511) -> 3.2956 | AYL7: =AVERAGE(AYL11:AYL511) -> 2.6684 | AYM7: =AVERAGE(AYM11:AYM511) -> 3.0938 | AYO7: =AVERAGE(AYO11:AYO511) -> 2.4688 | AYP7: =AVERAGE(AYP11:AYP511) -> 3.3322 | AYR7: =AVERAGE(AYR11:AYR511) -> 2.1518 | AYS7: =AVERAGE(AYS11:AYS511) -> 2.8398 | AYU7: =AVERAGE(AYU11:AYU511) -> 2.774 | AYV7: =AVERAGE(AYV11:AYV511) -> 3.5286 | AYX7: =AVERAGE(AYX11:AYX511) -> 2.6084 | AYY7: =AVERAGE(AYY11:AYY511) -> 3.046 | AZA7: =AVERAGE(AZA11:AZA511) -> 2.4754 | AZB7: =AVERAGE(AZB11:AZB511) -> 3.1972 | AZD7: =AVERAGE(AZD11:AZD511) -> 2.3838 | AZE7: =AVERAGE(AZE11:AZE511) -> 3.0062 | AZG7: =AVERAGE(AZG11:AZG511) -> 2.589 | AZH7: =AVERAGE(AZH11:AZH511) -> 3.1676 | AZJ7: =AVERAGE(AZJ11:AZJ511) -> 2.4488 | AZK7: =AVERAGE(AZK11:AZK511) -> 3.3822 | AZM7: =AVERAGE(AZM11:AZM511) -> 2.5066 | AZN7: =AVERAGE(AZN11:AZN511) -> 2.9614 | AZP7: =AVERAGE(AZP11:AZP511) -> 2.819 | AZQ7: =AVERAGE(AZQ11:AZQ511) -> 3.4706 | AZS7: =AVERAGE(AZS11:AZS511) -> 2.4728 | AZT7: =AVERAGE(AZT11:AZT511) -> 3.19 | AZV7: =AVERAGE(AZV11:AZV511) -> 2.5594 | AZW7: =AVERAGE(AZW11:AZW511) -> 3.2128 | AZY7: =AVERAGE(AZY11:AZY511) -> 2.1122 | AZZ7: =AVERAGE(AZZ11:AZZ511) -> 2.684 | BAB7: =AVERAGE(BAB11:BAB511) -> 2.5072 | BAC7: =AVERAGE(BAC11:BAC511) -> 3.1142 | BAE7: =AVERAGE(BAE11:BAE511) -> 2.714 | BAF7: =AVERAGE(BAF11:BAF511) -> 3.4034 | BAH7: =AVERAGE(BAH11:BAH511) -> 2.881 | BAI7: =AVERAGE(BAI11:BAI511) -> 3.6568 | BAK7: =AVERAGE(BAK11:BAK511) -> 2.4892 | BAL7: =AVERAGE(BAL11:BAL511) -> 3.306 | BAN7: =AVERAGE(BAN11:BAN511) -> 2.8744 | BAO7: =AVERAGE(BAO11:BAO511) -> 3.668 | BAQ7: =AVERAGE(BAQ11:BAQ511) -> 2.5698 | BAR7: =AVERAGE(BAR11:BAR511) -> 3.23 | BAT7: =AVERAGE(BAT11:BAT511) -> 2.178 | BAU7: =AVERAGE(BAU11:BAU511) -> 3.0108 | BAW7: =AVERAGE(BAW11:BAW511) -> 2.9774 | BAX7: =AVERAGE(BAX11:BAX511) -> 3.654 | BAZ7: =AVERAGE(BAZ11:BAZ511) -> 2.5894 | BBA7: =AVERAGE(BBA11:BBA511) -> 3.1394 | BBC7: =AVERAGE(BBC11:BBC511) -> 2.5634 | BBD7: =AVERAGE(BBD11:BBD511) -> 3.1094 | BBF7: =AVERAGE(BBF11:BBF511) -> 2.6548 | BBG7: =AVERAGE(BBG11:BBG511) -> 3.1848 | BBI7: =AVERAGE(BBI11:BBI511) -> 1.9868 | BBJ7: =AVERAGE(BBJ11:BBJ511) -> 2.7422 | BBL7: =AVERAGE(BBL11:BBL511) -> 2.8126 | BBM7: =AVERAGE(BBM11:BBM511) -> 3.629 | BBO7: =AVERAGE(BBO11:BBO511) -> 2.3612 | BBP7: =AVERAGE(BBP11:BBP511) -> 3.2978 | BBR7: =AVERAGE(BBR11:BBR511) -> 2.1822 | BBS7: =AVERAGE(BBS11:BBS511) -> 3.0144 | BBU7: =AVERAGE(BBU11:BBU511) -> 2.663 | BBV7: =AVERAGE(BBV11:BBV511) -> 3.4444 | BBX7: =AVERAGE(BBX11:BBX511) -> 2.9038 | BBY7: =AVERAGE(BBY11:BBY511) -> 3.7506 | BCA7: =AVERAGE(BCA11:BCA511) -> 2.8484 | BCB7: =AVERAGE(BCB11:BCB511) -> 3.5428 | BCD7: =AVERAGE(BCD11:BCD511) -> 2.8154 | BCE7: =AVERAGE(BCE11:BCE511) -> 3.5936 | BCG7: =AVERAGE(BCG11:BCG511) -> 2.8262 | BCH7: =AVERAGE(BCH11:BCH511) -> 3.4926 | BCJ7: =AVERAGE(BCJ11:BCJ511) -> 2.5086 | BCK7: =AVERAGE(BCK11:BCK511) -> 2.879 | BCM7: =AVERAGE(BCM11:BCM511) -> 2.363 | BCN7: =AVERAGE(BCN11:BCN511) -> 3.1034 | BCP7: =AVERAGE(BCP11:BCP511) -> 2.5694 | BCQ7: =AVERAGE(BCQ11:BCQ511) -> 3.0002 | BCS7: =AVERAGE(BCS11:BCS511) -> 2.886 | BCT7: =AVERAGE(BCT11:BCT511) -> 3.6314 | BCV7: =AVERAGE(BCV11:BCV511) -> 2.7332 | BCW7: =AVERAGE(BCW11:BCW511) -> 3.2456 | BCY7: =AVERAGE(BCY11:BCY511) -> 2.267 | BCZ7: =AVERAGE(BCZ11:BCZ511) -> 3.1856 | BDB7: =AVERAGE(BDB11:BDB511) -> 2.646 | BDC7: =AVERAGE(BDC11:BDC511) -> 3.4194 | BDE7: =AVERAGE(BDE11:BDE511) -> 2.478 | BDF7: =AVERAGE(BDF11:BDF511) -> 3.2616 | BDH7: =AVERAGE(BDH11:BDH511) -> 2.6156 | BDI7: =AVERAGE(BDI11:BDI511) -> 3.1694 | BDK7: =AVERAGE(BDK11:BDK511) -> 2.5496 | BDL7: =AVERAGE(BDL11:BDL511) -> 3.3572 | BDN7: =AVERAGE(BDN11:BDN511) -> 2.795 | BDO7: =AVERAGE(BDO11:BDO511) -> 3.5136 | BDQ7: =AVERAGE(BDQ11:BDQ511) -> 2.92 | BDR7: =AVERAGE(BDR11:BDR511) -> 3.613 | BDT7: =AVERAGE(BDT11:BDT511) -> 3.0444 | BDU7: =AVERAGE(BDU11:BDU511) -> 3.6268 | BDW7: =AVERAGE(BDW11:BDW511) -> 2.6438 | BDX7: =AVERAGE(BDX11:BDX511) -> 3.2294 | BDZ7: =AVERAGE(BDZ11:BDZ511) -> 2.249 | BEA7: =AVERAGE(BEA11:BEA511) -> 2.7612 | BEC7: =AVERAGE(BEC11:BEC511) -> 2.5072 | BED7: =AVERAGE(BED11:BED511) -> 3.1978 | BEF7: =AVERAGE(BEF11:BEF511) -> 2.541 | BEG7: =AVERAGE(BEG11:BEG511) -> 3.1316 | BEI7: =AVERAGE(BEI11:BEI511) -> 2.7472 | BEJ7: =AVERAGE(BEJ11:BEJ511) -> 3.4174 | BEL7: =AVERAGE(BEL11:BEL511) -> 2.555 | BEM7: =AVERAGE(BEM11:BEM511) -> 3.0818 | BEO7: =AVERAGE(BEO11:BEO511) -> 2.5128 | BEP7: =AVERAGE(BEP11:BEP511) -> 3.0726 | BER7: =AVERAGE(BER11:BER511) -> 2.844 | BES7: =AVERAGE(BES11:BES511) -> 3.2396 | BEU7: =AVERAGE(BEU11:BEU511) -> 2.7078 | BEV7: =AVERAGE(BEV11:BEV511) -> 3.3528 | BEX7: =AVERAGE(BEX11:BEX511) -> 2.3702 | BEY7: =AVERAGE(BEY11:BEY511) -> 2.9468 | BFA7: =AVERAGE(BFA11:BFA511) -> 2.7874 | BFB7: =AVERAGE(BFB11:BFB511) -> 3.6682 | BFD7: =AVERAGE(BFD11:BFD511) -> 2.4964 | BFE7: =AVERAGE(BFE11:BFE511) -> 3.4426 | BFG7: =AVERAGE(BFG11:BFG511) -> 2.374 | BFH7: =AVERAGE(BFH11:BFH511) -> 3.1648 | BFJ7: =AVERAGE(BFJ11:BFJ511) -> 2.5422 | BFK7: =AVERAGE(BFK11:BFK511) -> 3.3268 | BFM7: =AVERAGE(BFM11:BFM511) -> 2.5604 | BFN7: =AVERAGE(BFN11:BFN511) -> 3.243 | BFP7: =AVERAGE(BFP11:BFP511) -> 2.476 | BFQ7: =AVERAGE(BFQ11:BFQ511) -> 3.2782 | BFS7: =AVERAGE(BFS11:BFS511) -> 2.2602 | BFT7: =AVERAGE(BFT11:BFT511) -> 3.1462 | BFV7: =AVERAGE(BFV11:BFV511) -> 2.283 | BFW7: =AVERAGE(BFW11:BFW511) -> 3.0396 | BFY7: =AVERAGE(BFY11:BFY511) -> 2.7892 | BFZ7: =AVERAGE(BFZ11:BFZ511) -> 3.223 | BGB7: =AVERAGE(BGB11:BGB511) -> 2.1142 | BGC7: =AVERAGE(BGC11:BGC511) -> 3.171 | BGE7: =AVERAGE(BGE11:BGE511) -> 2.4878 | BGF7: =AVERAGE(BGF11:BGF511) -> 3.3268 | BGH7: =AVERAGE(BGH11:BGH511) -> 2.9938 | BGI7: =AVERAGE(BGI11:BGI511) -> 3.7052 | BGK7: =AVERAGE(BGK11:BGK511) -> 2.161 | BGL7: =AVERAGE(BGL11:BGL511) -> 2.8294 | BGN7: =AVERAGE(BGN11:BGN511) -> 2.6798 | BGO7: =AVERAGE(BGO11:BGO511) -> 3.3054 | BGQ7: =AVERAGE(BGQ11:BGQ511) -> 2.1424 | BGR7: =AVERAGE(BGR11:BGR511) -> 3.1092 | BGT7: =AVERAGE(BGT11:BGT511) -> 2.4866 | BGU7: =AVERAGE(BGU11:BGU511) -> 3.338
C8: 4 | D8: 0.32 | E8: 0.75 | H8: 0 | I8: 0 | K8: 標準偏差：=STDEV(セル範囲) | M8: =STDEV(D5:D1304) -> 1.678069299 | N8: =STDEV(E5:E1304) -> 1.854109435 | O8: =STDEV(F5:F1304) ->  | P8: =STDEV(G5:G1304) ->  | Q8: 誤差分散比(λ) | R8: =S5/R5 ->  | U8: 2.11 | V8: 23 | W8: 6 | X8: 2.26 | Y8: 20 | Z8: 8 | AD8: =AD7+$AC$7 -> -1.391224916 | AE8: 0.28594512 | AF8: -1.252753108 | AG8: 0.6963025506 | AN8: 47 | AO8: 47 | AS8: 0.535 | AT8: 0.43 | AV8: 0.535 | AW8: 0.43 | BA8: Sｘｙ= | BB8: =COVAR(BB11:BB510,BC11:BC510)*$N$5 -> 192.467404 | BE8: =COVAR(BE11:BE510,BF11:BF510)*$N$5 -> 128.15658 | BH8: =COVAR(BH11:BH510,BI11:BI510)*$N$5 -> 141.630692 | BK8: =COVAR(BK11:BK510,BL11:BL510)*$N$5 -> 127.82602 | BN8: =COVAR(BN11:BN510,BO11:BO510)*$N$5 -> 108.673564 | BQ8: =COVAR(BQ11:BQ510,BR11:BR510)*$N$5 -> 117.976814 | BT8: =COVAR(BT11:BT510,BU11:BU510)*$N$5 -> 92.572304 | BW8: =COVAR(BW11:BW510,BX11:BX510)*$N$5 -> 117.734592 | BZ8: =COVAR(BZ11:BZ510,CA11:CA510)*$N$5 -> 137.665308 | CC8: =COVAR(CC11:CC510,CD11:CD510)*$N$5 -> 135.54118 | CF8: =COVAR(CF11:CF510,CG11:CG510)*$N$5 -> 89.135406 | CI8: =COVAR(CI11:CI510,CJ11:CJ510)*$N$5 -> 101.44458 | CL8: =COVAR(CL11:CL510,CM11:CM510)*$N$5 -> 160.561688 | CO8: =COVAR(CO11:CO510,CP11:CP510)*$N$5 -> 114.61658 | CR8: =COVAR(CR11:CR510,CS11:CS510)*$N$5 -> 104.982024 | CU8: =COVAR(CU11:CU510,CV11:CV510)*$N$5 -> 152.406716 | CX8: =COVAR(CX11:CX510,CY11:CY510)*$N$5 -> 128.24006 | DA8: =COVAR(DA11:DA510,DB11:DB510)*$N$5 -> 154.420874 | DD8: =COVAR(DD11:DD510,DE11:DE510)*$N$5 -> 144.917692 | DG8: =COVAR(DG11:DG510,DH11:DH510)*$N$5 -> 116.94496 | DJ8: =COVAR(DJ11:DJ510,DK11:DK510)*$N$5 -> 129.982328 | DM8: =COVAR(DM11:DM510,DN11:DN510)*$N$5 -> 101.54814 | DP8: =COVAR(DP11:DP510,DQ11:DQ510)*$N$5 -> 142.96429 | DS8: =COVAR(DS11:DS510,DT11:DT510)*$N$5 -> 153.8617 | DV8: =COVAR(DV11:DV510,DW11:DW510)*$N$5 -> 138.710192 | DY8: =COVAR(DY11:DY510,DZ11:DZ510)*$N$5 -> 145.432828 | EB8: =COVAR(EB11:EB510,EC11:EC510)*$N$5 -> 108.316692 | EE8: =COVAR(EE11:EE510,EF11:EF510)*$N$5 -> 110.925404 | EH8: =COVAR(EH11:EH510,EI11:EI510)*$N$5 -> 146.2281 | EK8: =COVAR(EK11:EK510,EL11:EL510)*$N$5 -> 119.569192 | EN8: =COVAR(EN11:EN510,EO11:EO510)*$N$5 -> 141.233298 | EQ8: =COVAR(EQ11:EQ510,ER11:ER510)*$N$5 -> 112.765028 | ET8: =COVAR(ET11:ET510,EU11:EU510)*$N$5 -> 122.293296 | EW8: =COVAR(EW11:EW510,EX11:EX510)*$N$5 -> 117.720724 | EZ8: =COVAR(EZ11:EZ510,FA11:FA510)*$N$5 -> 142.820744 | FC8: =COVAR(FC11:FC510,FD11:FD510)*$N$5 -> 103.82692 | FF8: =COVAR(FF11:FF510,FG11:FG510)*$N$5 -> 144.00666 | FI8: =COVAR(FI11:FI510,FJ11:FJ510)*$N$5 -> 106.003336 | FL8: =COVAR(FL11:FL510,FM11:FM510)*$N$5 -> 116.910984 | FO8: =COVAR(FO11:FO510,FP11:FP510)*$N$5 -> 140.561506 | FR8: =COVAR(FR11:FR510,FS11:FS510)*$N$5 -> 135.61342 | FU8: =COVAR(FU11:FU510,FV11:FV510)*$N$5 -> 165.23984 | FX8: =COVAR(FX11:FX510,FY11:FY510)*$N$5 -> 156.58198 | GA8: =COVAR(GA11:GA510,GB11:GB510)*$N$5 -> 116.731696 | GD8: =COVAR(GD11:GD510,GE11:GE510)*$N$5 -> 148.65162 | GG8: =COVAR(GG11:GG510,GH11:GH510)*$N$5 -> 119.19646 | GJ8: =COVAR(GJ11:GJ510,GK11:GK510)*$N$5 -> 97.190284 | GM8: =COVAR(GM11:GM510,GN11:GN510)*$N$5 -> 101.65857 | GP8: =COVAR(GP11:GP510,GQ11:GQ510)*$N$5 -> 125.767828 | GS8: =COVAR(GS11:GS510,GT11:GT510)*$N$5 -> 142.07958 | GV8: =COVAR(GV11:GV510,GW11:GW510)*$N$5 -> 139.716068 | GY8: =COVAR(GY11:GY510,GZ11:GZ510)*$N$5 -> 151.807412 | HB8: =COVAR(HB11:HB510,HC11:HC510)*$N$5 -> 147.01185 | HE8: =COVAR(HE11:HE510,HF11:HF510)*$N$5 -> 142.189148 | HH8: =COVAR(HH11:HH510,HI11:HI510)*$N$5 -> 101.70404 | HK8: =COVAR(HK11:HK510,HL11:HL510)*$N$5 -> 113.5915 | HN8: =COVAR(HN11:HN510,HO11:HO510)*$N$5 -> 131.807032 | HQ8: =COVAR(HQ11:HQ510,HR11:HR510)*$N$5 -> 124.593512 | HT8: =COVAR(HT11:HT510,HU11:HU510)*$N$5 -> 109.148248 | HW8: =COVAR(HW11:HW510,HX11:HX510)*$N$5 -> 110.948568 | HZ8: =COVAR(HZ11:HZ510,IA11:IA510)*$N$5 -> 132.248368 | IC8: =COVAR(IC11:IC510,ID11:ID510)*$N$5 -> 95.705358 | IF8: =COVAR(IF11:IF510,IG11:IG510)*$N$5 -> 137.707996 | II8: =COVAR(II11:II510,IJ11:IJ510)*$N$5 -> 142.874996 | IL8: =COVAR(IL11:IL510,IM11:IM510)*$N$5 -> 136.598416 | IO8: =COVAR(IO11:IO510,IP11:IP510)*$N$5 -> 124.2907 | IR8: =COVAR(IR11:IR510,IS11:IS510)*$N$5 -> 134.614188 | IU8: =COVAR(IU11:IU510,IV11:IV510)*$N$5 -> 144.053036 | IX8: =COVAR(IX11:IX510,IY11:IY510)*$N$5 -> 115.90929 | JA8: =COVAR(JA11:JA510,JB11:JB510)*$N$5 -> 122.28413 | JD8: =COVAR(JD11:JD510,JE11:JE510)*$N$5 -> 120.9295 | JG8: =COVAR(JG11:JG510,JH11:JH510)*$N$5 -> 104.00935 | JJ8: =COVAR(JJ11:JJ510,JK11:JK510)*$N$5 -> 149.648824 | JM8: =COVAR(JM11:JM510,JN11:JN510)*$N$5 -> 149.230768 | JP8: =COVAR(JP11:JP510,JQ11:JQ510)*$N$5 -> 176.611228 | JS8: =COVAR(JS11:JS510,JT11:JT510)*$N$5 -> 129.566364 | JV8: =COVAR(JV11:JV510,JW11:JW510)*$N$5 -> 139.287838 | JY8: =COVAR(JY11:JY510,JZ11:JZ510)*$N$5 -> 88.96144 | KB8: =COVAR(KB11:KB510,KC11:KC510)*$N$5 -> 99.885784 | KE8: =COVAR(KE11:KE510,KF11:KF510)*$N$5 -> 115.646402 | KH8: =COVAR(KH11:KH510,KI11:KI510)*$N$5 -> 121.6414 | KK8: =COVAR(KK11:KK510,KL11:KL510)*$N$5 -> 125.3461 | KN8: =COVAR(KN11:KN510,KO11:KO510)*$N$5 -> 125.4439 | KQ8: =COVAR(KQ11:KQ510,KR11:KR510)*$N$5 -> 182.510824 | KT8: =COVAR(KT11:KT510,KU11:KU510)*$N$5 -> 138.558036 | KW8: =COVAR(KW11:KW510,KX11:KX510)*$N$5 -> 112.911078 | KZ8: =COVAR(KZ11:KZ510,LA11:LA510)*$N$5 -> 120.630168 | LC8: =COVAR(LC11:LC510,LD11:LD510)*$N$5 -> 120.04189 | LF8: =COVAR(LF11:LF510,LG11:LG510)*$N$5 -> 132.528324 | LI8: =COVAR(LI11:LI510,LJ11:LJ510)*$N$5 -> 123.994412 | LL8: =COVAR(LL11:LL510,LM11:LM510)*$N$5 -> 141.575996 | LO8: =COVAR(LO11:LO510,LP11:LP510)*$N$5 -> 106.002576 | LR8: =COVAR(LR11:LR510,LS11:LS510)*$N$5 -> 122.456064 | LU8: =COVAR(LU11:LU510,LV11:LV510)*$N$5 -> 103.615592 | LX8: =COVAR(LX11:LX510,LY11:LY510)*$N$5 -> 132.59326 | MA8: =COVAR(MA11:MA510,MB11:MB510)*$N$5 -> 117.45972 | MD8: =COVAR(MD11:MD510,ME11:ME510)*$N$5 -> 97.047668 | MG8: =COVAR(MG11:MG510,MH11:MH510)*$N$5 -> 179.09007 | MJ8: =COVAR(MJ11:MJ510,MK11:MK510)*$N$5 -> 129.0337 | MM8: =COVAR(MM11:MM510,MN11:MN510)*$N$5 -> 113.829164 | MP8: =COVAR(MP11:MP510,MQ11:MQ510)*$N$5 -> 153.04345 | MS8: =COVAR(MS11:MS510,MT11:MT510)*$N$5 -> 102.4027 | MV8: =COVAR(MV11:MV510,MW11:MW510)*$N$5 -> 96.425656 | MY8: =COVAR(MY11:MY510,MZ11:MZ510)*$N$5 -> 148.602108 | NB8: =COVAR(NB11:NB510,NC11:NC510)*$N$5 -> 126.628618 | NE8: =COVAR(NE11:NE510,NF11:NF510)*$N$5 -> 110.765256 | NH8: =COVAR(NH11:NH510,NI11:NI510)*$N$5 -> 98.768618 | NK8: =COVAR(NK11:NK510,NL11:NL510)*$N$5 -> 118.08652 | NN8: =COVAR(NN11:NN510,NO11:NO510)*$N$5 -> 167.30358 | NQ8: =COVAR(NQ11:NQ510,NR11:NR510)*$N$5 -> 98.65736 | NT8: =COVAR(NT11:NT510,NU11:NU510)*$N$5 -> 132.097716 | NW8: =COVAR(NW11:NW510,NX11:NX510)*$N$5 -> 127.317352 | NZ8: =COVAR(NZ11:NZ510,OA11:OA510)*$N$5 -> 117.683084 | OC8: =COVAR(OC11:OC510,OD11:OD510)*$N$5 -> 98.299894 | OF8: =COVAR(OF11:OF510,OG11:OG510)*$N$5 -> 163.029152 | OI8: =COVAR(OI11:OI510,OJ11:OJ510)*$N$5 -> 151.9816 | OL8: =COVAR(OL11:OL510,OM11:OM510)*$N$5 -> 150.281904 | OO8: =COVAR(OO11:OO510,OP11:OP510)*$N$5 -> 98.927112 | OR8: =COVAR(OR11:OR510,OS11:OS510)*$N$5 -> 130.73072 | OU8: =COVAR(OU11:OU510,OV11:OV510)*$N$5 -> 176.683432 | OX8: =COVAR(OX11:OX510,OY11:OY510)*$N$5 -> 119.178804 | PA8: =COVAR(PA11:PA510,PB11:PB510)*$N$5 -> 133.238984 | PD8: =COVAR(PD11:PD510,PE11:PE510)*$N$5 -> 166.654292 | PG8: =COVAR(PG11:PG510,PH11:PH510)*$N$5 -> 108.16678 | PJ8: =COVAR(PJ11:PJ510,PK11:PK510)*$N$5 -> 185.191796 | PM8: =COVAR(PM11:PM510,PN11:PN510)*$N$5 -> 134.970836 | PP8: =COVAR(PP11:PP510,PQ11:PQ510)*$N$5 -> 125.237052 | PS8: =COVAR(PS11:PS510,PT11:PT510)*$N$5 -> 120.309402 | PV8: =COVAR(PV11:PV510,PW11:PW510)*$N$5 -> 115.5446 | PY8: =COVAR(PY11:PY510,PZ11:PZ510)*$N$5 -> 112.29512 | QB8: =COVAR(QB11:QB510,QC11:QC510)*$N$5 -> 129.100848 | QE8: =COVAR(QE11:QE510,QF11:QF510)*$N$5 -> 109.58085 | QH8: =COVAR(QH11:QH510,QI11:QI510)*$N$5 -> 141.885788 | QK8: =COVAR(QK11:QK510,QL11:QL510)*$N$5 -> 124.209992 | QN8: =COVAR(QN11:QN510,QO11:QO510)*$N$5 -> 115.177188 | QQ8: =COVAR(QQ11:QQ510,QR11:QR510)*$N$5 -> 130.345312 | QT8: =COVAR(QT11:QT510,QU11:QU510)*$N$5 -> 123.11089 | QW8: =COVAR(QW11:QW510,QX11:QX510)*$N$5 -> 116.6085 | QZ8: =COVAR(QZ11:QZ510,RA11:RA510)*$N$5 -> 118.176424 | RC8: =COVAR(RC11:RC510,RD11:RD510)*$N$5 -> 93.93569 | RF8: =COVAR(RF11:RF510,RG11:RG510)*$N$5 -> 145.746464 | RI8: =COVAR(RI11:RI510,RJ11:RJ510)*$N$5 -> 162.2092 | RL8: =COVAR(RL11:RL510,RM11:RM510)*$N$5 -> 138.40896 | RO8: =COVAR(RO11:RO510,RP11:RP510)*$N$5 -> 91.78572 | RR8: =COVAR(RR11:RR510,RS11:RS510)*$N$5 -> 148.192732 | RU8: =COVAR(RU11:RU510,RV11:RV510)*$N$5 -> 121.01247 | RX8: =COVAR(RX11:RX510,RY11:RY510)*$N$5 -> 111.250182 | SA8: =COVAR(SA11:SA510,SB11:SB510)*$N$5 -> 106.9425 | SD8: =COVAR(SD11:SD510,SE11:SE510)*$N$5 -> 148.338762 | SG8: =COVAR(SG11:SG510,SH11:SH510)*$N$5 -> 150.097476 | SJ8: =COVAR(SJ11:SJ510,SK11:SK510)*$N$5 -> 103.8254 | SM8: =COVAR(SM11:SM510,SN11:SN510)*$N$5 -> 111.340648 | SP8: =COVAR(SP11:SP510,SQ11:SQ510)*$N$5 -> 140.979704 | SS8: =COVAR(SS11:SS510,ST11:ST510)*$N$5 -> 159.06186 | SV8: =COVAR(SV11:SV510,SW11:SW510)*$N$5 -> 109.882136 | SY8: =COVAR(SY11:SY510,SZ11:SZ510)*$N$5 -> 123.875834 | TB8: =COVAR(TB11:TB510,TC11:TC510)*$N$5 -> 106.158096 | TE8: =COVAR(TE11:TE510,TF11:TF510)*$N$5 -> 123.417788 | TH8: =COVAR(TH11:TH510,TI11:TI510)*$N$5 -> 157.226944 | TK8: =COVAR(TK11:TK510,TL11:TL510)*$N$5 -> 152.285772 | TN8: =COVAR(TN11:TN510,TO11:TO510)*$N$5 -> 149.044916 | TQ8: =COVAR(TQ11:TQ510,TR11:TR510)*$N$5 -> 140.06628 | TT8: =COVAR(TT11:TT510,TU11:TU510)*$N$5 -> 136.76638 | TW8: =COVAR(TW11:TW510,TX11:TX510)*$N$5 -> 119.461426 | TZ8: =COVAR(TZ11:TZ510,UA11:UA510)*$N$5 -> 149.697452 | UC8: =COVAR(UC11:UC510,UD11:UD510)*$N$5 -> 122.07694 | UF8: =COVAR(UF11:UF510,UG11:UG510)*$N$5 -> 106.887052 | UI8: =COVAR(UI11:UI510,UJ11:UJ510)*$N$5 -> 132.67293 | UL8: =COVAR(UL11:UL510,UM11:UM510)*$N$5 -> 108.270902 | UO8: =COVAR(UO11:UO510,UP11:UP510)*$N$5 -> 117.225724 | UR8: =COVAR(UR11:UR510,US11:US510)*$N$5 -> 118.93758 | UU8: =COVAR(UU11:UU510,UV11:UV510)*$N$5 -> 115.21404 | UX8: =COVAR(UX11:UX510,UY11:UY510)*$N$5 -> 127.203978 | VA8: =COVAR(VA11:VA510,VB11:VB510)*$N$5 -> 118.633548 | VD8: =COVAR(VD11:VD510,VE11:VE510)*$N$5 -> 163.013566 | VG8: =COVAR(VG11:VG510,VH11:VH510)*$N$5 -> 88.3126 | VJ8: =COVAR(VJ11:VJ510,VK11:VK510)*$N$5 -> 149.63437 | VM8: =COVAR(VM11:VM510,VN11:VN510)*$N$5 -> 115.818416 | VP8: =COVAR(VP11:VP510,VQ11:VQ510)*$N$5 -> 150.82856 | VS8: =COVAR(VS11:VS510,VT11:VT510)*$N$5 -> 117.161728 | VV8: =COVAR(VV11:VV510,VW11:VW510)*$N$5 -> 143.3967 | VY8: =COVAR(VY11:VY510,VZ11:VZ510)*$N$5 -> 95.25142 | WB8: =COVAR(WB11:WB510,WC11:WC510)*$N$5 -> 115.352832 | WE8: =COVAR(WE11:WE510,WF11:WF510)*$N$5 -> 140.5322 | WH8: =COVAR(WH11:WH510,WI11:WI510)*$N$5 -> 93.333048 | WK8: =COVAR(WK11:WK510,WL11:WL510)*$N$5 -> 111.5496 | WN8: =COVAR(WN11:WN510,WO11:WO510)*$N$5 -> 105.368616 | WQ8: =COVAR(WQ11:WQ510,WR11:WR510)*$N$5 -> 124.997744 | WT8: =COVAR(WT11:WT510,WU11:WU510)*$N$5 -> 152.915264 | WW8: =COVAR(WW11:WW510,WX11:WX510)*$N$5 -> 118.15729 | WZ8: =COVAR(WZ11:WZ510,XA11:XA510)*$N$5 -> 191.336844 | XC8: =COVAR(XC11:XC510,XD11:XD510)*$N$5 -> 83.336108 | XF8: =COVAR(XF11:XF510,XG11:XG510)*$N$5 -> 113.55398 | XI8: =COVAR(XI11:XI510,XJ11:XJ510)*$N$5 -> 110.2473 | XL8: =COVAR(XL11:XL510,XM11:XM510)*$N$5 -> 116.891296 | XO8: =COVAR(XO11:XO510,XP11:XP510)*$N$5 -> 117.57302 | XR8: =COVAR(XR11:XR510,XS11:XS510)*$N$5 -> 138.40204 | XU8: =COVAR(XU11:XU510,XV11:XV510)*$N$5 -> 172.498372 | XX8: =COVAR(XX11:XX510,XY11:XY510)*$N$5 -> 114.041024 | YA8: =COVAR(YA11:YA510,YB11:YB510)*$N$5 -> 119.668504 | YD8: =COVAR(YD11:YD510,YE11:YE510)*$N$5 -> 114.831744 | YG8: =COVAR(YG11:YG510,YH11:YH510)*$N$5 -> 160.537504 | YJ8: =COVAR(YJ11:YJ510,YK11:YK510)*$N$5 -> 95.972622 | YM8: =COVAR(YM11:YM510,YN11:YN510)*$N$5 -> 114.178818 | YP8: =COVAR(YP11:YP510,YQ11:YQ510)*$N$5 -> 134.380268 | YS8: =COVAR(YS11:YS510,YT11:YT510)*$N$5 -> 134.45482 | YV8: =COVAR(YV11:YV510,YW11:YW510)*$N$5 -> 140.745588 | YY8: =COVAR(YY11:YY510,YZ11:YZ510)*$N$5 -> 152.14346 | ZB8: =COVAR(ZB11:ZB510,ZC11:ZC510)*$N$5 -> 167.444444 | ZE8: =COVAR(ZE11:ZE510,ZF11:ZF510)*$N$5 -> 124.875454 | ZH8: =COVAR(ZH11:ZH510,ZI11:ZI510)*$N$5 -> 118.970402 | ZK8: =COVAR(ZK11:ZK510,ZL11:ZL510)*$N$5 -> 131.223654 | ZN8: =COVAR(ZN11:ZN510,ZO11:ZO510)*$N$5 -> 156.76338 | ZQ8: =COVAR(ZQ11:ZQ510,ZR11:ZR510)*$N$5 -> 117.915062 | ZT8: =COVAR(ZT11:ZT510,ZU11:ZU510)*$N$5 -> 149.27625 | ZW8: =COVAR(ZW11:ZW510,ZX11:ZX510)*$N$5 -> 130.433922 | ZZ8: =COVAR(ZZ11:ZZ510,AAA11:AAA510)*$N$5 -> 115.894982 | AAC8: =COVAR(AAC11:AAC510,AAD11:AAD510)*$N$5 -> 163.399194 | AAF8: =COVAR(AAF11:AAF510,AAG11:AAG510)*$N$5 -> 125.7551 | AAI8: =COVAR(AAI11:AAI510,AAJ11:AAJ510)*$N$5 -> 111.28609 | AAL8: =COVAR(AAL11:AAL510,AAM11:AAM510)*$N$5 -> 117.875924 | AAO8: =COVAR(AAO11:AAO510,AAP11:AAP510)*$N$5 -> 161.473096 | AAR8: =COVAR(AAR11:AAR510,AAS11:AAS510)*$N$5 -> 160.090976 | AAU8: =COVAR(AAU11:AAU510,AAV11:AAV510)*$N$5 -> 130.91539 | AAX8: =COVAR(AAX11:AAX510,AAY11:AAY510)*$N$5 -> 105.920868 | ABA8: =COVAR(ABA11:ABA510,ABB11:ABB510)*$N$5 -> 124.116672 | ABD8: =COVAR(ABD11:ABD510,ABE11:ABE510)*$N$5 -> 120.540896 | ABG8: =COVAR(ABG11:ABG510,ABH11:ABH510)*$N$5 -> 113.21628 | ABJ8: =COVAR(ABJ11:ABJ510,ABK11:ABK510)*$N$5 -> 115.601884 | ABM8: =COVAR(ABM11:ABM510,ABN11:ABN510)*$N$5 -> 139.460428 | ABP8: =COVAR(ABP11:ABP510,ABQ11:ABQ510)*$N$5 -> 108.489458 | ABS8: =COVAR(ABS11:ABS510,ABT11:ABT510)*$N$5 -> 190.558432 | ABV8: =COVAR(ABV11:ABV510,ABW11:ABW510)*$N$5 -> 95.175068 | ABY8: =COVAR(ABY11:ABY510,ABZ11:ABZ510)*$N$5 -> 102.894042 | ACB8: =COVAR(ACB11:ACB510,ACC11:ACC510)*$N$5 -> 143.61238 | ACE8: =COVAR(ACE11:ACE510,ACF11:ACF510)*$N$5 -> 126.814612 | ACH8: =COVAR(ACH11:ACH510,ACI11:ACI510)*$N$5 -> 165.410578 | ACK8: =COVAR(ACK11:ACK510,ACL11:ACL510)*$N$5 -> 132.221212 | ACN8: =COVAR(ACN11:ACN510,ACO11:ACO510)*$N$5 -> 130.331254 | ACQ8: =COVAR(ACQ11:ACQ510,ACR11:ACR510)*$N$5 -> 152.93462 | ACT8: =COVAR(ACT11:ACT510,ACU11:ACU510)*$N$5 -> 95.264748 | ACW8: =COVAR(ACW11:ACW510,ACX11:ACX510)*$N$5 -> 134.05452 | ACZ8: =COVAR(ACZ11:ACZ510,ADA11:ADA510)*$N$5 -> 151.063656 | ADC8: =COVAR(ADC11:ADC510,ADD11:ADD510)*$N$5 -> 116.005154 | ADF8: =COVAR(ADF11:ADF510,ADG11:ADG510)*$N$5 -> 112.864028 | ADI8: =COVAR(ADI11:ADI510,ADJ11:ADJ510)*$N$5 -> 129.006628 | ADL8: =COVAR(ADL11:ADL510,ADM11:ADM510)*$N$5 -> 123.016696 | ADO8: =COVAR(ADO11:ADO510,ADP11:ADP510)*$N$5 -> 130.243084 | ADR8: =COVAR(ADR11:ADR510,ADS11:ADS510)*$N$5 -> 123.32645 | ADU8: =COVAR(ADU11:ADU510,ADV11:ADV510)*$N$5 -> 126.912834 | ADX8: =COVAR(ADX11:ADX510,ADY11:ADY510)*$N$5 -> 158.449544 | AEA8: =COVAR(AEA11:AEA510,AEB11:AEB510)*$N$5 -> 94.79068 | AED8: =COVAR(AED11:AED510,AEE11:AEE510)*$N$5 -> 107.546432 | AEG8: =COVAR(AEG11:AEG510,AEH11:AEH510)*$N$5 -> 150.596492 | AEJ8: =COVAR(AEJ11:AEJ510,AEK11:AEK510)*$N$5 -> 103.311568 | AEM8: =COVAR(AEM11:AEM510,AEN11:AEN510)*$N$5 -> 124.657808 | AEP8: =COVAR(AEP11:AEP510,AEQ11:AEQ510)*$N$5 -> 144.409084 | AES8: =COVAR(AES11:AES510,AET11:AET510)*$N$5 -> 101.833896 | AEV8: =COVAR(AEV11:AEV510,AEW11:AEW510)*$N$5 -> 117.778948 | AEY8: =COVAR(AEY11:AEY510,AEZ11:AEZ510)*$N$5 -> 84.489292 | AFB8: =COVAR(AFB11:AFB510,AFC11:AFC510)*$N$5 -> 160.4968 | AFE8: =COVAR(AFE11:AFE510,AFF11:AFF510)*$N$5 -> 86.20524 | AFH8: =COVAR(AFH11:AFH510,AFI11:AFI510)*$N$5 -> 109.364428 | AFK8: =COVAR(AFK11:AFK510,AFL11:AFL510)*$N$5 -> 127.524856 | AFN8: =COVAR(AFN11:AFN510,AFO11:AFO510)*$N$5 -> 134.280516 | AFQ8: =COVAR(AFQ11:AFQ510,AFR11:AFR510)*$N$5 -> 97.056732 | AFT8: =COVAR(AFT11:AFT510,AFU11:AFU510)*$N$5 -> 111.15183 | AFW8: =COVAR(AFW11:AFW510,AFX11:AFX510)*$N$5 -> 139.844626 | AFZ8: =COVAR(AFZ11:AFZ510,AGA11:AGA510)*$N$5 -> 130.60243 | AGC8: =COVAR(AGC11:AGC510,AGD11:AGD510)*$N$5 -> 151.137496 | AGF8: =COVAR(AGF11:AGF510,AGG11:AGG510)*$N$5 -> 126.583736 | AGI8: =COVAR(AGI11:AGI510,AGJ11:AGJ510)*$N$5 -> 121.845264 | AGL8: =COVAR(AGL11:AGL510,AGM11:AGM510)*$N$5 -> 122.064754 | AGO8: =COVAR(AGO11:AGO510,AGP11:AGP510)*$N$5 -> 105.246344 | AGR8: =COVAR(AGR11:AGR510,AGS11:AGS510)*$N$5 -> 143.102234 | AGU8: =COVAR(AGU11:AGU510,AGV11:AGV510)*$N$5 -> 126.659752 | AGX8: =COVAR(AGX11:AGX510,AGY11:AGY510)*$N$5 -> 136.52864 | AHA8: =COVAR(AHA11:AHA510,AHB11:AHB510)*$N$5 -> 100.8493 | AHD8: =COVAR(AHD11:AHD510,AHE11:AHE510)*$N$5 -> 133.465888 | AHG8: =COVAR(AHG11:AHG510,AHH11:AHH510)*$N$5 -> 108.82496 | AHJ8: =COVAR(AHJ11:AHJ510,AHK11:AHK510)*$N$5 -> 160.420558 | AHM8: =COVAR(AHM11:AHM510,AHN11:AHN510)*$N$5 -> 141.1858 | AHP8: =COVAR(AHP11:AHP510,AHQ11:AHQ510)*$N$5 -> 119.2401 | AHS8: =COVAR(AHS11:AHS510,AHT11:AHT510)*$N$5 -> 98.411264 | AHV8: =COVAR(AHV11:AHV510,AHW11:AHW510)*$N$5 -> 136.038384 | AHY8: =COVAR(AHY11:AHY510,AHZ11:AHZ510)*$N$5 -> 136.55826 | AIB8: =COVAR(AIB11:AIB510,AIC11:AIC510)*$N$5 -> 105.900646 | AIE8: =COVAR(AIE11:AIE510,AIF11:AIF510)*$N$5 -> 122.018952 | AIH8: =COVAR(AIH11:AIH510,AII11:AII510)*$N$5 -> 141.558088 | AIK8: =COVAR(AIK11:AIK510,AIL11:AIL510)*$N$5 -> 163.092336 | AIN8: =COVAR(AIN11:AIN510,AIO11:AIO510)*$N$5 -> 116.377344 | AIQ8: =COVAR(AIQ11:AIQ510,AIR11:AIR510)*$N$5 -> 158.556576 | AIT8: =COVAR(AIT11:AIT510,AIU11:AIU510)*$N$5 -> 143.989324 | AIW8: =COVAR(AIW11:AIW510,AIX11:AIX510)*$N$5 -> 125.526504 | AIZ8: =COVAR(AIZ11:AIZ510,AJA11:AJA510)*$N$5 -> 122.946464 | AJC8: =COVAR(AJC11:AJC510,AJD11:AJD510)*$N$5 -> 112.99237 | AJF8: =COVAR(AJF11:AJF510,AJG11:AJG510)*$N$5 -> 105.947242 | AJI8: =COVAR(AJI11:AJI510,AJJ11:AJJ510)*$N$5 -> 142.2894 | AJL8: =COVAR(AJL11:AJL510,AJM11:AJM510)*$N$5 -> 131.690044 | AJO8: =COVAR(AJO11:AJO510,AJP11:AJP510)*$N$5 -> 115.419676 | AJR8: =COVAR(AJR11:AJR510,AJS11:AJS510)*$N$5 -> 140.71062 | AJU8: =COVAR(AJU11:AJU510,AJV11:AJV510)*$N$5 -> 166.707242 | AJX8: =COVAR(AJX11:AJX510,AJY11:AJY510)*$N$5 -> 98.60039 | AKA8: =COVAR(AKA11:AKA510,AKB11:AKB510)*$N$5 -> 132.41542 | AKD8: =COVAR(AKD11:AKD510,AKE11:AKE510)*$N$5 -> 128.97204 | AKG8: =COVAR(AKG11:AKG510,AKH11:AKH510)*$N$5 -> 94.13569 | AKJ8: =COVAR(AKJ11:AKJ510,AKK11:AKK510)*$N$5 -> 158.18583 | AKM8: =COVAR(AKM11:AKM510,AKN11:AKN510)*$N$5 -> 104.402148 | AKP8: =COVAR(AKP11:AKP510,AKQ11:AKQ510)*$N$5 -> 122.76644 | AKS8: =COVAR(AKS11:AKS510,AKT11:AKT510)*$N$5 -> 136.56409 | AKV8: =COVAR(AKV11:AKV510,AKW11:AKW510)*$N$5 -> 115.596992 | AKY8: =COVAR(AKY11:AKY510,AKZ11:AKZ510)*$N$5 -> 145.79217 | ALB8: =COVAR(ALB11:ALB510,ALC11:ALC510)*$N$5 -> 148.766972 | ALE8: =COVAR(ALE11:ALE510,ALF11:ALF510)*$N$5 -> 168.35878 | ALH8: =COVAR(ALH11:ALH510,ALI11:ALI510)*$N$5 -> 110.676234 | ALK8: =COVAR(ALK11:ALK510,ALL11:ALL510)*$N$5 -> 134.99438 | ALN8: =COVAR(ALN11:ALN510,ALO11:ALO510)*$N$5 -> 197.169836 | ALQ8: =COVAR(ALQ11:ALQ510,ALR11:ALR510)*$N$5 -> 124.223028 | ALT8: =COVAR(ALT11:ALT510,ALU11:ALU510)*$N$5 -> 143.532432 | ALW8: =COVAR(ALW11:ALW510,ALX11:ALX510)*$N$5 -> 102.219764 | ALZ8: =COVAR(ALZ11:ALZ510,AMA11:AMA510)*$N$5 -> 132.49464 | AMC8: =COVAR(AMC11:AMC510,AMD11:AMD510)*$N$5 -> 112.06036 | AMF8: =COVAR(AMF11:AMF510,AMG11:AMG510)*$N$5 -> 117.824166 | AMI8: =COVAR(AMI11:AMI510,AMJ11:AMJ510)*$N$5 -> 112.849708 | AML8: =COVAR(AML11:AML510,AMM11:AMM510)*$N$5 -> 115.599448 | AMO8: =COVAR(AMO11:AMO510,AMP11:AMP510)*$N$5 -> 117.686172 | AMR8: =COVAR(AMR11:AMR510,AMS11:AMS510)*$N$5 -> 118.803176 | AMU8: =COVAR(AMU11:AMU510,AMV11:AMV510)*$N$5 -> 135.81087 | AMX8: =COVAR(AMX11:AMX510,AMY11:AMY510)*$N$5 -> 191.380804 | ANA8: =COVAR(ANA11:ANA510,ANB11:ANB510)*$N$5 -> 119.3929 | AND8: =COVAR(AND11:AND510,ANE11:ANE510)*$N$5 -> 115.670304 | ANG8: =COVAR(ANG11:ANG510,ANH11:ANH510)*$N$5 -> 117.45378 | ANJ8: =COVAR(ANJ11:ANJ510,ANK11:ANK510)*$N$5 -> 153.07541 | ANM8: =COVAR(ANM11:ANM510,ANN11:ANN510)*$N$5 -> 135.555272 | ANP8: =COVAR(ANP11:ANP510,ANQ11:ANQ510)*$N$5 -> 101.631914 | ANS8: =COVAR(ANS11:ANS510,ANT11:ANT510)*$N$5 -> 126.99135 | ANV8: =COVAR(ANV11:ANV510,ANW11:ANW510)*$N$5 -> 114.905148 | ANY8: =COVAR(ANY11:ANY510,ANZ11:ANZ510)*$N$5 -> 117.450432 | AOB8: =COVAR(AOB11:AOB510,AOC11:AOC510)*$N$5 -> 117.19221 | AOE8: =COVAR(AOE11:AOE510,AOF11:AOF510)*$N$5 -> 108.25529 | AOH8: =COVAR(AOH11:AOH510,AOI11:AOI510)*$N$5 -> 141.744972 | AOK8: =COVAR(AOK11:AOK510,AOL11:AOL510)*$N$5 -> 140.417788 | AON8: =COVAR(AON11:AON510,AOO11:AOO510)*$N$5 -> 130.958628 | AOQ8: =COVAR(AOQ11:AOQ510,AOR11:AOR510)*$N$5 -> 176.223706 | AOT8: =COVAR(AOT11:AOT510,AOU11:AOU510)*$N$5 -> 134.094186 | AOW8: =COVAR(AOW11:AOW510,AOX11:AOX510)*$N$5 -> 136.50182 | AOZ8: =COVAR(AOZ11:AOZ510,APA11:APA510)*$N$5 -> 153.478492 | APC8: =COVAR(APC11:APC510,APD11:APD510)*$N$5 -> 144.802876 | APF8: =COVAR(APF11:APF510,APG11:APG510)*$N$5 -> 122.59415 | API8: =COVAR(API11:API510,APJ11:APJ510)*$N$5 -> 149.013816 | APL8: =COVAR(APL11:APL510,APM11:APM510)*$N$5 -> 131.720044 | APO8: =COVAR(APO11:APO510,APP11:APP510)*$N$5 -> 108.835282 | APR8: =COVAR(APR11:APR510,APS11:APS510)*$N$5 -> 154.491632 | APU8: =COVAR(APU11:APU510,APV11:APV510)*$N$5 -> 153.9966 | APX8: =COVAR(APX11:APX510,APY11:APY510)*$N$5 -> 131.765692 | AQA8: =COVAR(AQA11:AQA510,AQB11:AQB510)*$N$5 -> 167.36092 | AQD8: =COVAR(AQD11:AQD510,AQE11:AQE510)*$N$5 -> 104.92781 | AQG8: =COVAR(AQG11:AQG510,AQH11:AQH510)*$N$5 -> 139.887512 | AQJ8: =COVAR(AQJ11:AQJ510,AQK11:AQK510)*$N$5 -> 124.013 | AQM8: =COVAR(AQM11:AQM510,AQN11:AQN510)*$N$5 -> 152.101176 | AQP8: =COVAR(AQP11:AQP510,AQQ11:AQQ510)*$N$5 -> 140.488424 | AQS8: =COVAR(AQS11:AQS510,AQT11:AQT510)*$N$5 -> 137.16172 | AQV8: =COVAR(AQV11:AQV510,AQW11:AQW510)*$N$5 -> 114.771146 | AQY8: =COVAR(AQY11:AQY510,AQZ11:AQZ510)*$N$5 -> 142.75901 | ARB8: =COVAR(ARB11:ARB510,ARC11:ARC510)*$N$5 -> 157.75888 | ARE8: =COVAR(ARE11:ARE510,ARF11:ARF510)*$N$5 -> 106.12248 | ARH8: =COVAR(ARH11:ARH510,ARI11:ARI510)*$N$5 -> 118.332748 | ARK8: =COVAR(ARK11:ARK510,ARL11:ARL510)*$N$5 -> 98.9378 | ARN8: =COVAR(ARN11:ARN510,ARO11:ARO510)*$N$5 -> 133.9614 | ARQ8: =COVAR(ARQ11:ARQ510,ARR11:ARR510)*$N$5 -> 163.660368 | ART8: =COVAR(ART11:ART510,ARU11:ARU510)*$N$5 -> 158.34282 | ARW8: =COVAR(ARW11:ARW510,ARX11:ARX510)*$N$5 -> 141.45922 | ARZ8: =COVAR(ARZ11:ARZ510,ASA11:ASA510)*$N$5 -> 98.2298 | ASC8: =COVAR(ASC11:ASC510,ASD11:ASD510)*$N$5 -> 126.671386 | ASF8: =COVAR(ASF11:ASF510,ASG11:ASG510)*$N$5 -> 125.138344 | ASI8: =COVAR(ASI11:ASI510,ASJ11:ASJ510)*$N$5 -> 133.135084 | ASL8: =COVAR(ASL11:ASL510,ASM11:ASM510)*$N$5 -> 108.844178 | ASO8: =COVAR(ASO11:ASO510,ASP11:ASP510)*$N$5 -> 160.679288 | ASR8: =COVAR(ASR11:ASR510,ASS11:ASS510)*$N$5 -> 135.295946 | ASU8: =COVAR(ASU11:ASU510,ASV11:ASV510)*$N$5 -> 147.822794 | ASX8: =COVAR(ASX11:ASX510,ASY11:ASY510)*$N$5 -> 101.759684 | ATA8: =COVAR(ATA11:ATA510,ATB11:ATB510)*$N$5 -> 143.184092 | ATD8: =COVAR(ATD11:ATD510,ATE11:ATE510)*$N$5 -> 109.218794 | ATG8: =COVAR(ATG11:ATG510,ATH11:ATH510)*$N$5 -> 144.43348 | ATJ8: =COVAR(ATJ11:ATJ510,ATK11:ATK510)*$N$5 -> 105.172292 | ATM8: =COVAR(ATM11:ATM510,ATN11:ATN510)*$N$5 -> 104.666168 | ATP8: =COVAR(ATP11:ATP510,ATQ11:ATQ510)*$N$5 -> 113.40939 | ATS8: =COVAR(ATS11:ATS510,ATT11:ATT510)*$N$5 -> 139.134776 | ATV8: =COVAR(ATV11:ATV510,ATW11:ATW510)*$N$5 -> 133.566752 | ATY8: =COVAR(ATY11:ATY510,ATZ11:ATZ510)*$N$5 -> 129.876642 | AUB8: =COVAR(AUB11:AUB510,AUC11:AUC510)*$N$5 -> 139.174828 | AUE8: =COVAR(AUE11:AUE510,AUF11:AUF510)*$N$5 -> 103.947924 | AUH8: =COVAR(AUH11:AUH510,AUI11:AUI510)*$N$5 -> 108.965536 | AUK8: =COVAR(AUK11:AUK510,AUL11:AUL510)*$N$5 -> 93.029584 | AUN8: =COVAR(AUN11:AUN510,AUO11:AUO510)*$N$5 -> 134.825604 | AUQ8: =COVAR(AUQ11:AUQ510,AUR11:AUR510)*$N$5 -> 115.762744 | AUT8: =COVAR(AUT11:AUT510,AUU11:AUU510)*$N$5 -> 143.999512 | AUW8: =COVAR(AUW11:AUW510,AUX11:AUX510)*$N$5 -> 131.053612 | AUZ8: =COVAR(AUZ11:AUZ510,AVA11:AVA510)*$N$5 -> 114.095244 | AVC8: =COVAR(AVC11:AVC510,AVD11:AVD510)*$N$5 -> 169.198204 | AVF8: =COVAR(AVF11:AVF510,AVG11:AVG510)*$N$5 -> 148.69512 | AVI8: =COVAR(AVI11:AVI510,AVJ11:AVJ510)*$N$5 -> 131.427388 | AVL8: =COVAR(AVL11:AVL510,AVM11:AVM510)*$N$5 -> 112.601046 | AVO8: =COVAR(AVO11:AVO510,AVP11:AVP510)*$N$5 -> 168.642864 | AVR8: =COVAR(AVR11:AVR510,AVS11:AVS510)*$N$5 -> 144.3227 | AVU8: =COVAR(AVU11:AVU510,AVV11:AVV510)*$N$5 -> 152.270192 | AVX8: =COVAR(AVX11:AVX510,AVY11:AVY510)*$N$5 -> 117.99102 | AWA8: =COVAR(AWA11:AWA510,AWB11:AWB510)*$N$5 -> 147.425936 | AWD8: =COVAR(AWD11:AWD510,AWE11:AWE510)*$N$5 -> 142.36638 | AWG8: =COVAR(AWG11:AWG510,AWH11:AWH510)*$N$5 -> 89.76114 | AWJ8: =COVAR(AWJ11:AWJ510,AWK11:AWK510)*$N$5 -> 113.977834 | AWM8: =COVAR(AWM11:AWM510,AWN11:AWN510)*$N$5 -> 120.01235 | AWP8: =COVAR(AWP11:AWP510,AWQ11:AWQ510)*$N$5 -> 156.91626 | AWS8: =COVAR(AWS11:AWS510,AWT11:AWT510)*$N$5 -> 183.927884 | AWV8: =COVAR(AWV11:AWV510,AWW11:AWW510)*$N$5 -> 153.75918 | AWY8: =COVAR(AWY11:AWY510,AWZ11:AWZ510)*$N$5 -> 152.86254 | AXB8: =COVAR(AXB11:AXB510,AXC11:AXC510)*$N$5 -> 132.34453 | AXE8: =COVAR(AXE11:AXE510,AXF11:AXF510)*$N$5 -> 117.1446 | AXH8: =COVAR(AXH11:AXH510,AXI11:AXI510)*$N$5 -> 123.8874 | AXK8: =COVAR(AXK11:AXK510,AXL11:AXL510)*$N$5 -> 131.38728 | AXN8: =COVAR(AXN11:AXN510,AXO11:AXO510)*$N$5 -> 126.4538 | AXQ8: =COVAR(AXQ11:AXQ510,AXR11:AXR510)*$N$5 -> 140.8923 | AXT8: =COVAR(AXT11:AXT510,AXU11:AXU510)*$N$5 -> 106.632324 | AXW8: =COVAR(AXW11:AXW510,AXX11:AXX510)*$N$5 -> 163.0434 | AXZ8: =COVAR(AXZ11:AXZ510,AYA11:AYA510)*$N$5 -> 129.046606 | AYC8: =COVAR(AYC11:AYC510,AYD11:AYD510)*$N$5 -> 127.994004 | AYF8: =COVAR(AYF11:AYF510,AYG11:AYG510)*$N$5 -> 114.577512 | AYI8: =COVAR(AYI11:AYI510,AYJ11:AYJ510)*$N$5 -> 142.178008 | AYL8: =COVAR(AYL11:AYL510,AYM11:AYM510)*$N$5 -> 128.858004 | AYO8: =COVAR(AYO11:AYO510,AYP11:AYP510)*$N$5 -> 99.892432 | AYR8: =COVAR(AYR11:AYR510,AYS11:AYS510)*$N$5 -> 114.099918 | AYU8: =COVAR(AYU11:AYU510,AYV11:AYV510)*$N$5 -> 151.67838 | AYX8: =COVAR(AYX11:AYX510,AYY11:AYY510)*$N$5 -> 143.94918 | AZA8: =COVAR(AZA11:AZA510,AZB11:AZB510)*$N$5 -> 112.556256 | AZD8: =COVAR(AZD11:AZD510,AZE11:AZE510)*$N$5 -> 127.757922 | AZG8: =COVAR(AZG11:AZG510,AZH11:AZH510)*$N$5 -> 116.39808 | AZJ8: =COVAR(AZJ11:AZJ510,AZK11:AZK510)*$N$5 -> 93.892232 | AZM8: =COVAR(AZM11:AZM510,AZN11:AZN510)*$N$5 -> 143.955438 | AZP8: =COVAR(AZP11:AZP510,AZQ11:AZQ510)*$N$5 -> 145.01003 | AZS8: =COVAR(AZS11:AZS510,AZT11:AZT510)*$N$5 -> 121.0278 | AZV8: =COVAR(AZV11:AZV510,AZW11:AZW510)*$N$5 -> 101.606384 | AZY8: =COVAR(AZY11:AZY510,AZZ11:AZZ510)*$N$5 -> 148.52716 | BAB8: =COVAR(BAB11:BAB510,BAC11:BAC510)*$N$5 -> 144.209288 | BAE8: =COVAR(BAE11:BAE510,BAF11:BAF510)*$N$5 -> 124.49572 | BAH8: =COVAR(BAH11:BAH510,BAI11:BAI510)*$N$5 -> 117.67796 | BAK8: =COVAR(BAK11:BAK510,BAL11:BAL510)*$N$5 -> 105.97254 | BAN8: =COVAR(BAN11:BAN510,BAO11:BAO510)*$N$5 -> 127.93394 | BAQ8: =COVAR(BAQ11:BAQ510,BAR11:BAR510)*$N$5 -> 151.1792 | BAT8: =COVAR(BAT11:BAT510,BAU11:BAU510)*$N$5 -> 121.13528 | BAW8: =COVAR(BAW11:BAW510,BAX11:BAX510)*$N$5 -> 140.81362 | BAZ8: =COVAR(BAZ11:BAZ510,BBA11:BBA510)*$N$5 -> 170.052482 | BBC8: =COVAR(BBC11:BBC510,BBD11:BBD510)*$N$5 -> 152.529602 | BBF8: =COVAR(BBF11:BBF510,BBG11:BBG510)*$N$5 -> 144.271948 | BBI8: =COVAR(BBI11:BBI510,BBJ11:BBJ510)*$N$5 -> 143.773652 | BBL8: =COVAR(BBL11:BBL510,BBM11:BBM510)*$N$5 -> 96.51223 | BBO8: =COVAR(BBO11:BBO510,BBP11:BBP510)*$N$5 -> 117.560132 | BBR8: =COVAR(BBR11:BBR510,BBS11:BBS510)*$N$5 -> 91.582116 | BBU8: =COVAR(BBU11:BBU510,BBV11:BBV510)*$N$5 -> 118.55854 | BBX8: =COVAR(BBX11:BBX510,BBY11:BBY510)*$N$5 -> 129.190886 | BCA8: =COVAR(BCA11:BCA510,BCB11:BCB510)*$N$5 -> 160.612024 | BCD8: =COVAR(BCD11:BCD510,BCE11:BCE510)*$N$5 -> 95.898028 | BCG8: =COVAR(BCG11:BCG510,BCH11:BCH510)*$N$5 -> 156.641294 | BCJ8: =COVAR(BCJ11:BCJ510,BCK11:BCK510)*$N$5 -> 140.60023 | BCM8: =COVAR(BCM11:BCM510,BCN11:BCN510)*$N$5 -> 116.44239 | BCP8: =COVAR(BCP11:BCP510,BCQ11:BCQ510)*$N$5 -> 124.254606 | BCS8: =COVAR(BCS11:BCS510,BCT11:BCT510)*$N$5 -> 150.87688 | BCV8: =COVAR(BCV11:BCV510,BCW11:BCW510)*$N$5 -> 142.683804 | BCY8: =COVAR(BCY11:BCY510,BCZ11:BCZ510)*$N$5 -> 104.94754 | BDB8: =COVAR(BDB11:BDB510,BDC11:BDC510)*$N$5 -> 119.52148 | BDE8: =COVAR(BDE11:BDE510,BDF11:BDF510)*$N$5 -> 117.31126 | BDH8: =COVAR(BDH11:BDH510,BDI11:BDI510)*$N$5 -> 99.620868 | BDK8: =COVAR(BDK11:BDK510,BDL11:BDL510)*$N$5 -> 136.955844 | BDN8: =COVAR(BDN11:BDN510,BDO11:BDO510)*$N$5 -> 108.9373 | BDQ8: =COVAR(BDQ11:BDQ510,BDR11:BDR510)*$N$5 -> 156.2629 | BDT8: =COVAR(BDT11:BDT510,BDU11:BDU510)*$N$5 -> 118.691204 | BDW8: =COVAR(BDW11:BDW510,BDX11:BDX510)*$N$5 -> 142.815114 | BDZ8: =COVAR(BDZ11:BDZ510,BEA11:BEA510)*$N$5 -> 134.43296 | BEC8: =COVAR(BEC11:BEC510,BED11:BED510)*$N$5 -> 88.374792 | BEF8: =COVAR(BEF11:BEF510,BEG11:BEG510)*$N$5 -> 140.94432 | BEI8: =COVAR(BEI11:BEI510,BEJ11:BEJ510)*$N$5 -> 124.195636 | BEL8: =COVAR(BEL11:BEL510,BEM11:BEM510)*$N$5 -> 140.36605 | BEO8: =COVAR(BEO11:BEO510,BEP11:BEP510)*$N$5 -> 129.179136 | BER8: =COVAR(BER11:BER510,BES11:BES510)*$N$5 -> 121.04448 | BEU8: =COVAR(BEU11:BEU510,BEV11:BEV510)*$N$5 -> 153.587008 | BEX8: =COVAR(BEX11:BEX510,BEY11:BEY510)*$N$5 -> 151.887732 | BFA8: =COVAR(BFA11:BFA510,BFB11:BFB510)*$N$5 -> 151.850466 | BFD8: =COVAR(BFD11:BFD510,BFE11:BFE510)*$N$5 -> 110.517668 | BFG8: =COVAR(BFG11:BFG510,BFH11:BFH510)*$N$5 -> 106.13814 | BFJ8: =COVAR(BFJ11:BFJ510,BFK11:BFK510)*$N$5 -> 147.712952 | BFM8: =COVAR(BFM11:BFM510,BFN11:BFN510)*$N$5 -> 120.06364 | BFP8: =COVAR(BFP11:BFP510,BFQ11:BFQ510)*$N$5 -> 111.29404 | BFS8: =COVAR(BFS11:BFS510,BFT11:BFT510)*$N$5 -> 86.016138 | BFV8: =COVAR(BFV11:BFV510,BFW11:BFW510)*$N$5 -> 159.13076 | BFY8: =COVAR(BFY11:BFY510,BFZ11:BFZ510)*$N$5 -> 129.81182 | BGB8: =COVAR(BGB11:BGB510,BGC11:BGC510)*$N$5 -> 100.07259 | BGE8: =COVAR(BGE11:BGE510,BGF11:BGF510)*$N$5 -> 143.948448 | BGH8: =COVAR(BGH11:BGH510,BGI11:BGI510)*$N$5 -> 148.030312 | BGK8: =COVAR(BGK11:BGK510,BGL11:BGL510)*$N$5 -> 115.69453 | BGN8: =COVAR(BGN11:BGN510,BGO11:BGO510)*$N$5 -> 172.415254 | BGQ8: =COVAR(BGQ11:BGQ510,BGR11:BGR510)*$N$5 -> 97.554396 | BGT8: =COVAR(BGT11:BGT510,BGU11:BGU510)*$N$5 -> 155.68326
C9: 5 | D9: 0.32 | E9: 0.91 | H9: 0 | I9: 0 | K9: 変動計数：=SD/n＊100 | M9: =M8/M6*100 -> 67.18727173 | N9: =N8/N6*100 -> 58.47449964 | O9: =O8/O6*100 ->  | P9: =P8/P6*100 ->  | U9: 2.74 | V9: 28 | W9: 5 | X9: 2.84 | Y9: 24 | Z9: 4 | AD9: -1.336452734 | AE9: 0.425271317 | AF9: -1.289143981 | AG9: 0.7758192758 | AN9: 47 | AO9: 46 | AS9: =IF(D9<>"",(D9+E9)/2,"") -> 0.615 | AT9: 0.59 | AV9: 0.615 | AW9: 0.59 | BA9: Sｘｘ・Sｙｙ= | BB9: =DEVSQ(BB11:BB510) -> 210.068368 | BC9: =DEVSQ(BC11:BC510) -> 213.865912 | BE9: =DEVSQ(BE11:BE510) -> 112.92065 | BF9: =DEVSQ(BF11:BF510) -> 183.016248 | BH9: =DEVSQ(BH11:BH510) -> 151.465432 | BI9: =DEVSQ(BI11:BI510) -> 191.328802 | BK9: =DEVSQ(BK11:BK510) -> 129.852512 | BL9: =DEVSQ(BL11:BL510) -> 156.23985 | BN9: =DEVSQ(BN11:BN510) -> 111.847552 | BO9: =DEVSQ(BO11:BO510) -> 150.799248 | BQ9: =DEVSQ(BQ11:BQ510) -> 131.850922 | BR9: =DEVSQ(BR11:BR510) -> 144.082818 | BT9: =DEVSQ(BT11:BT510) -> 94.458392 | BU9: =DEVSQ(BU11:BU510) -> 117.004848 | BW9: =DEVSQ(BW11:BW510) -> 120.485888 | BX9: =DEVSQ(BX11:BX510) -> 156.906928 | BZ9: =DEVSQ(BZ11:BZ510) -> 150.965248 | CA9: =DEVSQ(CA11:CA510) -> 204.598168 | CC9: =DEVSQ(CC11:CC510) -> 147.60565 | CD9: =DEVSQ(CD11:CD510) -> 164.747232 | CF9: =DEVSQ(CF11:CF510) -> 81.891858 | CG9: =DEVSQ(CG11:CG510) -> 149.053042 | CI9: =DEVSQ(CI11:CI510) -> 94.310522 | CJ9: =DEVSQ(CJ11:CJ510) -> 172.4442 | CL9: =DEVSQ(CL11:CL510) -> 160.053048 | CM9: =DEVSQ(CM11:CM510) -> 193.569578 | CO9: =DEVSQ(CO11:CO510) -> 100.77405 | CP9: =DEVSQ(CP11:CP510) -> 170.467168 | CR9: =DEVSQ(CR11:CR510) -> 116.396242 | CS9: =DEVSQ(CS11:CS510) -> 151.958128 | CU9: =DEVSQ(CU11:CU510) -> 154.498472 | CV9: =DEVSQ(CV11:CV510) -> 196.735298 | CX9: =DEVSQ(CX11:CX510) -> 124.563872 | CY9: =DEVSQ(CY11:CY510) -> 165.5266 | DA9: =DEVSQ(DA11:DA510) -> 169.210722 | DB9: =DEVSQ(DB11:DB510) -> 166.265658 | DD9: =DEVSQ(DD11:DD510) -> 144.220928 | DE9: =DEVSQ(DE11:DE510) -> 185.566138 | DG9: =DEVSQ(DG11:DG510) -> 117.8414 | DH9: =DEVSQ(DH11:DH510) -> 171.898738 | DJ9: =DEVSQ(DJ11:DJ510) -> 131.197728 | DK9: =DEVSQ(DK11:DK510) -> 170.927378 | DM9: =DEVSQ(DM11:DM510) -> 84.88965 | DN9: =DEVSQ(DN11:DN510) -> 164.815768 | DP9: =DEVSQ(DP11:DP510) -> 153.26725 | DQ9: =DEVSQ(DQ11:DQ510) -> 187.460482 | DS9: =DEVSQ(DS11:DS510) -> 168.9098 | DT9: =DEVSQ(DT11:DT510) -> 202.831 | DV9: =DEVSQ(DV11:DV510) -> 140.071098 | DW9: =DEVSQ(DW11:DW510) -> 177.679168 | DY9: =DEVSQ(DY11:DY510) -> 160.235792 | DZ9: =DEVSQ(DZ11:DZ510) -> 153.339402 | EB9: =DEVSQ(EB11:EB510) -> 132.611312 | EC9: =DEVSQ(EC11:EC510) -> 132.193272 | EE9: =DEVSQ(EE11:EE510) -> 127.084642 | EF9: =DEVSQ(EF11:EF510) -> 161.064448 | EH9: =DEVSQ(EH11:EH510) -> 144.21665 | EI9: =DEVSQ(EI11:EI510) -> 199.370672 | EK9: =DEVSQ(EK11:EK510) -> 136.968632 | EL9: =DEVSQ(EL11:EL510) -> 132.487002 | EN9: =DEVSQ(EN11:EN510) -> 162.673362 | EO9: =DEVSQ(EO11:EO510) -> 172.223642 | EQ9: =DEVSQ(EQ11:EQ510) -> 109.347138 | ER9: =DEVSQ(ER11:ER510) -> 173.660168 | ET9: =DEVSQ(ET11:ET510) -> 146.860088 | EU9: =DEVSQ(EU11:EU510) -> 148.645082 | EW9: =DEVSQ(EW11:EW510) -> 139.145698 | EX9: =DEVSQ(EX11:EX510) -> 150.992512 | EZ9: =DEVSQ(EZ11:EZ510) -> 145.273522 | FA9: =DEVSQ(FA11:FA510) -> 190.821688 | FC9: =DEVSQ(FC11:FC510) -> 105.14865 | FD9: =DEVSQ(FD11:FD510) -> 134.510352 | FF9: =DEVSQ(FF11:FF510) -> 134.61945 | FG9: =DEVSQ(FG11:FG510) -> 202.090472 | FI9: =DEVSQ(FI11:FI510) -> 113.317408 | FJ9: =DEVSQ(FJ11:FJ510) -> 152.621762 | FL9: =DEVSQ(FL11:FL510) -> 123.585568 | FM9: =DEVSQ(FM11:FM510) -> 155.541792 | FO9: =DEVSQ(FO11:FO510) -> 170.827658 | FP9: =DEVSQ(FP11:FP510) -> 146.793642 | FR9: =DEVSQ(FR11:FR510) -> 145.956418 | FS9: =DEVSQ(FS11:FS510) -> 159.0962 | FU9: =DEVSQ(FU11:FU510) -> 177.792658 | FV9: =DEVSQ(FV11:FV510) -> 207.1014 | FX9: =DEVSQ(FX11:FX510) -> 193.351992 | FY9: =DEVSQ(FY11:FY510) -> 172.82625 | GA9: =DEVSQ(GA11:GA510) -> 130.497888 | GB9: =DEVSQ(GB11:GB510) -> 140.580482 | GD9: =DEVSQ(GD11:GD510) -> 168.0316 | GE9: =DEVSQ(GE11:GE510) -> 187.439368 | GG9: =DEVSQ(GG11:GG510) -> 126.94 | GH9: =DEVSQ(GH11:GH510) -> 154.087432 | GJ9: =DEVSQ(GJ11:GJ510) -> 100.940858 | GK9: =DEVSQ(GK11:GK510) -> 122.247232 | GM9: =DEVSQ(GM11:GM510) -> 87.32785 | GN9: =DEVSQ(GN11:GN510) -> 161.149298 | GP9: =DEVSQ(GP11:GP510) -> 126.651248 | GQ9: =DEVSQ(GQ11:GQ510) -> 163.832858 | GS9: =DEVSQ(GS11:GS510) -> 158.471272 | GT9: =DEVSQ(GT11:GT510) -> 179.08 | GV9: =DEVSQ(GV11:GV510) -> 147.853888 | GW9: =DEVSQ(GW11:GW510) -> 177.843298 | GY9: =DEVSQ(GY11:GY510) -> 147.435088 | GZ9: =DEVSQ(GZ11:GZ510) -> 212.993288 | HB9: =DEVSQ(HB11:HB510) -> 155.509842 | HC9: =DEVSQ(HC11:HC510) -> 168.49885 | HE9: =DEVSQ(HE11:HE510) -> 136.064968 | HF9: =DEVSQ(HF11:HF510) -> 199.429128 | HH9: =DEVSQ(HH11:HH510) -> 117.603202 | HI9: =DEVSQ(HI11:HI510) -> 131.9868 | HK9: =DEVSQ(HK11:HK510) -> 115.33105 | HL9: =DEVSQ(HL11:HL510) -> 177.4606 | HN9: =DEVSQ(HN11:HN510) -> 147.655202 | HO9: =DEVSQ(HO11:HO510) -> 187.310712 | HQ9: =DEVSQ(HQ11:HQ510) -> 133.521578 | HR9: =DEVSQ(HR11:HR510) -> 148.985848 | HT9: =DEVSQ(HT11:HT510) -> 125.683178 | HU9: =DEVSQ(HU11:HU510) -> 118.174968 | HW9: =DEVSQ(HW11:HW510) -> 120.938512 | HX9: =DEVSQ(HX11:HX510) -> 152.660552 | HZ9: =DEVSQ(HZ11:HZ510) -> 159.937832 | IA9: =DEVSQ(IA11:IA510) -> 155.229882 | IC9: =DEVSQ(IC11:IC510) -> 101.383018 | ID9: =DEVSQ(ID11:ID510) -> 141.480098 | IF9: =DEVSQ(IF11:IF510) -> 153.799418 | IG9: =DEVSQ(IG11:IG510) -> 168.554112 | II9: =DEVSQ(II11:II510) -> 145.143482 | IJ9: =DEVSQ(IJ11:IJ510) -> 185.560488 | IL9: =DEVSQ(IL11:IL510) -> 143.647978 | IM9: =DEVSQ(IM11:IM510) -> 181.071352 | IO9: =DEVSQ(IO11:IO510) -> 137.6514 | IP9: =DEVSQ(IP11:IP510) -> 172.689698 | IR9: =DEVSQ(IR11:IR510) -> 118.799152 | IS9: =DEVSQ(IS11:IS510) -> 203.774122 | IU9: =DEVSQ(IU11:IU510) -> 147.236848 | IV9: =DEVSQ(IV11:IV510) -> 190.429002 | IX9: =DEVSQ(IX11:IX510) -> 111.72925 | IY9: =DEVSQ(IY11:IY510) -> 167.104578 | JA9: =DEVSQ(JA11:JA510) -> 141.115642 | JB9: =DEVSQ(JB11:JB510) -> 155.11805 | JD9: =DEVSQ(JD11:JD510) -> 144.357872 | JE9: =DEVSQ(JE11:JE510) -> 124.65205 | JG9: =DEVSQ(JG11:JG510) -> 133.72745 | JH9: =DEVSQ(JH11:JH510) -> 108.46065 | JJ9: =DEVSQ(JJ11:JJ510) -> 168.695432 | JK9: =DEVSQ(JK11:JK510) -> 193.826618 | JM9: =DEVSQ(JM11:JM510) -> 171.406728 | JN9: =DEVSQ(JN11:JN510) -> 164.899458 | JP9: =DEVSQ(JP11:JP510) -> 199.331232 | JQ9: =DEVSQ(JQ11:JQ510) -> 201.440912 | JS9: =DEVSQ(JS11:JS510) -> 131.253712 | JT9: =DEVSQ(JT11:JT510) -> 154.038858 | JV9: =DEVSQ(JV11:JV510) -> 148.170378 | JW9: =DEVSQ(JW11:JW510) -> 173.551298 | JY9: =DEVSQ(JY11:JY510) -> 78.282848 | JZ9: =DEVSQ(JZ11:JZ510) -> 150.465 | KB9: =DEVSQ(KB11:KB510) -> 101.397058 | KC9: =DEVSQ(KC11:KC510) -> 130.482632 | KE9: =DEVSQ(KE11:KE510) -> 116.512778 | KF9: =DEVSQ(KF11:KF510) -> 144.114218 | KH9: =DEVSQ(KH11:KH510) -> 108.943128 | KI9: =DEVSQ(KI11:KI510) -> 179.62685 | KK9: =DEVSQ(KK11:KK510) -> 107.41285 | KL9: =DEVSQ(KL11:KL510) -> 188.89 | KN9: =DEVSQ(KN11:KN510) -> 132.04 | KO9: =DEVSQ(KO11:KO510) -> 152.79605 | KQ9: =DEVSQ(KQ11:KQ510) -> 190.902842 | KR9: =DEVSQ(KR11:KR510) -> 236.121128 | KT9: =DEVSQ(KT11:KT510) -> 145.435688 | KU9: =DEVSQ(KU11:KU510) -> 176.501442 | KW9: =DEVSQ(KW11:KW510) -> 131.208338 | KX9: =DEVSQ(KX11:KX510) -> 133.003018 | KZ9: =DEVSQ(KZ11:KZ510) -> 124.027432 | LA9: =DEVSQ(LA11:LA510) -> 196.539882 | LC9: =DEVSQ(LC11:LC510) -> 126.537882 | LD9: =DEVSQ(LD11:LD510) -> 163.86365 | LF9: =DEVSQ(LF11:LF510) -> 145.027488 | LG9: =DEVSQ(LG11:LG510) -> 163.216552 | LI9: =DEVSQ(LI11:LI510) -> 125.701218 | LJ9: =DEVSQ(LJ11:LJ510) -> 172.287008 | LL9: =DEVSQ(LL11:LL510) -> 123.472728 | LM9: =DEVSQ(LM11:LM510) -> 220.072722 | LO9: =DEVSQ(LO11:LO510) -> 108.568522 | LP9: =DEVSQ(LP11:LP510) -> 167.414008 | LR9: =DEVSQ(LR11:LR510) -> 132.858952 | LS9: =DEVSQ(LS11:LS510) -> 145.542498 | LU9: =DEVSQ(LU11:LU510) -> 111.052672 | LV9: =DEVSQ(LV11:LV510) -> 142.353112 | LX9: =DEVSQ(LX11:LX510) -> 129.67945 | LY9: =DEVSQ(LY11:LY510) -> 185.590272 | MA9: =DEVSQ(MA11:MA510) -> 95.91485 | MB9: =DEVSQ(MB11:MB510) -> 189.401432 | MD9: =DEVSQ(MD11:MD510) -> 98.989888 | ME9: =DEVSQ(ME11:ME510) -> 167.597898 | MG9: =DEVSQ(MG11:MG510) -> 195.61205 | MH9: =DEVSQ(MH11:MH510) -> 199.775818 | MJ9: =DEVSQ(MJ11:MJ510) -> 148.4382 | MK9: =DEVSQ(MK11:MK510) -> 154.8952 | MM9: =DEVSQ(MM11:MM510) -> 105.273858 | MN9: =DEVSQ(MN11:MN510) -> 166.978112 | MP9: =DEVSQ(MP11:MP510) -> 167.92485 | MQ9: =DEVSQ(MQ11:MQ510) -> 193.18745 | MS9: =DEVSQ(MS11:MS510) -> 107.619392 | MT9: =DEVSQ(MT11:MT510) -> 145.16385 | MV9: =DEVSQ(MV11:MV510) -> 91.157568 | MW9: =DEVSQ(MW11:MW510) -> 152.856602 | MY9: =DEVSQ(MY11:MY510) -> 157.291272 | MZ9: =DEVSQ(MZ11:MZ510) -> 179.600312 | NB9: =DEVSQ(NB11:NB510) -> 137.459098 | NC9: =DEVSQ(NC11:NC510) -> 185.321538 | NE9: =DEVSQ(NE11:NE510) -> 115.630562 | NF9: =DEVSQ(NF11:NF510) -> 124.564328 | NH9: =DEVSQ(NH11:NH510) -> 115.990138 | NI9: =DEVSQ(NI11:NI510) -> 117.035298 | NK9: =DEVSQ(NK11:NK510) -> 125.319112 | NL9: =DEVSQ(NL11:NL510) -> 174.3968 | NN9: =DEVSQ(NN11:NN510) -> 192.47125 | NO9: =DEVSQ(NO11:NO510) -> 185.582968 | NQ9: =DEVSQ(NQ11:NQ510) -> 97.722042 | NR9: =DEVSQ(NR11:NR510) -> 123.095 | NT9: =DEVSQ(NT11:NT510) -> 149.355632 | NU9: =DEVSQ(NU11:NU510) -> 163.177008 | NW9: =DEVSQ(NW11:NW510) -> 135.267162 | NX9: =DEVSQ(NX11:NX510) -> 161.806592 | NZ9: =DEVSQ(NZ11:NZ510) -> 125.431568 | OA9: =DEVSQ(OA11:OA510) -> 162.551842 | OC9: =DEVSQ(OC11:OC510) -> 111.479122 | OD9: =DEVSQ(OD11:OD510) -> 145.823338 | OF9: =DEVSQ(OF11:OF510) -> 173.263128 | OG9: =DEVSQ(OG11:OG510) -> 195.890218 | OI9: =DEVSQ(OI11:OI510) -> 146.973738 | OJ9: =DEVSQ(OJ11:OJ510) -> 182.297 | OL9: =DEVSQ(OL11:OL510) -> 181.409528 | OM9: =DEVSQ(OM11:OM510) -> 177.916672 | OO9: =DEVSQ(OO11:OO510) -> 109.443962 | OP9: =DEVSQ(OP11:OP510) -> 132.401112 | OR9: =DEVSQ(OR11:OR510) -> 128.0266 | OS9: =DEVSQ(OS11:OS510) -> 176.216712 | OU9: =DEVSQ(OU11:OU510) -> 203.294362 | OV9: =DEVSQ(OV11:OV510) -> 196.208352 | OX9: =DEVSQ(OX11:OX510) -> 129.300288 | OY9: =DEVSQ(OY11:OY510) -> 144.318832 | PA9: =DEVSQ(PA11:PA510) -> 140.688192 | PB9: =DEVSQ(PB11:PB510) -> 154.183418 | PD9: =DEVSQ(PD11:PD510) -> 188.390872 | PE9: =DEVSQ(PE11:PE510) -> 179.390912 | PG9: =DEVSQ(PG11:PG510) -> 112.3648 | PH9: =DEVSQ(PH11:PH510) -> 149.336552 | PJ9: =DEVSQ(PJ11:PJ510) -> 224.901632 | PK9: =DEVSQ(PK11:PK510) -> 181.847138 | PM9: =DEVSQ(PM11:PM510) -> 143.906528 | PN9: =DEVSQ(PN11:PN510) -> 171.514032 | PP9: =DEVSQ(PP11:PP510) -> 137.500298 | PQ9: =DEVSQ(PQ11:PQ510) -> 169.927448 | PS9: =DEVSQ(PS11:PS510) -> 110.004722 | PT9: =DEVSQ(PT11:PT510) -> 177.960682 | PV9: =DEVSQ(PV11:PV510) -> 130.7428 | PW9: =DEVSQ(PW11:PW510) -> 150.006408 | PY9: =DEVSQ(PY11:PY510) -> 122.0168 | PZ9: =DEVSQ(PZ11:PZ510) -> 154.096432 | QB9: =DEVSQ(QB11:QB510) -> 139.437098 | QC9: =DEVSQ(QC11:QC510) -> 167.027448 | QE9: =DEVSQ(QE11:QE510) -> 108.11825 | QF9: =DEVSQ(QF11:QF510) -> 155.956802 | QH9: =DEVSQ(QH11:QH510) -> 155.621818 | QI9: =DEVSQ(QI11:QI510) -> 182.288808 | QK9: =DEVSQ(QK11:QK510) -> 115.470952 | QL9: =DEVSQ(QL11:QL510) -> 179.069882 | QN9: =DEVSQ(QN11:QN510) -> 117.575568 | QO9: =DEVSQ(QO11:QO510) -> 160.206208 | QQ9: =DEVSQ(QQ11:QQ510) -> 153.239498 | QR9: =DEVSQ(QR11:QR510) -> 148.477328 | QT9: =DEVSQ(QT11:QT510) -> 124.90885 | QU9: =DEVSQ(QU11:QU510) -> 151.771442 | QW9: =DEVSQ(QW11:QW510) -> 133.741992 | QX9: =DEVSQ(QX11:QX510) -> 115.866 | QZ9: =DEVSQ(QZ11:QZ510) -> 119.716968 | RA9: =DEVSQ(RA11:RA510) -> 151.429882 | RC9: =DEVSQ(RC11:RC510) -> 107.12005 | RD9: =DEVSQ(RD11:RD510) -> 129.175002 | RF9: =DEVSQ(RF11:RF510) -> 169.086992 | RG9: =DEVSQ(RG11:RG510) -> 180.674938 | RI9: =DEVSQ(RI11:RI510) -> 143.70545 | RJ9: =DEVSQ(RJ11:RJ510) -> 227.603432 | RL9: =DEVSQ(RL11:RL510) -> 141.089698 | RM9: =DEVSQ(RM11:RM510) -> 190.61 | RO9: =DEVSQ(RO11:RO510) -> 102.855018 | RP9: =DEVSQ(RP11:RP510) -> 149.6926 | RR9: =DEVSQ(RR11:RR510) -> 178.054928 | RS9: =DEVSQ(RS11:RS510) -> 151.968058 | RU9: =DEVSQ(RU11:RU510) -> 143.893738 | RV9: =DEVSQ(RV11:RV510) -> 130.00525 | RX9: =DEVSQ(RX11:RX510) -> 122.069402 | RY9: =DEVSQ(RY11:RY510) -> 161.703762 | SA9: =DEVSQ(SA11:SA510) -> 109.476088 | SB9: =DEVSQ(SB11:SB510) -> 150.8044 | SD9: =DEVSQ(SD11:SD510) -> 147.335898 | SE9: =DEVSQ(SE11:SE510) -> 206.580378 | SG9: =DEVSQ(SG11:SG510) -> 191.050272 | SH9: =DEVSQ(SH11:SH510) -> 169.483858 | SJ9: =DEVSQ(SJ11:SJ510) -> 92.7098 | SK9: =DEVSQ(SK11:SK510) -> 163.920138 | SM9: =DEVSQ(SM11:SM510) -> 134.573578 | SN9: =DEVSQ(SN11:SN510) -> 126.696968 | SP9: =DEVSQ(SP11:SP510) -> 155.704968 | SQ9: =DEVSQ(SQ11:SQ510) -> 186.597112 | SS9: =DEVSQ(SS11:SS510) -> 181.216592 | ST9: =DEVSQ(ST11:ST510) -> 170.28085 | SV9: =DEVSQ(SV11:SV510) -> 124.063928 | SW9: =DEVSQ(SW11:SW510) -> 150.311882 | SY9: =DEVSQ(SY11:SY510) -> 136.608738 | SZ9: =DEVSQ(SZ11:SZ510) -> 179.039362 | TB9: =DEVSQ(TB11:TB510) -> 113.039018 | TC9: =DEVSQ(TC11:TC510) -> 137.453512 | TE9: =DEVSQ(TE11:TE510) -> 126.702082 | TF9: =DEVSQ(TF11:TF510) -> 159.073592 | TH9: =DEVSQ(TH11:TH510) -> 164.750842 | TI9: =DEVSQ(TI11:TI510) -> 185.807008 | TK9: =DEVSQ(TK11:TK510) -> 169.763722 | TL9: =DEVSQ(TL11:TL510) -> 200.537072 | TN9: =DEVSQ(TN11:TN510) -> 175.634912 | TO9: =DEVSQ(TO11:TO510) -> 171.995338 | TQ9: =DEVSQ(TQ11:TQ510) -> 145.458992 | TR9: =DEVSQ(TR11:TR510) -> 182.98465 | TT9: =DEVSQ(TT11:TT510) -> 170.74625 | TU9: =DEVSQ(TU11:TU510) -> 146.836368 | TW9: =DEVSQ(TW11:TW510) -> 128.430618 | TX9: =DEVSQ(TX11:TX510) -> 167.799682 | TZ9: =DEVSQ(TZ11:TZ510) -> 175.933352 | UA9: =DEVSQ(UA11:UA510) -> 184.194802 | UC9: =DEVSQ(UC11:UC510) -> 144.883648 | UD9: =DEVSQ(UD11:UD510) -> 141.67265 | UF9: =DEVSQ(UF11:UF510) -> 102.282962 | UG9: =DEVSQ(UG11:UG510) -> 164.418792 | UI9: =DEVSQ(UI11:UI510) -> 140.239058 | UJ9: =DEVSQ(UJ11:UJ510) -> 162.47105 | UL9: =DEVSQ(UL11:UL510) -> 117.404882 | UM9: =DEVSQ(UM11:UM510) -> 149.626322 | UO9: =DEVSQ(UO11:UO510) -> 116.665768 | UP9: =DEVSQ(UP11:UP510) -> 156.551832 | UR9: =DEVSQ(UR11:UR510) -> 114.237832 | US9: =DEVSQ(US11:US510) -> 154.76025 | UU9: =DEVSQ(UU11:UU510) -> 124.4236 | UV9: =DEVSQ(UV11:UV510) -> 147.550962 | UX9: =DEVSQ(UX11:UX510) -> 143.322978 | UY9: =DEVSQ(UY11:UY510) -> 177.624978 | VA9: =DEVSQ(VA11:VA510) -> 132.837832 | VB9: =DEVSQ(VB11:VB510) -> 142.326072 | VD9: =DEVSQ(VD11:VD510) -> 172.275922 | VE9: =DEVSQ(VE11:VE510) -> 210.008098 | VG9: =DEVSQ(VG11:VG510) -> 96.3818 | VH9: =DEVSQ(VH11:VH510) -> 129.94125 | VJ9: =DEVSQ(VJ11:VJ510) -> 164.39965 | VK9: =DEVSQ(VK11:VK510) -> 184.126978 | VM9: =DEVSQ(VM11:VM510) -> 127.019192 | VN9: =DEVSQ(VN11:VN510) -> 146.910418 | VP9: =DEVSQ(VP11:VP510) -> 144.584442 | VQ9: =DEVSQ(VQ11:VQ510) -> 205.1706 | VS9: =DEVSQ(VS11:VS510) -> 126.425018 | VT9: =DEVSQ(VT11:VT510) -> 163.731288 | VV9: =DEVSQ(VV11:VV510) -> 138.640808 | VW9: =DEVSQ(VW11:VW510) -> 208.7 | VY9: =DEVSQ(VY11:VY510) -> 95.4748 | VZ9: =DEVSQ(VZ11:VZ510) -> 150.229418 | WB9: =DEVSQ(WB11:WB510) -> 117.272448 | WC9: =DEVSQ(WC11:WC510) -> 143.763088 | WE9: =DEVSQ(WE11:WE510) -> 139.171728 | WF9: =DEVSQ(WF11:WF510) -> 189.12005 | WH9: =DEVSQ(WH11:WH510) -> 92.656408 | WI9: =DEVSQ(WI11:WI510) -> 155.141738 | WK9: =DEVSQ(WK11:WK510) -> 132.069698 | WL9: =DEVSQ(WL11:WL510) -> 157.9094 | WN9: =DEVSQ(WN11:WN510) -> 98.083618 | WO9: =DEVSQ(WO11:WO510) -> 148.443392 | WQ9: =DEVSQ(WQ11:WQ510) -> 128.769248 | WR9: =DEVSQ(WR11:WR510) -> 172.868432 | WT9: =DEVSQ(WT11:WT510) -> 153.622218 | WU9: =DEVSQ(WU11:WU510) -> 201.245872 | WW9: =DEVSQ(WW11:WW510) -> 122.16865 | WX9: =DEVSQ(WX11:WX510) -> 169.758658 | WZ9: =DEVSQ(WZ11:WZ510) -> 209.883178 | XA9: =DEVSQ(XA11:XA510) -> 204.550912 | XC9: =DEVSQ(XC11:XC510) -> 100.581762 | XD9: =DEVSQ(XD11:XD510) -> 111.163072 | XF9: =DEVSQ(XF11:XF510) -> 115.991 | XG9: =DEVSQ(XG11:XG510) -> 161.498872 | XI9: =DEVSQ(XI11:XI510) -> 124.422208 | XJ9: =DEVSQ(XJ11:XJ510) -> 151.52565 | XL9: =DEVSQ(XL11:XL510) -> 118.298418 | XM9: =DEVSQ(XM11:XM510) -> 162.898712 | XO9: =DEVSQ(XO11:XO510) -> 123.8496 | XP9: =DEVSQ(XP11:XP510) -> 170.962352 | XR9: =DEVSQ(XR11:XR510) -> 146.5554 | XS9: =DEVSQ(XS11:XS510) -> 166.078442 | XU9: =DEVSQ(XU11:XU510) -> 165.802672 | XV9: =DEVSQ(XV11:XV510) -> 237.733272 | XX9: =DEVSQ(XX11:XX510) -> 140.995658 | XY9: =DEVSQ(XY11:XY510) -> 138.403272 | YA9: =DEVSQ(YA11:YA510) -> 116.294072 | YB9: =DEVSQ(YB11:YB510) -> 169.527778 | YD9: =DEVSQ(YD11:YD510) -> 125.163632 | YE9: =DEVSQ(YE11:YE510) -> 158.427248 | YG9: =DEVSQ(YG11:YG510) -> 173.103912 | YH9: =DEVSQ(YH11:YH510) -> 192.642568 | YJ9: =DEVSQ(YJ11:YJ510) -> 102.539282 | YK9: =DEVSQ(YK11:YK510) -> 145.406162 | YM9: =DEVSQ(YM11:YM510) -> 118.412522 | YN9: =DEVSQ(YN11:YN510) -> 163.775242 | YP9: =DEVSQ(YP11:YP510) -> 131.624122 | YQ9: =DEVSQ(YQ11:YQ510) -> 183.795592 | YS9: =DEVSQ(YS11:YS510) -> 156.505818 | YT9: =DEVSQ(YT11:YT510) -> 160.264 | YV9: =DEVSQ(YV11:YV510) -> 141.343992 | YW9: =DEVSQ(YW11:YW510) -> 183.427432 | YY9: =DEVSQ(YY11:YY510) -> 159.3174 | YZ9: =DEVSQ(YZ11:YZ510) -> 179.895248 | ZB9: =DEVSQ(ZB11:ZB510) -> 180.166072 | ZC9: =DEVSQ(ZC11:ZC510) -> 185.422888 | ZE9: =DEVSQ(ZE11:ZE510) -> 136.373442 | ZF9: =DEVSQ(ZF11:ZF510) -> 149.525698 | ZH9: =DEVSQ(ZH11:ZH510) -> 138.964538 | ZI9: =DEVSQ(ZI11:ZI510) -> 138.486658 | ZK9: =DEVSQ(ZK11:ZK510) -> 152.536818 | ZL9: =DEVSQ(ZL11:ZL510) -> 156.463562 | ZN9: =DEVSQ(ZN11:ZN510) -> 164.321 | ZO9: =DEVSQ(ZO11:ZO510) -> 191.555808 | ZQ9: =DEVSQ(ZQ11:ZQ510) -> 118.037162 | ZR9: =DEVSQ(ZR11:ZR510) -> 180.435362 | ZT9: =DEVSQ(ZT11:ZT510) -> 162.77565 | ZU9: =DEVSQ(ZU11:ZU510) -> 155.42525 | ZW9: =DEVSQ(ZW11:ZW510) -> 155.538218 | ZX9: =DEVSQ(ZX11:ZX510) -> 164.355138 | ZZ9: =DEVSQ(ZZ11:ZZ510) -> 124.726938 | AAA9: =DEVSQ(AAA11:AAA510) -> 141.522898 | AAC9: =DEVSQ(AAC11:AAC510) -> 175.956138 | AAD9: =DEVSQ(AAD11:AAD510) -> 197.368322 | AAF9: =DEVSQ(AAF11:AAF510) -> 132.878512 | AAG9: =DEVSQ(AAG11:AAG510) -> 181.16225 | AAI9: =DEVSQ(AAI11:AAI510) -> 131.03365 | AAJ9: =DEVSQ(AAJ11:AAJ510) -> 168.712922 | AAL9: =DEVSQ(AAL11:AAL510) -> 124.166848 | AAM9: =DEVSQ(AAM11:AAM510) -> 148.829712 | AAO9: =DEVSQ(AAO11:AAO510) -> 161.306048 | AAP9: =DEVSQ(AAP11:AAP510) -> 224.649442 | AAR9: =DEVSQ(AAR11:AAR510) -> 164.852368 | AAS9: =DEVSQ(AAS11:AAS510) -> 209.052632 | AAU9: =DEVSQ(AAU11:AAU510) -> 131.37465 | AAV9: =DEVSQ(AAV11:AAV510) -> 172.187882 | AAX9: =DEVSQ(AAX11:AAX510) -> 114.906072 | AAY9: =DEVSQ(AAY11:AAY510) -> 137.056792 | ABA9: =DEVSQ(ABA11:ABA510) -> 131.995698 | ABB9: =DEVSQ(ABB11:ABB510) -> 157.928408 | ABD9: =DEVSQ(ABD11:ABD510) -> 127.780858 | ABE9: =DEVSQ(ABE11:ABE510) -> 154.639952 | ABG9: =DEVSQ(ABG11:ABG510) -> 140.703322 | ABH9: =DEVSQ(ABH11:ABH510) -> 151.3748 | ABJ9: =DEVSQ(ABJ11:ABJ510) -> 140.068928 | ABK9: =DEVSQ(ABK11:ABK510) -> 163.852752 | ABM9: =DEVSQ(ABM11:ABM510) -> 144.886192 | ABN9: =DEVSQ(ABN11:ABN510) -> 174.252552 | ABP9: =DEVSQ(ABP11:ABP510) -> 117.345858 | ABQ9: =DEVSQ(ABQ11:ABQ510) -> 136.708858 | ABS9: =DEVSQ(ABS11:ABS510) -> 239.476808 | ABT9: =DEVSQ(ABT11:ABT510) -> 188.579528 | ABV9: =DEVSQ(ABV11:ABV510) -> 110.463162 | ABW9: =DEVSQ(ABW11:ABW510) -> 123.385952 | ABY9: =DEVSQ(ABY11:ABY510) -> 101.573778 | ABZ9: =DEVSQ(ABZ11:ABZ510) -> 156.204938 | ACB9: =DEVSQ(ACB11:ACB510) -> 138.902968 | ACC9: =DEVSQ(ACC11:ACC510) -> 194.6086 | ACE9: =DEVSQ(ACE11:ACE510) -> 129.781792 | ACF9: =DEVSQ(ACF11:ACF510) -> 178.357482 | ACH9: =DEVSQ(ACH11:ACH510) -> 172.467138 | ACI9: =DEVSQ(ACI11:ACI510) -> 218.906018 | ACK9: =DEVSQ(ACK11:ACK510) -> 126.736328 | ACL9: =DEVSQ(ACL11:ACL510) -> 174.365248 | ACN9: =DEVSQ(ACN11:ACN510) -> 134.335882 | ACO9: =DEVSQ(ACO11:ACO510) -> 178.001538 | ACQ9: =DEVSQ(ACQ11:ACQ510) -> 162.1812 | ACR9: =DEVSQ(ACR11:ACR510) -> 177.171418 | ACT9: =DEVSQ(ACT11:ACT510) -> 103.959672 | ACU9: =DEVSQ(ACU11:ACU510) -> 149.996432 | ACW9: =DEVSQ(ACW11:ACW510) -> 141.75825 | ACX9: =DEVSQ(ACX11:ACX510) -> 161.929152 | ACZ9: =DEVSQ(ACZ11:ACZ510) -> 169.670298 | ADA9: =DEVSQ(ADA11:ADA510) -> 172.169432 | ADC9: =DEVSQ(ADC11:ADC510) -> 113.881818 | ADD9: =DEVSQ(ADD11:ADD510) -> 151.516762 | ADF9: =DEVSQ(ADF11:ADF510) -> 132.606688 | ADG9: =DEVSQ(ADG11:ADG510) -> 133.647368 | ADI9: =DEVSQ(ADI11:ADI510) -> 132.820528 | ADJ9: =DEVSQ(ADJ11:ADJ510) -> 163.115728 | ADL9: =DEVSQ(ADL11:ADL510) -> 114.697898 | ADM9: =DEVSQ(ADM11:ADM510) -> 202.935192 | ADO9: =DEVSQ(ADO11:ADO510) -> 145.363968 | ADP9: =DEVSQ(ADP11:ADP510) -> 171.732042 | ADR9: =DEVSQ(ADR11:ADR510) -> 133.35065 | ADS9: =DEVSQ(ADS11:ADS510) -> 157.525618 | ADU9: =DEVSQ(ADU11:ADU510) -> 154.477122 | ADV9: =DEVSQ(ADV11:ADV510) -> 163.374298 | ADX9: =DEVSQ(ADX11:ADX510) -> 160.433258 | ADY9: =DEVSQ(ADY11:ADY510) -> 195.849992 | AEA9: =DEVSQ(AEA11:AEA510) -> 93.03205 | AEB9: =DEVSQ(AEB11:AEB510) -> 149.188568 | AED9: =DEVSQ(AED11:AED510) -> 113.241608 | AEE9: =DEVSQ(AEE11:AEE510) -> 138.523328 | AEG9: =DEVSQ(AEG11:AEG510) -> 177.637352 | AEH9: =DEVSQ(AEH11:AEH510) -> 170.582832 | AEJ9: =DEVSQ(AEJ11:AEJ510) -> 109.176352 | AEK9: =DEVSQ(AEK11:AEK510) -> 125.664112 | AEM9: =DEVSQ(AEM11:AEM510) -> 123.042328 | AEN9: =DEVSQ(AEN11:AEN510) -> 191.458688 | AEP9: =DEVSQ(AEP11:AEP510) -> 149.154512 | AEQ9: =DEVSQ(AEQ11:AEQ510) -> 193.679888 | AES9: =DEVSQ(AES11:AES510) -> 105.912242 | AET9: =DEVSQ(AET11:AET510) -> 134.267848 | AEV9: =DEVSQ(AEV11:AEV510) -> 137.911272 | AEW9: =DEVSQ(AEW11:AEW510) -> 155.086482 | AEY9: =DEVSQ(AEY11:AEY510) -> 77.485008 | AEZ9: =DEVSQ(AEZ11:AEZ510) -> 128.629408 | AFB9: =DEVSQ(AFB11:AFB510) -> 164.97525 | AFC9: =DEVSQ(AFC11:AFC510) -> 213.8144 | AFE9: =DEVSQ(AFE11:AFE510) -> 78.82325 | AFF9: =DEVSQ(AFF11:AFF510) -> 114.481408 | AFH9: =DEVSQ(AFH11:AFH510) -> 120.198122 | AFI9: =DEVSQ(AFI11:AFI510) -> 142.352072 | AFK9: =DEVSQ(AFK11:AFK510) -> 142.232328 | AFL9: =DEVSQ(AFL11:AFL510) -> 146.921362 | AFN9: =DEVSQ(AFN11:AFN510) -> 142.575168 | AFO9: =DEVSQ(AFO11:AFO510) -> 137.063392 | AFQ9: =DEVSQ(AFQ11:AFQ510) -> 91.932488 | AFR9: =DEVSQ(AFR11:AFR510) -> 160.099448 | AFT9: =DEVSQ(AFT11:AFT510) -> 131.15265 | AFU9: =DEVSQ(AFU11:AFU510) -> 134.251402 | AFW9: =DEVSQ(AFW11:AFW510) -> 156.968858 | AFX9: =DEVSQ(AFX11:AFX510) -> 174.490322 | AFZ9: =DEVSQ(AFZ11:AFZ510) -> 128.08365 | AGA9: =DEVSQ(AGA11:AGA510) -> 171.774898 | AGC9: =DEVSQ(AGC11:AGC510) -> 175.170872 | AGD9: =DEVSQ(AGD11:AGD510) -> 187.579178 | AGF9: =DEVSQ(AGF11:AGF510) -> 146.047072 | AGG9: =DEVSQ(AGG11:AGG510) -> 143.568618 | AGI9: =DEVSQ(AGI11:AGI510) -> 125.869642 | AGJ9: =DEVSQ(AGJ11:AGJ510) -> 179.200288 | AGL9: =DEVSQ(AGL11:AGL510) -> 148.385738 | AGM9: =DEVSQ(AGM11:AGM510) -> 127.516082 | AGO9: =DEVSQ(AGO11:AGO510) -> 106.956128 | AGP9: =DEVSQ(AGP11:AGP510) -> 154.303712 | AGR9: =DEVSQ(AGR11:AGR510) -> 158.112098 | AGS9: =DEVSQ(AGS11:AGS510) -> 151.277122 | AGU9: =DEVSQ(AGU11:AGU510) -> 145.715168 | AGV9: =DEVSQ(AGV11:AGV510) -> 141.301928 | AGX9: =DEVSQ(AGX11:AGX510) -> 146.536792 | AGY9: =DEVSQ(AGY11:AGY510) -> 157.59145 | AHA9: =DEVSQ(AHA11:AHA510) -> 94.202472 | AHB9: =DEVSQ(AHB11:AHB510) -> 160.22725 | AHD9: =DEVSQ(AHD11:AHD510) -> 143.442112 | AHE9: =DEVSQ(AHE11:AHE510) -> 175.486362 | AHG9: =DEVSQ(AHG11:AHG510) -> 125.384898 | AHH9: =DEVSQ(AHH11:AHH510) -> 133.2262 | AHJ9: =DEVSQ(AHJ11:AHJ510) -> 171.558018 | AHK9: =DEVSQ(AHK11:AHK510) -> 186.948898 | AHM9: =DEVSQ(AHM11:AHM510) -> 145.9538 | AHN9: =DEVSQ(AHN11:AHN510) -> 181.92305 | AHP9: =DEVSQ(AHP11:AHP510) -> 127.4622 | AHQ9: =DEVSQ(AHQ11:AHQ510) -> 147.555618 | AHS9: =DEVSQ(AHS11:AHS510) -> 93.087728 | AHT9: =DEVSQ(AHT11:AHT510) -> 135.060432 | AHV9: =DEVSQ(AHV11:AHV510) -> 151.915848 | AHW9: =DEVSQ(AHW11:AHW510) -> 160.843872 | AHY9: =DEVSQ(AHY11:AHY510) -> 147.6384 | AHZ9: =DEVSQ(AHZ11:AHZ510) -> 164.300218 | AIB9: =DEVSQ(AIB11:AIB510) -> 95.321082 | AIC9: =DEVSQ(AIC11:AIC510) -> 171.616338 | AIE9: =DEVSQ(AIE11:AIE510) -> 116.426738 | AIF9: =DEVSQ(AIF11:AIF510) -> 181.405008 | AIH9: =DEVSQ(AIH11:AIH510) -> 158.628858 | AII9: =DEVSQ(AII11:AII510) -> 170.250968 | AIK9: =DEVSQ(AIK11:AIK510) -> 184.875978 | AIL9: =DEVSQ(AIL11:AIL510) -> 184.775032 | AIN9: =DEVSQ(AIN11:AIN510) -> 112.517072 | AIO9: =DEVSQ(AIO11:AIO510) -> 161.021888 | AIQ9: =DEVSQ(AIQ11:AIQ510) -> 156.496488 | AIR9: =DEVSQ(AIR11:AIR510) -> 208.986552 | AIT9: =DEVSQ(AIT11:AIT510) -> 156.909872 | AIU9: =DEVSQ(AIU11:AIU510) -> 161.035208 | AIW9: =DEVSQ(AIW11:AIW510) -> 141.655952 | AIX9: =DEVSQ(AIX11:AIX510) -> 142.532008 | AIZ9: =DEVSQ(AIZ11:AIZ510) -> 131.289368 | AJA9: =DEVSQ(AJA11:AJA510) -> 149.225122 | AJC9: =DEVSQ(AJC11:AJC510) -> 131.598778 | AJD9: =DEVSQ(AJD11:AJD510) -> 149.87045 | AJF9: =DEVSQ(AJF11:AJF510) -> 95.074762 | AJG9: =DEVSQ(AJG11:AJG510) -> 146.317722 | AJI9: =DEVSQ(AJI11:AJI510) -> 157.561448 | AJJ9: =DEVSQ(AJJ11:AJJ510) -> 161.93085 | AJL9: =DEVSQ(AJL11:AJL510) -> 148.891488 | AJM9: =DEVSQ(AJM11:AJM510) -> 181.224922 | AJO9: =DEVSQ(AJO11:AJO510) -> 119.679088 | AJP9: =DEVSQ(AJP11:AJP510) -> 163.134202 | AJR9: =DEVSQ(AJR11:AJR510) -> 144.0918 | AJS9: =DEVSQ(AJS11:AJS510) -> 166.943042 | AJU9: =DEVSQ(AJU11:AJU510) -> 166.487762 | AJV9: =DEVSQ(AJV11:AJV510) -> 203.659922 | AJX9: =DEVSQ(AJX11:AJX510) -> 107.65525 | AJY9: =DEVSQ(AJY11:AJY510) -> 129.084418 | AKA9: =DEVSQ(AKA11:AKA510) -> 137.3654 | AKB9: =DEVSQ(AKB11:AKB510) -> 169.095738 | AKD9: =DEVSQ(AKD11:AKD510) -> 142.05325 | AKE9: =DEVSQ(AKE11:AKE510) -> 154.182672 | AKG9: =DEVSQ(AKG11:AKG510) -> 98.321762 | AKH9: =DEVSQ(AKH11:AKH510) -> 116.07545 | AKJ9: =DEVSQ(AKJ11:AKJ510) -> 172.50425 | AKK9: =DEVSQ(AKK11:AKK510) -> 193.116362 | AKM9: =DEVSQ(AKM11:AKM510) -> 120.529288 | AKN9: =DEVSQ(AKN11:AKN510) -> 122.374408 | AKP9: =DEVSQ(AKP11:AKP510) -> 116.497112 | AKQ9: =DEVSQ(AKQ11:AKQ510) -> 175.5158 | AKS9: =DEVSQ(AKS11:AKS510) -> 136.152722 | AKT9: =DEVSQ(AKT11:AKT510) -> 204.00325 | AKV9: =DEVSQ(AKV11:AKV510) -> 121.764992 | AKW9: =DEVSQ(AKW11:AKW510) -> 151.285042 | AKY9: =DEVSQ(AKY11:AKY510) -> 159.66085 | AKZ9: =DEVSQ(AKZ11:AKZ510) -> 189.918098 | ALB9: =DEVSQ(ALB11:ALB510) -> 170.520568 | ALC9: =DEVSQ(ALC11:ALC510) -> 193.560138 | ALE9: =DEVSQ(ALE11:ALE510) -> 189.4768 | ALF9: =DEVSQ(ALF11:ALF510) -> 168.240162 | ALH9: =DEVSQ(ALH11:ALH510) -> 92.233138 | ALI9: =DEVSQ(ALI11:ALI510) -> 176.895162 | ALK9: =DEVSQ(ALK11:ALK510) -> 152.65625 | ALL9: =DEVSQ(ALL11:ALL510) -> 178.994568 | ALN9: =DEVSQ(ALN11:ALN510) -> 213.062698 | ALO9: =DEVSQ(ALO11:ALO510) -> 222.276752 | ALQ9: =DEVSQ(ALQ11:ALQ510) -> 136.383312 | ALR9: =DEVSQ(ALR11:ALR510) -> 170.645082 | ALT9: =DEVSQ(ALT11:ALT510) -> 158.923922 | ALU9: =DEVSQ(ALU11:ALU510) -> 146.862192 | ALW9: =DEVSQ(ALW11:ALW510) -> 100.362442 | ALX9: =DEVSQ(ALX11:ALX510) -> 179.273088 | ALZ9: =DEVSQ(ALZ11:ALZ510) -> 143.655072 | AMA9: =DEVSQ(AMA11:AMA510) -> 175.793 | AMC9: =DEVSQ(AMC11:AMC510) -> 105.368288 | AMD9: =DEVSQ(AMD11:AMD510) -> 149.074 | AMF9: =DEVSQ(AMF11:AMF510) -> 117.717362 | AMG9: =DEVSQ(AMG11:AMG510) -> 152.236538 | AMI9: =DEVSQ(AMI11:AMI510) -> 100.514922 | AMJ9: =DEVSQ(AMJ11:AMJ510) -> 157.483112 | AML9: =DEVSQ(AML11:AML510) -> 117.420618 | AMM9: =DEVSQ(AMM11:AMM510) -> 151.223328 | AMO9: =DEVSQ(AMO11:AMO510) -> 118.897032 | AMP9: =DEVSQ(AMP11:AMP510) -> 173.234112 | AMR9: =DEVSQ(AMR11:AMR510) -> 111.231832 | AMS9: =DEVSQ(AMS11:AMS510) -> 162.814568 | AMU9: =DEVSQ(AMU11:AMU510) -> 156.819962 | AMV9: =DEVSQ(AMV11:AMV510) -> 162.82725 | AMX9: =DEVSQ(AMX11:AMX510) -> 212.077128 | AMY9: =DEVSQ(AMY11:AMY510) -> 235.370322 | ANA9: =DEVSQ(ANA11:ANA510) -> 127.681258 | ANB9: =DEVSQ(ANB11:ANB510) -> 141.6684 | AND9: =DEVSQ(AND11:AND510) -> 99.665992 | ANE9: =DEVSQ(ANE11:ANE510) -> 172.134298 | ANG9: =DEVSQ(ANG11:ANG510) -> 123.093728 | ANH9: =DEVSQ(ANH11:ANH510) -> 157.20805 | ANJ9: =DEVSQ(ANJ11:ANJ510) -> 158.36525 | ANK9: =DEVSQ(ANK11:ANK510) -> 191.543618 | ANM9: =DEVSQ(ANM11:ANM510) -> 136.558952 | ANN9: =DEVSQ(ANN11:ANN510) -> 187.206592 | ANP9: =DEVSQ(ANP11:ANP510) -> 84.539578 | ANQ9: =DEVSQ(ANQ11:ANQ510) -> 163.761482 | ANS9: =DEVSQ(ANS11:ANS510) -> 158.62845 | ANT9: =DEVSQ(ANT11:ANT510) -> 160.75445 | ANV9: =DEVSQ(ANV11:ANV510) -> 120.864248 | ANW9: =DEVSQ(ANW11:ANW510) -> 180.488848 | ANY9: =DEVSQ(ANY11:ANY510) -> 120.536168 | ANZ9: =DEVSQ(ANZ11:ANZ510) -> 167.788968 | AOB9: =DEVSQ(AOB11:AOB510) -> 125.717298 | AOC9: =DEVSQ(AOC11:AOC510) -> 153.18085 | AOE9: =DEVSQ(AOE11:AOE510) -> 124.626162 | AOF9: =DEVSQ(AOF11:AOF510) -> 123.99125 | AOH9: =DEVSQ(AOH11:AOH510) -> 134.716322 | AOI9: =DEVSQ(AOI11:AOI510) -> 204.381472 | AOK9: =DEVSQ(AOK11:AOK510) -> 147.685568 | AOL9: =DEVSQ(AOL11:AOL510) -> 169.113658 | AON9: =DEVSQ(AON11:AON510) -> 139.866232 | AOO9: =DEVSQ(AOO11:AOO510) -> 172.994512 | AOQ9: =DEVSQ(AOQ11:AOQ510) -> 193.173722 | AOR9: =DEVSQ(AOR11:AOR510) -> 205.490538 | AOT9: =DEVSQ(AOT11:AOT510) -> 136.605762 | AOU9: =DEVSQ(AOU11:AOU510) -> 159.848858 | AOW9: =DEVSQ(AOW11:AOW510) -> 159.7492 | AOX9: =DEVSQ(AOX11:AOX510) -> 161.666968 | AOZ9: =DEVSQ(AOZ11:AOZ510) -> 173.999848 | APA9: =DEVSQ(APA11:APA510) -> 183.679618 | APC9: =DEVSQ(APC11:APC510) -> 154.198218 | APD9: =DEVSQ(APD11:APD510) -> 169.749432 | APF9: =DEVSQ(APF11:APF510) -> 128.64325 | APG9: =DEVSQ(APG11:APG510) -> 155.741042 | API9: =DEVSQ(API11:API510) -> 171.299472 | APJ9: =DEVSQ(APJ11:APJ510) -> 181.647648 | APL9: =DEVSQ(APL11:APL510) -> 139.240112 | APM9: =DEVSQ(APM11:APM510) -> 158.839128 | APO9: =DEVSQ(APO11:APO510) -> 117.308898 | APP9: =DEVSQ(APP11:APP510) -> 141.773538 | APR9: =DEVSQ(APR11:APR510) -> 144.694408 | APS9: =DEVSQ(APS11:APS510) -> 197.412528 | APU9: =DEVSQ(APU11:APU510) -> 171.10165 | APV9: =DEVSQ(APV11:APV510) -> 186.782552 | APX9: =DEVSQ(APX11:APX510) -> 126.072728 | APY9: =DEVSQ(APY11:APY510) -> 191.966738 | AQA9: =DEVSQ(AQA11:AQA510) -> 159.5264 | AQB9: =DEVSQ(AQB11:AQB510) -> 211.641872 | AQD9: =DEVSQ(AQD11:AQD510) -> 113.617962 | AQE9: =DEVSQ(AQE11:AQE510) -> 146.04205 | AQG9: =DEVSQ(AQG11:AQG510) -> 135.883008 | AQH9: =DEVSQ(AQH11:AQH510) -> 209.692768 | AQJ9: =DEVSQ(AQJ11:AQJ510) -> 115.3066 | AQK9: =DEVSQ(AQK11:AQK510) -> 184.4538 | AQM9: =DEVSQ(AQM11:AQM510) -> 151.688672 | AQN9: =DEVSQ(AQN11:AQN510) -> 191.705008 | AQP9: =DEVSQ(AQP11:AQP510) -> 162.568248 | AQQ9: =DEVSQ(AQQ11:AQQ510) -> 176.748362 | AQS9: =DEVSQ(AQS11:AQS510) -> 119.711938 | AQT9: =DEVSQ(AQT11:AQT510) -> 184.6478 | AQV9: =DEVSQ(AQV11:AQV510) -> 130.200818 | AQW9: =DEVSQ(AQW11:AQW510) -> 140.911962 | AQY9: =DEVSQ(AQY11:AQY510) -> 129.36705 | AQZ9: =DEVSQ(AQZ11:AQZ510) -> 201.920418 | ARB9: =DEVSQ(ARB11:ARB510) -> 178.9956 | ARC9: =DEVSQ(ARC11:ARC510) -> 183.073808 | ARE9: =DEVSQ(ARE11:ARE510) -> 114.977138 | ARF9: =DEVSQ(ARF11:ARF510) -> 142.4902 | ARH9: =DEVSQ(ARH11:ARH510) -> 114.904448 | ARI9: =DEVSQ(ARI11:ARI510) -> 165.246248 | ARK9: =DEVSQ(ARK11:ARK510) -> 99.584648 | ARL9: =DEVSQ(ARL11:ARL510) -> 141.17125 | ARN9: =DEVSQ(ARN11:ARN510) -> 149.46285 | ARO9: =DEVSQ(ARO11:ARO510) -> 162.4534 | ARQ9: =DEVSQ(ARQ11:ARQ510) -> 192.370312 | ARR9: =DEVSQ(ARR11:ARR510) -> 182.445752 | ART9: =DEVSQ(ART11:ART510) -> 189.538752 | ARU9: =DEVSQ(ARU11:ARU510) -> 171.0454 | ARW9: =DEVSQ(ARW11:ARW510) -> 150.4916 | ARX9: =DEVSQ(ARX11:ARX510) -> 163.011712 | ARZ9: =DEVSQ(ARZ11:ARZ510) -> 113.52545 | ASA9: =DEVSQ(ASA11:ASA510) -> 126.198832 | ASC9: =DEVSQ(ASC11:ASC510) -> 141.588498 | ASD9: =DEVSQ(ASD11:ASD510) -> 149.105202 | ASF9: =DEVSQ(ASF11:ASF510) -> 134.049698 | ASG9: =DEVSQ(ASG11:ASG510) -> 176.081632 | ASI9: =DEVSQ(ASI11:ASI510) -> 144.882938 | ASJ9: =DEVSQ(ASJ11:ASJ510) -> 165.882712 | ASL9: =DEVSQ(ASL11:ASL510) -> 122.711218 | ASM9: =DEVSQ(ASM11:ASM510) -> 139.872338 | ASO9: =DEVSQ(ASO11:ASO510) -> 175.798938 | ASP9: =DEVSQ(ASP11:ASP510) -> 192.492488 | ASR9: =DEVSQ(ASR11:ASR510) -> 143.369282 | ASS9: =DEVSQ(ASS11:ASS510) -> 172.399738 | ASU9: =DEVSQ(ASU11:ASU510) -> 164.855818 | ASV9: =DEVSQ(ASV11:ASV510) -> 154.098802 | ASX9: =DEVSQ(ASX11:ASX510) -> 103.682008 | ASY9: =DEVSQ(ASY11:ASY510) -> 164.176432 | ATA9: =DEVSQ(ATA11:ATA510) -> 145.369682 | ATB9: =DEVSQ(ATB11:ATB510) -> 185.561352 | ATD9: =DEVSQ(ATD11:ATD510) -> 100.599458 | ATE9: =DEVSQ(ATE11:ATE510) -> 168.979442 | ATG9: =DEVSQ(ATG11:ATG510) -> 153.096488 | ATH9: =DEVSQ(ATH11:ATH510) -> 231.6058 | ATJ9: =DEVSQ(ATJ11:ATJ510) -> 111.707242 | ATK9: =DEVSQ(ATK11:ATK510) -> 139.431392 | ATM9: =DEVSQ(ATM11:ATM510) -> 105.038928 | ATN9: =DEVSQ(ATN11:ATN510) -> 160.262858 | ATP9: =DEVSQ(ATP11:ATP510) -> 124.759922 | ATQ9: =DEVSQ(ATQ11:ATQ510) -> 121.15645 | ATS9: =DEVSQ(ATS11:ATS510) -> 120.119792 | ATT9: =DEVSQ(ATT11:ATT510) -> 194.376928 | ATV9: =DEVSQ(ATV11:ATV510) -> 159.380728 | ATW9: =DEVSQ(ATW11:ATW510) -> 128.195768 | ATY9: =DEVSQ(ATY11:ATY510) -> 150.376642 | ATZ9: =DEVSQ(ATZ11:ATZ510) -> 128.926042 | AUB9: =DEVSQ(AUB11:AUB510) -> 155.122952 | AUC9: =DEVSQ(AUC11:AUC510) -> 170.756792 | AUE9: =DEVSQ(AUE11:AUE510) -> 111.645842 | AUF9: =DEVSQ(AUF11:AUF510) -> 151.611728 | AUH9: =DEVSQ(AUH11:AUH510) -> 112.257712 | AUI9: =DEVSQ(AUI11:AUI510) -> 161.301258 | AUK9: =DEVSQ(AUK11:AUK510) -> 102.195728 | AUL9: =DEVSQ(AUL11:AUL510) -> 105.179552 | AUN9: =DEVSQ(AUN11:AUN510) -> 140.662088 | AUO9: =DEVSQ(AUO11:AUO510) -> 161.981082 | AUQ9: =DEVSQ(AUQ11:AUQ510) -> 113.397152 | AUR9: =DEVSQ(AUR11:AUR510) -> 163.958768 | AUT9: =DEVSQ(AUT11:AUT510) -> 162.933162 | AUU9: =DEVSQ(AUU11:AUU510) -> 158.848112 | AUW9: =DEVSQ(AUW11:AUW510) -> 137.305528 | AUX9: =DEVSQ(AUX11:AUX510) -> 168.018648 | AUZ9: =DEVSQ(AUZ11:AUZ510) -> 127.190872 | AVA9: =DEVSQ(AVA11:AVA510) -> 155.081888 | AVC9: =DEVSQ(AVC11:AVC510) -> 176.012738 | AVD9: =DEVSQ(AVD11:AVD510) -> 220.587832 | AVF9: =DEVSQ(AVF11:AVF510) -> 186.6116 | AVG9: =DEVSQ(AVG11:AVG510) -> 172.666962 | AVI9: =DEVSQ(AVI11:AVI510) -> 141.073962 | AVJ9: =DEVSQ(AVJ11:AVJ510) -> 184.568112 | AVL9: =DEVSQ(AVL11:AVL510) -> 121.239802 | AVM9: =DEVSQ(AVM11:AVM510) -> 147.190458 | AVO9: =DEVSQ(AVO11:AVO510) -> 198.566112 | AVP9: =DEVSQ(AVP11:AVP510) -> 197.492058 | AVR9: =DEVSQ(AVR11:AVR510) -> 148.0924 | AVS9: =DEVSQ(AVS11:AVS510) -> 185.0376 | AVU9: =DEVSQ(AVU11:AVU510) -> 176.762448 | AVV9: =DEVSQ(AVV11:AVV510) -> 180.074968 | AVX9: =DEVSQ(AVX11:AVX510) -> 117.356 | AVY9: =DEVSQ(AVY11:AVY510) -> 174.223642 | AWA9: =DEVSQ(AWA11:AWA510) -> 153.229472 | AWB9: =DEVSQ(AWB11:AWB510) -> 172.539818 | AWD9: =DEVSQ(AWD11:AWD510) -> 153.033712 | AWE9: =DEVSQ(AWE11:AWE510) -> 176.4246 | AWG9: =DEVSQ(AWG11:AWG510) -> 86.377752 | AWH9: =DEVSQ(AWH11:AWH510) -> 153.1828 | AWJ9: =DEVSQ(AWJ11:AWJ510) -> 112.809738 | AWK9: =DEVSQ(AWK11:AWK510) -> 144.951762 | AWM9: =DEVSQ(AWM11:AWM510) -> 131.597202 | AWN9: =DEVSQ(AWN11:AWN510) -> 174.58725 | AWP9: =DEVSQ(AWP11:AWP510) -> 160.92365 | AWQ9: =DEVSQ(AWQ11:AWQ510) -> 209.713888 | AWS9: =DEVSQ(AWS11:AWS510) -> 195.284578 | AWT9: =DEVSQ(AWT11:AWT510) -> 237.382752 | AWV9: =DEVSQ(AWV11:AWV510) -> 153.287 | AWW9: =DEVSQ(AWW11:AWW510) -> 222.231552 | AWY9: =DEVSQ(AWY11:AWY510) -> 167.9754 | AWZ9: =DEVSQ(AWZ11:AWZ510) -> 178.759448 | AXB9: =DEVSQ(AXB11:AXB510) -> 141.056402 | AXC9: =DEVSQ(AXC11:AXC510) -> 172.40785 | AXE9: =DEVSQ(AXE11:AXE510) -> 122.88885 | AXF9: =DEVSQ(AXF11:AXF510) -> 162.329 | AXH9: =DEVSQ(AXH11:AXH510) -> 140.98045 | AXI9: =DEVSQ(AXI11:AXI510) -> 146.252 | AXK9: =DEVSQ(AXK11:AXK510) -> 133.597 | AXL9: =DEVSQ(AXL11:AXL510) -> 177.751792 | AXN9: =DEVSQ(AXN11:AXN510) -> 126.590178 | AXO9: =DEVSQ(AXO11:AXO510) -> 165.8564 | AXQ9: =DEVSQ(AXQ11:AXQ510) -> 142.0568 | AXR9: =DEVSQ(AXR11:AXR510) -> 171.645288 | AXT9: =DEVSQ(AXT11:AXT510) -> 105.313928 | AXU9: =DEVSQ(AXU11:AXU510) -> 164.847792 | AXW9: =DEVSQ(AXW11:AXW510) -> 181.665752 | AXX9: =DEVSQ(AXX11:AXX510) -> 196.9114 | AXZ9: =DEVSQ(AXZ11:AXZ510) -> 149.221002 | AYA9: =DEVSQ(AYA11:AYA510) -> 138.420018 | AYC9: =DEVSQ(AYC11:AYC510) -> 134.724408 | AYD9: =DEVSQ(AYD11:AYD510) -> 182.638802 | AYF9: =DEVSQ(AYF11:AYF510) -> 128.583752 | AYG9: =DEVSQ(AYG11:AYG510) -> 163.132922 | AYI9: =DEVSQ(AYI11:AYI510) -> 163.721352 | AYJ9: =DEVSQ(AYJ11:AYJ510) -> 178.233232 | AYL9: =DEVSQ(AYL11:AYL510) -> 161.361072 | AYM9: =DEVSQ(AYM11:AYM510) -> 140.113978 | AYO9: =DEVSQ(AYO11:AYO510) -> 107.845328 | AYP9: =DEVSQ(AYP11:AYP510) -> 143.717658 | AYR9: =DEVSQ(AYR11:AYR510) -> 137.895138 | AYS9: =DEVSQ(AYS11:AYS510) -> 151.937698 | AYU9: =DEVSQ(AYU11:AYU510) -> 160.404 | AYV9: =DEVSQ(AYV11:AYV510) -> 195.033402 | AYX9: =DEVSQ(AYX11:AYX510) -> 162.801272 | AYY9: =DEVSQ(AYY11:AYY510) -> 155.4678 | AZA9: =DEVSQ(AZA11:AZA510) -> 120.797442 | AZB9: =DEVSQ(AZB11:AZB510) -> 155.718208 | AZD9: =DEVSQ(AZD11:AZD510) -> 135.810578 | AZE9: =DEVSQ(AZE11:AZE510) -> 155.222578 | AZG9: =DEVSQ(AZG11:AZG510) -> 125.78485 | AZH9: =DEVSQ(AZH11:AZH510) -> 141.511312 | AZJ9: =DEVSQ(AZJ11:AZJ510) -> 103.001728 | AZK9: =DEVSQ(AZK11:AZK510) -> 155.964258 | AZM9: =DEVSQ(AZM11:AZM510) -> 153.257722 | AZN9: =DEVSQ(AZN11:AZN510) -> 173.616602 | AZP9: =DEVSQ(AZP11:AZP510) -> 139.57045 | AZQ9: =DEVSQ(AZQ11:AZQ510) -> 202.424882 | AZS9: =DEVSQ(AZS11:AZS510) -> 129.577008 | AZT9: =DEVSQ(AZT11:AZT510) -> 144.1198 | AZV9: =DEVSQ(AZV11:AZV510) -> 108.991882 | AZW9: =DEVSQ(AZW11:AZW510) -> 130.811008 | AZY9: =DEVSQ(AZY11:AZY510) -> 140.927458 | AZZ9: =DEVSQ(AZZ11:AZZ510) -> 173.1234 | BAB9: =DEVSQ(BAB11:BAB510) -> 152.023608 | BAC9: =DEVSQ(BAC11:BAC510) -> 175.679018 | BAE9: =DEVSQ(BAE11:BAE510) -> 147.3676 | BAF9: =DEVSQ(BAF11:BAF510) -> 160.085922 | BAH9: =DEVSQ(BAH11:BAH510) -> 133.77945 | BAI9: =DEVSQ(BAI11:BAI510) -> 165.039688 | BAK9: =DEVSQ(BAK11:BAK510) -> 114.742368 | BAL9: =DEVSQ(BAL11:BAL510) -> 153.8718 | BAN9: =DEVSQ(BAN11:BAN510) -> 117.186232 | BAO9: =DEVSQ(BAO11:BAO510) -> 185.991 | BAQ9: =DEVSQ(BAQ11:BAQ510) -> 153.134898 | BAR9: =DEVSQ(BAR11:BAR510) -> 192.8086 | BAT9: =DEVSQ(BAT11:BAT510) -> 111.2876 | BAU9: =DEVSQ(BAU11:BAU510) -> 177.617968 | BAW9: =DEVSQ(BAW11:BAW510) -> 160.600962 | BAX9: =DEVSQ(BAX11:BAX510) -> 189.8958 | BAZ9: =DEVSQ(BAZ11:BAZ510) -> 185.356282 | BBA9: =DEVSQ(BBA11:BBA510) -> 187.469082 | BBC9: =DEVSQ(BBC11:BBC510) -> 178.685722 | BBD9: =DEVSQ(BBD11:BBD510) -> 190.197682 | BBF9: =DEVSQ(BBF11:BBF510) -> 165.763048 | BBG9: =DEVSQ(BBG11:BBG510) -> 179.677048 | BBI9: =DEVSQ(BBI11:BBI510) -> 139.983088 | BBJ9: =DEVSQ(BBJ11:BBJ510) -> 197.573258 | BBL9: =DEVSQ(BBL11:BBL510) -> 105.487562 | BBM9: =DEVSQ(BBM11:BBM510) -> 148.69565 | BBO9: =DEVSQ(BBO11:BBO510) -> 113.060728 | BBP9: =DEVSQ(BBP11:BBP510) -> 186.338858 | BBR9: =DEVSQ(BBR11:BBR510) -> 85.286458 | BBS9: =DEVSQ(BBS11:BBS510) -> 139.639232 | BBU9: =DEVSQ(BBU11:BBU510) -> 116.05745 | BBV9: =DEVSQ(BBV11:BBV510) -> 170.853432 | BBX9: =DEVSQ(BBX11:BBX510) -> 146.354178 | BBY9: =DEVSQ(BBY11:BBY510) -> 174.302482 | BCA9: =DEVSQ(BCA11:BCA510) -> 182.375072 | BCB9: =DEVSQ(BCB11:BCB510) -> 196.447008 | BCD9: =DEVSQ(BCD11:BCD510) -> 96.237642 | BCE9: =DEVSQ(BCE11:BCE510) -> 153.938752 | BCG9: =DEVSQ(BCG11:BCG510) -> 191.743178 | BCH9: =DEVSQ(BCH11:BCH510) -> 180.293162 | BCJ9: =DEVSQ(BCJ11:BCJ510) -> 161.558202 | BCK9: =DEVSQ(BCK11:BCK510) -> 154.19365 | BCM9: =DEVSQ(BCM11:BCM510) -> 105.79105 | BCN9: =DEVSQ(BCN11:BCN510) -> 196.654122 | BCP9: =DEVSQ(BCP11:BCP510) -> 145.812882 | BCQ9: =DEVSQ(BCQ11:BCQ510) -> 143.044298 | BCS9: =DEVSQ(BCS11:BCS510) -> 173.4672 | BCT9: =DEVSQ(BCT11:BCT510) -> 179.264802 | BCV9: =DEVSQ(BCV11:BCV510) -> 155.365488 | BCW9: =DEVSQ(BCW11:BCW510) -> 159.843432 | BCY9: =DEVSQ(BCY11:BCY510) -> 105.83805 | BCZ9: =DEVSQ(BCZ11:BCZ510) -> 173.402632 | BDB9: =DEVSQ(BDB11:BDB510) -> 119.8208 | BDC9: =DEVSQ(BDC11:BDC510) -> 168.475882 | BDE9: =DEVSQ(BDE11:BDE510) -> 129.3146 | BDF9: =DEVSQ(BDF11:BDF510) -> 151.675672 | BDH9: =DEVSQ(BDH11:BDH510) -> 115.367632 | BDI9: =DEVSQ(BDI11:BDI510) -> 115.368682 | BDK9: =DEVSQ(BDK11:BDK510) -> 131.189992 | BDL9: =DEVSQ(BDL11:BDL510) -> 203.758008 | BDN9: =DEVSQ(BDN11:BDN510) -> 132.40485 | BDO9: =DEVSQ(BDO11:BDO510) -> 152.740752 | BDQ9: =DEVSQ(BDQ11:BDQ510) -> 157.2854 | BDR9: =DEVSQ(BDR11:BDR510) -> 217.76005 | BDT9: =DEVSQ(BDT11:BDT510) -> 135.719432 | BDU9: =DEVSQ(BDU11:BDU510) -> 149.045288 | BDW9: =DEVSQ(BDW11:BDW510) -> 160.829378 | BDX9: =DEVSQ(BDX11:BDX510) -> 173.226082 | BDZ9: =DEVSQ(BDZ11:BDZ510) -> 154.75665 | BEA9: =DEVSQ(BEA11:BEA510) -> 164.377128 | BEC9: =DEVSQ(BEC11:BEC510) -> 88.824208 | BED9: =DEVSQ(BED11:BED510) -> 143.885258 | BEF9: =DEVSQ(BEF11:BEF510) -> 164.13285 | BEG9: =DEVSQ(BEG11:BEG510) -> 153.793672 | BEI9: =DEVSQ(BEI11:BEI510) -> 123.451008 | BEJ9: =DEVSQ(BEJ11:BEJ510) -> 181.339762 | BEL9: =DEVSQ(BEL11:BEL510) -> 167.92785 | BEM9: =DEVSQ(BEM11:BEM510) -> 157.451738 | BEO9: =DEVSQ(BEO11:BEO510) -> 143.965008 | BEP9: =DEVSQ(BEP11:BEP510) -> 181.197362 | BER9: =DEVSQ(BER11:BER510) -> 143.0904 | BES9: =DEVSQ(BES11:BES510) -> 143.155592 | BEU9: =DEVSQ(BEU11:BEU510) -> 169.846658 | BEV9: =DEVSQ(BEV11:BEV510) -> 187.732608 | BEX9: =DEVSQ(BEX11:BEX510) -> 168.638298 | BEY9: =DEVSQ(BEY11:BEY510) -> 179.900288 | BFA9: =DEVSQ(BFA11:BFA510) -> 157.901362 | BFB9: =DEVSQ(BFB11:BFB510) -> 209.894138 | BFD9: =DEVSQ(BFD11:BFD510) -> 107.877752 | BFE9: =DEVSQ(BFE11:BFE510) -> 183.507162 | BFG9: =DEVSQ(BFG11:BFG510) -> 99.3716 | BFH9: =DEVSQ(BFH11:BFH510) -> 153.932848 | BFJ9: =DEVSQ(BFJ11:BFJ510) -> 147.889858 | BFK9: =DEVSQ(BFK11:BFK510) -> 198.949688 | BFM9: =DEVSQ(BFM11:BFM510) -> 120.869392 | BFN9: =DEVSQ(BFN11:BFN510) -> 170.77225 | BFP9: =DEVSQ(BFP11:BFP510) -> 119.32 | BFQ9: =DEVSQ(BFQ11:BFQ510) -> 154.839938 | BFS9: =DEVSQ(BFS11:BFS510) -> 97.924098 | BFT9: =DEVSQ(BFT11:BFT510) -> 144.083178 | BFV9: =DEVSQ(BFV11:BFV510) -> 169.94405 | BFW9: =DEVSQ(BFW11:BFW510) -> 200.875792 | BFY9: =DEVSQ(BFY11:BFY510) -> 151.998568 | BFZ9: =DEVSQ(BFZ11:BFZ510) -> 146.93245 | BGB9: =DEVSQ(BGB11:BGB510) -> 90.666418 | BGC9: =DEVSQ(BGC11:BGC510) -> 152.37405 | BGE9: =DEVSQ(BGE11:BGE510) -> 148.607458 | BGF9: =DEVSQ(BGF11:BGF510) -> 210.649688 | BGH9: =DEVSQ(BGH11:BGH510) -> 163.863978 | BGI9: =DEVSQ(BGI11:BGI510) -> 186.887448 | BGK9: =DEVSQ(BGK11:BGK510) -> 110.95765 | BGL9: =DEVSQ(BGL11:BGL510) -> 156.111482 | BGN9: =DEVSQ(BGN11:BGN510) -> 181.862898 | BGO9: =DEVSQ(BGO11:BGO510) -> 204.998842 | BGQ9: =DEVSQ(BGQ11:BGQ510) -> 83.943912 | BGR9: =DEVSQ(BGR11:BGR510) -> 156.681568 | BGT9: =DEVSQ(BGT11:BGT510) -> 151.171922 | BGU9: =DEVSQ(BGU11:BGU510) -> 210.1038
C10: 6 | D10: 0.38 | E10: 0.96 | H10: 0 | I10: 0 | K10: 最小値 ：=MIN(セル範囲) | M10: =MIN(D5:D1304) -> 0.22 | N10: =MIN(E5:E1304) -> 0.51 | O10: =MIN(F5:F1304) -> 0 | P10: =MIN(G5:G1304) -> 0 | Q10: LAM | R10: =R5/(M7-R5) -> 0 | U10: 3.37 | V10: 33 | W10: 5 | X10: 3.42 | Y10: 28 | Z10: 4 | AD10: -1.281680552 | AE10: 0.5553116459 | AF10: -1.316248987 | AG10: 0.8469317882 | AN10: 46 | AO10: 45 | AS10: 0.67 | AT10: 0.58 | AV10: 0.67 | AW10: 0.58 | AY10: 元データ | BIB10: =IF($E10<>"",VLOOKUP(BHZ10,$C$5:$E$504,3,FALSE),"") -> 
C11: 7 | D11: 0.4 | E11: 1.05 | H11: 0 | I11: 0 | K11: 最大値 ：=MAX(セル範囲) | M11: =MAX(D5:D1304) -> 7.1 | N11: =MAX(E5:E1304) -> 6.8 | O11: =MAX(F5:F1304) -> 0 | P11: =MAX(G5:G1304) -> 0 | Q11: SYXD | R11: =(N7-(1+R10)*(N7-M29^2))^0.5 -> 0.9854720373 | U11: 4 | V11: 41 | W11: 8 | X11: 4 | Y11: 34 | Z11: 6 | AD11: -1.22690837 | AE11: 0.6782415633 | AF11: -1.33624358 | AG11: 0.9116089937 | AN11: 45 | AO11: 44 | AS11: 0.725 | AT11: 0.65 | AV11: 0.725 | AW11: 0.65 | AY11: =IF(D5<>"",D5,"") -> 0.22 | AZ11: =IF(E5<>"",E5,"") -> 0.51 | BA11: 15 | BB11: 1.3 | BC11: 1.8 | BD11: 23 | BE11: 1.15 | BF11: 2.5 | BG11: 10 | BH11: 1.12 | BI11: 1.2 | BJ11: 20 | BK11: 2.06 | BL11: 2.23 | BM11: 23 | BN11: 1.15 | BO11: 2.5 | BP11: 32 | BQ11: 2.83 | BR11: 3.77 | BS11: 13 | BT11: 1.24 | BU11: 1.7 | BV11: 16 | BW11: 1.58 | BX11: 1.83 | BY11: 44 | BZ11: 3.4 | CA11: 5.8 | CB11: 4 | CC11: 0.32 | CD11: 0.75 | CE11: 42 | CF11: 2.97 | CG11: 5.3 | CH11: 26 | CI11: 2.15 | CJ11: 2.91 | CK11: 14 | CL11: 1.16 | CM11: 1.72 | CN11: 16 | CO11: 1.58 | CP11: 1.83 | CQ11: 4 | CR11: 0.32 | CS11: 0.75 | CT11: 33 | CU11: 4.28 | CV11: 3.99 | CW11: 30 | CX11: 3.4 | CY11: 3.7 | CZ11: 15 | DA11: 1.3 | DB11: 1.8 | DC11: 49 | DD11: 3.94 | DE11: 6.8 | DF11: 28 | DG11: 2.8 | DH11: 3.4 | DI11: 38 | DJ11: 3.61 | DK11: 4.7 | DL11: 26 | DM11: 2.15 | DN11: 2.91 | DO11: 37 | DP11: 3.7 | DQ11: 4.2 | DR11: 19 | DS11: 1.33 | DT11: 2.06 | DU11: 34 | DV11: 3.4 | DW11: 4 | DX11: 25 | DY11: 3.68 | DZ11: 2.88 | EA11: 17 | EB11: 1.3 | EC11: 1.89 | ED11: 11 | EE11: 0.91 | EF11: 1.3 | EG11: 24 | EH11: 1.7 | EI11: 2.8 | EJ11: 22 | EK11: 2.75 | EL11: 2.4 | EM11: 22 | EN11: 2.75 | EO11: 2.4 | EP11: 45 | EQ11: 5.2 | ER11: 5.8 | ES11: 48 | ET11: 7.1 | EU11: 6.2 | EV11: 8 | EW11: 1.68 | EX11: 1.13 | EY11: 24 | EZ11: 1.7 | FA11: 2.8 | FB11: 3 | FC11: 0.46 | FD11: 0.7 | FE11: 16 | FF11: 1.58 | FG11: 1.83 | FH11: 9 | FI11: 0.6 | FJ11: 1.18 | FK11: 1 | FL11: 0.22 | FM11: 0.51 | FN11: 19 | FO11: 1.33 | FP11: 2.06 | FQ11: 10 | FR11: 1.12 | FS11: 1.2 | FT11: 16 | FU11: 1.58 | FV11: 1.83 | FW11: 20 | FX11: 2.06 | FY11: 2.23 | FZ11: 7 | GA11: 0.4 | GB11: 1.05 | GC11: 44 | GD11: 3.4 | GE11: 5.8 | GF11: 8 | GG11: 1.68 | GH11: 1.13 | GI11: 25 | GJ11: 3.68 | GK11: 2.88 | GL11: 6 | GM11: 0.38 | GN11: 0.96 | GO11: 37 | GP11: 3.7 | GQ11: 4.2 | GR11: 5 | GS11: 0.32 | GT11: 0.91 | GU11: 47 | GV11: 2.34 | GW11: 6.2 | GX11: 24 | GY11: 1.7 | GZ11: 2.8 | HA11: 3 | HB11: 0.46 | HC11: 0.7 | HD11: 28 | HE11: 2.8 | HF11: 3.4 | HG11: 23 | HH11: 1.15 | HI11: 2.5 | HJ11: 10 | HK11: 1.12 | HL11: 1.2 | HM11: 46 | HN11: 5.9 | HO11: 6.1 | HP11: 12 | HQ11: 2.16 | HR11: 1.6 | HS11: 20 | HT11: 2.06 | HU11: 2.23 | HV11: 27 | HW11: 4.01 | HX11: 3 | HY11: 25 | HZ11: 3.68 | IA11: 2.88 | IB11: 48 | IC11: 7.1 | ID11: 6.2 | IE11: 34 | IF11: 3.4 | IG11: 4 | IH11: 43 | II11: 3.79 | IJ11: 5.65 | IK11: 28 | IL11: 2.8 | IM11: 3.4 | IN11: 25 | IO11: 3.68 | IP11: 2.88 | IQ11: 44 | IR11: 3.4 | IS11: 5.8 | IT11: 35 | IU11: 2.83 | IV11: 4.02 | IW11: 6 | IX11: 0.38 | IY11: 0.96 | IZ11: 38 | JA11: 3.61 | JB11: 4.7 | JC11: 29 | JD11: 2.4 | JE11: 3.5 | JF11: 2 | JG11: 0.22 | JH11: 0.56 | JI11: 26 | JJ11: 2.15 | JK11: 2.91 | JL11: 11 | JM11: 0.91 | JN11: 1.3 | JO11: 48 | JP11: 7.1 | JQ11: 6.2 | JR11: 43 | JS11: 3.79 | JT11: 5.65 | JU11: 31 | JV11: 1.56 | JW11: 3.71 | JX11: 32 | JY11: 2.83 | JZ11: 3.77 | KA11: 34 | KB11: 3.4 | KC11: 4 | KD11: 45 | KE11: 5.2 | KF11: 5.8 | KG11: 11 | KH11: 0.91 | KI11: 1.3 | KJ11: 44 | KK11: 3.4 | KL11: 5.8 | KM11: 2 | KN11: 0.22 | KO11: 0.56 | KP11: 41 | KQ11: 5.95 | KR11: 5.1 | KS11: 46 | KT11: 5.9 | KU11: 6.1 | KV11: 8 | KW11: 1.68 | KX11: 1.13 | KY11: 10 | KZ11: 1.12 | LA11: 1.2 | LB11: 16 | LC11: 1.58 | LD11: 1.83 | LE11: 50 | LF11: 4.5 | LG11: 6.8 | LH11: 24 | LI11: 1.7 | LJ11: 2.8 | LK11: 47 | LL11: 2.34 | LM11: 6.2 | LN11: 42 | LO11: 2.97 | LP11: 5.3 | LQ11: 37 | LR11: 3.7 | LS11: 4.2 | LT11: 10 | LU11: 1.12 | LV11: 1.2 | LW11: 22 | LX11: 2.75 | LY11: 2.4 | LZ11: 16 | MA11: 1.58 | MB11: 1.83 | MC11: 41 | MD11: 5.95 | ME11: 5.1 | MF11: 5 | MG11: 0.32 | MH11: 0.91 | MI11: 19 | MJ11: 1.33 | MK11: 2.06 | ML11: 9 | MM11: 0.6 | MN11: 1.18 | MO11: 4 | MP11: 0.32 | MQ11: 0.75 | MR11: 22 | MS11: 2.75 | MT11: 2.4 | MU11: 19 | MV11: 1.33 | MW11: 2.06 | MX11: 34 | MY11: 3.4 | MZ11: 4 | NA11: 29 | NB11: 2.4 | NC11: 3.5 | ND11: 21 | NE11: 1.83 | NF11: 2.32 | NG11: 24 | NH11: 1.7 | NI11: 2.8 | NJ11: 24 | NK11: 1.7 | NL11: 2.8 | NM11: 34 | NN11: 3.4 | NO11: 4 | NP11: 45 | NQ11: 5.2 | NR11: 5.8 | NS11: 6 | NT11: 0.38 | NU11: 0.96 | NV11: 19 | NW11: 1.33 | NX11: 2.06 | NY11: 36 | NZ11: 2.28 | OA11: 4.1 | OB11: 10 | OC11: 1.12 | OD11: 1.2 | OE11: 10 | OF11: 1.12 | OG11: 1.2 | OH11: 20 | OI11: 2.06 | OJ11: 2.23 | OK11: 27 | OL11: 4.01 | OM11: 3 | ON11: 22 | OO11: 2.75 | OP11: 2.4 | OQ11: 21 | OR11: 1.83 | OS11: 2.32 | OT11: 3 | OU11: 0.46 | OV11: 0.7 | OW11: 34 | OX11: 3.4 | OY11: 4 | OZ11: 39 | PA11: 4.19 | PB11: 4.89 | PC11: 46 | PD11: 5.9 | PE11: 6.1 | PF11: 50 | PG11: 4.5 | PH11: 6.8 | PI11: 23 | PJ11: 1.15 | PK11: 2.5 | PL11: 12 | PM11: 2.16 | PN11: 1.6 | PO11: 8 | PP11: 1.68 | PQ11: 1.13 | PR11: 31 | PS11: 1.56 | PT11: 3.71 | PU11: 24 | PV11: 1.7 | PW11: 2.8 | PX11: 27 | PY11: 4.01 | PZ11: 3 | QA11: 47 | QB11: 2.34 | QC11: 6.2 | QD11: 16 | QE11: 1.58 | QF11: 1.83 | QG11: 22 | QH11: 2.75 | QI11: 2.4 | QJ11: 16 | QK11: 1.58 | QL11: 1.83 | QM11: 44 | QN11: 3.4 | QO11: 5.8 | QP11: 32 | QQ11: 2.83 | QR11: 3.77 | QS11: 3 | QT11: 0.46 | QU11: 0.7 | QV11: 24 | QW11: 1.7 | QX11: 2.8 | QY11: 46 | QZ11: 5.9 | RA11: 6.1 | RB11: 43 | RC11: 3.79 | RD11: 5.65 | RE11: 16 | RF11: 1.58 | RG11: 1.83 | RH11: 50 | RI11: 4.5 | RJ11: 6.8 | RK11: 13 | RL11: 1.24 | RM11: 1.7 | RN11: 43 | RO11: 3.79 | RP11: 5.65 | RQ11: 48 | RR11: 7.1 | RS11: 6.2 | RT11: 34 | RU11: 3.4 | RV11: 4 | RW11: 20 | RX11: 2.06 | RY11: 2.23 | RZ11: 4 | SA11: 0.32 | SB11: 0.75 | SC11: 8 | SD11: 1.68 | SE11: 1.13 | SF11: 23 | SG11: 1.15 | SH11: 2.5 | SI11: 29 | SJ11: 2.4 | SK11: 3.5 | SL11: 40 | SM11: 5.16 | SN11: 4.92 | SO11: 33 | SP11: 4.28 | SQ11: 3.99 | SR11: 38 | SS11: 3.61 | ST11: 4.7 | SU11: 17 | SV11: 1.3 | SW11: 1.89 | SX11: 41 | SY11: 5.95 | SZ11: 5.1 | TA11: 41 | TB11: 5.95 | TC11: 5.1 | TD11: 9 | TE11: 0.6 | TF11: 1.18 | TG11: 16 | TH11: 1.58 | TI11: 1.83 | TJ11: 7 | TK11: 0.4 | TL11: 1.05 | TM11: 12 | TN11: 2.16 | TO11: 1.6 | TP11: 22 | TQ11: 2.75 | TR11: 2.4 | TS11: 27 | TT11: 4.01 | TU11: 3 | TV11: 50 | TW11: 4.5 | TX11: 6.8 | TY11: 20 | TZ11: 2.06 | UA11: 2.23 | UB11: 25 | UC11: 3.68 | UD11: 2.88 | UE11: 29 | UF11: 2.4 | UG11: 3.5 | UH11: 12 | UI11: 2.16 | UJ11: 1.6 | UK11: 35 | UL11: 2.83 | UM11: 4.02 | UN11: 1 | UO11: 0.22 | UP11: 0.51 | UQ11: 14 | UR11: 1.16 | US11: 1.72 | UT11: 43 | UU11: 3.79 | UV11: 5.65 | UW11: 37 | UX11: 3.7 | UY11: 4.2 | UZ11: 2 | VA11: 0.22 | VB11: 0.56 | VC11: 29 | VD11: 2.4 | VE11: 3.5 | VF11: 36 | VG11: 2.28 | VH11: 4.1 | VI11: 33 | VJ11: 4.28 | VK11: 3.99 | VL11: 44 | VM11: 3.4 | VN11: 5.8 | VO11: 31 | VP11: 1.56 | VQ11: 3.71 | VR11: 34 | VS11: 3.4 | VT11: 4 | VU11: 50 | VV11: 4.5 | VW11: 6.8 | VX11: 16 | VY11: 1.58 | VZ11: 1.83 | WA11: 9 | WB11: 0.6 | WC11: 1.18 | WD11: 43 | WE11: 3.79 | WF11: 5.65 | WG11: 33 | WH11: 4.28 | WI11: 3.99 | WJ11: 49 | WK11: 3.94 | WL11: 6.8 | WM11: 6 | WN11: 0.38 | WO11: 0.96 | WP11: 9 | WQ11: 0.6 | WR11: 1.18 | WS11: 4 | WT11: 0.32 | WU11: 0.75 | WV11: 6 | WW11: 0.38 | WX11: 0.96 | WY11: 21 | WZ11: 1.83 | XA11: 2.32 | XB11: 9 | XC11: 0.6 | XD11: 1.18 | XE11: 41 | XF11: 5.95 | XG11: 5.1 | XH11: 18 | XI11: 1.32 | XJ11: 2 | XK11: 7 | XL11: 0.4 | XM11: 1.05 | XN11: 1 | XO11: 0.22 | XP11: 0.51 | XQ11: 8 | XR11: 1.68 | XS11: 1.13 | XT11: 3 | XU11: 0.46 | XV11: 0.7 | XW11: 47 | XX11: 2.34 | XY11: 6.2 | XZ11: 43 | YA11: 3.79 | YB11: 5.65 | YC11: 12 | YD11: 2.16 | YE11: 1.6 | YF11: 31 | YG11: 1.56 | YH11: 3.71 | YI11: 25 | YJ11: 3.68 | YK11: 2.88 | YL11: 15 | YM11: 1.3 | YN11: 1.8 | YO11: 8 | YP11: 1.68 | YQ11: 1.13 | YR11: 7 | YS11: 0.4 | YT11: 1.05 | YU11: 27 | YV11: 4.01 | YW11: 3 | YX11: 15 | YY11: 1.3 | YZ11: 1.8 | ZA11: 27 | ZB11: 4.01 | ZC11: 3 | ZD11: 21 | ZE11: 1.83 | ZF11: 2.32 | ZG11: 42 | ZH11: 2.97 | ZI11: 5.3 | ZJ11: 5 | ZK11: 0.32 | ZL11: 0.91 | ZM11: 13 | ZN11: 1.24 | ZO11: 1.7 | ZP11: 6 | ZQ11: 0.38 | ZR11: 0.96 | ZS11: 33 | ZT11: 4.28 | ZU11: 3.99 | ZV11: 30 | ZW11: 3.4 | ZX11: 3.7 | ZY11: 20 | ZZ11: 2.06 | AAA11: 2.23 | AAB11: 4 | AAC11: 0.32 | AAD11: 0.75 | AAE11: 13 | AAF11: 1.24 | AAG11: 1.7 | AAH11: 46 | AAI11: 5.9 | AAJ11: 6.1 | AAK11: 23 | AAL11: 1.15 | AAM11: 2.5 | AAN11: 7 | AAO11: 0.4 | AAP11: 1.05 | AAQ11: 44 | AAR11: 3.4 | AAS11: 5.8 | AAT11: 5 | AAU11: 0.32 | AAV11: 0.91 | AAW11: 47 | AAX11: 2.34 | AAY11: 6.2 | AAZ11: 46 | ABA11: 5.9 | ABB11: 6.1 | ABC11: 36 | ABD11: 2.28 | ABE11: 4.1 | ABF11: 13 | ABG11: 1.24 | ABH11: 1.7 | ABI11: 49 | ABJ11: 3.94 | ABK11: 6.8 | ABL11: 6 | ABM11: 0.38 | ABN11: 0.96 | ABO11: 20 | ABP11: 2.06 | ABQ11: 2.23 | ABR11: 40 | ABS11: 5.16 | ABT11: 4.92 | ABU11: 18 | ABV11: 1.32 | ABW11: 2 | ABX11: 43 | ABY11: 3.79 | ABZ11: 5.65 | ACA11: 28 | ACB11: 2.8 | ACC11: 3.4 | ACD11: 2 | ACE11: 0.22 | ACF11: 0.56 | ACG11: 40 | ACH11: 5.16 | ACI11: 4.92 | ACJ11: 18 | ACK11: 1.32 | ACL11: 2 | ACM11: 31 | ACN11: 1.56 | ACO11: 3.71 | ACP11: 46 | ACQ11: 5.9 | ACR11: 6.1 | ACS11: 17 | ACT11: 1.3 | ACU11: 1.89 | ACV11: 45 | ACW11: 5.2 | ACX11: 5.8 | ACY11: 1 | ACZ11: 0.22 | ADA11: 0.51 | ADB11: 6 | ADC11: 0.38 | ADD11: 0.96 | ADE11: 9 | ADF11: 0.6 | ADG11: 1.18 | ADH11: 48 | ADI11: 7.1 | ADJ11: 6.2 | ADK11: 25 | ADL11: 3.68 | ADM11: 2.88 | ADN11: 18 | ADO11: 1.32 | ADP11: 2 | ADQ11: 29 | ADR11: 2.4 | ADS11: 3.5 | ADT11: 31 | ADU11: 1.56 | ADV11: 3.71 | ADW11: 37 | ADX11: 3.7 | ADY11: 4.2 | ADZ11: 43 | AEA11: 3.79 | AEB11: 5.65 | AEC11: 8 | AED11: 1.68 | AEE11: 1.13 | AEF11: 17 | AEG11: 1.3 | AEH11: 1.89 | AEI11: 9 | AEJ11: 0.6 | AEK11: 1.18 | AEL11: 13 | AEM11: 1.24 | AEN11: 1.7 | AEO11: 16 | AEP11: 1.58 | AEQ11: 1.83 | AER11: 35 | AES11: 2.83 | AET11: 4.02 | AEU11: 11 | AEV11: 0.91 | AEW11: 1.3 | AEX11: 27 | AEY11: 4.01 | AEZ11: 3 | AFA11: 2 | AFB11: 0.22 | AFC11: 0.56 | AFD11: 38 | AFE11: 3.61 | AFF11: 4.7 | AFG11: 24 | AFH11: 1.7 | AFI11: 2.8 | AFJ11: 22 | AFK11: 2.75 | AFL11: 2.4 | AFM11: 40 | AFN11: 5.16 | AFO11: 4.92 | AFP11: 17 | AFQ11: 1.3 | AFR11: 1.89 | AFS11: 21 | AFT11: 1.83 | AFU11: 2.32 | AFV11: 45 | AFW11: 5.2 | AFX11: 5.8 | AFY11: 43 | AFZ11: 3.79 | AGA11: 5.65 | AGB11: 41 | AGC11: 5.95 | AGD11: 5.1 | AGE11: 14 | AGF11: 1.16 | AGG11: 1.72 | AGH11: 47 | AGI11: 2.34 | AGJ11: 6.2 | AGK11: 38 | AGL11: 3.61 | AGM11: 4.7 | AGN11: 45 | AGO11: 5.2 | AGP11: 5.8 | AGQ11: 5 | AGR11: 0.32 | AGS11: 0.91 | AGT11: 31 | AGU11: 1.56 | AGV11: 3.71 | AGW11: 48 | AGX11: 7.1 | AGY11: 6.2 | AGZ11: 46 | AHA11: 5.9 | AHB11: 6.1 | AHC11: 8 | AHD11: 1.68 | AHE11: 1.13 | AHF11: 23 | AHG11: 1.15 | AHH11: 2.5 | AHI11: 48 | AHJ11: 7.1 | AHK11: 6.2 | AHL11: 11 | AHM11: 0.91 | AHN11: 1.3 | AHO11: 24 | AHP11: 1.7 | AHQ11: 2.8 | AHR11: 43 | AHS11: 3.79 | AHT11: 5.65 | AHU11: 21 | AHV11: 1.83 | AHW11: 2.32 | AHX11: 40 | AHY11: 5.16 | AHZ11: 4.92 | AIA11: 41 | AIB11: 5.95 | AIC11: 5.1 | AID11: 49 | AIE11: 3.94 | AIF11: 6.8 | AIG11: 35 | AIH11: 2.83 | AII11: 4.02 | AIJ11: 15 | AIK11: 1.3 | AIL11: 1.8 | AIM11: 32 | AIN11: 2.83 | AIO11: 3.77 | AIP11: 36 | AIQ11: 2.28 | AIR11: 4.1 | AIS11: 29 | AIT11: 2.4 | AIU11: 3.5 | AIV11: 3 | AIW11: 0.46 | AIX11: 0.7 | AIY11: 30 | AIZ11: 3.4 | AJA11: 3.7 | AJB11: 5 | AJC11: 0.32 | AJD11: 0.91 | AJE11: 14 | AJF11: 1.16 | AJG11: 1.72 | AJH11: 34 | AJI11: 3.4 | AJJ11: 4 | AJK11: 3 | AJL11: 0.46 | AJM11: 0.7 | AJN11: 37 | AJO11: 3.7 | AJP11: 4.2 | AJQ11: 30 | AJR11: 3.4 | AJS11: 3.7 | AJT11: 29 | AJU11: 2.4 | AJV11: 3.5 | AJW11: 50 | AJX11: 4.5 | AJY11: 6.8 | AJZ11: 35 | AKA11: 2.83 | AKB11: 4.02 | AKC11: 25 | AKD11: 3.68 | AKE11: 2.88 | AKF11: 50 | AKG11: 4.5 | AKH11: 6.8 | AKI11: 5 | AKJ11: 0.32 | AKK11: 0.91 | AKL11: 22 | AKM11: 2.75 | AKN11: 2.4 | AKO11: 41 | AKP11: 5.95 | AKQ11: 5.1 | AKR11: 5 | AKS11: 0.32 | AKT11: 0.91 | AKU11: 6 | AKV11: 0.38 | AKW11: 0.96 | AKX11: 14 | AKY11: 1.16 | AKZ11: 1.72 | ALA11: 11 | ALB11: 0.91 | ALC11: 1.3 | ALD11: 22 | ALE11: 2.75 | ALF11: 2.4 | ALG11: 25 | ALH11: 3.68 | ALI11: 2.88 | ALJ11: 39 | ALK11: 4.19 | ALL11: 4.89 | ALM11: 22 | ALN11: 2.75 | ALO11: 2.4 | ALP11: 33 | ALQ11: 4.28 | ALR11: 3.99 | ALS11: 12 | ALT11: 2.16 | ALU11: 1.6 | ALV11: 31 | ALW11: 1.56 | ALX11: 3.71 | ALY11: 38 | ALZ11: 3.61 | AMA11: 4.7 | AMB11: 15 | AMC11: 1.3 | AMD11: 1.8 | AME11: 47 | AMF11: 2.34 | AMG11: 6.2 | AMH11: 32 | AMI11: 2.83 | AMJ11: 3.77 | AMK11: 41 | AML11: 5.95 | AMM11: 5.1 | AMN11: 7 | AMO11: 0.4 | AMP11: 1.05 | AMQ11: 13 | AMR11: 1.24 | AMS11: 1.7 | AMT11: 7 | AMU11: 0.4 | AMV11: 1.05 | AMW11: 25 | AMX11: 3.68 | AMY11: 2.88 | AMZ11: 23 | ANA11: 1.15 | ANB11: 2.5 | ANC11: 22 | AND11: 2.75 | ANE11: 2.4 | ANF11: 21 | ANG11: 1.83 | ANH11: 2.32 | ANI11: 10 | ANJ11: 1.12 | ANK11: 1.2 | ANL11: 39 | ANM11: 4.19 | ANN11: 4.89 | ANO11: 12 | ANP11: 2.16 | ANQ11: 1.6 | ANR11: 27 | ANS11: 4.01 | ANT11: 3 | ANU11: 16 | ANV11: 1.58 | ANW11: 1.83 | ANX11: 40 | ANY11: 5.16 | ANZ11: 4.92 | AOA11: 47 | AOB11: 2.34 | AOC11: 6.2 | AOD11: 21 | AOE11: 1.83 | AOF11: 2.32 | AOG11: 50 | AOH11: 4.5 | AOI11: 6.8 | AOJ11: 30 | AOK11: 3.4 | AOL11: 3.7 | AOM11: 42 | AON11: 2.97 | AOO11: 5.3 | AOP11: 7 | AOQ11: 0.4 | AOR11: 1.05 | AOS11: 5 | AOT11: 0.32 | AOU11: 0.91 | AOV11: 45 | AOW11: 5.2 | AOX11: 5.8 | AOY11: 38 | AOZ11: 3.61 | APA11: 4.7 | APB11: 21 | APC11: 1.83 | APD11: 2.32 | APE11: 22 | APF11: 2.75 | APG11: 2.4 | APH11: 48 | API11: 7.1 | APJ11: 6.2 | APK11: 46 | APL11: 5.9 | APM11: 6.1 | APN11: 25 | APO11: 3.68 | APP11: 2.88 | APQ11: 13 | APR11: 1.24 | APS11: 1.7 | APT11: 16 | APU11: 1.58 | APV11: 1.83 | APW11: 4 | APX11: 0.32 | APY11: 0.75 | APZ11: 7 | AQA11: 0.4 | AQB11: 1.05 | AQC11: 49 | AQD11: 3.94 | AQE11: 6.8 | AQF11: 4 | AQG11: 0.32 | AQH11: 0.75 | AQI11: 46 | AQJ11: 5.9 | AQK11: 6.1 | AQL11: 45 | AQM11: 5.2 | AQN11: 5.8 | AQO11: 11 | AQP11: 0.91 | AQQ11: 1.3 | AQR11: 12 | AQS11: 2.16 | AQT11: 1.6 | AQU11: 27 | AQV11: 4.01 | AQW11: 3 | AQX11: 38 | AQY11: 3.61 | AQZ11: 4.7 | ARA11: 45 | ARB11: 5.2 | ARC11: 5.8 | ARD11: 24 | ARE11: 1.7 | ARF11: 2.8 | ARG11: 23 | ARH11: 1.15 | ARI11: 2.5 | ARJ11: 40 | ARK11: 5.16 | ARL11: 4.92 | ARM11: 45 | ARN11: 5.2 | ARO11: 5.8 | ARP11: 46 | ARQ11: 5.9 | ARR11: 6.1 | ARS11: 31 | ART11: 1.56 | ARU11: 3.71 | ARV11: 20 | ARW11: 2.06 | ARX11: 2.23 | ARY11: 35 | ARZ11: 2.83 | ASA11: 4.02 | ASB11: 25 | ASC11: 3.68 | ASD11: 2.88 | ASE11: 40 | ASF11: 5.16 | ASG11: 4.92 | ASH11: 19 | ASI11: 1.33 | ASJ11: 2.06 | ASK11: 15 | ASL11: 1.3 | ASM11: 1.8 | ASN11: 9 | ASO11: 0.6 | ASP11: 1.18 | ASQ11: 10 | ASR11: 1.12 | ASS11: 1.2 | AST11: 33 | ASU11: 4.28 | ASV11: 3.99 | ASW11: 32 | ASX11: 2.83 | ASY11: 3.77 | ASZ11: 41 | ATA11: 5.95 | ATB11: 5.1 | ATC11: 16 | ATD11: 1.58 | ATE11: 1.83 | ATF11: 50 | ATG11: 4.5 | ATH11: 6.8 | ATI11: 44 | ATJ11: 3.4 | ATK11: 5.8 | ATL11: 47 | ATM11: 2.34 | ATN11: 6.2 | ATO11: 2 | ATP11: 0.22 | ATQ11: 0.56 | ATR11: 3 | ATS11: 0.46 | ATT11: 0.7 | ATU11: 14 | ATV11: 1.16 | ATW11: 1.72 | ATX11: 48 | ATY11: 7.1 | ATZ11: 6.2 | AUA11: 2 | AUB11: 0.22 | AUC11: 0.56 | AUD11: 36 | AUE11: 2.28 | AUF11: 4.1 | AUG11: 5 | AUH11: 0.32 | AUI11: 0.91 | AUJ11: 33 | AUK11: 4.28 | AUL11: 3.99 | AUM11: 16 | AUN11: 1.58 | AUO11: 1.83 | AUP11: 30 | AUQ11: 3.4 | AUR11: 3.7 | AUS11: 46 | AUT11: 5.9 | AUU11: 6.1 | AUV11: 39 | AUW11: 4.19 | AUX11: 4.89 | AUY11: 8 | AUZ11: 1.68 | AVA11: 1.13 | AVB11: 43 | AVC11: 3.79 | AVD11: 5.65 | AVE11: 50 | AVF11: 4.5 | AVG11: 6.8 | AVH11: 47 | AVI11: 2.34 | AVJ11: 6.2 | AVK11: 5 | AVL11: 0.32 | AVM11: 0.91 | AVN11: 11 | AVO11: 0.91 | AVP11: 1.3 | AVQ11: 7 | AVR11: 0.4 | AVS11: 1.05 | AVT11: 45 | AVU11: 5.2 | AVV11: 5.8 | AVW11: 23 | AVX11: 1.15 | AVY11: 2.5 | AVZ11: 18 | AWA11: 1.32 | AWB11: 2 | AWC11: 28 | AWD11: 2.8 | AWE11: 3.4 | AWF11: 44 | AWG11: 3.4 | AWH11: 5.8 | AWI11: 40 | AWJ11: 5.16 | AWK11: 4.92 | AWL11: 17 | AWM11: 1.3 | AWN11: 1.89 | AWO11: 13 | AWP11: 1.24 | AWQ11: 1.7 | AWR11: 17 | AWS11: 1.3 | AWT11: 1.89 | AWU11: 45 | AWV11: 5.2 | AWW11: 5.8 | AWX11: 22 | AWY11: 2.75 | AWZ11: 2.4 | AXA11: 18 | AXB11: 1.32 | AXC11: 2 | AXD11: 37 | AXE11: 3.7 | AXF11: 4.2 | AXG11: 39 | AXH11: 4.19 | AXI11: 4.89 | AXJ11: 13 | AXK11: 1.24 | AXL11: 1.7 | AXM11: 46 | AXN11: 5.9 | AXO11: 6.1 | AXP11: 45 | AXQ11: 5.2 | AXR11: 5.8 | AXS11: 5 | AXT11: 0.32 | AXU11: 0.91 | AXV11: 48 | AXW11: 7.1 | AXX11: 6.2 | AXY11: 46 | AXZ11: 5.9 | AYA11: 6.1 | AYB11: 15 | AYC11: 1.3 | AYD11: 1.8 | AYE11: 38 | AYF11: 3.61 | AYG11: 4.7 | AYH11: 41 | AYI11: 5.95 | AYJ11: 5.1 | AYK11: 23 | AYL11: 1.15 | AYM11: 2.5 | AYN11: 38 | AYO11: 3.61 | AYP11: 4.7 | AYQ11: 38 | AYR11: 3.61 | AYS11: 4.7 | AYT11: 1 | AYU11: 0.22 | AYV11: 0.51 | AYW11: 15 | AYX11: 1.3 | AYY11: 1.8 | AYZ11: 22 | AZA11: 2.75 | AZB11: 2.4 | AZC11: 17 | AZD11: 1.3 | AZE11: 1.89 | AZF11: 37 | AZG11: 3.7 | AZH11: 4.2 | AZI11: 26 | AZJ11: 2.15 | AZK11: 2.91 | AZL11: 45 | AZM11: 5.2 | AZN11: 5.8 | AZO11: 14 | AZP11: 1.16 | AZQ11: 1.72 | AZR11: 21 | AZS11: 1.83 | AZT11: 2.32 | AZU11: 30 | AZV11: 3.4 | AZW11: 3.7 | AZX11: 30 | AZY11: 3.4 | AZZ11: 3.7 | BAA11: 28 | BAB11: 2.8 | BAC11: 3.4 | BAD11: 14 | BAE11: 1.16 | BAF11: 1.72 | BAG11: 26 | BAH11: 2.15 | BAI11: 2.91 | BAJ11: 29 | BAK11: 2.4 | BAL11: 3.5 | BAM11: 8 | BAN11: 1.68 | BAO11: 1.13 | BAP11: 8 | BAQ11: 1.68 | BAR11: 1.13 | BAS11: 21 | BAT11: 1.83 | BAU11: 2.32 | BAV11: 17 | BAW11: 1.3 | BAX11: 1.89 | BAY11: 14 | BAZ11: 1.16 | BBA11: 1.72 | BBB11: 28 | BBC11: 2.8 | BBD11: 3.4 | BBE11: 6 | BBF11: 0.38 | BBG11: 0.96 | BBH11: 49 | BBI11: 3.94 | BBJ11: 6.8 | BBK11: 28 | BBL11: 2.8 | BBM11: 3.4 | BBN11: 47 | BBO11: 2.34 | BBP11: 6.2 | BBQ11: 17 | BBR11: 1.3 | BBS11: 1.89 | BBT11: 37 | BBU11: 3.7 | BBV11: 4.2 | BBW11: 41 | BBX11: 5.95 | BBY11: 5.1 | BBZ11: 11 | BCA11: 0.91 | BCB11: 1.3 | BCC11: 38 | BCD11: 3.61 | BCE11: 4.7 | BCF11: 28 | BCG11: 2.8 | BCH11: 3.4 | BCI11: 39 | BCJ11: 4.19 | BCK11: 4.89 | BCL11: 32 | BCM11: 2.83 | BCN11: 3.77 | BCO11: 27 | BCP11: 4.01 | BCQ11: 3 | BCR11: 1 | BCS11: 0.22 | BCT11: 0.51 | BCU11: 16 | BCV11: 1.58 | BCW11: 1.83 | BCX11: 40 | BCY11: 5.16 | BCZ11: 4.92 | BDA11: 5 | BDB11: 0.32 | BDC11: 0.91 | BDD11: 29 | BDE11: 2.4 | BDF11: 3.5 | BDG11: 38 | BDH11: 3.61 | BDI11: 4.7 | BDJ11: 45 | BDK11: 5.2 | BDL11: 5.8 | BDM11: 6 | BDN11: 0.38 | BDO11: 0.96 | BDP11: 46 | BDQ11: 5.9 | BDR11: 6.1 | BDS11: 20 | BDT11: 2.06 | BDU11: 2.23 | BDV11: 17 | BDW11: 1.3 | BDX11: 1.89 | BDY11: 33 | BDZ11: 4.28 | BEA11: 3.99 | BEB11: 34 | BEC11: 3.4 | BED11: 4 | BEE11: 28 | BEF11: 2.8 | BEG11: 3.4 | BEH11: 26 | BEI11: 2.15 | BEJ11: 2.91 | BEK11: 38 | BEL11: 3.61 | BEM11: 4.7 | BEN11: 16 | BEO11: 1.58 | BEP11: 1.83 | BEQ11: 25 | BER11: 3.68 | BES11: 2.88 | BET11: 41 | BEU11: 5.95 | BEV11: 5.1 | BEW11: 6 | BEX11: 0.38 | BEY11: 0.96 | BEZ11: 15 | BFA11: 1.3 | BFB11: 1.8 | BFC11: 45 | BFD11: 5.2 | BFE11: 5.8 | BFF11: 50 | BFG11: 4.5 | BFH11: 6.8 | BFI11: 6 | BFJ11: 0.38 | BFK11: 0.96 | BFL11: 30 | BFM11: 3.4 | BFN11: 3.7 | BFO11: 23 | BFP11: 1.15 | BFQ11: 2.5 | BFR11: 33 | BFS11: 4.28 | BFT11: 3.99 | BFU11: 1 | BFV11: 0.22 | BFW11: 0.51 | BFX11: 11 | BFY11: 0.91 | BFZ11: 1.3 | BGA11: 33 | BGB11: 4.28 | BGC11: 3.99 | BGD11: 4 | BGE11: 0.32 | BGF11: 0.75 | BGG11: 21 | BGH11: 1.83 | BGI11: 2.32 | BGJ11: 14 | BGK11: 1.16 | BGL11: 1.72 | BGM11: 1 | BGN11: 0.22 | BGO11: 0.51 | BGP11: 12 | BGQ11: 2.16 | BGR11: 1.6 | BGS11: 4 | BGT11: 0.32 | BGU11: 0.75
C12: 8 | D12: 1.68 | E12: 1.13 | H12: 0 | I12: 0 | K12: 歪 度：=SKEW(セル範囲) | M12: =SKEW(D5:D1304) -> 0.6723672664 | N12: =SKEW(E5:E1304) -> 0.3737864439 | O12: =SKEW(F5:F1304) ->  | P12: =SKEW(G5:G1304) ->  | Q12: Sy.x / SDy(<2) = | R12: =R11/S6 ->  | U12: 4.63 | V12: 45 | W12: 4 | X12: 4.58 | Y12: 37 | Z12: 3 | AD12: -1.172136188 | AE12: 0.7954826591 | AF12: -1.350549352 | AG12: 0.9711375081 | AN12: 31 | AO12: 43 | AS12: 1.405 | AT12: -0.55 | AV12: 1.405 | AW12: -0.55 | AY12: 0.22 | AZ12: 0.56 | BA12: 29 | BB12: 2.4 | BC12: 3.5 | BD12: 6 | BE12: 0.38 | BF12: 0.96 | BG12: 18 | BH12: 1.32 | BI12: 2 | BJ12: 28 | BK12: 2.8 | BL12: 3.4 | BM12: 34 | BN12: 3.4 | BO12: 4 | BP12: 34 | BQ12: 3.4 | BR12: 4 | BS12: 15 | BT12: 1.3 | BU12: 1.8 | BV12: 7 | BW12: 0.4 | BX12: 1.05 | BY12: 34 | BZ12: 3.4 | CA12: 4 | CB12: 24 | CC12: 1.7 | CD12: 2.8 | CE12: 11 | CF12: 0.91 | CG12: 1.3 | CH12: 10 | CI12: 1.12 | CJ12: 1.2 | CK12: 19 | CL12: 1.33 | CM12: 2.06 | CN12: 34 | CO12: 3.4 | CP12: 4 | CQ12: 6 | CR12: 0.38 | CS12: 0.96 | CT12: 42 | CU12: 2.97 | CV12: 5.3 | CW12: 45 | CX12: 5.2 | CY12: 5.8 | CZ12: 7 | DA12: 0.4 | DB12: 1.05 | DC12: 22 | DD12: 2.75 | DE12: 2.4 | DF12: 47 | DG12: 2.34 | DH12: 6.2 | DI12: 19 | DJ12: 1.33 | DK12: 2.06 | DL12: 50 | DM12: 4.5 | DN12: 6.8 | DO12: 3 | DP12: 0.46 | DQ12: 0.7 | DR12: 8 | DS12: 1.68 | DT12: 1.13 | DU12: 49 | DV12: 3.94 | DW12: 6.8 | DX12: 20 | DY12: 2.06 | DZ12: 2.23 | EA12: 21 | EB12: 1.83 | EC12: 2.32 | ED12: 18 | EE12: 1.32 | EF12: 2 | EG12: 18 | EH12: 1.32 | EI12: 2 | EJ12: 21 | EK12: 1.83 | EL12: 2.32 | EM12: 49 | EN12: 3.94 | EO12: 6.8 | EP12: 12 | EQ12: 2.16 | ER12: 1.6 | ES12: 3 | ET12: 0.46 | EU12: 0.7 | EV12: 18 | EW12: 1.32 | EX12: 2 | EY12: 45 | EZ12: 5.2 | FA12: 5.8 | FB12: 7 | FC12: 0.4 | FD12: 1.05 | FE12: 16 | FF12: 1.58 | FG12: 1.83 | FH12: 11 | FI12: 0.91 | FJ12: 1.3 | FK12: 45 | FL12: 5.2 | FM12: 5.8 | FN12: 10 | FO12: 1.12 | FP12: 1.2 | FQ12: 10 | FR12: 1.12 | FS12: 1.2 | FT12: 20 | FU12: 2.06 | FV12: 2.23 | FW12: 24 | FX12: 1.7 | FY12: 2.8 | FZ12: 33 | GA12: 4.28 | GB12: 3.99 | GC12: 42 | GD12: 2.97 | GE12: 5.3 | GF12: 35 | GG12: 2.83 | GH12: 4.02 | GI12: 17 | GJ12: 1.3 | GK12: 1.89 | GL12: 25 | GM12: 3.68 | GN12: 2.88 | GO12: 49 | GP12: 3.94 | GQ12: 6.8 | GR12: 30 | GS12: 3.4 | GT12: 3.7 | GU12: 1 | GV12: 0.22 | GW12: 0.51 | GX12: 18 | GY12: 1.32 | GZ12: 2 | HA12: 40 | HB12: 5.16 | HC12: 4.92 | HD12: 34 | HE12: 3.4 | HF12: 4 | HG12: 46 | HH12: 5.9 | HI12: 6.1 | HJ12: 27 | HK12: 4.01 | HL12: 3 | HM12: 45 | HN12: 5.2 | HO12: 5.8 | HP12: 19 | HQ12: 1.33 | HR12: 2.06 | HS12: 14 | HT12: 1.16 | HU12: 1.72 | HV12: 20 | HW12: 2.06 | HX12: 2.23 | HY12: 36 | HZ12: 2.28 | IA12: 4.1 | IB12: 49 | IC12: 3.94 | ID12: 6.8 | IE12: 42 | IF12: 2.97 | IG12: 5.3 | IH12: 1 | II12: 0.22 | IJ12: 0.51 | IK12: 46 | IL12: 5.9 | IM12: 6.1 | IN12: 43 | IO12: 3.79 | IP12: 5.65 | IQ12: 16 | IR12: 1.58 | IS12: 1.83 | IT12: 1 | IU12: 0.22 | IV12: 0.51 | IW12: 18 | IX12: 1.32 | IY12: 2 | IZ12: 48 | JA12: 7.1 | JB12: 6.2 | JC12: 21 | JD12: 1.83 | JE12: 2.32 | JF12: 32 | JG12: 2.83 | JH12: 3.77 | JI12: 48 | JJ12: 7.1 | JK12: 6.2 | JL12: 25 | JM12: 3.68 | JN12: 2.88 | JO12: 50 | JP12: 4.5 | JQ12: 6.8 | JR12: 7 | JS12: 0.4 | JT12: 1.05 | JU12: 8 | JV12: 1.68 | JW12: 1.13 | JX12: 49 | JY12: 3.94 | JZ12: 6.8 | KA12: 24 | KB12: 1.7 | KC12: 2.8 | KD12: 21 | KE12: 1.83 | KF12: 2.32 | KG12: 19 | KH12: 1.33 | KI12: 2.06 | KJ12: 22 | KK12: 2.75 | KL12: 2.4 | KM12: 27 | KN12: 4.01 | KO12: 3 | KP12: 40 | KQ12: 5.16 | KR12: 4.92 | KS12: 40 | KT12: 5.16 | KU12: 4.92 | KV12: 46 | KW12: 5.9 | KX12: 6.1 | KY12: 49 | KZ12: 3.94 | LA12: 6.8 | LB12: 14 | LC12: 1.16 | LD12: 1.72 | LE12: 24 | LF12: 1.7 | LG12: 2.8 | LH12: 8 | LI12: 1.68 | LJ12: 1.13 | LK12: 49 | LL12: 3.94 | LM12: 6.8 | LN12: 35 | LO12: 2.83 | LP12: 4.02 | LQ12: 30 | LR12: 3.4 | LS12: 3.7 | LT12: 33 | LU12: 4.28 | LV12: 3.99 | LW12: 22 | LX12: 2.75 | LY12: 2.4 | LZ12: 27 | MA12: 4.01 | MB12: 3 | MC12: 2 | MD12: 0.22 | ME12: 0.56 | MF12: 43 | MG12: 3.79 | MH12: 5.65 | MI12: 34 | MJ12: 3.4 | MK12: 4 | ML12: 33 | MM12: 4.28 | MN12: 3.99 | MO12: 8 | MP12: 1.68 | MQ12: 1.13 | MR12: 31 | MS12: 1.56 | MT12: 3.71 | MU12: 22 | MV12: 2.75 | MW12: 2.4 | MX12: 21 | MY12: 1.83 | MZ12: 2.32 | NA12: 40 | NB12: 5.16 | NC12: 4.92 | ND12: 1 | NE12: 0.22 | NF12: 0.51 | NG12: 44 | NH12: 3.4 | NI12: 5.8 | NJ12: 7 | NK12: 0.4 | NL12: 1.05 | NM12: 35 | NN12: 2.83 | NO12: 4.02 | NP12: 12 | NQ12: 2.16 | NR12: 1.6 | NS12: 8 | NT12: 1.68 | NU12: 1.13 | NV12: 27 | NW12: 4.01 | NX12: 3 | NY12: 47 | NZ12: 2.34 | OA12: 6.2 | OB12: 44 | OC12: 3.4 | OD12: 5.8 | OE12: 2 | OF12: 0.22 | OG12: 0.56 | OH12: 37 | OI12: 3.7 | OJ12: 4.2 | OK12: 37 | OL12: 3.7 | OM12: 4.2 | ON12: 22 | OO12: 2.75 | OP12: 2.4 | OQ12: 42 | OR12: 2.97 | OS12: 5.3 | OT12: 17 | OU12: 1.3 | OV12: 1.89 | OW12: 28 | OX12: 2.8 | OY12: 3.4 | OZ12: 48 | PA12: 7.1 | PB12: 6.2 | PC12: 28 | PD12: 2.8 | PE12: 3.4 | PF12: 37 | PG12: 3.7 | PH12: 4.2 | PI12: 20 | PJ12: 2.06 | PK12: 2.23 | PL12: 9 | PM12: 0.6 | PN12: 1.18 | PO12: 17 | PP12: 1.3 | PQ12: 1.89 | PR12: 38 | PS12: 3.61 | PT12: 4.7 | PU12: 13 | PV12: 1.24 | PW12: 1.7 | PX12: 28 | PY12: 2.8 | PZ12: 3.4 | QA12: 6 | QB12: 0.38 | QC12: 0.96 | QD12: 26 | QE12: 2.15 | QF12: 2.91 | QG12: 3 | QH12: 0.46 | QI12: 0.7 | QJ12: 46 | QK12: 5.9 | QL12: 6.1 | QM12: 28 | QN12: 2.8 | QO12: 3.4 | QP12: 27 | QQ12: 4.01 | QR12: 3 | QS12: 29 | QT12: 2.4 | QU12: 3.5 | QV12: 9 | QW12: 0.6 | QX12: 1.18 | QY12: 10 | QZ12: 1.12 | RA12: 1.2 | RB12: 4 | RC12: 0.32 | RD12: 0.75 | RE12: 41 | RF12: 5.95 | RG12: 5.1 | RH12: 9 | RI12: 0.6 | RJ12: 1.18 | RK12: 48 | RL12: 7.1 | RM12: 6.2 | RN12: 42 | RO12: 2.97 | RP12: 5.3 | RQ12: 25 | RR12: 3.68 | RS12: 2.88 | RT12: 7 | RU12: 0.4 | RV12: 1.05 | RW12: 33 | RX12: 4.28 | RY12: 3.99 | RZ12: 32 | SA12: 2.83 | SB12: 3.77 | SC12: 47 | SD12: 2.34 | SE12: 6.2 | SF12: 47 | SG12: 2.34 | SH12: 6.2 | SI12: 6 | SJ12: 0.38 | SK12: 0.96 | SL12: 36 | SM12: 2.28 | SN12: 4.1 | SO12: 49 | SP12: 3.94 | SQ12: 6.8 | SR12: 1 | SS12: 0.22 | ST12: 0.51 | SU12: 8 | SV12: 1.68 | SW12: 1.13 | SX12: 49 | SY12: 3.94 | SZ12: 6.8 | TA12: 20 | TB12: 2.06 | TC12: 2.23 | TD12: 12 | TE12: 2.16 | TF12: 1.6 | TG12: 9 | TH12: 0.6 | TI12: 1.18 | TJ12: 32 | TK12: 2.83 | TL12: 3.77 | TM12: 20 | TN12: 2.06 | TO12: 2.23 | TP12: 8 | TQ12: 1.68 | TR12: 1.13 | TS12: 35 | TT12: 2.83 | TU12: 4.02 | TV12: 3 | TW12: 0.46 | TX12: 0.7 | TY12: 20 | TZ12: 2.06 | UA12: 2.23 | UB12: 29 | UC12: 2.4 | UD12: 3.5 | UE12: 18 | UF12: 1.32 | UG12: 2 | UH12: 46 | UI12: 5.9 | UJ12: 6.1 | UK12: 6 | UL12: 0.38 | UM12: 0.96 | UN12: 9 | UO12: 0.6 | UP12: 1.18 | UQ12: 4 | UR12: 0.32 | US12: 0.75 | UT12: 24 | UU12: 1.7 | UV12: 2.8 | UW12: 41 | UX12: 5.95 | UY12: 5.1 | UZ12: 27 | VA12: 4.01 | VB12: 3 | VC12: 23 | VD12: 1.15 | VE12: 2.5 | VF12: 14 | VG12: 1.16 | VH12: 1.72 | VI12: 47 | VJ12: 2.34 | VK12: 6.2 | VL12: 21 | VM12: 1.83 | VN12: 2.32 | VO12: 24 | VP12: 1.7 | VQ12: 2.8 | VR12: 48 | VS12: 7.1 | VT12: 6.2 | VU12: 38 | VV12: 3.61 | VW12: 4.7 | VX12: 9 | VY12: 0.6 | VZ12: 1.18 | WA12: 18 | WB12: 1.32 | WC12: 2 | WD12: 18 | WE12: 1.32 | WF12: 2 | WG12: 30 | WH12: 3.4 | WI12: 3.7 | WJ12: 27 | WK12: 4.01 | WL12: 3 | WM12: 43 | WN12: 3.79 | WO12: 5.65 | WP12: 45 | WQ12: 5.2 | WR12: 5.8 | WS12: 50 | WT12: 4.5 | WU12: 6.8 | WV12: 28 | WW12: 2.8 | WX12: 3.4 | WY12: 26 | WZ12: 2.15 | XA12: 2.91 | XB12: 8 | XC12: 1.68 | XD12: 1.13 | XE12: 16 | XF12: 1.58 | XG12: 1.83 | XH12: 46 | XI12: 5.9 | XJ12: 6.1 | XK12: 26 | XL12: 2.15 | XM12: 2.91 | XN12: 39 | XO12: 4.19 | XP12: 4.89 | XQ12: 27 | XR12: 4.01 | XS12: 3 | XT12: 16 | XU12: 1.58 | XV12: 1.83 | XW12: 23 | XX12: 1.15 | XY12: 2.5 | XZ12: 28 | YA12: 2.8 | YB12: 3.4 | YC12: 14 | YD12: 1.16 | YE12: 1.72 | YF12: 12 | YG12: 2.16 | YH12: 1.6 | YI12: 30 | YJ12: 3.4 | YK12: 3.7 | YL12: 39 | YM12: 4.19 | YN12: 4.89 | YO12: 5 | YP12: 0.32 | YQ12: 0.91 | YR12: 1 | YS12: 0.22 | YT12: 0.51 | YU12: 15 | YV12: 1.3 | YW12: 1.8 | YX12: 43 | YY12: 3.79 | YZ12: 5.65 | ZA12: 3 | ZB12: 0.46 | ZC12: 0.7 | ZD12: 48 | ZE12: 7.1 | ZF12: 6.2 | ZG12: 29 | ZH12: 2.4 | ZI12: 3.5 | ZJ12: 9 | ZK12: 0.6 | ZL12: 1.18 | ZM12: 27 | ZN12: 4.01 | ZO12: 3 | ZP12: 42 | ZQ12: 2.97 | ZR12: 5.3 | ZS12: 10 | ZT12: 1.12 | ZU12: 1.2 | ZV12: 12 | ZW12: 2.16 | ZX12: 1.6 | ZY12: 13 | ZZ12: 1.24 | AAA12: 1.7 | AAB12: 36 | AAC12: 2.28 | AAD12: 4.1 | AAE12: 37 | AAF12: 3.7 | AAG12: 4.2 | AAH12: 47 | AAI12: 2.34 | AAJ12: 6.2 | AAK12: 26 | AAL12: 2.15 | AAM12: 2.91 | AAN12: 44 | AAO12: 3.4 | AAP12: 5.8 | AAQ12: 49 | AAR12: 3.94 | AAS12: 6.8 | AAT12: 13 | AAU12: 1.24 | AAV12: 1.7 | AAW12: 43 | AAX12: 3.79 | AAY12: 5.65 | AAZ12: 2 | ABA12: 0.22 | ABB12: 0.56 | ABC12: 34 | ABD12: 3.4 | ABE12: 4 | ABF12: 6 | ABG12: 0.38 | ABH12: 0.96 | ABI12: 41 | ABJ12: 5.95 | ABK12: 5.1 | ABL12: 42 | ABM12: 2.97 | ABN12: 5.3 | ABO12: 22 | ABP12: 2.75 | ABQ12: 2.4 | ABR12: 21 | ABS12: 1.83 | ABT12: 2.32 | ABU12: 44 | ABV12: 3.4 | ABW12: 5.8 | ABX12: 31 | ABY12: 1.56 | ABZ12: 3.71 | ACA12: 43 | ACB12: 3.79 | ACC12: 5.65 | ACD12: 22 | ACE12: 2.75 | ACF12: 2.4 | ACG12: 47 | ACH12: 2.34 | ACI12: 6.2 | ACJ12: 18 | ACK12: 1.32 | ACL12: 2 | ACM12: 1 | ACN12: 0.22 | ACO12: 0.51 | ACP12: 26 | ACQ12: 2.15 | ACR12: 2.91 | ACS12: 36 | ACT12: 2.28 | ACU12: 4.1 | ACV12: 48 | ACW12: 7.1 | ACX12: 6.2 | ACY12: 3 | ACZ12: 0.46 | ADA12: 0.7 | ADB12: 38 | ADC12: 3.61 | ADD12: 4.7 | ADE12: 32 | ADF12: 2.83 | ADG12: 3.77 | ADH12: 32 | ADI12: 2.83 | ADJ12: 3.77 | ADK12: 11 | ADL12: 0.91 | ADM12: 1.3 | ADN12: 16 | ADO12: 1.58 | ADP12: 1.83 | ADQ12: 39 | ADR12: 4.19 | ADS12: 4.89 | ADT12: 41 | ADU12: 5.95 | ADV12: 5.1 | ADW12: 45 | ADX12: 5.2 | ADY12: 5.8 | ADZ12: 30 | AEA12: 3.4 | AEB12: 3.7 | AEC12: 15 | AED12: 1.3 | AEE12: 1.8 | AEF12: 46 | AEG12: 5.9 | AEH12: 6.1 | AEI12: 6 | AEJ12: 0.38 | AEK12: 0.96 | AEL12: 48 | AEM12: 7.1 | AEN12: 6.2 | AEO12: 44 | AEP12: 3.4 | AEQ12: 5.8 | AER12: 36 | AES12: 2.28 | AET12: 4.1 | AEU12: 13 | AEV12: 1.24 | AEW12: 1.7 | AEX12: 28 | AEY12: 2.8 | AEZ12: 3.4 | AFA12: 28 | AFB12: 2.8 | AFC12: 3.4 | AFD12: 43 | AFE12: 3.79 | AFF12: 5.65 | AFG12: 44 | AFH12: 3.4 | AFI12: 5.8 | AFJ12: 23 | AFK12: 1.15 | AFL12: 2.5 | AFM12: 40 | AFN12: 5.16 | AFO12: 4.92 | AFP12: 24 | AFQ12: 1.7 | AFR12: 2.8 | AFS12: 48 | AFT12: 7.1 | AFU12: 6.2 | AFV12: 48 | AFW12: 7.1 | AFX12: 6.2 | AFY12: 37 | AFZ12: 3.7 | AGA12: 4.2 | AGB12: 13 | AGC12: 1.24 | AGD12: 1.7 | AGE12: 12 | AGF12: 2.16 | AGG12: 1.6 | AGH12: 12 | AGI12: 2.16 | AGJ12: 1.6 | AGK12: 39 | AGL12: 4.19 | AGM12: 4.89 | AGN12: 32 | AGO12: 2.83 | AGP12: 3.77 | AGQ12: 2 | AGR12: 0.22 | AGS12: 0.56 | AGT12: 9 | AGU12: 0.6 | AGV12: 1.18 | AGW12: 18 | AGX12: 1.32 | AGY12: 2 | AGZ12: 17 | AHA12: 1.3 | AHB12: 1.89 | AHC12: 50 | AHD12: 4.5 | AHE12: 6.8 | AHF12: 29 | AHG12: 2.4 | AHH12: 3.5 | AHI12: 1 | AHJ12: 0.22 | AHK12: 0.51 | AHL12: 1 | AHM12: 0.22 | AHN12: 0.51 | AHO12: 21 | AHP12: 1.83 | AHQ12: 2.32 | AHR12: 16 | AHS12: 1.58 | AHT12: 1.83 | AHU12: 34 | AHV12: 3.4 | AHW12: 4 | AHX12: 18 | AHY12: 1.32 | AHZ12: 2 | AIA12: 29 | AIB12: 2.4 | AIC12: 3.5 | AID12: 10 | AIE12: 1.12 | AIF12: 1.2 | AIG12: 9 | AIH12: 0.6 | AII12: 1.18 | AIJ12: 11 | AIK12: 0.91 | AIL12: 1.3 | AIM12: 19 | AIN12: 1.33 | AIO12: 2.06 | AIP12: 29 | AIQ12: 2.4 | AIR12: 3.5 | AIS12: 6 | AIT12: 0.38 | AIU12: 0.96 | AIV12: 7 | AIW12: 0.4 | AIX12: 1.05 | AIY12: 20 | AIZ12: 2.06 | AJA12: 2.23 | AJB12: 33 | AJC12: 4.28 | AJD12: 3.99 | AJE12: 42 | AJF12: 2.97 | AJG12: 5.3 | AJH12: 4 | AJI12: 0.32 | AJJ12: 0.75 | AJK12: 48 | AJL12: 7.1 | AJM12: 6.2 | AJN12: 39 | AJO12: 4.19 | AJP12: 4.89 | AJQ12: 40 | AJR12: 5.16 | AJS12: 4.92 | AJT12: 22 | AJU12: 2.75 | AJV12: 2.4 | AJW12: 28 | AJX12: 2.8 | AJY12: 3.4 | AJZ12: 49 | AKA12: 3.94 | AKB12: 6.8 | AKC12: 3 | AKD12: 0.46 | AKE12: 0.7 | AKF12: 12 | AKG12: 2.16 | AKH12: 1.6 | AKI12: 29 | AKJ12: 2.4 | AKK12: 3.5 | AKL12: 46 | AKM12: 5.9 | AKN12: 6.1 | AKO12: 5 | AKP12: 0.32 | AKQ12: 0.91 | AKR12: 30 | AKS12: 3.4 | AKT12: 3.7 | AKU12: 8 | AKV12: 1.68 | AKW12: 1.13 | AKX12: 49 | AKY12: 3.94 | AKZ12: 6.8 | ALA12: 42 | ALB12: 2.97 | ALC12: 5.3 | ALD12: 28 | ALE12: 2.8 | ALF12: 3.4 | ALG12: 22 | ALH12: 2.75 | ALI12: 2.4 | ALJ12: 30 | ALK12: 3.4 | ALL12: 3.7 | ALM12: 1 | ALN12: 0.22 | ALO12: 0.51 | ALP12: 48 | ALQ12: 7.1 | ALR12: 6.2 | ALS12: 45 | ALT12: 5.2 | ALU12: 5.8 | ALV12: 47 | ALW12: 2.34 | ALX12: 6.2 | ALY12: 32 | ALZ12: 2.83 | AMA12: 3.77 | AMB12: 36 | AMC12: 2.28 | AMD12: 4.1 | AME12: 6 | AMF12: 0.38 | AMG12: 0.96 | AMH12: 31 | AMI12: 1.56 | AMJ12: 3.71 | AMK12: 42 | AML12: 2.97 | AMM12: 5.3 | AMN12: 17 | AMO12: 1.3 | AMP12: 1.89 | AMQ12: 29 | AMR12: 2.4 | AMS12: 3.5 | AMT12: 50 | AMU12: 4.5 | AMV12: 6.8 | AMW12: 44 | AMX12: 3.4 | AMY12: 5.8 | AMZ12: 31 | ANA12: 1.56 | ANB12: 3.71 | ANC12: 49 | AND12: 3.94 | ANE12: 6.8 | ANF12: 19 | ANG12: 1.33 | ANH12: 2.06 | ANI12: 25 | ANJ12: 3.68 | ANK12: 2.88 | ANL12: 32 | ANM12: 2.83 | ANN12: 3.77 | ANO12: 28 | ANP12: 2.8 | ANQ12: 3.4 | ANR12: 35 | ANS12: 2.83 | ANT12: 4.02 | ANU12: 21 | ANV12: 1.83 | ANW12: 2.32 | ANX12: 48 | ANY12: 7.1 | ANZ12: 6.2 | AOA12: 39 | AOB12: 4.19 | AOC12: 4.89 | AOD12: 20 | AOE12: 2.06 | AOF12: 2.23 | AOG12: 8 | AOH12: 1.68 | AOI12: 1.13 | AOJ12: 10 | AOK12: 1.12 | AOL12: 1.2 | AOM12: 13 | AON12: 1.24 | AOO12: 1.7 | AOP12: 24 | AOQ12: 1.7 | AOR12: 2.8 | AOS12: 4 | AOT12: 0.32 | AOU12: 0.75 | AOV12: 33 | AOW12: 4.28 | AOX12: 3.99 | AOY12: 50 | AOZ12: 4.5 | APA12: 6.8 | APB12: 45 | APC12: 5.2 | APD12: 5.8 | APE12: 33 | APF12: 4.28 | APG12: 3.99 | APH12: 21 | API12: 1.83 | APJ12: 2.32 | APK12: 36 | APL12: 2.28 | APM12: 4.1 | APN12: 8 | APO12: 1.68 | APP12: 1.13 | APQ12: 5 | APR12: 0.32 | APS12: 0.91 | APT12: 23 | APU12: 1.15 | APV12: 2.5 | APW12: 28 | APX12: 2.8 | APY12: 3.4 | APZ12: 9 | AQA12: 0.6 | AQB12: 1.18 | AQC12: 4 | AQD12: 0.32 | AQE12: 0.75 | AQF12: 12 | AQG12: 2.16 | AQH12: 1.6 | AQI12: 1 | AQJ12: 0.22 | AQK12: 0.51 | AQL12: 21 | AQM12: 1.83 | AQN12: 2.32 | AQO12: 38 | AQP12: 3.61 | AQQ12: 4.7 | AQR12: 17 | AQS12: 1.3 | AQT12: 1.89 | AQU12: 6 | AQV12: 0.38 | AQW12: 0.96 | AQX12: 11 | AQY12: 0.91 | AQZ12: 1.3 | ARA12: 8 | ARB12: 1.68 | ARC12: 1.13 | ARD12: 27 | ARE12: 4.01 | ARF12: 3 | ARG12: 42 | ARH12: 2.97 | ARI12: 5.3 | ARJ12: 20 | ARK12: 2.06 | ARL12: 2.23 | ARM12: 35 | ARN12: 2.83 | ARO12: 4.02 | ARP12: 1 | ARQ12: 0.22 | ARR12: 0.51 | ARS12: 37 | ART12: 3.7 | ARU12: 4.2 | ARV12: 7 | ARW12: 0.4 | ARX12: 1.05 | ARY12: 45 | ARZ12: 5.2 | ASA12: 5.8 | ASB12: 40 | ASC12: 5.16 | ASD12: 4.92 | ASE12: 46 | ASF12: 5.9 | ASG12: 6.1 | ASH12: 4 | ASI12: 0.32 | ASJ12: 0.75 | ASK12: 28 | ASL12: 2.8 | ASM12: 3.4 | ASN12: 27 | ASO12: 4.01 | ASP12: 3 | ASQ12: 12 | ASR12: 2.16 | ASS12: 1.6 | AST12: 34 | ASU12: 3.4 | ASV12: 4 | ASW12: 47 | ASX12: 2.34 | ASY12: 6.2 | ASZ12: 23 | ATA12: 1.15 | ATB12: 2.5 | ATC12: 31 | ATD12: 1.56 | ATE12: 3.71 | ATF12: 41 | ATG12: 5.95 | ATH12: 5.1 | ATI12: 20 | ATJ12: 2.06 | ATK12: 2.23 | ATL12: 33 | ATM12: 4.28 | ATN12: 3.99 | ATO12: 41 | ATP12: 5.95 | ATQ12: 5.1 | ATR12: 36 | ATS12: 2.28 | ATT12: 4.1 | ATU12: 8 | ATV12: 1.68 | ATW12: 1.13 | ATX12: 25 | ATY12: 3.68 | ATZ12: 2.88 | AUA12: 15 | AUB12: 1.3 | AUC12: 1.8 | AUD12: 46 | AUE12: 5.9 | AUF12: 6.1 | AUG12: 15 | AUH12: 1.3 | AUI12: 1.8 | AUJ12: 21 | AUK12: 1.83 | AUL12: 2.32 | AUM12: 23 | AUN12: 1.15 | AUO12: 2.5 | AUP12: 40 | AUQ12: 5.16 | AUR12: 4.92 | AUS12: 7 | AUT12: 0.4 | AUU12: 1.05 | AUV12: 45 | AUW12: 5.2 | AUX12: 5.8 | AUY12: 50 | AUZ12: 4.5 | AVA12: 6.8 | AVB12: 2 | AVC12: 0.22 | AVD12: 0.56 | AVE12: 37 | AVF12: 3.7 | AVG12: 4.2 | AVH12: 33 | AVI12: 4.28 | AVJ12: 3.99 | AVK12: 27 | AVL12: 4.01 | AVM12: 3 | AVN12: 29 | AVO12: 2.4 | AVP12: 3.5 | AVQ12: 33 | AVR12: 4.28 | AVS12: 3.99 | AVT12: 8 | AVU12: 1.68 | AVV12: 1.13 | AVW12: 37 | AVX12: 3.7 | AVY12: 4.2 | AVZ12: 36 | AWA12: 2.28 | AWB12: 4.1 | AWC12: 6 | AWD12: 0.38 | AWE12: 0.96 | AWF12: 20 | AWG12: 2.06 | AWH12: 2.23 | AWI12: 11 | AWJ12: 0.91 | AWK12: 1.3 | AWL12: 20 | AWM12: 2.06 | AWN12: 2.23 | AWO12: 10 | AWP12: 1.12 | AWQ12: 1.2 | AWR12: 41 | AWS12: 5.95 | AWT12: 5.1 | AWU12: 9 | AWV12: 0.6 | AWW12: 1.18 | AWX12: 46 | AWY12: 5.9 | AWZ12: 6.1 | AXA12: 20 | AXB12: 2.06 | AXC12: 2.23 | AXD12: 26 | AXE12: 2.15 | AXF12: 2.91 | AXG12: 48 | AXH12: 7.1 | AXI12: 6.2 | AXJ12: 34 | AXK12: 3.4 | AXL12: 4 | AXM12: 22 | AXN12: 2.75 | AXO12: 2.4 | AXP12: 44 | AXQ12: 3.4 | AXR12: 5.8 | AXS12: 2 | AXT12: 0.22 | AXU12: 0.56 | AXV12: 23 | AXW12: 1.15 | AXX12: 2.5 | AXY12: 19 | AXZ12: 1.33 | AYA12: 2.06 | AYB12: 6 | AYC12: 0.38 | AYD12: 0.96 | AYE12: 5 | AYF12: 0.32 | AYG12: 0.91 | AYH12: 27 | AYI12: 4.01 | AYJ12: 3 | AYK12: 39 | AYL12: 4.19 | AYM12: 4.89 | AYN12: 21 | AYO12: 1.83 | AYP12: 2.32 | AYQ12: 30 | AYR12: 3.4 | AYS12: 3.7 | AYT12: 28 | AYU12: 2.8 | AYV12: 3.4 | AYW12: 19 | AYX12: 1.33 | AYY12: 2.06 | AYZ12: 3 | AZA12: 0.46 | AZB12: 0.7 | AZC12: 15 | AZD12: 1.3 | AZE12: 1.8 | AZF12: 10 | AZG12: 1.12 | AZH12: 1.2 | AZI12: 40 | AZJ12: 5.16 | AZK12: 4.92 | AZL12: 49 | AZM12: 3.94 | AZN12: 6.8 | AZO12: 14 | AZP12: 1.16 | AZQ12: 1.72 | AZR12: 19 | AZS12: 1.33 | AZT12: 2.06 | AZU12: 32 | AZV12: 2.83 | AZW12: 3.77 | AZX12: 24 | AZY12: 1.7 | AZZ12: 2.8 | BAA12: 2 | BAB12: 0.22 | BAC12: 0.56 | BAD12: 27 | BAE12: 4.01 | BAF12: 3 | BAG12: 39 | BAH12: 4.19 | BAI12: 4.89 | BAJ12: 9 | BAK12: 0.6 | BAL12: 1.18 | BAM12: 50 | BAN12: 4.5 | BAO12: 6.8 | BAP12: 19 | BAQ12: 1.33 | BAR12: 2.06 | BAS12: 45 | BAT12: 5.2 | BAU12: 5.8 | BAV12: 14 | BAW12: 1.16 | BAX12: 1.72 | BAY12: 5 | BAZ12: 0.32 | BBA12: 0.91 | BBB12: 29 | BBC12: 2.4 | BBD12: 3.5 | BBE12: 13 | BBF12: 1.24 | BBG12: 1.7 | BBH12: 4 | BBI12: 0.32 | BBJ12: 0.75 | BBK12: 40 | BBL12: 5.16 | BBM12: 4.92 | BBN12: 49 | BBO12: 3.94 | BBP12: 6.8 | BBQ12: 40 | BBR12: 5.16 | BBS12: 4.92 | BBT12: 32 | BBU12: 2.83 | BBV12: 3.77 | BBW12: 7 | BBX12: 0.4 | BBY12: 1.05 | BBZ12: 48 | BCA12: 7.1 | BCB12: 6.2 | BCC12: 20 | BCD12: 2.06 | BCE12: 2.23 | BCF12: 40 | BCG12: 5.16 | BCH12: 4.92 | BCI12: 14 | BCJ12: 1.16 | BCK12: 1.72 | BCL12: 48 | BCM12: 7.1 | BCN12: 6.2 | BCO12: 23 | BCP12: 1.15 | BCQ12: 2.5 | BCR12: 24 | BCS12: 1.7 | BCT12: 2.8 | BCU12: 6 | BCV12: 0.38 | BCW12: 0.96 | BCX12: 24 | BCY12: 1.7 | BCZ12: 2.8 | BDA12: 32 | BDB12: 2.83 | BDC12: 3.77 | BDD12: 50 | BDE12: 4.5 | BDF12: 6.8 | BDG12: 8 | BDH12: 1.68 | BDI12: 1.13 | BDJ12: 1 | BDK12: 0.22 | BDL12: 0.51 | BDM12: 47 | BDN12: 2.34 | BDO12: 6.2 | BDP12: 49 | BDQ12: 3.94 | BDR12: 6.8 | BDS12: 40 | BDT12: 5.16 | BDU12: 4.92 | BDV12: 29 | BDW12: 2.4 | BDX12: 3.5 | BDY12: 2 | BDZ12: 0.22 | BEA12: 0.56 | BEB12: 14 | BEC12: 1.16 | BED12: 1.72 | BEE12: 34 | BEF12: 3.4 | BEG12: 4 | BEH12: 10 | BEI12: 1.12 | BEJ12: 1.2 | BEK12: 39 | BEL12: 4.19 | BEM12: 4.89 | BEN12: 7 | BEO12: 0.4 | BEP12: 1.05 | BEQ12: 17 | BER12: 1.3 | BES12: 1.89 | BET12: 42 | BEU12: 2.97 | BEV12: 5.3 | BEW12: 48 | BEX12: 7.1 | BEY12: 6.2 | BEZ12: 41 | BFA12: 5.95 | BFB12: 5.1 | BFC12: 9 | BFD12: 0.6 | BFE12: 1.18 | BFF12: 24 | BFG12: 1.7 | BFH12: 2.8 | BFI12: 22 | BFJ12: 2.75 | BFK12: 2.4 | BFL12: 9 | BFM12: 0.6 | BFN12: 1.18 | BFO12: 33 | BFP12: 4.28 | BFQ12: 3.99 | BFR12: 24 | BFS12: 1.7 | BFT12: 2.8 | BFU12: 19 | BFV12: 1.33 | BFW12: 2.06 | BFX12: 40 | BFY12: 5.16 | BFZ12: 4.92 | BGA12: 31 | BGB12: 1.56 | BGC12: 3.71 | BGD12: 10 | BGE12: 1.12 | BGF12: 1.2 | BGG12: 42 | BGH12: 2.97 | BGI12: 5.3 | BGJ12: 5 | BGK12: 0.32 | BGL12: 0.91 | BGM12: 2 | BGN12: 0.22 | BGO12: 0.56 | BGP12: 43 | BGQ12: 3.79 | BGR12: 5.65 | BGS12: 26 | BGT12: 2.15 | BGU12: 2.91
